Workbook

Sheet 使い方
C2: 令和６年３月版 給与・賞与計算エクセル
C5: ①はじめに
C6: 本ソフトは給与賞与の「源泉所得税」「雇用保険料」「社会保険料」を自動計算するためのものです。
C7: 本ソフトは、細心の注意を払って作成しておりますが、計算の正確さを保証するものではありません。使用する際は、自己の責任の下でのご使用をご了承ください。
C9: ②使い方
C10: ・「基本情報シート」に基本的情報を入力後、「給与計算シート」もしくは「賞与計算シート」の白い部分に必要事項を入力してください。
C11: ・保護されている部分は解除が可能です。
C13: ③賞与に対する社会保険料の計算についての注意事項
C15: ・健康保険の標準賞与額の一人当たりの上限は年度（4月1日から翌年の3月31日まで）の賞与累計額573万円までです。今年度賞与累計額が573万円にさしかかる人がいる場合は適宜健康保険の額を修正してください。
C17: ・厚生年金の標準賞与額の一人あたりの上限は１ヶ月に１５０万円までです。１ヶ月に2回賞与を支給して合計が１５０万円を超える場合は適宜厚生年金の額を修正してください。１回の賞与が１５０万円を超える場合は自動で１５０万円の標準賞与額として厚生年金が計算されます。
H19: 酒井会計事務所
H20: http://sakai-ac.com/

Sheet 基本情報
B2: 年月 | D2: 令和６年３月 | F2: ※シートの保護は解除できます。
B3: 営業所の場所 | D3: 東京
B4: 事業の種類 | D4: 一般の事業
L5: 社会保険標準報酬月額 参考表
B6: NO. | C6: 名前 | D6: 甲・乙区分 | E6: 扶養人数 | F6: 雇用保険 加入○× | G6: 社会保険区分 | J6: 交通費 手当 （非課税分）
G7: 標準報酬月額 | H7: 健康保険 | I7: 厚生年金 | L7: 標準報酬月額 | M7: 円以上 | N7: ～ | O7: 円未満
B8: 1 | C8: 給与一郎 | D8: 甲欄 | E8: 2 | F8: × | G8: 560000 | H8: 介護保険あり | I8: 一般、坑内員・船員 | J8: 10000 | L8: =リスト表!D4 -> 58000 | M8: =INDIRECT(' 基本情報 '!$D$3&"!C12") -> 0 | N8: ～ | O8: =INDIRECT(' 基本情報 '!$D$3&"!E12") -> 63000
B9: 2 | C9: 給与二郎 | D9: 甲欄 | E9: 1 | F9: ○ | G9: 300000 | H9: 介護保険なし | I9: 一般、坑内員・船員 | J9: 5000 | L9: =リスト表!D5 -> 68000 | M9: =INDIRECT(' 基本情報 '!$D$3&"!C13") -> 63000 | N9: ～ | O9: =INDIRECT(' 基本情報 '!$D$3&"!E13") -> 73000
B10: 3 | C10: 給与三郎 | D10: 乙欄 | E10: 0 | L10: =リスト表!D6 -> 78000 | M10: =INDIRECT(' 基本情報 '!$D$3&"!C14") -> 73000 | N10: ～ | O10: =INDIRECT(' 基本情報 '!$D$3&"!E14") -> 83000
B11: 4 | L11: =リスト表!D7 -> 88000 | M11: =INDIRECT(' 基本情報 '!$D$3&"!C15") -> 83000 | N11: ～ | O11: =INDIRECT(' 基本情報 '!$D$3&"!E15") -> 93000
B12: 5 | L12: =リスト表!D8 -> 98000 | M12: =INDIRECT(' 基本情報 '!$D$3&"!C16") -> 93000 | N12: ～ | O12: =INDIRECT(' 基本情報 '!$D$3&"!E16") -> 101000
B13: 6 | L13: =リスト表!D9 -> 104000 | M13: =INDIRECT(' 基本情報 '!$D$3&"!C17") -> 101000 | N13: ～ | O13: =INDIRECT(' 基本情報 '!$D$3&"!E17") -> 107000
B14: 7 | L14: =リスト表!D10 -> 110000 | M14: =INDIRECT(' 基本情報 '!$D$3&"!C18") -> 107000 | N14: ～ | O14: =INDIRECT(' 基本情報 '!$D$3&"!E18") -> 114000
B15: 8 | L15: =リスト表!D11 -> 118000 | M15: =INDIRECT(' 基本情報 '!$D$3&"!C19") -> 114000 | N15: ～ | O15: =INDIRECT(' 基本情報 '!$D$3&"!E19") -> 122000
B16: 9 | L16: =リスト表!D12 -> 126000 | M16: =INDIRECT(' 基本情報 '!$D$3&"!C20") -> 122000 | N16: ～ | O16: =INDIRECT(' 基本情報 '!$D$3&"!E20") -> 130000
B17: 10 | L17: =リスト表!D13 -> 134000 | M17: =INDIRECT(' 基本情報 '!$D$3&"!C21") -> 130000 | N17: ～ | O17: =INDIRECT(' 基本情報 '!$D$3&"!E21") -> 138000
B18: 11 | L18: =リスト表!D14 -> 142000 | M18: =INDIRECT(' 基本情報 '!$D$3&"!C22") -> 138000 | N18: ～ | O18: =INDIRECT(' 基本情報 '!$D$3&"!E22") -> 146000
B19: 12 | L19: =リスト表!D15 -> 150000 | M19: =INDIRECT(' 基本情報 '!$D$3&"!C23") -> 146000 | N19: ～ | O19: =INDIRECT(' 基本情報 '!$D$3&"!E23") -> 155000
B20: 13 | L20: =リスト表!D16 -> 160000 | M20: =INDIRECT(' 基本情報 '!$D$3&"!C24") -> 155000 | N20: ～ | O20: =INDIRECT(' 基本情報 '!$D$3&"!E24") -> 165000
B21: 14 | L21: =リスト表!D17 -> 170000 | M21: =INDIRECT(' 基本情報 '!$D$3&"!C25") -> 165000 | N21: ～ | O21: =INDIRECT(' 基本情報 '!$D$3&"!E25") -> 175000
B22: 15 | L22: =リスト表!D18 -> 180000 | M22: =INDIRECT(' 基本情報 '!$D$3&"!C26") -> 175000 | N22: ～ | O22: =INDIRECT(' 基本情報 '!$D$3&"!E26") -> 185000
B23: 16 | L23: =リスト表!D19 -> 190000 | M23: =INDIRECT(' 基本情報 '!$D$3&"!C27") -> 185000 | N23: ～ | O23: =INDIRECT(' 基本情報 '!$D$3&"!E27") -> 195000
B24: 17 | L24: =リスト表!D20 -> 200000 | M24: =INDIRECT(' 基本情報 '!$D$3&"!C28") -> 195000 | N24: ～ | O24: =INDIRECT(' 基本情報 '!$D$3&"!E28") -> 210000
B25: 18 | L25: =リスト表!D21 -> 220000 | M25: =INDIRECT(' 基本情報 '!$D$3&"!C29") -> 210000 | N25: ～ | O25: =INDIRECT(' 基本情報 '!$D$3&"!E29") -> 230000
B26: 19 | L26: =リスト表!D22 -> 240000 | M26: =INDIRECT(' 基本情報 '!$D$3&"!C30") -> 230000 | N26: ～ | O26: =INDIRECT(' 基本情報 '!$D$3&"!E30") -> 250000
B27: 20 | L27: =リスト表!D23 -> 260000 | M27: =INDIRECT(' 基本情報 '!$D$3&"!C31") -> 250000 | N27: ～ | O27: =INDIRECT(' 基本情報 '!$D$3&"!E31") -> 270000
B28: 21 | L28: =リスト表!D24 -> 280000 | M28: =INDIRECT(' 基本情報 '!$D$3&"!C32") -> 270000 | N28: ～ | O28: =INDIRECT(' 基本情報 '!$D$3&"!E32") -> 290000
B29: 22 | L29: =リスト表!D25 -> 300000 | M29: =INDIRECT(' 基本情報 '!$D$3&"!C33") -> 290000 | N29: ～ | O29: =INDIRECT(' 基本情報 '!$D$3&"!E33") -> 310000
B30: 23 | L30: =リスト表!D26 -> 320000 | M30: =INDIRECT(' 基本情報 '!$D$3&"!C34") -> 310000 | N30: ～ | O30: =INDIRECT(' 基本情報 '!$D$3&"!E34") -> 330000
B31: 24 | L31: =リスト表!D27 -> 340000 | M31: =INDIRECT(' 基本情報 '!$D$3&"!C35") -> 330000 | N31: ～ | O31: =INDIRECT(' 基本情報 '!$D$3&"!E35") -> 350000
B32: 25 | L32: =リスト表!D28 -> 360000 | M32: =INDIRECT(' 基本情報 '!$D$3&"!C36") -> 350000 | N32: ～ | O32: =INDIRECT(' 基本情報 '!$D$3&"!E36") -> 370000
B33: 26 | L33: =リスト表!D29 -> 380000 | M33: =INDIRECT(' 基本情報 '!$D$3&"!C37") -> 370000 | N33: ～ | O33: =INDIRECT(' 基本情報 '!$D$3&"!E37") -> 395000
B34: 27 | L34: =リスト表!D30 -> 410000 | M34: =INDIRECT(' 基本情報 '!$D$3&"!C38") -> 395000 | N34: ～ | O34: =INDIRECT(' 基本情報 '!$D$3&"!E38") -> 425000
B35: 28 | L35: =リスト表!D31 -> 440000 | M35: =INDIRECT(' 基本情報 '!$D$3&"!C39") -> 425000 | N35: ～ | O35: =INDIRECT(' 基本情報 '!$D$3&"!E39") -> 455000
B36: 29 | L36: =リスト表!D32 -> 470000 | M36: =INDIRECT(' 基本情報 '!$D$3&"!C40") -> 455000 | N36: ～ | O36: =INDIRECT(' 基本情報 '!$D$3&"!E40") -> 485000
B37: 30 | L37: =リスト表!D33 -> 500000 | M37: =INDIRECT(' 基本情報 '!$D$3&"!C41") -> 485000 | N37: ～ | O37: =INDIRECT(' 基本情報 '!$D$3&"!E41") -> 515000
L38: =リスト表!D34 -> 530000 | M38: =INDIRECT(' 基本情報 '!$D$3&"!C42") -> 515000 | N38: ～ | O38: =INDIRECT(' 基本情報 '!$D$3&"!E42") -> 545000
L39: =リスト表!D35 -> 560000 | M39: =INDIRECT(' 基本情報 '!$D$3&"!C43") -> 545000 | N39: ～ | O39: =INDIRECT(' 基本情報 '!$D$3&"!E43") -> 575000
L40: =リスト表!D36 -> 590000 | M40: =INDIRECT(' 基本情報 '!$D$3&"!C44") -> 575000 | N40: ～ | O40: =INDIRECT(' 基本情報 '!$D$3&"!E44") -> 605000
L41: =リスト表!D37 -> 620000 | M41: =INDIRECT(' 基本情報 '!$D$3&"!C45") -> 605000 | N41: ～ | O41: =INDIRECT(' 基本情報 '!$D$3&"!E45") -> 635000
L42: =リスト表!D38 -> 650000 | M42: =INDIRECT(' 基本情報 '!$D$3&"!C46") -> 635000 | N42: ～ | O42: =INDIRECT(' 基本情報 '!$D$3&"!E46") -> 665000
L43: =リスト表!D39 -> 680000 | M43: =INDIRECT(' 基本情報 '!$D$3&"!C47") -> 665000 | N43: ～ | O43: =INDIRECT(' 基本情報 '!$D$3&"!E47") -> 695000
L44: =リスト表!D40 -> 710000 | M44: =INDIRECT(' 基本情報 '!$D$3&"!C48") -> 695000 | N44: ～ | O44: =INDIRECT(' 基本情報 '!$D$3&"!E48") -> 730000
L45: =リスト表!D41 -> 750000 | M45: =INDIRECT(' 基本情報 '!$D$3&"!C49") -> 730000 | N45: ～ | O45: =INDIRECT(' 基本情報 '!$D$3&"!E49") -> 770000
L46: =リスト表!D42 -> 790000 | M46: =INDIRECT(' 基本情報 '!$D$3&"!C50") -> 770000 | N46: ～ | O46: =INDIRECT(' 基本情報 '!$D$3&"!E50") -> 810000
L47: =リスト表!D43 -> 830000 | M47: =INDIRECT(' 基本情報 '!$D$3&"!C51") -> 810000 | N47: ～ | O47: =INDIRECT(' 基本情報 '!$D$3&"!E51") -> 855000
L48: =リスト表!D44 -> 880000 | M48: =INDIRECT(' 基本情報 '!$D$3&"!C52") -> 855000 | N48: ～ | O48: =INDIRECT(' 基本情報 '!$D$3&"!E52") -> 905000
L49: =リスト表!D45 -> 930000 | M49: =INDIRECT(' 基本情報 '!$D$3&"!C53") -> 905000 | N49: ～ | O49: =INDIRECT(' 基本情報 '!$D$3&"!E53") -> 955000
L50: =リスト表!D46 -> 980000 | M50: =INDIRECT(' 基本情報 '!$D$3&"!C54") -> 955000 | N50: ～ | O50: =INDIRECT(' 基本情報 '!$D$3&"!E54") -> 1005000
L51: =リスト表!D47 -> 1030000 | M51: =INDIRECT(' 基本情報 '!$D$3&"!C55") -> 1005000 | N51: ～ | O51: =INDIRECT(' 基本情報 '!$D$3&"!E55") -> 1055000
L52: =リスト表!D48 -> 1090000 | M52: =INDIRECT(' 基本情報 '!$D$3&"!C56") -> 1055000 | N52: ～ | O52: =INDIRECT(' 基本情報 '!$D$3&"!E56") -> 1115000
L53: =リスト表!D49 -> 1150000 | M53: =INDIRECT(' 基本情報 '!$D$3&"!C57") -> 1115000 | N53: ～ | O53: =INDIRECT(' 基本情報 '!$D$3&"!E57") -> 1175000
L54: =リスト表!D50 -> 1210000 | M54: =INDIRECT(' 基本情報 '!$D$3&"!C58") -> 1175000 | N54: ～ | O54: =INDIRECT(' 基本情報 '!$D$3&"!E58") -> 1235000
L55: =リスト表!D51 -> 1270000 | M55: =INDIRECT(' 基本情報 '!$D$3&"!C59") -> 1235000 | N55: ～ | O55: =INDIRECT(' 基本情報 '!$D$3&"!E59") -> 1295000
L56: =リスト表!D52 -> 1330000 | M56: =INDIRECT(' 基本情報 '!$D$3&"!C60") -> 1295000 | N56: ～ | O56: =INDIRECT(' 基本情報 '!$D$3&"!E60") -> 1355000
L57: =リスト表!D53 -> 1390000 | M57: =INDIRECT(' 基本情報 '!$D$3&"!C61") -> 1355000 | N57: ～ | O57: =INDIRECT(' 基本情報 '!$D$3&"!E61") -> 0

Sheet 給与計算
B2: =' 基本情報 '!D2 -> 令和６年３月 | D2: 給与計算 | G2: ※シートの保護は解除できます。
B3: 集計 | D3: =D6 -> 本給 | E3: =E6 -> 他手当1 （課税） | F3: =F6 -> 他手当2 （課税） | G3: =G6 -> 課税支給額 | H3: =H6 -> 交通費 手当 （非課税） | I3: =I6 -> 総支給額 | J3: =J7 -> 雇用保険 | K3: =K7 -> 健康保険 | L3: =L7 -> 厚生年金 | M3: =M7 -> 社会保険合計 | N3: =N7 -> 社会保険料控除後の給与等の額 | O3: 源泉所得税 | P3: =P6 -> その他 住民税等 | Q3: 差引支給額
D4: =SUM(D8:D37) -> 900000 | E4: =SUM(E8:E37) -> 50000 | F4: 0 | G4: 950000 | H4: 15000 | I4: 965000 | J4: 1830 | K4: 47394 | L4: 78690 | M4: =SUM(M8:M37) -> 127914 | N4: 822086 | O4: 24170 | P4: =SUM(P8:P37) -> 58000 | Q4: 754916
B6: NO. | C6: 名前 | D6: 本給 | E6: 他手当1 （課税） | F6: 他手当2 （課税） | G6: 課税支給額 | H6: 交通費 手当 （非課税） | I6: 総支給額 | J6: 社会保険 | N6: 参考 | O6: 源泉所得税 | P6: その他 住民税等 | Q6: 差引支給額 | R6: 備考
J7: 雇用保険 | K7: 健康保険 | L7: 厚生年金 | M7: 社会保険合計 | N7: 社会保険料控除後の給与等の額
B8: 1 | C8: =IF(' 基本情報 '!C8="","",' 基本情報 '!C8) -> 給与一郎 | D8: 500000 | E8: 50000 | G8: =SUM(D8:F8) -> 550000 | H8: =IF(ISNUMBER(' 基本情報 '!J8),' 基本情報 '!J8,0) -> 10000 | I8: =SUM(G8:H8) -> 560000 | J8: =MAX(IF(' 基本情報 '!F8="○",ROUNDUP(I8*IF(' 基本情報 '!$D$4="",0,VLOOKUP(' 基本情報 '!$D$4,雇用保険料率!$C:$D,2,0))-0.5,0),0),0) -> 0 | K8: =IF(OR(' 基本情報 '!$D$3="",' 基本情報 '!H8=""),0,HLOOKUP(' 基本情報 '!H8,計算シート!$Q$4:$S$34,ROW(計算シート!Q5)-3,0)) -> 32424 | L8: =IF(OR(' 基本情報 '!$D$3="",' 基本情報 '!I8=""),0,HLOOKUP(' 基本情報 '!I8,計算シート!$T$4:$V$34,ROW(計算シート!Q5)-3,0)) -> 51240 | M8: =SUM(J8:L8) -> 83664 | N8: =MAX(G8-M8,0) -> 466336 | O8: =IF(' 基本情報 '!D8="","",HLOOKUP(' 基本情報 '!D8,計算シート!$E$4:$G$34,ROW(計算シート!E5)-3,0)) -> 15430 | P8: 35000 | Q8: =I8-M8-IF(O8="",0,O8)-P8 -> 425906
B9: 2 | C9: =IF(' 基本情報 '!C9="","",' 基本情報 '!C9) -> 給与二郎 | D9: 300000 | G9: 300000 | H9: =IF(ISNUMBER(' 基本情報 '!J9),' 基本情報 '!J9,0) -> 5000 | I9: =SUM(G9:H9) -> 305000 | J9: =MAX(IF(' 基本情報 '!F9="○",ROUNDUP(I9*IF(' 基本情報 '!$D$4="",0,VLOOKUP(' 基本情報 '!$D$4,雇用保険料率!$C:$D,2,0))-0.5,0),0),0) -> 1830 | K9: =IF(OR(' 基本情報 '!$D$3="",' 基本情報 '!H9=""),0,HLOOKUP(' 基本情報 '!H9,計算シート!$Q$4:$S$34,ROW(計算シート!Q6)-3,0)) -> 14970 | L9: =IF(OR(' 基本情報 '!$D$3="",' 基本情報 '!I9=""),0,HLOOKUP(' 基本情報 '!I9,計算シート!$T$4:$V$34,ROW(計算シート!Q6)-3,0)) -> 27450 | M9: =SUM(J9:L9) -> 44250 | N9: =MAX(G9-M9,0) -> 255750 | O9: =IF(' 基本情報 '!D9="","",HLOOKUP(' 基本情報 '!D9,計算シート!$E$4:$G$34,ROW(計算シート!E6)-3,0)) -> 5140 | P9: 23000 | Q9: 232610
B10: 3 | C10: =IF(' 基本情報 '!C10="","",' 基本情報 '!C10) -> 給与三郎 | D10: 100000 | G10: 100000 | H10: =IF(ISNUMBER(' 基本情報 '!J10),' 基本情報 '!J10,0) -> 0 | I10: 100000 | J10: =MAX(IF(' 基本情報 '!F10="○",ROUNDUP(I10*IF(' 基本情報 '!$D$4="",0,VLOOKUP(' 基本情報 '!$D$4,雇用保険料率!$C:$D,2,0))-0.5,0),0),0) -> 0 | K10: =IF(OR(' 基本情報 '!$D$3="",' 基本情報 '!H10=""),0,HLOOKUP(' 基本情報 '!H10,計算シート!$Q$4:$S$34,ROW(計算シート!Q7)-3,0)) -> 0 | L10: =IF(OR(' 基本情報 '!$D$3="",' 基本情報 '!I10=""),0,HLOOKUP(' 基本情報 '!I10,計算シート!$T$4:$V$34,ROW(計算シート!Q7)-3,0)) -> 0 | M10: 0 | N10: =MAX(G10-M10,0) -> 100000 | O10: =IF(' 基本情報 '!D10="","",HLOOKUP(' 基本情報 '!D10,計算シート!$E$4:$G$34,ROW(計算シート!E7)-3,0)) -> 3600 | Q10: 96400
B11: 4 | C11: =IF(' 基本情報 '!C11="","",' 基本情報 '!C11) ->  | G11: 0 | H11: =IF(ISNUMBER(' 基本情報 '!J11),' 基本情報 '!J11,0) -> 0 | I11: 0 | J11: =MAX(IF(' 基本情報 '!F11="○",ROUNDUP(I11*IF(' 基本情報 '!$D$4="",0,VLOOKUP(' 基本情報 '!$D$4,雇用保険料率!$C:$D,2,0))-0.5,0),0),0) -> 0 | K11: =IF(OR(' 基本情報 '!$D$3="",' 基本情報 '!H11=""),0,HLOOKUP(' 基本情報 '!H11,計算シート!$Q$4:$S$34,ROW(計算シート!Q8)-3,0)) -> 0 | L11: =IF(OR(' 基本情報 '!$D$3="",' 基本情報 '!I11=""),0,HLOOKUP(' 基本情報 '!I11,計算シート!$T$4:$V$34,ROW(計算シート!Q8)-3,0)) -> 0 | M11: 0 | N11: 0 | O11: =IF(' 基本情報 '!D11="","",HLOOKUP(' 基本情報 '!D11,計算シート!$E$4:$G$34,ROW(計算シート!E8)-3,0)) ->  | Q11: 0
B12: 5 | C12: =IF(' 基本情報 '!C12="","",' 基本情報 '!C12) ->  | G12: 0 | H12: =IF(ISNUMBER(' 基本情報 '!J12),' 基本情報 '!J12,0) -> 0 | I12: 0 | J12: =MAX(IF(' 基本情報 '!F12="○",ROUNDUP(I12*IF(' 基本情報 '!$D$4="",0,VLOOKUP(' 基本情報 '!$D$4,雇用保険料率!$C:$D,2,0))-0.5,0),0),0) -> 0 | K12: =IF(OR(' 基本情報 '!$D$3="",' 基本情報 '!H12=""),0,HLOOKUP(' 基本情報 '!H12,計算シート!$Q$4:$S$34,ROW(計算シート!Q9)-3,0)) -> 0 | L12: =IF(OR(' 基本情報 '!$D$3="",' 基本情報 '!I12=""),0,HLOOKUP(' 基本情報 '!I12,計算シート!$T$4:$V$34,ROW(計算シート!Q9)-3,0)) -> 0 | M12: 0 | N12: 0 | O12: =IF(' 基本情報 '!D12="","",HLOOKUP(' 基本情報 '!D12,計算シート!$E$4:$G$34,ROW(計算シート!E9)-3,0)) ->  | Q12: 0
B13: 6 | C13: =IF(' 基本情報 '!C13="","",' 基本情報 '!C13) ->  | G13: 0 | H13: =IF(ISNUMBER(' 基本情報 '!J13),' 基本情報 '!J13,0) -> 0 | I13: 0 | J13: =MAX(IF(' 基本情報 '!F13="○",ROUNDUP(I13*IF(' 基本情報 '!$D$4="",0,VLOOKUP(' 基本情報 '!$D$4,雇用保険料率!$C:$D,2,0))-0.5,0),0),0) -> 0 | K13: =IF(OR(' 基本情報 '!$D$3="",' 基本情報 '!H13=""),0,HLOOKUP(' 基本情報 '!H13,計算シート!$Q$4:$S$34,ROW(計算シート!Q10)-3,0)) -> 0 | L13: =IF(OR(' 基本情報 '!$D$3="",' 基本情報 '!I13=""),0,HLOOKUP(' 基本情報 '!I13,計算シート!$T$4:$V$34,ROW(計算シート!Q10)-3,0)) -> 0 | M13: 0 | N13: 0 | O13: =IF(' 基本情報 '!D13="","",HLOOKUP(' 基本情報 '!D13,計算シート!$E$4:$G$34,ROW(計算シート!E10)-3,0)) ->  | Q13: 0
B14: 7 | C14: =IF(' 基本情報 '!C14="","",' 基本情報 '!C14) ->  | G14: 0 | H14: =IF(ISNUMBER(' 基本情報 '!J14),' 基本情報 '!J14,0) -> 0 | I14: 0 | J14: =MAX(IF(' 基本情報 '!F14="○",ROUNDUP(I14*IF(' 基本情報 '!$D$4="",0,VLOOKUP(' 基本情報 '!$D$4,雇用保険料率!$C:$D,2,0))-0.5,0),0),0) -> 0 | K14: =IF(OR(' 基本情報 '!$D$3="",' 基本情報 '!H14=""),0,HLOOKUP(' 基本情報 '!H14,計算シート!$Q$4:$S$34,ROW(計算シート!Q11)-3,0)) -> 0 | L14: =IF(OR(' 基本情報 '!$D$3="",' 基本情報 '!I14=""),0,HLOOKUP(' 基本情報 '!I14,計算シート!$T$4:$V$34,ROW(計算シート!Q11)-3,0)) -> 0 | M14: 0 | N14: 0 | O14: =IF(' 基本情報 '!D14="","",HLOOKUP(' 基本情報 '!D14,計算シート!$E$4:$G$34,ROW(計算シート!E11)-3,0)) ->  | Q14: 0
B15: 8 | C15: =IF(' 基本情報 '!C15="","",' 基本情報 '!C15) ->  | G15: 0 | H15: =IF(ISNUMBER(' 基本情報 '!J15),' 基本情報 '!J15,0) -> 0 | I15: 0 | J15: =MAX(IF(' 基本情報 '!F15="○",ROUNDUP(I15*IF(' 基本情報 '!$D$4="",0,VLOOKUP(' 基本情報 '!$D$4,雇用保険料率!$C:$D,2,0))-0.5,0),0),0) -> 0 | K15: =IF(OR(' 基本情報 '!$D$3="",' 基本情報 '!H15=""),0,HLOOKUP(' 基本情報 '!H15,計算シート!$Q$4:$S$34,ROW(計算シート!Q12)-3,0)) -> 0 | L15: =IF(OR(' 基本情報 '!$D$3="",' 基本情報 '!I15=""),0,HLOOKUP(' 基本情報 '!I15,計算シート!$T$4:$V$34,ROW(計算シート!Q12)-3,0)) -> 0 | M15: 0 | N15: 0 | O15: =IF(' 基本情報 '!D15="","",HLOOKUP(' 基本情報 '!D15,計算シート!$E$4:$G$34,ROW(計算シート!E12)-3,0)) ->  | Q15: 0
B16: 9 | C16: =IF(' 基本情報 '!C16="","",' 基本情報 '!C16) ->  | G16: 0 | H16: =IF(ISNUMBER(' 基本情報 '!J16),' 基本情報 '!J16,0) -> 0 | I16: 0 | J16: =MAX(IF(' 基本情報 '!F16="○",ROUNDUP(I16*IF(' 基本情報 '!$D$4="",0,VLOOKUP(' 基本情報 '!$D$4,雇用保険料率!$C:$D,2,0))-0.5,0),0),0) -> 0 | K16: =IF(OR(' 基本情報 '!$D$3="",' 基本情報 '!H16=""),0,HLOOKUP(' 基本情報 '!H16,計算シート!$Q$4:$S$34,ROW(計算シート!Q13)-3,0)) -> 0 | L16: =IF(OR(' 基本情報 '!$D$3="",' 基本情報 '!I16=""),0,HLOOKUP(' 基本情報 '!I16,計算シート!$T$4:$V$34,ROW(計算シート!Q13)-3,0)) -> 0 | M16: 0 | N16: 0 | O16: =IF(' 基本情報 '!D16="","",HLOOKUP(' 基本情報 '!D16,計算シート!$E$4:$G$34,ROW(計算シート!E13)-3,0)) ->  | Q16: 0
B17: 10 | C17: =IF(' 基本情報 '!C17="","",' 基本情報 '!C17) ->  | G17: 0 | H17: =IF(ISNUMBER(' 基本情報 '!J17),' 基本情報 '!J17,0) -> 0 | I17: 0 | J17: =MAX(IF(' 基本情報 '!F17="○",ROUNDUP(I17*IF(' 基本情報 '!$D$4="",0,VLOOKUP(' 基本情報 '!$D$4,雇用保険料率!$C:$D,2,0))-0.5,0),0),0) -> 0 | K17: =IF(OR(' 基本情報 '!$D$3="",' 基本情報 '!H17=""),0,HLOOKUP(' 基本情報 '!H17,計算シート!$Q$4:$S$34,ROW(計算シート!Q14)-3,0)) -> 0 | L17: =IF(OR(' 基本情報 '!$D$3="",' 基本情報 '!I17=""),0,HLOOKUP(' 基本情報 '!I17,計算シート!$T$4:$V$34,ROW(計算シート!Q14)-3,0)) -> 0 | M17: 0 | N17: 0 | O17: =IF(' 基本情報 '!D17="","",HLOOKUP(' 基本情報 '!D17,計算シート!$E$4:$G$34,ROW(計算シート!E14)-3,0)) ->  | Q17: 0
B18: 11 | C18: =IF(' 基本情報 '!C18="","",' 基本情報 '!C18) ->  | G18: 0 | H18: =IF(ISNUMBER(' 基本情報 '!J18),' 基本情報 '!J18,0) -> 0 | I18: 0 | J18: =MAX(IF(' 基本情報 '!F18="○",ROUNDUP(I18*IF(' 基本情報 '!$D$4="",0,VLOOKUP(' 基本情報 '!$D$4,雇用保険料率!$C:$D,2,0))-0.5,0),0),0) -> 0 | K18: =IF(OR(' 基本情報 '!$D$3="",' 基本情報 '!H18=""),0,HLOOKUP(' 基本情報 '!H18,計算シート!$Q$4:$S$34,ROW(計算シート!Q15)-3,0)) -> 0 | L18: =IF(OR(' 基本情報 '!$D$3="",' 基本情報 '!I18=""),0,HLOOKUP(' 基本情報 '!I18,計算シート!$T$4:$V$34,ROW(計算シート!Q15)-3,0)) -> 0 | M18: 0 | N18: 0 | O18: =IF(' 基本情報 '!D18="","",HLOOKUP(' 基本情報 '!D18,計算シート!$E$4:$G$34,ROW(計算シート!E15)-3,0)) ->  | Q18: 0
B19: 12 | C19: =IF(' 基本情報 '!C19="","",' 基本情報 '!C19) ->  | G19: 0 | H19: =IF(ISNUMBER(' 基本情報 '!J19),' 基本情報 '!J19,0) -> 0 | I19: 0 | J19: =MAX(IF(' 基本情報 '!F19="○",ROUNDUP(I19*IF(' 基本情報 '!$D$4="",0,VLOOKUP(' 基本情報 '!$D$4,雇用保険料率!$C:$D,2,0))-0.5,0),0),0) -> 0 | K19: =IF(OR(' 基本情報 '!$D$3="",' 基本情報 '!H19=""),0,HLOOKUP(' 基本情報 '!H19,計算シート!$Q$4:$S$34,ROW(計算シート!Q16)-3,0)) -> 0 | L19: =IF(OR(' 基本情報 '!$D$3="",' 基本情報 '!I19=""),0,HLOOKUP(' 基本情報 '!I19,計算シート!$T$4:$V$34,ROW(計算シート!Q16)-3,0)) -> 0 | M19: 0 | N19: 0 | O19: =IF(' 基本情報 '!D19="","",HLOOKUP(' 基本情報 '!D19,計算シート!$E$4:$G$34,ROW(計算シート!E16)-3,0)) ->  | Q19: 0
B20: 13 | C20: =IF(' 基本情報 '!C20="","",' 基本情報 '!C20) ->  | G20: 0 | H20: =IF(ISNUMBER(' 基本情報 '!J20),' 基本情報 '!J20,0) -> 0 | I20: 0 | J20: =MAX(IF(' 基本情報 '!F20="○",ROUNDUP(I20*IF(' 基本情報 '!$D$4="",0,VLOOKUP(' 基本情報 '!$D$4,雇用保険料率!$C:$D,2,0))-0.5,0),0),0) -> 0 | K20: =IF(OR(' 基本情報 '!$D$3="",' 基本情報 '!H20=""),0,HLOOKUP(' 基本情報 '!H20,計算シート!$Q$4:$S$34,ROW(計算シート!Q17)-3,0)) -> 0 | L20: =IF(OR(' 基本情報 '!$D$3="",' 基本情報 '!I20=""),0,HLOOKUP(' 基本情報 '!I20,計算シート!$T$4:$V$34,ROW(計算シート!Q17)-3,0)) -> 0 | M20: 0 | N20: 0 | O20: =IF(' 基本情報 '!D20="","",HLOOKUP(' 基本情報 '!D20,計算シート!$E$4:$G$34,ROW(計算シート!E17)-3,0)) ->  | Q20: 0
B21: 14 | C21: =IF(' 基本情報 '!C21="","",' 基本情報 '!C21) ->  | G21: 0 | H21: =IF(ISNUMBER(' 基本情報 '!J21),' 基本情報 '!J21,0) -> 0 | I21: 0 | J21: =MAX(IF(' 基本情報 '!F21="○",ROUNDUP(I21*IF(' 基本情報 '!$D$4="",0,VLOOKUP(' 基本情報 '!$D$4,雇用保険料率!$C:$D,2,0))-0.5,0),0),0) -> 0 | K21: =IF(OR(' 基本情報 '!$D$3="",' 基本情報 '!H21=""),0,HLOOKUP(' 基本情報 '!H21,計算シート!$Q$4:$S$34,ROW(計算シート!Q18)-3,0)) -> 0 | L21: =IF(OR(' 基本情報 '!$D$3="",' 基本情報 '!I21=""),0,HLOOKUP(' 基本情報 '!I21,計算シート!$T$4:$V$34,ROW(計算シート!Q18)-3,0)) -> 0 | M21: 0 | N21: 0 | O21: =IF(' 基本情報 '!D21="","",HLOOKUP(' 基本情報 '!D21,計算シート!$E$4:$G$34,ROW(計算シート!E18)-3,0)) ->  | Q21: 0
B22: 15 | C22: =IF(' 基本情報 '!C22="","",' 基本情報 '!C22) ->  | G22: 0 | H22: =IF(ISNUMBER(' 基本情報 '!J22),' 基本情報 '!J22,0) -> 0 | I22: 0 | J22: =MAX(IF(' 基本情報 '!F22="○",ROUNDUP(I22*IF(' 基本情報 '!$D$4="",0,VLOOKUP(' 基本情報 '!$D$4,雇用保険料率!$C:$D,2,0))-0.5,0),0),0) -> 0 | K22: =IF(OR(' 基本情報 '!$D$3="",' 基本情報 '!H22=""),0,HLOOKUP(' 基本情報 '!H22,計算シート!$Q$4:$S$34,ROW(計算シート!Q19)-3,0)) -> 0 | L22: =IF(OR(' 基本情報 '!$D$3="",' 基本情報 '!I22=""),0,HLOOKUP(' 基本情報 '!I22,計算シート!$T$4:$V$34,ROW(計算シート!Q19)-3,0)) -> 0 | M22: 0 | N22: 0 | O22: =IF(' 基本情報 '!D22="","",HLOOKUP(' 基本情報 '!D22,計算シート!$E$4:$G$34,ROW(計算シート!E19)-3,0)) ->  | Q22: 0
B23: 16 | C23: =IF(' 基本情報 '!C23="","",' 基本情報 '!C23) ->  | G23: 0 | H23: =IF(ISNUMBER(' 基本情報 '!J23),' 基本情報 '!J23,0) -> 0 | I23: 0 | J23: =MAX(IF(' 基本情報 '!F23="○",ROUNDUP(I23*IF(' 基本情報 '!$D$4="",0,VLOOKUP(' 基本情報 '!$D$4,雇用保険料率!$C:$D,2,0))-0.5,0),0),0) -> 0 | K23: =IF(OR(' 基本情報 '!$D$3="",' 基本情報 '!H23=""),0,HLOOKUP(' 基本情報 '!H23,計算シート!$Q$4:$S$34,ROW(計算シート!Q20)-3,0)) -> 0 | L23: =IF(OR(' 基本情報 '!$D$3="",' 基本情報 '!I23=""),0,HLOOKUP(' 基本情報 '!I23,計算シート!$T$4:$V$34,ROW(計算シート!Q20)-3,0)) -> 0 | M23: 0 | N23: 0 | O23: =IF(' 基本情報 '!D23="","",HLOOKUP(' 基本情報 '!D23,計算シート!$E$4:$G$34,ROW(計算シート!E20)-3,0)) ->  | Q23: 0
B24: 17 | C24: =IF(' 基本情報 '!C24="","",' 基本情報 '!C24) ->  | G24: 0 | H24: =IF(ISNUMBER(' 基本情報 '!J24),' 基本情報 '!J24,0) -> 0 | I24: 0 | J24: =MAX(IF(' 基本情報 '!F24="○",ROUNDUP(I24*IF(' 基本情報 '!$D$4="",0,VLOOKUP(' 基本情報 '!$D$4,雇用保険料率!$C:$D,2,0))-0.5,0),0),0) -> 0 | K24: =IF(OR(' 基本情報 '!$D$3="",' 基本情報 '!H24=""),0,HLOOKUP(' 基本情報 '!H24,計算シート!$Q$4:$S$34,ROW(計算シート!Q21)-3,0)) -> 0 | L24: =IF(OR(' 基本情報 '!$D$3="",' 基本情報 '!I24=""),0,HLOOKUP(' 基本情報 '!I24,計算シート!$T$4:$V$34,ROW(計算シート!Q21)-3,0)) -> 0 | M24: 0 | N24: 0 | O24: =IF(' 基本情報 '!D24="","",HLOOKUP(' 基本情報 '!D24,計算シート!$E$4:$G$34,ROW(計算シート!E21)-3,0)) ->  | Q24: 0
B25: 18 | C25: =IF(' 基本情報 '!C25="","",' 基本情報 '!C25) ->  | G25: 0 | H25: =IF(ISNUMBER(' 基本情報 '!J25),' 基本情報 '!J25,0) -> 0 | I25: 0 | J25: =MAX(IF(' 基本情報 '!F25="○",ROUNDUP(I25*IF(' 基本情報 '!$D$4="",0,VLOOKUP(' 基本情報 '!$D$4,雇用保険料率!$C:$D,2,0))-0.5,0),0),0) -> 0 | K25: =IF(OR(' 基本情報 '!$D$3="",' 基本情報 '!H25=""),0,HLOOKUP(' 基本情報 '!H25,計算シート!$Q$4:$S$34,ROW(計算シート!Q22)-3,0)) -> 0 | L25: =IF(OR(' 基本情報 '!$D$3="",' 基本情報 '!I25=""),0,HLOOKUP(' 基本情報 '!I25,計算シート!$T$4:$V$34,ROW(計算シート!Q22)-3,0)) -> 0 | M25: 0 | N25: 0 | O25: =IF(' 基本情報 '!D25="","",HLOOKUP(' 基本情報 '!D25,計算シート!$E$4:$G$34,ROW(計算シート!E22)-3,0)) ->  | Q25: 0
B26: 19 | C26: =IF(' 基本情報 '!C26="","",' 基本情報 '!C26) ->  | G26: 0 | H26: =IF(ISNUMBER(' 基本情報 '!J26),' 基本情報 '!J26,0) -> 0 | I26: 0 | J26: =MAX(IF(' 基本情報 '!F26="○",ROUNDUP(I26*IF(' 基本情報 '!$D$4="",0,VLOOKUP(' 基本情報 '!$D$4,雇用保険料率!$C:$D,2,0))-0.5,0),0),0) -> 0 | K26: =IF(OR(' 基本情報 '!$D$3="",' 基本情報 '!H26=""),0,HLOOKUP(' 基本情報 '!H26,計算シート!$Q$4:$S$34,ROW(計算シート!Q23)-3,0)) -> 0 | L26: =IF(OR(' 基本情報 '!$D$3="",' 基本情報 '!I26=""),0,HLOOKUP(' 基本情報 '!I26,計算シート!$T$4:$V$34,ROW(計算シート!Q23)-3,0)) -> 0 | M26: 0 | N26: 0 | O26: =IF(' 基本情報 '!D26="","",HLOOKUP(' 基本情報 '!D26,計算シート!$E$4:$G$34,ROW(計算シート!E23)-3,0)) ->  | Q26: 0
B27: 20 | C27: =IF(' 基本情報 '!C27="","",' 基本情報 '!C27) ->  | G27: 0 | H27: =IF(ISNUMBER(' 基本情報 '!J27),' 基本情報 '!J27,0) -> 0 | I27: 0 | J27: =MAX(IF(' 基本情報 '!F27="○",ROUNDUP(I27*IF(' 基本情報 '!$D$4="",0,VLOOKUP(' 基本情報 '!$D$4,雇用保険料率!$C:$D,2,0))-0.5,0),0),0) -> 0 | K27: =IF(OR(' 基本情報 '!$D$3="",' 基本情報 '!H27=""),0,HLOOKUP(' 基本情報 '!H27,計算シート!$Q$4:$S$34,ROW(計算シート!Q24)-3,0)) -> 0 | L27: =IF(OR(' 基本情報 '!$D$3="",' 基本情報 '!I27=""),0,HLOOKUP(' 基本情報 '!I27,計算シート!$T$4:$V$34,ROW(計算シート!Q24)-3,0)) -> 0 | M27: 0 | N27: 0 | O27: =IF(' 基本情報 '!D27="","",HLOOKUP(' 基本情報 '!D27,計算シート!$E$4:$G$34,ROW(計算シート!E24)-3,0)) ->  | Q27: 0
B28: 21 | C28: =IF(' 基本情報 '!C28="","",' 基本情報 '!C28) ->  | G28: 0 | H28: =IF(ISNUMBER(' 基本情報 '!J28),' 基本情報 '!J28,0) -> 0 | I28: 0 | J28: =MAX(IF(' 基本情報 '!F28="○",ROUNDUP(I28*IF(' 基本情報 '!$D$4="",0,VLOOKUP(' 基本情報 '!$D$4,雇用保険料率!$C:$D,2,0))-0.5,0),0),0) -> 0 | K28: =IF(OR(' 基本情報 '!$D$3="",' 基本情報 '!H28=""),0,HLOOKUP(' 基本情報 '!H28,計算シート!$Q$4:$S$34,ROW(計算シート!Q25)-3,0)) -> 0 | L28: =IF(OR(' 基本情報 '!$D$3="",' 基本情報 '!I28=""),0,HLOOKUP(' 基本情報 '!I28,計算シート!$T$4:$V$34,ROW(計算シート!Q25)-3,0)) -> 0 | M28: 0 | N28: 0 | O28: =IF(' 基本情報 '!D28="","",HLOOKUP(' 基本情報 '!D28,計算シート!$E$4:$G$34,ROW(計算シート!E25)-3,0)) ->  | Q28: 0
B29: 22 | C29: =IF(' 基本情報 '!C29="","",' 基本情報 '!C29) ->  | G29: 0 | H29: =IF(ISNUMBER(' 基本情報 '!J29),' 基本情報 '!J29,0) -> 0 | I29: 0 | J29: =MAX(IF(' 基本情報 '!F29="○",ROUNDUP(I29*IF(' 基本情報 '!$D$4="",0,VLOOKUP(' 基本情報 '!$D$4,雇用保険料率!$C:$D,2,0))-0.5,0),0),0) -> 0 | K29: =IF(OR(' 基本情報 '!$D$3="",' 基本情報 '!H29=""),0,HLOOKUP(' 基本情報 '!H29,計算シート!$Q$4:$S$34,ROW(計算シート!Q26)-3,0)) -> 0 | L29: =IF(OR(' 基本情報 '!$D$3="",' 基本情報 '!I29=""),0,HLOOKUP(' 基本情報 '!I29,計算シート!$T$4:$V$34,ROW(計算シート!Q26)-3,0)) -> 0 | M29: 0 | N29: 0 | O29: =IF(' 基本情報 '!D29="","",HLOOKUP(' 基本情報 '!D29,計算シート!$E$4:$G$34,ROW(計算シート!E26)-3,0)) ->  | Q29: 0
B30: 23 | C30: =IF(' 基本情報 '!C30="","",' 基本情報 '!C30) ->  | G30: 0 | H30: =IF(ISNUMBER(' 基本情報 '!J30),' 基本情報 '!J30,0) -> 0 | I30: 0 | J30: =MAX(IF(' 基本情報 '!F30="○",ROUNDUP(I30*IF(' 基本情報 '!$D$4="",0,VLOOKUP(' 基本情報 '!$D$4,雇用保険料率!$C:$D,2,0))-0.5,0),0),0) -> 0 | K30: =IF(OR(' 基本情報 '!$D$3="",' 基本情報 '!H30=""),0,HLOOKUP(' 基本情報 '!H30,計算シート!$Q$4:$S$34,ROW(計算シート!Q27)-3,0)) -> 0 | L30: =IF(OR(' 基本情報 '!$D$3="",' 基本情報 '!I30=""),0,HLOOKUP(' 基本情報 '!I30,計算シート!$T$4:$V$34,ROW(計算シート!Q27)-3,0)) -> 0 | M30: 0 | N30: 0 | O30: =IF(' 基本情報 '!D30="","",HLOOKUP(' 基本情報 '!D30,計算シート!$E$4:$G$34,ROW(計算シート!E27)-3,0)) ->  | Q30: 0
B31: 24 | C31: =IF(' 基本情報 '!C31="","",' 基本情報 '!C31) ->  | G31: 0 | H31: =IF(ISNUMBER(' 基本情報 '!J31),' 基本情報 '!J31,0) -> 0 | I31: 0 | J31: =MAX(IF(' 基本情報 '!F31="○",ROUNDUP(I31*IF(' 基本情報 '!$D$4="",0,VLOOKUP(' 基本情報 '!$D$4,雇用保険料率!$C:$D,2,0))-0.5,0),0),0) -> 0 | K31: =IF(OR(' 基本情報 '!$D$3="",' 基本情報 '!H31=""),0,HLOOKUP(' 基本情報 '!H31,計算シート!$Q$4:$S$34,ROW(計算シート!Q28)-3,0)) -> 0 | L31: =IF(OR(' 基本情報 '!$D$3="",' 基本情報 '!I31=""),0,HLOOKUP(' 基本情報 '!I31,計算シート!$T$4:$V$34,ROW(計算シート!Q28)-3,0)) -> 0 | M31: 0 | N31: 0 | O31: =IF(' 基本情報 '!D31="","",HLOOKUP(' 基本情報 '!D31,計算シート!$E$4:$G$34,ROW(計算シート!E28)-3,0)) ->  | Q31: 0
B32: 25 | C32: =IF(' 基本情報 '!C32="","",' 基本情報 '!C32) ->  | G32: 0 | H32: =IF(ISNUMBER(' 基本情報 '!J32),' 基本情報 '!J32,0) -> 0 | I32: 0 | J32: =MAX(IF(' 基本情報 '!F32="○",ROUNDUP(I32*IF(' 基本情報 '!$D$4="",0,VLOOKUP(' 基本情報 '!$D$4,雇用保険料率!$C:$D,2,0))-0.5,0),0),0) -> 0 | K32: =IF(OR(' 基本情報 '!$D$3="",' 基本情報 '!H32=""),0,HLOOKUP(' 基本情報 '!H32,計算シート!$Q$4:$S$34,ROW(計算シート!Q29)-3,0)) -> 0 | L32: =IF(OR(' 基本情報 '!$D$3="",' 基本情報 '!I32=""),0,HLOOKUP(' 基本情報 '!I32,計算シート!$T$4:$V$34,ROW(計算シート!Q29)-3,0)) -> 0 | M32: 0 | N32: 0 | O32: =IF(' 基本情報 '!D32="","",HLOOKUP(' 基本情報 '!D32,計算シート!$E$4:$G$34,ROW(計算シート!E29)-3,0)) ->  | Q32: 0
B33: 26 | C33: =IF(' 基本情報 '!C33="","",' 基本情報 '!C33) ->  | G33: 0 | H33: =IF(ISNUMBER(' 基本情報 '!J33),' 基本情報 '!J33,0) -> 0 | I33: 0 | J33: =MAX(IF(' 基本情報 '!F33="○",ROUNDUP(I33*IF(' 基本情報 '!$D$4="",0,VLOOKUP(' 基本情報 '!$D$4,雇用保険料率!$C:$D,2,0))-0.5,0),0),0) -> 0 | K33: =IF(OR(' 基本情報 '!$D$3="",' 基本情報 '!H33=""),0,HLOOKUP(' 基本情報 '!H33,計算シート!$Q$4:$S$34,ROW(計算シート!Q30)-3,0)) -> 0 | L33: =IF(OR(' 基本情報 '!$D$3="",' 基本情報 '!I33=""),0,HLOOKUP(' 基本情報 '!I33,計算シート!$T$4:$V$34,ROW(計算シート!Q30)-3,0)) -> 0 | M33: 0 | N33: 0 | O33: =IF(' 基本情報 '!D33="","",HLOOKUP(' 基本情報 '!D33,計算シート!$E$4:$G$34,ROW(計算シート!E30)-3,0)) ->  | Q33: 0
B34: 27 | C34: =IF(' 基本情報 '!C34="","",' 基本情報 '!C34) ->  | G34: 0 | H34: =IF(ISNUMBER(' 基本情報 '!J34),' 基本情報 '!J34,0) -> 0 | I34: 0 | J34: =MAX(IF(' 基本情報 '!F34="○",ROUNDUP(I34*IF(' 基本情報 '!$D$4="",0,VLOOKUP(' 基本情報 '!$D$4,雇用保険料率!$C:$D,2,0))-0.5,0),0),0) -> 0 | K34: =IF(OR(' 基本情報 '!$D$3="",' 基本情報 '!H34=""),0,HLOOKUP(' 基本情報 '!H34,計算シート!$Q$4:$S$34,ROW(計算シート!Q31)-3,0)) -> 0 | L34: =IF(OR(' 基本情報 '!$D$3="",' 基本情報 '!I34=""),0,HLOOKUP(' 基本情報 '!I34,計算シート!$T$4:$V$34,ROW(計算シート!Q31)-3,0)) -> 0 | M34: 0 | N34: 0 | O34: =IF(' 基本情報 '!D34="","",HLOOKUP(' 基本情報 '!D34,計算シート!$E$4:$G$34,ROW(計算シート!E31)-3,0)) ->  | Q34: 0
B35: 28 | C35: =IF(' 基本情報 '!C35="","",' 基本情報 '!C35) ->  | G35: 0 | H35: =IF(ISNUMBER(' 基本情報 '!J35),' 基本情報 '!J35,0) -> 0 | I35: 0 | J35: =MAX(IF(' 基本情報 '!F35="○",ROUNDUP(I35*IF(' 基本情報 '!$D$4="",0,VLOOKUP(' 基本情報 '!$D$4,雇用保険料率!$C:$D,2,0))-0.5,0),0),0) -> 0 | K35: =IF(OR(' 基本情報 '!$D$3="",' 基本情報 '!H35=""),0,HLOOKUP(' 基本情報 '!H35,計算シート!$Q$4:$S$34,ROW(計算シート!Q32)-3,0)) -> 0 | L35: =IF(OR(' 基本情報 '!$D$3="",' 基本情報 '!I35=""),0,HLOOKUP(' 基本情報 '!I35,計算シート!$T$4:$V$34,ROW(計算シート!Q32)-3,0)) -> 0 | M35: 0 | N35: 0 | O35: =IF(' 基本情報 '!D35="","",HLOOKUP(' 基本情報 '!D35,計算シート!$E$4:$G$34,ROW(計算シート!E32)-3,0)) ->  | Q35: 0
B36: 29 | C36: =IF(' 基本情報 '!C36="","",' 基本情報 '!C36) ->  | G36: 0 | H36: =IF(ISNUMBER(' 基本情報 '!J36),' 基本情報 '!J36,0) -> 0 | I36: 0 | J36: =MAX(IF(' 基本情報 '!F36="○",ROUNDUP(I36*IF(' 基本情報 '!$D$4="",0,VLOOKUP(' 基本情報 '!$D$4,雇用保険料率!$C:$D,2,0))-0.5,0),0),0) -> 0 | K36: =IF(OR(' 基本情報 '!$D$3="",' 基本情報 '!H36=""),0,HLOOKUP(' 基本情報 '!H36,計算シート!$Q$4:$S$34,ROW(計算シート!Q33)-3,0)) -> 0 | L36: =IF(OR(' 基本情報 '!$D$3="",' 基本情報 '!I36=""),0,HLOOKUP(' 基本情報 '!I36,計算シート!$T$4:$V$34,ROW(計算シート!Q33)-3,0)) -> 0 | M36: 0 | N36: 0 | O36: =IF(' 基本情報 '!D36="","",HLOOKUP(' 基本情報 '!D36,計算シート!$E$4:$G$34,ROW(計算シート!E33)-3,0)) ->  | Q36: 0
B37: 30 | C37: =IF(' 基本情報 '!C37="","",' 基本情報 '!C37) ->  | G37: 0 | H37: =IF(ISNUMBER(' 基本情報 '!J37),' 基本情報 '!J37,0) -> 0 | I37: 0 | J37: =MAX(IF(' 基本情報 '!F37="○",ROUNDUP(I37*IF(' 基本情報 '!$D$4="",0,VLOOKUP(' 基本情報 '!$D$4,雇用保険料率!$C:$D,2,0))-0.5,0),0),0) -> 0 | K37: =IF(OR(' 基本情報 '!$D$3="",' 基本情報 '!H37=""),0,HLOOKUP(' 基本情報 '!H37,計算シート!$Q$4:$S$34,ROW(計算シート!Q34)-3,0)) -> 0 | L37: =IF(OR(' 基本情報 '!$D$3="",' 基本情報 '!I37=""),0,HLOOKUP(' 基本情報 '!I37,計算シート!$T$4:$V$34,ROW(計算シート!Q34)-3,0)) -> 0 | M37: 0 | N37: 0 | O37: =IF(' 基本情報 '!D37="","",HLOOKUP(' 基本情報 '!D37,計算シート!$E$4:$G$34,ROW(計算シート!E34)-3,0)) ->  | Q37: 0

Sheet 賞与計算
B2: =' 基本情報 '!D2 -> 令和６年３月 | E2: ※シートの保護は解除できます。
B3: 賞与計算 | E3: 集計 | F3: =F6 -> 賞与金額 | G3: =G7 -> 雇用保険 | H3: =H7 -> 健康保険 | I3: =I7 -> 厚生年金 | J3: =J7 -> 社会保険合計 | K3: =K6 -> 社会保険料控除後の総支給額 | L3: =L6 -> 源泉所得税 | M3: =M6 -> 差引支給額
F4: =SUM(F8:F37) -> 900000 | G4: =SUM(G8:G37) -> 1800 | H4: 43920 | I4: 73200 | J4: =SUM(J8:J37) -> 118920 | K4: 781080 | L4: 81448 | M4: 699632
B6: NO. | C6: 名前 | D6: 前月の社会保険料控除後の給与 | E6: 税率 | F6: 賞与金額 | G6: 社会保険 | K6: 社会保険料控除後の総支給額 | L6: 源泉所得税 | M6: 差引支給額 | N6: 備考
G7: 雇用保険 | H7: 健康保険 | I7: 厚生年金 | J7: 社会保険合計
B8: 1 | C8: =IF(' 基本情報 '!C8="","",' 基本情報 '!C8) -> 給与一郎 | D8: 466112 | E8: =IF(D8="",0,IF(' 基本情報 '!D8="",0,IF(' 基本情報 '!D8="甲欄",IF(' 基本情報 '!E8>7,計算シート!O5,HLOOKUP(' 基本情報 '!E8,計算シート!$H$4:$P$34,ROW(計算シート!H5)-3,0))&"%",計算シート!P5&"%"))) -> 14.294% | F8: 500000 | G8: =MAX(IF(' 基本情報 '!F8="○",ROUNDUP((F8)*IF(' 基本情報 '!$D$4="",0,VLOOKUP(' 基本情報 '!$D$4,雇用保険料率!$C:$D,2,0))-0.5,0),0),0) -> 0 | H8: =IF(OR(' 基本情報 '!$D$3="",' 基本情報 '!H8=""),0,HLOOKUP(' 基本情報 '!H8,計算シート!$Y$4:$AA$34,ROW(計算シート!Y5)-3,0)) -> 28950 | I8: =IF(OR(' 基本情報 '!$D$3="",' 基本情報 '!I8=""),0,HLOOKUP(' 基本情報 '!I8,計算シート!$AB$4:$AD$34,ROW(計算シート!Y5)-3,0)) -> 45750 | J8: =SUM(G8:I8) -> 74700 | K8: =F8-G8-H8-I8 -> 425300 | L8: =IF(D8="","",ROUNDDOWN(E8*K8,0)) -> 60792 | M8: =K8-IF(L8="",0,L8) -> 364508
B9: 2 | C9: =IF(' 基本情報 '!C9="","",' 基本情報 '!C9) -> 給与二郎 | D9: 256830 | E9: =IF(D9="",0,IF(' 基本情報 '!D9="",0,IF(' 基本情報 '!D9="甲欄",IF(' 基本情報 '!E9>7,計算シート!O6,HLOOKUP(' 基本情報 '!E9,計算シート!$H$4:$P$34,ROW(計算シート!H6)-3,0))&"%",計算シート!P6&"%"))) -> 4.084% | F9: 300000 | G9: =MAX(IF(' 基本情報 '!F9="○",ROUNDUP((F9)*IF(' 基本情報 '!$D$4="",0,VLOOKUP(' 基本情報 '!$D$4,雇用保険料率!$C:$D,2,0))-0.5,0),0),0) -> 1800 | H9: =IF(OR(' 基本情報 '!$D$3="",' 基本情報 '!H9=""),0,HLOOKUP(' 基本情報 '!H9,計算シート!$Y$4:$AA$34,ROW(計算シート!Y6)-3,0)) -> 14970 | I9: =IF(OR(' 基本情報 '!$D$3="",' 基本情報 '!I9=""),0,HLOOKUP(' 基本情報 '!I9,計算シート!$AB$4:$AD$34,ROW(計算シート!Y6)-3,0)) -> 27450 | J9: =SUM(G9:I9) -> 44220 | K9: 255780 | L9: 10446 | M9: =K9-IF(L9="",0,L9) -> 245334
B10: 3 | C10: =IF(' 基本情報 '!C10="","",' 基本情報 '!C10) -> 給与三郎 | D10: 100000 | E10: =IF(D10="",0,IF(' 基本情報 '!D10="",0,IF(' 基本情報 '!D10="甲欄",IF(' 基本情報 '!E10>7,計算シート!O7,HLOOKUP(' 基本情報 '!E10,計算シート!$H$4:$P$34,ROW(計算シート!H7)-3,0))&"%",計算シート!P7&"%"))) -> 10.21% | F10: 100000 | G10: =MAX(IF(' 基本情報 '!F10="○",ROUNDUP((F10)*IF(' 基本情報 '!$D$4="",0,VLOOKUP(' 基本情報 '!$D$4,雇用保険料率!$C:$D,2,0))-0.5,0),0),0) -> 0 | H10: =IF(OR(' 基本情報 '!$D$3="",' 基本情報 '!H10=""),0,HLOOKUP(' 基本情報 '!H10,計算シート!$Y$4:$AA$34,ROW(計算シート!Y7)-3,0)) -> 0 | I10: =IF(OR(' 基本情報 '!$D$3="",' 基本情報 '!I10=""),0,HLOOKUP(' 基本情報 '!I10,計算シート!$AB$4:$AD$34,ROW(計算シート!Y7)-3,0)) -> 0 | J10: 0 | K10: 100000 | L10: 10210 | M10: 89790
B11: 4 | C11: =IF(' 基本情報 '!C11="","",' 基本情報 '!C11) ->  | E11: =IF(D11="",0,IF(' 基本情報 '!D11="",0,IF(' 基本情報 '!D11="甲欄",IF(' 基本情報 '!E11>7,計算シート!O8,HLOOKUP(' 基本情報 '!E11,計算シート!$H$4:$P$34,ROW(計算シート!H8)-3,0))&"%",計算シート!P8&"%"))) -> 0 | G11: =MAX(IF(' 基本情報 '!F11="○",ROUNDUP((F11)*IF(' 基本情報 '!$D$4="",0,VLOOKUP(' 基本情報 '!$D$4,雇用保険料率!$C:$D,2,0))-0.5,0),0),0) -> 0 | H11: =IF(OR(' 基本情報 '!$D$3="",' 基本情報 '!H11=""),0,HLOOKUP(' 基本情報 '!H11,計算シート!$Y$4:$AA$34,ROW(計算シート!Y8)-3,0)) -> 0 | I11: =IF(OR(' 基本情報 '!$D$3="",' 基本情報 '!I11=""),0,HLOOKUP(' 基本情報 '!I11,計算シート!$AB$4:$AD$34,ROW(計算シート!Y8)-3,0)) -> 0 | J11: 0 | K11: 0 | M11: 0
B12: 5 | C12: =IF(' 基本情報 '!C12="","",' 基本情報 '!C12) ->  | E12: =IF(D12="",0,IF(' 基本情報 '!D12="",0,IF(' 基本情報 '!D12="甲欄",IF(' 基本情報 '!E12>7,計算シート!O9,HLOOKUP(' 基本情報 '!E12,計算シート!$H$4:$P$34,ROW(計算シート!H9)-3,0))&"%",計算シート!P9&"%"))) -> 0 | G12: =MAX(IF(' 基本情報 '!F12="○",ROUNDUP((F12)*IF(' 基本情報 '!$D$4="",0,VLOOKUP(' 基本情報 '!$D$4,雇用保険料率!$C:$D,2,0))-0.5,0),0),0) -> 0 | H12: =IF(OR(' 基本情報 '!$D$3="",' 基本情報 '!H12=""),0,HLOOKUP(' 基本情報 '!H12,計算シート!$Y$4:$AA$34,ROW(計算シート!Y9)-3,0)) -> 0 | I12: =IF(OR(' 基本情報 '!$D$3="",' 基本情報 '!I12=""),0,HLOOKUP(' 基本情報 '!I12,計算シート!$AB$4:$AD$34,ROW(計算シート!Y9)-3,0)) -> 0 | J12: 0 | K12: 0 | M12: 0
B13: 6 | C13: =IF(' 基本情報 '!C13="","",' 基本情報 '!C13) ->  | E13: =IF(D13="",0,IF(' 基本情報 '!D13="",0,IF(' 基本情報 '!D13="甲欄",IF(' 基本情報 '!E13>7,計算シート!O10,HLOOKUP(' 基本情報 '!E13,計算シート!$H$4:$P$34,ROW(計算シート!H10)-3,0))&"%",計算シート!P10&"%"))) -> 0 | G13: =MAX(IF(' 基本情報 '!F13="○",ROUNDUP((F13)*IF(' 基本情報 '!$D$4="",0,VLOOKUP(' 基本情報 '!$D$4,雇用保険料率!$C:$D,2,0))-0.5,0),0),0) -> 0 | H13: =IF(OR(' 基本情報 '!$D$3="",' 基本情報 '!H13=""),0,HLOOKUP(' 基本情報 '!H13,計算シート!$Y$4:$AA$34,ROW(計算シート!Y10)-3,0)) -> 0 | I13: =IF(OR(' 基本情報 '!$D$3="",' 基本情報 '!I13=""),0,HLOOKUP(' 基本情報 '!I13,計算シート!$AB$4:$AD$34,ROW(計算シート!Y10)-3,0)) -> 0 | J13: 0 | K13: 0 | M13: 0
B14: 7 | C14: =IF(' 基本情報 '!C14="","",' 基本情報 '!C14) ->  | E14: =IF(D14="",0,IF(' 基本情報 '!D14="",0,IF(' 基本情報 '!D14="甲欄",IF(' 基本情報 '!E14>7,計算シート!O11,HLOOKUP(' 基本情報 '!E14,計算シート!$H$4:$P$34,ROW(計算シート!H11)-3,0))&"%",計算シート!P11&"%"))) -> 0 | G14: =MAX(IF(' 基本情報 '!F14="○",ROUNDUP((F14)*IF(' 基本情報 '!$D$4="",0,VLOOKUP(' 基本情報 '!$D$4,雇用保険料率!$C:$D,2,0))-0.5,0),0),0) -> 0 | H14: =IF(OR(' 基本情報 '!$D$3="",' 基本情報 '!H14=""),0,HLOOKUP(' 基本情報 '!H14,計算シート!$Y$4:$AA$34,ROW(計算シート!Y11)-3,0)) -> 0 | I14: =IF(OR(' 基本情報 '!$D$3="",' 基本情報 '!I14=""),0,HLOOKUP(' 基本情報 '!I14,計算シート!$AB$4:$AD$34,ROW(計算シート!Y11)-3,0)) -> 0 | J14: 0 | K14: 0 | M14: 0
B15: 8 | C15: =IF(' 基本情報 '!C15="","",' 基本情報 '!C15) ->  | E15: =IF(D15="",0,IF(' 基本情報 '!D15="",0,IF(' 基本情報 '!D15="甲欄",IF(' 基本情報 '!E15>7,計算シート!O12,HLOOKUP(' 基本情報 '!E15,計算シート!$H$4:$P$34,ROW(計算シート!H12)-3,0))&"%",計算シート!P12&"%"))) -> 0 | G15: =MAX(IF(' 基本情報 '!F15="○",ROUNDUP((F15)*IF(' 基本情報 '!$D$4="",0,VLOOKUP(' 基本情報 '!$D$4,雇用保険料率!$C:$D,2,0))-0.5,0),0),0) -> 0 | H15: =IF(OR(' 基本情報 '!$D$3="",' 基本情報 '!H15=""),0,HLOOKUP(' 基本情報 '!H15,計算シート!$Y$4:$AA$34,ROW(計算シート!Y12)-3,0)) -> 0 | I15: =IF(OR(' 基本情報 '!$D$3="",' 基本情報 '!I15=""),0,HLOOKUP(' 基本情報 '!I15,計算シート!$AB$4:$AD$34,ROW(計算シート!Y12)-3,0)) -> 0 | J15: 0 | K15: 0 | M15: 0
B16: 9 | C16: =IF(' 基本情報 '!C16="","",' 基本情報 '!C16) ->  | E16: =IF(D16="",0,IF(' 基本情報 '!D16="",0,IF(' 基本情報 '!D16="甲欄",IF(' 基本情報 '!E16>7,計算シート!O13,HLOOKUP(' 基本情報 '!E16,計算シート!$H$4:$P$34,ROW(計算シート!H13)-3,0))&"%",計算シート!P13&"%"))) -> 0 | G16: =MAX(IF(' 基本情報 '!F16="○",ROUNDUP((F16)*IF(' 基本情報 '!$D$4="",0,VLOOKUP(' 基本情報 '!$D$4,雇用保険料率!$C:$D,2,0))-0.5,0),0),0) -> 0 | H16: =IF(OR(' 基本情報 '!$D$3="",' 基本情報 '!H16=""),0,HLOOKUP(' 基本情報 '!H16,計算シート!$Y$4:$AA$34,ROW(計算シート!Y13)-3,0)) -> 0 | I16: =IF(OR(' 基本情報 '!$D$3="",' 基本情報 '!I16=""),0,HLOOKUP(' 基本情報 '!I16,計算シート!$AB$4:$AD$34,ROW(計算シート!Y13)-3,0)) -> 0 | J16: 0 | K16: 0 | M16: 0
B17: 10 | C17: =IF(' 基本情報 '!C17="","",' 基本情報 '!C17) ->  | E17: =IF(D17="",0,IF(' 基本情報 '!D17="",0,IF(' 基本情報 '!D17="甲欄",IF(' 基本情報 '!E17>7,計算シート!O14,HLOOKUP(' 基本情報 '!E17,計算シート!$H$4:$P$34,ROW(計算シート!H14)-3,0))&"%",計算シート!P14&"%"))) -> 0 | G17: =MAX(IF(' 基本情報 '!F17="○",ROUNDUP((F17)*IF(' 基本情報 '!$D$4="",0,VLOOKUP(' 基本情報 '!$D$4,雇用保険料率!$C:$D,2,0))-0.5,0),0),0) -> 0 | H17: =IF(OR(' 基本情報 '!$D$3="",' 基本情報 '!H17=""),0,HLOOKUP(' 基本情報 '!H17,計算シート!$Y$4:$AA$34,ROW(計算シート!Y14)-3,0)) -> 0 | I17: =IF(OR(' 基本情報 '!$D$3="",' 基本情報 '!I17=""),0,HLOOKUP(' 基本情報 '!I17,計算シート!$AB$4:$AD$34,ROW(計算シート!Y14)-3,0)) -> 0 | J17: 0 | K17: 0 | M17: 0
B18: 11 | C18: =IF(' 基本情報 '!C18="","",' 基本情報 '!C18) ->  | E18: =IF(D18="",0,IF(' 基本情報 '!D18="",0,IF(' 基本情報 '!D18="甲欄",IF(' 基本情報 '!E18>7,計算シート!O15,HLOOKUP(' 基本情報 '!E18,計算シート!$H$4:$P$34,ROW(計算シート!H15)-3,0))&"%",計算シート!P15&"%"))) -> 0 | G18: =MAX(IF(' 基本情報 '!F18="○",ROUNDUP((F18)*IF(' 基本情報 '!$D$4="",0,VLOOKUP(' 基本情報 '!$D$4,雇用保険料率!$C:$D,2,0))-0.5,0),0),0) -> 0 | H18: =IF(OR(' 基本情報 '!$D$3="",' 基本情報 '!H18=""),0,HLOOKUP(' 基本情報 '!H18,計算シート!$Y$4:$AA$34,ROW(計算シート!Y15)-3,0)) -> 0 | I18: =IF(OR(' 基本情報 '!$D$3="",' 基本情報 '!I18=""),0,HLOOKUP(' 基本情報 '!I18,計算シート!$AB$4:$AD$34,ROW(計算シート!Y15)-3,0)) -> 0 | J18: 0 | K18: 0 | M18: 0
B19: 12 | C19: =IF(' 基本情報 '!C19="","",' 基本情報 '!C19) ->  | E19: =IF(D19="",0,IF(' 基本情報 '!D19="",0,IF(' 基本情報 '!D19="甲欄",IF(' 基本情報 '!E19>7,計算シート!O16,HLOOKUP(' 基本情報 '!E19,計算シート!$H$4:$P$34,ROW(計算シート!H16)-3,0))&"%",計算シート!P16&"%"))) -> 0 | G19: =MAX(IF(' 基本情報 '!F19="○",ROUNDUP((F19)*IF(' 基本情報 '!$D$4="",0,VLOOKUP(' 基本情報 '!$D$4,雇用保険料率!$C:$D,2,0))-0.5,0),0),0) -> 0 | H19: =IF(OR(' 基本情報 '!$D$3="",' 基本情報 '!H19=""),0,HLOOKUP(' 基本情報 '!H19,計算シート!$Y$4:$AA$34,ROW(計算シート!Y16)-3,0)) -> 0 | I19: =IF(OR(' 基本情報 '!$D$3="",' 基本情報 '!I19=""),0,HLOOKUP(' 基本情報 '!I19,計算シート!$AB$4:$AD$34,ROW(計算シート!Y16)-3,0)) -> 0 | J19: 0 | K19: 0 | M19: 0
B20: 13 | C20: =IF(' 基本情報 '!C20="","",' 基本情報 '!C20) ->  | E20: =IF(D20="",0,IF(' 基本情報 '!D20="",0,IF(' 基本情報 '!D20="甲欄",IF(' 基本情報 '!E20>7,計算シート!O17,HLOOKUP(' 基本情報 '!E20,計算シート!$H$4:$P$34,ROW(計算シート!H17)-3,0))&"%",計算シート!P17&"%"))) -> 0 | G20: =MAX(IF(' 基本情報 '!F20="○",ROUNDUP((F20)*IF(' 基本情報 '!$D$4="",0,VLOOKUP(' 基本情報 '!$D$4,雇用保険料率!$C:$D,2,0))-0.5,0),0),0) -> 0 | H20: =IF(OR(' 基本情報 '!$D$3="",' 基本情報 '!H20=""),0,HLOOKUP(' 基本情報 '!H20,計算シート!$Y$4:$AA$34,ROW(計算シート!Y17)-3,0)) -> 0 | I20: =IF(OR(' 基本情報 '!$D$3="",' 基本情報 '!I20=""),0,HLOOKUP(' 基本情報 '!I20,計算シート!$AB$4:$AD$34,ROW(計算シート!Y17)-3,0)) -> 0 | J20: 0 | K20: 0 | M20: 0
B21: 14 | C21: =IF(' 基本情報 '!C21="","",' 基本情報 '!C21) ->  | E21: =IF(D21="",0,IF(' 基本情報 '!D21="",0,IF(' 基本情報 '!D21="甲欄",IF(' 基本情報 '!E21>7,計算シート!O18,HLOOKUP(' 基本情報 '!E21,計算シート!$H$4:$P$34,ROW(計算シート!H18)-3,0))&"%",計算シート!P18&"%"))) -> 0 | G21: =MAX(IF(' 基本情報 '!F21="○",ROUNDUP((F21)*IF(' 基本情報 '!$D$4="",0,VLOOKUP(' 基本情報 '!$D$4,雇用保険料率!$C:$D,2,0))-0.5,0),0),0) -> 0 | H21: =IF(OR(' 基本情報 '!$D$3="",' 基本情報 '!H21=""),0,HLOOKUP(' 基本情報 '!H21,計算シート!$Y$4:$AA$34,ROW(計算シート!Y18)-3,0)) -> 0 | I21: =IF(OR(' 基本情報 '!$D$3="",' 基本情報 '!I21=""),0,HLOOKUP(' 基本情報 '!I21,計算シート!$AB$4:$AD$34,ROW(計算シート!Y18)-3,0)) -> 0 | J21: 0 | K21: 0 | M21: 0
B22: 15 | C22: =IF(' 基本情報 '!C22="","",' 基本情報 '!C22) ->  | E22: =IF(D22="",0,IF(' 基本情報 '!D22="",0,IF(' 基本情報 '!D22="甲欄",IF(' 基本情報 '!E22>7,計算シート!O19,HLOOKUP(' 基本情報 '!E22,計算シート!$H$4:$P$34,ROW(計算シート!H19)-3,0))&"%",計算シート!P19&"%"))) -> 0 | G22: =MAX(IF(' 基本情報 '!F22="○",ROUNDUP((F22)*IF(' 基本情報 '!$D$4="",0,VLOOKUP(' 基本情報 '!$D$4,雇用保険料率!$C:$D,2,0))-0.5,0),0),0) -> 0 | H22: =IF(OR(' 基本情報 '!$D$3="",' 基本情報 '!H22=""),0,HLOOKUP(' 基本情報 '!H22,計算シート!$Y$4:$AA$34,ROW(計算シート!Y19)-3,0)) -> 0 | I22: =IF(OR(' 基本情報 '!$D$3="",' 基本情報 '!I22=""),0,HLOOKUP(' 基本情報 '!I22,計算シート!$AB$4:$AD$34,ROW(計算シート!Y19)-3,0)) -> 0 | J22: 0 | K22: 0 | M22: 0
B23: 16 | C23: =IF(' 基本情報 '!C23="","",' 基本情報 '!C23) ->  | E23: =IF(D23="",0,IF(' 基本情報 '!D23="",0,IF(' 基本情報 '!D23="甲欄",IF(' 基本情報 '!E23>7,計算シート!O20,HLOOKUP(' 基本情報 '!E23,計算シート!$H$4:$P$34,ROW(計算シート!H20)-3,0))&"%",計算シート!P20&"%"))) -> 0 | G23: =MAX(IF(' 基本情報 '!F23="○",ROUNDUP((F23)*IF(' 基本情報 '!$D$4="",0,VLOOKUP(' 基本情報 '!$D$4,雇用保険料率!$C:$D,2,0))-0.5,0),0),0) -> 0 | H23: =IF(OR(' 基本情報 '!$D$3="",' 基本情報 '!H23=""),0,HLOOKUP(' 基本情報 '!H23,計算シート!$Y$4:$AA$34,ROW(計算シート!Y20)-3,0)) -> 0 | I23: =IF(OR(' 基本情報 '!$D$3="",' 基本情報 '!I23=""),0,HLOOKUP(' 基本情報 '!I23,計算シート!$AB$4:$AD$34,ROW(計算シート!Y20)-3,0)) -> 0 | J23: 0 | K23: 0 | M23: 0
B24: 17 | C24: =IF(' 基本情報 '!C24="","",' 基本情報 '!C24) ->  | E24: =IF(D24="",0,IF(' 基本情報 '!D24="",0,IF(' 基本情報 '!D24="甲欄",IF(' 基本情報 '!E24>7,計算シート!O21,HLOOKUP(' 基本情報 '!E24,計算シート!$H$4:$P$34,ROW(計算シート!H21)-3,0))&"%",計算シート!P21&"%"))) -> 0 | G24: =MAX(IF(' 基本情報 '!F24="○",ROUNDUP((F24)*IF(' 基本情報 '!$D$4="",0,VLOOKUP(' 基本情報 '!$D$4,雇用保険料率!$C:$D,2,0))-0.5,0),0),0) -> 0 | H24: =IF(OR(' 基本情報 '!$D$3="",' 基本情報 '!H24=""),0,HLOOKUP(' 基本情報 '!H24,計算シート!$Y$4:$AA$34,ROW(計算シート!Y21)-3,0)) -> 0 | I24: =IF(OR(' 基本情報 '!$D$3="",' 基本情報 '!I24=""),0,HLOOKUP(' 基本情報 '!I24,計算シート!$AB$4:$AD$34,ROW(計算シート!Y21)-3,0)) -> 0 | J24: 0 | K24: 0 | M24: 0
B25: 18 | C25: =IF(' 基本情報 '!C25="","",' 基本情報 '!C25) ->  | E25: =IF(D25="",0,IF(' 基本情報 '!D25="",0,IF(' 基本情報 '!D25="甲欄",IF(' 基本情報 '!E25>7,計算シート!O22,HLOOKUP(' 基本情報 '!E25,計算シート!$H$4:$P$34,ROW(計算シート!H22)-3,0))&"%",計算シート!P22&"%"))) -> 0 | G25: =MAX(IF(' 基本情報 '!F25="○",ROUNDUP((F25)*IF(' 基本情報 '!$D$4="",0,VLOOKUP(' 基本情報 '!$D$4,雇用保険料率!$C:$D,2,0))-0.5,0),0),0) -> 0 | H25: =IF(OR(' 基本情報 '!$D$3="",' 基本情報 '!H25=""),0,HLOOKUP(' 基本情報 '!H25,計算シート!$Y$4:$AA$34,ROW(計算シート!Y22)-3,0)) -> 0 | I25: =IF(OR(' 基本情報 '!$D$3="",' 基本情報 '!I25=""),0,HLOOKUP(' 基本情報 '!I25,計算シート!$AB$4:$AD$34,ROW(計算シート!Y22)-3,0)) -> 0 | J25: 0 | K25: 0 | M25: 0
B26: 19 | C26: =IF(' 基本情報 '!C26="","",' 基本情報 '!C26) ->  | E26: =IF(D26="",0,IF(' 基本情報 '!D26="",0,IF(' 基本情報 '!D26="甲欄",IF(' 基本情報 '!E26>7,計算シート!O23,HLOOKUP(' 基本情報 '!E26,計算シート!$H$4:$P$34,ROW(計算シート!H23)-3,0))&"%",計算シート!P23&"%"))) -> 0 | G26: =MAX(IF(' 基本情報 '!F26="○",ROUNDUP((F26)*IF(' 基本情報 '!$D$4="",0,VLOOKUP(' 基本情報 '!$D$4,雇用保険料率!$C:$D,2,0))-0.5,0),0),0) -> 0 | H26: =IF(OR(' 基本情報 '!$D$3="",' 基本情報 '!H26=""),0,HLOOKUP(' 基本情報 '!H26,計算シート!$Y$4:$AA$34,ROW(計算シート!Y23)-3,0)) -> 0 | I26: =IF(OR(' 基本情報 '!$D$3="",' 基本情報 '!I26=""),0,HLOOKUP(' 基本情報 '!I26,計算シート!$AB$4:$AD$34,ROW(計算シート!Y23)-3,0)) -> 0 | J26: 0 | K26: 0 | M26: 0
B27: 20 | C27: =IF(' 基本情報 '!C27="","",' 基本情報 '!C27) ->  | E27: =IF(D27="",0,IF(' 基本情報 '!D27="",0,IF(' 基本情報 '!D27="甲欄",IF(' 基本情報 '!E27>7,計算シート!O24,HLOOKUP(' 基本情報 '!E27,計算シート!$H$4:$P$34,ROW(計算シート!H24)-3,0))&"%",計算シート!P24&"%"))) -> 0 | G27: =MAX(IF(' 基本情報 '!F27="○",ROUNDUP((F27)*IF(' 基本情報 '!$D$4="",0,VLOOKUP(' 基本情報 '!$D$4,雇用保険料率!$C:$D,2,0))-0.5,0),0),0) -> 0 | H27: =IF(OR(' 基本情報 '!$D$3="",' 基本情報 '!H27=""),0,HLOOKUP(' 基本情報 '!H27,計算シート!$Y$4:$AA$34,ROW(計算シート!Y24)-3,0)) -> 0 | I27: =IF(OR(' 基本情報 '!$D$3="",' 基本情報 '!I27=""),0,HLOOKUP(' 基本情報 '!I27,計算シート!$AB$4:$AD$34,ROW(計算シート!Y24)-3,0)) -> 0 | J27: 0 | K27: 0 | M27: 0
B28: 21 | C28: =IF(' 基本情報 '!C28="","",' 基本情報 '!C28) ->  | E28: =IF(D28="",0,IF(' 基本情報 '!D28="",0,IF(' 基本情報 '!D28="甲欄",IF(' 基本情報 '!E28>7,計算シート!O25,HLOOKUP(' 基本情報 '!E28,計算シート!$H$4:$P$34,ROW(計算シート!H25)-3,0))&"%",計算シート!P25&"%"))) -> 0 | G28: =MAX(IF(' 基本情報 '!F28="○",ROUNDUP((F28)*IF(' 基本情報 '!$D$4="",0,VLOOKUP(' 基本情報 '!$D$4,雇用保険料率!$C:$D,2,0))-0.5,0),0),0) -> 0 | H28: =IF(OR(' 基本情報 '!$D$3="",' 基本情報 '!H28=""),0,HLOOKUP(' 基本情報 '!H28,計算シート!$Y$4:$AA$34,ROW(計算シート!Y25)-3,0)) -> 0 | I28: =IF(OR(' 基本情報 '!$D$3="",' 基本情報 '!I28=""),0,HLOOKUP(' 基本情報 '!I28,計算シート!$AB$4:$AD$34,ROW(計算シート!Y25)-3,0)) -> 0 | J28: 0 | K28: 0 | M28: 0
B29: 22 | C29: =IF(' 基本情報 '!C29="","",' 基本情報 '!C29) ->  | E29: =IF(D29="",0,IF(' 基本情報 '!D29="",0,IF(' 基本情報 '!D29="甲欄",IF(' 基本情報 '!E29>7,計算シート!O26,HLOOKUP(' 基本情報 '!E29,計算シート!$H$4:$P$34,ROW(計算シート!H26)-3,0))&"%",計算シート!P26&"%"))) -> 0 | G29: =MAX(IF(' 基本情報 '!F29="○",ROUNDUP((F29)*IF(' 基本情報 '!$D$4="",0,VLOOKUP(' 基本情報 '!$D$4,雇用保険料率!$C:$D,2,0))-0.5,0),0),0) -> 0 | H29: =IF(OR(' 基本情報 '!$D$3="",' 基本情報 '!H29=""),0,HLOOKUP(' 基本情報 '!H29,計算シート!$Y$4:$AA$34,ROW(計算シート!Y26)-3,0)) -> 0 | I29: =IF(OR(' 基本情報 '!$D$3="",' 基本情報 '!I29=""),0,HLOOKUP(' 基本情報 '!I29,計算シート!$AB$4:$AD$34,ROW(計算シート!Y26)-3,0)) -> 0 | J29: 0 | K29: 0 | M29: 0
B30: 23 | C30: =IF(' 基本情報 '!C30="","",' 基本情報 '!C30) ->  | E30: =IF(D30="",0,IF(' 基本情報 '!D30="",0,IF(' 基本情報 '!D30="甲欄",IF(' 基本情報 '!E30>7,計算シート!O27,HLOOKUP(' 基本情報 '!E30,計算シート!$H$4:$P$34,ROW(計算シート!H27)-3,0))&"%",計算シート!P27&"%"))) -> 0 | G30: =MAX(IF(' 基本情報 '!F30="○",ROUNDUP((F30)*IF(' 基本情報 '!$D$4="",0,VLOOKUP(' 基本情報 '!$D$4,雇用保険料率!$C:$D,2,0))-0.5,0),0),0) -> 0 | H30: =IF(OR(' 基本情報 '!$D$3="",' 基本情報 '!H30=""),0,HLOOKUP(' 基本情報 '!H30,計算シート!$Y$4:$AA$34,ROW(計算シート!Y27)-3,0)) -> 0 | I30: =IF(OR(' 基本情報 '!$D$3="",' 基本情報 '!I30=""),0,HLOOKUP(' 基本情報 '!I30,計算シート!$AB$4:$AD$34,ROW(計算シート!Y27)-3,0)) -> 0 | J30: 0 | K30: 0 | M30: 0
B31: 24 | C31: =IF(' 基本情報 '!C31="","",' 基本情報 '!C31) ->  | E31: =IF(D31="",0,IF(' 基本情報 '!D31="",0,IF(' 基本情報 '!D31="甲欄",IF(' 基本情報 '!E31>7,計算シート!O28,HLOOKUP(' 基本情報 '!E31,計算シート!$H$4:$P$34,ROW(計算シート!H28)-3,0))&"%",計算シート!P28&"%"))) -> 0 | G31: =MAX(IF(' 基本情報 '!F31="○",ROUNDUP((F31)*IF(' 基本情報 '!$D$4="",0,VLOOKUP(' 基本情報 '!$D$4,雇用保険料率!$C:$D,2,0))-0.5,0),0),0) -> 0 | H31: =IF(OR(' 基本情報 '!$D$3="",' 基本情報 '!H31=""),0,HLOOKUP(' 基本情報 '!H31,計算シート!$Y$4:$AA$34,ROW(計算シート!Y28)-3,0)) -> 0 | I31: =IF(OR(' 基本情報 '!$D$3="",' 基本情報 '!I31=""),0,HLOOKUP(' 基本情報 '!I31,計算シート!$AB$4:$AD$34,ROW(計算シート!Y28)-3,0)) -> 0 | J31: 0 | K31: 0 | M31: 0
B32: 25 | C32: =IF(' 基本情報 '!C32="","",' 基本情報 '!C32) ->  | E32: =IF(D32="",0,IF(' 基本情報 '!D32="",0,IF(' 基本情報 '!D32="甲欄",IF(' 基本情報 '!E32>7,計算シート!O29,HLOOKUP(' 基本情報 '!E32,計算シート!$H$4:$P$34,ROW(計算シート!H29)-3,0))&"%",計算シート!P29&"%"))) -> 0 | G32: =MAX(IF(' 基本情報 '!F32="○",ROUNDUP((F32)*IF(' 基本情報 '!$D$4="",0,VLOOKUP(' 基本情報 '!$D$4,雇用保険料率!$C:$D,2,0))-0.5,0),0),0) -> 0 | H32: =IF(OR(' 基本情報 '!$D$3="",' 基本情報 '!H32=""),0,HLOOKUP(' 基本情報 '!H32,計算シート!$Y$4:$AA$34,ROW(計算シート!Y29)-3,0)) -> 0 | I32: =IF(OR(' 基本情報 '!$D$3="",' 基本情報 '!I32=""),0,HLOOKUP(' 基本情報 '!I32,計算シート!$AB$4:$AD$34,ROW(計算シート!Y29)-3,0)) -> 0 | J32: 0 | K32: 0 | M32: 0
B33: 26 | C33: =IF(' 基本情報 '!C33="","",' 基本情報 '!C33) ->  | E33: =IF(D33="",0,IF(' 基本情報 '!D33="",0,IF(' 基本情報 '!D33="甲欄",IF(' 基本情報 '!E33>7,計算シート!O30,HLOOKUP(' 基本情報 '!E33,計算シート!$H$4:$P$34,ROW(計算シート!H30)-3,0))&"%",計算シート!P30&"%"))) -> 0 | G33: =MAX(IF(' 基本情報 '!F33="○",ROUNDUP((F33)*IF(' 基本情報 '!$D$4="",0,VLOOKUP(' 基本情報 '!$D$4,雇用保険料率!$C:$D,2,0))-0.5,0),0),0) -> 0 | H33: =IF(OR(' 基本情報 '!$D$3="",' 基本情報 '!H33=""),0,HLOOKUP(' 基本情報 '!H33,計算シート!$Y$4:$AA$34,ROW(計算シート!Y30)-3,0)) -> 0 | I33: =IF(OR(' 基本情報 '!$D$3="",' 基本情報 '!I33=""),0,HLOOKUP(' 基本情報 '!I33,計算シート!$AB$4:$AD$34,ROW(計算シート!Y30)-3,0)) -> 0 | J33: 0 | K33: 0 | M33: 0
B34: 27 | C34: =IF(' 基本情報 '!C34="","",' 基本情報 '!C34) ->  | E34: =IF(D34="",0,IF(' 基本情報 '!D34="",0,IF(' 基本情報 '!D34="甲欄",IF(' 基本情報 '!E34>7,計算シート!O31,HLOOKUP(' 基本情報 '!E34,計算シート!$H$4:$P$34,ROW(計算シート!H31)-3,0))&"%",計算シート!P31&"%"))) -> 0 | G34: =MAX(IF(' 基本情報 '!F34="○",ROUNDUP((F34)*IF(' 基本情報 '!$D$4="",0,VLOOKUP(' 基本情報 '!$D$4,雇用保険料率!$C:$D,2,0))-0.5,0),0),0) -> 0 | H34: =IF(OR(' 基本情報 '!$D$3="",' 基本情報 '!H34=""),0,HLOOKUP(' 基本情報 '!H34,計算シート!$Y$4:$AA$34,ROW(計算シート!Y31)-3,0)) -> 0 | I34: =IF(OR(' 基本情報 '!$D$3="",' 基本情報 '!I34=""),0,HLOOKUP(' 基本情報 '!I34,計算シート!$AB$4:$AD$34,ROW(計算シート!Y31)-3,0)) -> 0 | J34: 0 | K34: 0 | M34: 0
B35: 28 | C35: =IF(' 基本情報 '!C35="","",' 基本情報 '!C35) ->  | E35: =IF(D35="",0,IF(' 基本情報 '!D35="",0,IF(' 基本情報 '!D35="甲欄",IF(' 基本情報 '!E35>7,計算シート!O32,HLOOKUP(' 基本情報 '!E35,計算シート!$H$4:$P$34,ROW(計算シート!H32)-3,0))&"%",計算シート!P32&"%"))) -> 0 | G35: =MAX(IF(' 基本情報 '!F35="○",ROUNDUP((F35)*IF(' 基本情報 '!$D$4="",0,VLOOKUP(' 基本情報 '!$D$4,雇用保険料率!$C:$D,2,0))-0.5,0),0),0) -> 0 | H35: =IF(OR(' 基本情報 '!$D$3="",' 基本情報 '!H35=""),0,HLOOKUP(' 基本情報 '!H35,計算シート!$Y$4:$AA$34,ROW(計算シート!Y32)-3,0)) -> 0 | I35: =IF(OR(' 基本情報 '!$D$3="",' 基本情報 '!I35=""),0,HLOOKUP(' 基本情報 '!I35,計算シート!$AB$4:$AD$34,ROW(計算シート!Y32)-3,0)) -> 0 | J35: 0 | K35: 0 | M35: 0
B36: 29 | C36: =IF(' 基本情報 '!C36="","",' 基本情報 '!C36) ->  | E36: =IF(D36="",0,IF(' 基本情報 '!D36="",0,IF(' 基本情報 '!D36="甲欄",IF(' 基本情報 '!E36>7,計算シート!O33,HLOOKUP(' 基本情報 '!E36,計算シート!$H$4:$P$34,ROW(計算シート!H33)-3,0))&"%",計算シート!P33&"%"))) -> 0 | G36: =MAX(IF(' 基本情報 '!F36="○",ROUNDUP((F36)*IF(' 基本情報 '!$D$4="",0,VLOOKUP(' 基本情報 '!$D$4,雇用保険料率!$C:$D,2,0))-0.5,0),0),0) -> 0 | H36: =IF(OR(' 基本情報 '!$D$3="",' 基本情報 '!H36=""),0,HLOOKUP(' 基本情報 '!H36,計算シート!$Y$4:$AA$34,ROW(計算シート!Y33)-3,0)) -> 0 | I36: =IF(OR(' 基本情報 '!$D$3="",' 基本情報 '!I36=""),0,HLOOKUP(' 基本情報 '!I36,計算シート!$AB$4:$AD$34,ROW(計算シート!Y33)-3,0)) -> 0 | J36: 0 | K36: 0 | M36: 0
B37: 30 | C37: =IF(' 基本情報 '!C37="","",' 基本情報 '!C37) ->  | E37: =IF(D37="",0,IF(' 基本情報 '!D37="",0,IF(' 基本情報 '!D37="甲欄",IF(' 基本情報 '!E37>7,計算シート!O34,HLOOKUP(' 基本情報 '!E37,計算シート!$H$4:$P$34,ROW(計算シート!H34)-3,0))&"%",計算シート!P34&"%"))) -> 0 | G37: =MAX(IF(' 基本情報 '!F37="○",ROUNDUP((F37)*IF(' 基本情報 '!$D$4="",0,VLOOKUP(' 基本情報 '!$D$4,雇用保険料率!$C:$D,2,0))-0.5,0),0),0) -> 0 | H37: =IF(OR(' 基本情報 '!$D$3="",' 基本情報 '!H37=""),0,HLOOKUP(' 基本情報 '!H37,計算シート!$Y$4:$AA$34,ROW(計算シート!Y34)-3,0)) -> 0 | I37: =IF(OR(' 基本情報 '!$D$3="",' 基本情報 '!I37=""),0,HLOOKUP(' 基本情報 '!I37,計算シート!$AB$4:$AD$34,ROW(計算シート!Y34)-3,0)) -> 0 | J37: 0 | K37: 0 | M37: 0

Sheet 計算シート (hidden)
C3: NO. | D3: 名前 | E3: 源泉徴収税額 | H3: 賞与税率 | Q3: 給与：社会保険（健康保険） | T3: 給与：社会保険（厚生年金） | Y3: 賞与：社会保険（健康保険) | AB3: 賞与：社会保険（厚生年金）
E4: 甲欄 | F4: 乙欄 | G4: 乙欄（従たる給与についての扶養控除等申告書提出あり） | H4: 0 | I4: 1 | J4: 2 | K4: 3 | L4: 4 | M4: 5 | N4: 6 | O4: 7 | P4: 乙 | Q4: =リスト表!E4 -> 無し | R4: =リスト表!E5 -> 介護保険なし | S4: =リスト表!E6 -> 介護保険あり | T4: =リスト表!F4 -> 無し | U4: =リスト表!F5 -> 一般、坑内員・船員 | V4: =リスト表!F6 -> なし | W4: ＜一般の被保険者＞標準報酬月額88,000円未満、650,000円以上の場合 | X4: ＜坑内員・船員＞標準報酬月額88,000円未満、650,000円以上の場合 | Y4: =リスト表!E4 -> 無し | Z4: =リスト表!E5 -> 介護保険なし | AA4: =リスト表!E6 -> 介護保険あり | AB4: =リスト表!F4 -> 無し | AC4: =リスト表!F5 -> 一般、坑内員・船員 | AD4: =リスト表!F6 -> なし
C5: 1 | D5: =' 給与計算 '!C8 -> 給与一郎 | E5: =MAX(IF(' 給与計算 '!N8>=税額基本情報!$D$6,MAX('計算シート ２'!E5:L5),IF(' 給与計算 '!N8<源泉月額表!$B$8,0,VLOOKUP(' 給与計算 '!N8,INDIRECT(税額基本情報!$D$42),IF(' 基本情報 '!E8>=8,10,' 基本情報 '!E8+3),1)))-IF(' 基本情報 '!E8>=8,(' 基本情報 '!E8-7)*税額基本情報!$D$23,0),0) -> 15430 | F5: =IF(' 給与計算 '!N8<源泉月額表!$B$8,ROUNDDOWN(' 給与計算 '!N8*税額基本情報!$D$29,0),IF(' 給与計算 '!N8=0,0,IF(' 給与計算 '!N8>=税額基本情報!$D$19,MAX('計算シート ２'!S5:U5),VLOOKUP(' 給与計算 '!N8,INDIRECT(税額基本情報!$D$42),11,1)))) -> 127300 | G5: =MAX(IF(' 給与計算 '!N8<源泉月額表!$B$8,ROUNDDOWN(' 給与計算 '!N8*3.063%,0),IF(' 給与計算 '!N8=0,0,IF(' 給与計算 '!N8>=税額基本情報!$D$19,MAX('計算シート ２'!S5:U5),VLOOKUP(' 給与計算 '!N8,INDIRECT(税額基本情報!$D$42),11,1))))-' 基本情報 '!E8*税額基本情報!$D$26,0) -> 124080 | H5: =IF(' 賞与計算 '!D8<源泉賞与表!$D$10*1000,0,INDEX(源泉賞与表!$B:$B,MATCH(' 賞与計算 '!D8/1000,源泉賞与表!$D:$D,1))) -> 16.336 | I5: =IF(' 賞与計算 '!D8<源泉賞与表!$F$10*1000,0,INDEX(源泉賞与表!$B:$B,MATCH(' 賞与計算 '!D8/1000,源泉賞与表!$F:$F,1))) -> 16.336 | J5: =IF(' 賞与計算 '!D8<源泉賞与表!$H$10*1000,0,INDEX(源泉賞与表!$B:$B,MATCH(' 賞与計算 '!D8/1000,源泉賞与表!$H:$H,1))) -> 14.294 | K5: =IF(' 賞与計算 '!D8<源泉賞与表!$J$10*1000,0,INDEX(源泉賞与表!$B:$B,MATCH(' 賞与計算 '!D8/1000,源泉賞与表!$J:$J,1))) -> 12.252 | L5: =IF(' 賞与計算 '!D8<源泉賞与表!$L$10*1000,0,INDEX(源泉賞与表!$B:$B,MATCH(' 賞与計算 '!D8/1000,源泉賞与表!$L:$L,1))) -> 10.21 | M5: =IF(' 賞与計算 '!D8<源泉賞与表!$N$10*1000,0,INDEX(源泉賞与表!$B:$B,MATCH(' 賞与計算 '!D8/1000,源泉賞与表!$N:$N,1))) -> 8.168 | N5: =IF(' 賞与計算 '!D8<源泉賞与表!$P$10*1000,0,INDEX(源泉賞与表!$B:$B,MATCH(' 賞与計算 '!D8/1000,源泉賞与表!$P:$P,1))) -> 6.126 | O5: =IF(' 賞与計算 '!D8<源泉賞与表!$R$10*1000,0,INDEX(源泉賞与表!$B:$B,MATCH(' 賞与計算 '!D8/1000,源泉賞与表!$R:$R,1))) -> 6.126 | P5: =IF(' 賞与計算 '!D8="","",IF(' 賞与計算 '!D8<源泉賞与表!$T$22*1000,10.21,INDEX(源泉賞与表!$B:$B,MATCH(' 賞与計算 '!D8/1000,源泉賞与表!$T:$T,1)))) -> 30.63 | Q5: 0 | R5: =IF(' 基本情報 '!G8="",0,ROUND(VLOOKUP(' 基本情報 '!G8,INDIRECT(' 基本情報 '!$D$3&"!$B$12:$I$61"),6,0)-0.1,0)) -> 27944 | S5: =IF(' 基本情報 '!G8="",0,ROUND(VLOOKUP(' 基本情報 '!G8,INDIRECT(' 基本情報 '!$D$3&"!$B$12:$I$61"),8,0)-0.1,0)) -> 32424 | T5: =Q5 -> 0 | U5: =IF(' 基本情報 '!G8="",0,ROUND(IF(OR(' 基本情報 '!G8<税額基本情報!$E$32,' 基本情報 '!G8>税額基本情報!$E$33),W5,VLOOKUP(' 基本情報 '!G8,INDIRECT(' 基本情報 '!$D$3&"!$B$15:$K$46"),10,0))-0.1,0)) -> 51240 | V5: =IF(' 基本情報 '!G8="",0,ROUND(IF(OR(' 基本情報 '!G8<税額基本情報!$E$32,' 基本情報 '!G8>税額基本情報!$E$33),X5,VLOOKUP(' 基本情報 '!G8,INDIRECT(' 基本情報 '!$D$3&"!$B$15:$M$46"),12,0))-0.1,0)) -> 0 | W5: =IF(' 基本情報 '!G8="",0,IF(' 基本情報 '!G8<税額基本情報!$E$32,税額基本情報!$F$32,IF(' 基本情報 '!G8>税額基本情報!$E$33,税額基本情報!$F$33,0))) -> 0 | X5: =IF(' 基本情報 '!G8="",0,IF(' 基本情報 '!G8<税額基本情報!$E$32,税額基本情報!$G$32,IF(' 基本情報 '!G8>税額基本情報!$E$33,税額基本情報!$G$33,0))) -> 0 | Y5: =Q5 -> 0 | Z5: =ROUND(IF(' 賞与計算 '!F8>税額基本情報!$D$39,税額基本情報!$D$39,ROUNDDOWN(' 賞与計算 '!F8,-3))*INDIRECT(' 基本情報 '!$D$3&"!$F$9")*0.5-0.1,0) -> 24950 | AA5: =ROUND(IF(' 賞与計算 '!F8>税額基本情報!$D$39,税額基本情報!$D$39,ROUNDDOWN(' 賞与計算 '!F8,-3))*INDIRECT(' 基本情報 '!$D$3&"!$H$9")/2-0.1,0) -> 28950 | AB5: =Q5 -> 0 | AC5: =ROUND(IF(' 賞与計算 '!F8>税額基本情報!$D$36,税額基本情報!$D$36,ROUNDDOWN(' 賞与計算 '!F8,-3))*INDIRECT(' 基本情報 '!$D$3&"!$J$9")/2-0.1,0) -> 45750 | AD5: =ROUND(IF(' 賞与計算 '!F8>税額基本情報!$D$36,税額基本情報!$D$36,ROUNDDOWN(' 賞与計算 '!F8,-3))*INDIRECT(' 基本情報 '!$D$3&"!$L$9")/2-0.1,0) -> 0
C6: 2 | D6: =' 給与計算 '!C9 -> 給与二郎 | E6: =MAX(IF(' 給与計算 '!N9>=税額基本情報!$D$6,MAX('計算シート ２'!E6:L6),IF(' 給与計算 '!N9<源泉月額表!$B$8,0,VLOOKUP(' 給与計算 '!N9,INDIRECT(税額基本情報!$D$42),IF(' 基本情報 '!E9>=8,10,' 基本情報 '!E9+3),1)))-IF(' 基本情報 '!E9>=8,(' 基本情報 '!E9-7)*税額基本情報!$D$23,0),0) -> 5140 | F6: =IF(' 給与計算 '!N9<源泉月額表!$B$8,ROUNDDOWN(' 給与計算 '!N9*税額基本情報!$D$29,0),IF(' 給与計算 '!N9=0,0,IF(' 給与計算 '!N9>=税額基本情報!$D$19,MAX('計算シート ２'!S6:U6),VLOOKUP(' 給与計算 '!N9,INDIRECT(税額基本情報!$D$42),11,1)))) -> 38500 | G6: =MAX(IF(' 給与計算 '!N9<源泉月額表!$B$8,ROUNDDOWN(' 給与計算 '!N9*3.063%,0),IF(' 給与計算 '!N9=0,0,IF(' 給与計算 '!N9>=税額基本情報!$D$19,MAX('計算シート ２'!S6:U6),VLOOKUP(' 給与計算 '!N9,INDIRECT(税額基本情報!$D$42),11,1))))-' 基本情報 '!E9*税額基本情報!$D$26,0) -> 36890 | H6: =IF(' 賞与計算 '!D9<源泉賞与表!$D$10*1000,0,INDEX(源泉賞与表!$B:$B,MATCH(' 賞与計算 '!D9/1000,源泉賞与表!$D:$D,1))) -> 6.126 | I6: =IF(' 賞与計算 '!D9<源泉賞与表!$F$10*1000,0,INDEX(源泉賞与表!$B:$B,MATCH(' 賞与計算 '!D9/1000,源泉賞与表!$F:$F,1))) -> 4.084 | J6: =IF(' 賞与計算 '!D9<源泉賞与表!$H$10*1000,0,INDEX(源泉賞与表!$B:$B,MATCH(' 賞与計算 '!D9/1000,源泉賞与表!$H:$H,1))) -> 2.042 | K6: =IF(' 賞与計算 '!D9<源泉賞与表!$J$10*1000,0,INDEX(源泉賞与表!$B:$B,MATCH(' 賞与計算 '!D9/1000,源泉賞与表!$J:$J,1))) -> 2.042 | L6: =IF(' 賞与計算 '!D9<源泉賞与表!$L$10*1000,0,INDEX(源泉賞与表!$B:$B,MATCH(' 賞与計算 '!D9/1000,源泉賞与表!$L:$L,1))) -> 2.042 | M6: =IF(' 賞与計算 '!D9<源泉賞与表!$N$10*1000,0,INDEX(源泉賞与表!$B:$B,MATCH(' 賞与計算 '!D9/1000,源泉賞与表!$N:$N,1))) -> 2.042 | N6: =IF(' 賞与計算 '!D9<源泉賞与表!$P$10*1000,0,INDEX(源泉賞与表!$B:$B,MATCH(' 賞与計算 '!D9/1000,源泉賞与表!$P:$P,1))) -> 0 | O6: =IF(' 賞与計算 '!D9<源泉賞与表!$R$10*1000,0,INDEX(源泉賞与表!$B:$B,MATCH(' 賞与計算 '!D9/1000,源泉賞与表!$R:$R,1))) -> 0 | P6: =IF(' 賞与計算 '!D9="","",IF(' 賞与計算 '!D9<源泉賞与表!$T$22*1000,10.21,INDEX(源泉賞与表!$B:$B,MATCH(' 賞与計算 '!D9/1000,源泉賞与表!$T:$T,1)))) -> 20.42 | Q6: 0 | R6: =IF(' 基本情報 '!G9="",0,ROUND(VLOOKUP(' 基本情報 '!G9,INDIRECT(' 基本情報 '!$D$3&"!$B$12:$I$61"),6,0)-0.1,0)) -> 14970 | S6: =IF(' 基本情報 '!G9="",0,ROUND(VLOOKUP(' 基本情報 '!G9,INDIRECT(' 基本情報 '!$D$3&"!$B$12:$I$61"),8,0)-0.1,0)) -> 17370 | T6: =Q6 -> 0 | U6: =IF(' 基本情報 '!G9="",0,ROUND(IF(OR(' 基本情報 '!G9<税額基本情報!$E$32,' 基本情報 '!G9>税額基本情報!$E$33),W6,VLOOKUP(' 基本情報 '!G9,INDIRECT(' 基本情報 '!$D$3&"!$B$15:$K$46"),10,0))-0.1,0)) -> 27450 | V6: =IF(' 基本情報 '!G9="",0,ROUND(IF(OR(' 基本情報 '!G9<税額基本情報!$E$32,' 基本情報 '!G9>税額基本情報!$E$33),X6,VLOOKUP(' 基本情報 '!G9,INDIRECT(' 基本情報 '!$D$3&"!$B$15:$M$46"),12,0))-0.1,0)) -> 0 | W6: =IF(' 基本情報 '!G9="",0,IF(' 基本情報 '!G9<税額基本情報!$E$32,税額基本情報!$F$32,IF(' 基本情報 '!G9>税額基本情報!$E$33,税額基本情報!$F$33,0))) -> 0 | X6: =IF(' 基本情報 '!G9="",0,IF(' 基本情報 '!G9<税額基本情報!$E$32,税額基本情報!$G$32,IF(' 基本情報 '!G9>税額基本情報!$E$33,税額基本情報!$G$33,0))) -> 0 | Y6: =Q6 -> 0 | Z6: =ROUND(IF(' 賞与計算 '!F9>税額基本情報!$D$39,税額基本情報!$D$39,ROUNDDOWN(' 賞与計算 '!F9,-3))*INDIRECT(' 基本情報 '!$D$3&"!$F$9")*0.5-0.1,0) -> 14970 | AA6: =ROUND(IF(' 賞与計算 '!F9>税額基本情報!$D$39,税額基本情報!$D$39,ROUNDDOWN(' 賞与計算 '!F9,-3))*INDIRECT(' 基本情報 '!$D$3&"!$H$9")/2-0.1,0) -> 17370 | AB6: =Q6 -> 0 | AC6: =ROUND(IF(' 賞与計算 '!F9>税額基本情報!$D$36,税額基本情報!$D$36,ROUNDDOWN(' 賞与計算 '!F9,-3))*INDIRECT(' 基本情報 '!$D$3&"!$J$9")/2-0.1,0) -> 27450 | AD6: =ROUND(IF(' 賞与計算 '!F9>税額基本情報!$D$36,税額基本情報!$D$36,ROUNDDOWN(' 賞与計算 '!F9,-3))*INDIRECT(' 基本情報 '!$D$3&"!$L$9")/2-0.1,0) -> 0
C7: 3 | D7: =' 給与計算 '!C10 -> 給与三郎 | E7: =MAX(IF(' 給与計算 '!N10>=税額基本情報!$D$6,MAX('計算シート ２'!E7:L7),IF(' 給与計算 '!N10<源泉月額表!$B$8,0,VLOOKUP(' 給与計算 '!N10,INDIRECT(税額基本情報!$D$42),IF(' 基本情報 '!E10>=8,10,' 基本情報 '!E10+3),1)))-IF(' 基本情報 '!E10>=8,(' 基本情報 '!E10-7)*税額基本情報!$D$23,0),0) -> 720 | F7: =IF(' 給与計算 '!N10<源泉月額表!$B$8,ROUNDDOWN(' 給与計算 '!N10*税額基本情報!$D$29,0),IF(' 給与計算 '!N10=0,0,IF(' 給与計算 '!N10>=税額基本情報!$D$19,MAX('計算シート ２'!S7:U7),VLOOKUP(' 給与計算 '!N10,INDIRECT(税額基本情報!$D$42),11,1)))) -> 3600 | G7: =MAX(IF(' 給与計算 '!N10<源泉月額表!$B$8,ROUNDDOWN(' 給与計算 '!N10*3.063%,0),IF(' 給与計算 '!N10=0,0,IF(' 給与計算 '!N10>=税額基本情報!$D$19,MAX('計算シート ２'!S7:U7),VLOOKUP(' 給与計算 '!N10,INDIRECT(税額基本情報!$D$42),11,1))))-' 基本情報 '!E10*税額基本情報!$D$26,0) -> 3600 | H7: =IF(' 賞与計算 '!D10<源泉賞与表!$D$10*1000,0,INDEX(源泉賞与表!$B:$B,MATCH(' 賞与計算 '!D10/1000,源泉賞与表!$D:$D,1))) -> 4.084 | I7: =IF(' 賞与計算 '!D10<源泉賞与表!$F$10*1000,0,INDEX(源泉賞与表!$B:$B,MATCH(' 賞与計算 '!D10/1000,源泉賞与表!$F:$F,1))) -> 2.042 | J7: =IF(' 賞与計算 '!D10<源泉賞与表!$H$10*1000,0,INDEX(源泉賞与表!$B:$B,MATCH(' 賞与計算 '!D10/1000,源泉賞与表!$H:$H,1))) -> 0 | K7: =IF(' 賞与計算 '!D10<源泉賞与表!$J$10*1000,0,INDEX(源泉賞与表!$B:$B,MATCH(' 賞与計算 '!D10/1000,源泉賞与表!$J:$J,1))) -> 0 | L7: =IF(' 賞与計算 '!D10<源泉賞与表!$L$10*1000,0,INDEX(源泉賞与表!$B:$B,MATCH(' 賞与計算 '!D10/1000,源泉賞与表!$L:$L,1))) -> 0 | M7: =IF(' 賞与計算 '!D10<源泉賞与表!$N$10*1000,0,INDEX(源泉賞与表!$B:$B,MATCH(' 賞与計算 '!D10/1000,源泉賞与表!$N:$N,1))) -> 0 | N7: =IF(' 賞与計算 '!D10<源泉賞与表!$P$10*1000,0,INDEX(源泉賞与表!$B:$B,MATCH(' 賞与計算 '!D10/1000,源泉賞与表!$P:$P,1))) -> 0 | O7: =IF(' 賞与計算 '!D10<源泉賞与表!$R$10*1000,0,INDEX(源泉賞与表!$B:$B,MATCH(' 賞与計算 '!D10/1000,源泉賞与表!$R:$R,1))) -> 0 | P7: =IF(' 賞与計算 '!D10="","",IF(' 賞与計算 '!D10<源泉賞与表!$T$22*1000,10.21,INDEX(源泉賞与表!$B:$B,MATCH(' 賞与計算 '!D10/1000,源泉賞与表!$T:$T,1)))) -> 10.21 | Q7: 0 | R7: =IF(' 基本情報 '!G10="",0,ROUND(VLOOKUP(' 基本情報 '!G10,INDIRECT(' 基本情報 '!$D$3&"!$B$12:$I$61"),6,0)-0.1,0)) -> 0 | S7: =IF(' 基本情報 '!G10="",0,ROUND(VLOOKUP(' 基本情報 '!G10,INDIRECT(' 基本情報 '!$D$3&"!$B$12:$I$61"),8,0)-0.1,0)) -> 0 | T7: 0 | U7: =IF(' 基本情報 '!G10="",0,ROUND(IF(OR(' 基本情報 '!G10<税額基本情報!$E$32,' 基本情報 '!G10>税額基本情報!$E$33),W7,VLOOKUP(' 基本情報 '!G10,INDIRECT(' 基本情報 '!$D$3&"!$B$15:$K$46"),10,0))-0.1,0)) -> 0 | V7: =IF(' 基本情報 '!G10="",0,ROUND(IF(OR(' 基本情報 '!G10<税額基本情報!$E$32,' 基本情報 '!G10>税額基本情報!$E$33),X7,VLOOKUP(' 基本情報 '!G10,INDIRECT(' 基本情報 '!$D$3&"!$B$15:$M$46"),12,0))-0.1,0)) -> 0 | W7: =IF(' 基本情報 '!G10="",0,IF(' 基本情報 '!G10<税額基本情報!$E$32,税額基本情報!$F$32,IF(' 基本情報 '!G10>税額基本情報!$E$33,税額基本情報!$F$33,0))) -> 0 | X7: =IF(' 基本情報 '!G10="",0,IF(' 基本情報 '!G10<税額基本情報!$E$32,税額基本情報!$G$32,IF(' 基本情報 '!G10>税額基本情報!$E$33,税額基本情報!$G$33,0))) -> 0 | Y7: 0 | Z7: =ROUND(IF(' 賞与計算 '!F10>税額基本情報!$D$39,税額基本情報!$D$39,ROUNDDOWN(' 賞与計算 '!F10,-3))*INDIRECT(' 基本情報 '!$D$3&"!$F$9")*0.5-0.1,0) -> 4990 | AA7: =ROUND(IF(' 賞与計算 '!F10>税額基本情報!$D$39,税額基本情報!$D$39,ROUNDDOWN(' 賞与計算 '!F10,-3))*INDIRECT(' 基本情報 '!$D$3&"!$H$9")/2-0.1,0) -> 5790 | AB7: 0 | AC7: =ROUND(IF(' 賞与計算 '!F10>税額基本情報!$D$36,税額基本情報!$D$36,ROUNDDOWN(' 賞与計算 '!F10,-3))*INDIRECT(' 基本情報 '!$D$3&"!$J$9")/2-0.1,0) -> 9150 | AD7: =ROUND(IF(' 賞与計算 '!F10>税額基本情報!$D$36,税額基本情報!$D$36,ROUNDDOWN(' 賞与計算 '!F10,-3))*INDIRECT(' 基本情報 '!$D$3&"!$L$9")/2-0.1,0) -> 0
C8: 4 | D8: =' 給与計算 '!C11 ->  | E8: =MAX(IF(' 給与計算 '!N11>=税額基本情報!$D$6,MAX('計算シート ２'!E8:L8),IF(' 給与計算 '!N11<源泉月額表!$B$8,0,VLOOKUP(' 給与計算 '!N11,INDIRECT(税額基本情報!$D$42),IF(' 基本情報 '!E11>=8,10,' 基本情報 '!E11+3),1)))-IF(' 基本情報 '!E11>=8,(' 基本情報 '!E11-7)*税額基本情報!$D$23,0),0) -> 0 | F8: =IF(' 給与計算 '!N11<源泉月額表!$B$8,ROUNDDOWN(' 給与計算 '!N11*税額基本情報!$D$29,0),IF(' 給与計算 '!N11=0,0,IF(' 給与計算 '!N11>=税額基本情報!$D$19,MAX('計算シート ２'!S8:U8),VLOOKUP(' 給与計算 '!N11,INDIRECT(税額基本情報!$D$42),11,1)))) -> 0 | G8: =MAX(IF(' 給与計算 '!N11<源泉月額表!$B$8,ROUNDDOWN(' 給与計算 '!N11*3.063%,0),IF(' 給与計算 '!N11=0,0,IF(' 給与計算 '!N11>=税額基本情報!$D$19,MAX('計算シート ２'!S8:U8),VLOOKUP(' 給与計算 '!N11,INDIRECT(税額基本情報!$D$42),11,1))))-' 基本情報 '!E11*税額基本情報!$D$26,0) -> 0 | H8: =IF(' 賞与計算 '!D11<源泉賞与表!$D$10*1000,0,INDEX(源泉賞与表!$B:$B,MATCH(' 賞与計算 '!D11/1000,源泉賞与表!$D:$D,1))) -> 0 | I8: =IF(' 賞与計算 '!D11<源泉賞与表!$F$10*1000,0,INDEX(源泉賞与表!$B:$B,MATCH(' 賞与計算 '!D11/1000,源泉賞与表!$F:$F,1))) -> 0 | J8: =IF(' 賞与計算 '!D11<源泉賞与表!$H$10*1000,0,INDEX(源泉賞与表!$B:$B,MATCH(' 賞与計算 '!D11/1000,源泉賞与表!$H:$H,1))) -> 0 | K8: =IF(' 賞与計算 '!D11<源泉賞与表!$J$10*1000,0,INDEX(源泉賞与表!$B:$B,MATCH(' 賞与計算 '!D11/1000,源泉賞与表!$J:$J,1))) -> 0 | L8: =IF(' 賞与計算 '!D11<源泉賞与表!$L$10*1000,0,INDEX(源泉賞与表!$B:$B,MATCH(' 賞与計算 '!D11/1000,源泉賞与表!$L:$L,1))) -> 0 | M8: =IF(' 賞与計算 '!D11<源泉賞与表!$N$10*1000,0,INDEX(源泉賞与表!$B:$B,MATCH(' 賞与計算 '!D11/1000,源泉賞与表!$N:$N,1))) -> 0 | N8: =IF(' 賞与計算 '!D11<源泉賞与表!$P$10*1000,0,INDEX(源泉賞与表!$B:$B,MATCH(' 賞与計算 '!D11/1000,源泉賞与表!$P:$P,1))) -> 0 | O8: =IF(' 賞与計算 '!D11<源泉賞与表!$R$10*1000,0,INDEX(源泉賞与表!$B:$B,MATCH(' 賞与計算 '!D11/1000,源泉賞与表!$R:$R,1))) -> 0 | P8: =IF(' 賞与計算 '!D11="","",IF(' 賞与計算 '!D11<源泉賞与表!$T$22*1000,10.21,INDEX(源泉賞与表!$B:$B,MATCH(' 賞与計算 '!D11/1000,源泉賞与表!$T:$T,1)))) ->  | Q8: 0 | R8: =IF(' 基本情報 '!G11="",0,ROUND(VLOOKUP(' 基本情報 '!G11,INDIRECT(' 基本情報 '!$D$3&"!$B$12:$I$61"),6,0)-0.1,0)) -> 0 | S8: =IF(' 基本情報 '!G11="",0,ROUND(VLOOKUP(' 基本情報 '!G11,INDIRECT(' 基本情報 '!$D$3&"!$B$12:$I$61"),8,0)-0.1,0)) -> 0 | T8: 0 | U8: =IF(' 基本情報 '!G11="",0,ROUND(IF(OR(' 基本情報 '!G11<税額基本情報!$E$32,' 基本情報 '!G11>税額基本情報!$E$33),W8,VLOOKUP(' 基本情報 '!G11,INDIRECT(' 基本情報 '!$D$3&"!$B$15:$K$46"),10,0))-0.1,0)) -> 0 | V8: =IF(' 基本情報 '!G11="",0,ROUND(IF(OR(' 基本情報 '!G11<税額基本情報!$E$32,' 基本情報 '!G11>税額基本情報!$E$33),X8,VLOOKUP(' 基本情報 '!G11,INDIRECT(' 基本情報 '!$D$3&"!$B$15:$M$46"),12,0))-0.1,0)) -> 0 | W8: =IF(' 基本情報 '!G11="",0,IF(' 基本情報 '!G11<税額基本情報!$E$32,税額基本情報!$F$32,IF(' 基本情報 '!G11>税額基本情報!$E$33,税額基本情報!$F$33,0))) -> 0 | X8: =IF(' 基本情報 '!G11="",0,IF(' 基本情報 '!G11<税額基本情報!$E$32,税額基本情報!$G$32,IF(' 基本情報 '!G11>税額基本情報!$E$33,税額基本情報!$G$33,0))) -> 0 | Y8: 0 | Z8: =ROUND(IF(' 賞与計算 '!F11>税額基本情報!$D$39,税額基本情報!$D$39,ROUNDDOWN(' 賞与計算 '!F11,-3))*INDIRECT(' 基本情報 '!$D$3&"!$F$9")*0.5-0.1,0) -> 0 | AA8: =ROUND(IF(' 賞与計算 '!F11>税額基本情報!$D$39,税額基本情報!$D$39,ROUNDDOWN(' 賞与計算 '!F11,-3))*INDIRECT(' 基本情報 '!$D$3&"!$H$9")/2-0.1,0) -> 0 | AB8: 0 | AC8: =ROUND(IF(' 賞与計算 '!F11>税額基本情報!$D$36,税額基本情報!$D$36,ROUNDDOWN(' 賞与計算 '!F11,-3))*INDIRECT(' 基本情報 '!$D$3&"!$J$9")/2-0.1,0) -> 0 | AD8: =ROUND(IF(' 賞与計算 '!F11>税額基本情報!$D$36,税額基本情報!$D$36,ROUNDDOWN(' 賞与計算 '!F11,-3))*INDIRECT(' 基本情報 '!$D$3&"!$L$9")/2-0.1,0) -> 0
C9: 5 | D9: =' 給与計算 '!C12 ->  | E9: =MAX(IF(' 給与計算 '!N12>=税額基本情報!$D$6,MAX('計算シート ２'!E9:L9),IF(' 給与計算 '!N12<源泉月額表!$B$8,0,VLOOKUP(' 給与計算 '!N12,INDIRECT(税額基本情報!$D$42),IF(' 基本情報 '!E12>=8,10,' 基本情報 '!E12+3),1)))-IF(' 基本情報 '!E12>=8,(' 基本情報 '!E12-7)*税額基本情報!$D$23,0),0) -> 0 | F9: =IF(' 給与計算 '!N12<源泉月額表!$B$8,ROUNDDOWN(' 給与計算 '!N12*税額基本情報!$D$29,0),IF(' 給与計算 '!N12=0,0,IF(' 給与計算 '!N12>=税額基本情報!$D$19,MAX('計算シート ２'!S9:U9),VLOOKUP(' 給与計算 '!N12,INDIRECT(税額基本情報!$D$42),11,1)))) -> 0 | G9: =MAX(IF(' 給与計算 '!N12<源泉月額表!$B$8,ROUNDDOWN(' 給与計算 '!N12*3.063%,0),IF(' 給与計算 '!N12=0,0,IF(' 給与計算 '!N12>=税額基本情報!$D$19,MAX('計算シート ２'!S9:U9),VLOOKUP(' 給与計算 '!N12,INDIRECT(税額基本情報!$D$42),11,1))))-' 基本情報 '!E12*税額基本情報!$D$26,0) -> 0 | H9: =IF(' 賞与計算 '!D12<源泉賞与表!$D$10*1000,0,INDEX(源泉賞与表!$B:$B,MATCH(' 賞与計算 '!D12/1000,源泉賞与表!$D:$D,1))) -> 0 | I9: =IF(' 賞与計算 '!D12<源泉賞与表!$F$10*1000,0,INDEX(源泉賞与表!$B:$B,MATCH(' 賞与計算 '!D12/1000,源泉賞与表!$F:$F,1))) -> 0 | J9: =IF(' 賞与計算 '!D12<源泉賞与表!$H$10*1000,0,INDEX(源泉賞与表!$B:$B,MATCH(' 賞与計算 '!D12/1000,源泉賞与表!$H:$H,1))) -> 0 | K9: =IF(' 賞与計算 '!D12<源泉賞与表!$J$10*1000,0,INDEX(源泉賞与表!$B:$B,MATCH(' 賞与計算 '!D12/1000,源泉賞与表!$J:$J,1))) -> 0 | L9: =IF(' 賞与計算 '!D12<源泉賞与表!$L$10*1000,0,INDEX(源泉賞与表!$B:$B,MATCH(' 賞与計算 '!D12/1000,源泉賞与表!$L:$L,1))) -> 0 | M9: =IF(' 賞与計算 '!D12<源泉賞与表!$N$10*1000,0,INDEX(源泉賞与表!$B:$B,MATCH(' 賞与計算 '!D12/1000,源泉賞与表!$N:$N,1))) -> 0 | N9: =IF(' 賞与計算 '!D12<源泉賞与表!$P$10*1000,0,INDEX(源泉賞与表!$B:$B,MATCH(' 賞与計算 '!D12/1000,源泉賞与表!$P:$P,1))) -> 0 | O9: =IF(' 賞与計算 '!D12<源泉賞与表!$R$10*1000,0,INDEX(源泉賞与表!$B:$B,MATCH(' 賞与計算 '!D12/1000,源泉賞与表!$R:$R,1))) -> 0 | P9: =IF(' 賞与計算 '!D12="","",IF(' 賞与計算 '!D12<源泉賞与表!$T$22*1000,10.21,INDEX(源泉賞与表!$B:$B,MATCH(' 賞与計算 '!D12/1000,源泉賞与表!$T:$T,1)))) ->  | Q9: 0 | R9: =IF(' 基本情報 '!G12="",0,ROUND(VLOOKUP(' 基本情報 '!G12,INDIRECT(' 基本情報 '!$D$3&"!$B$12:$I$61"),6,0)-0.1,0)) -> 0 | S9: =IF(' 基本情報 '!G12="",0,ROUND(VLOOKUP(' 基本情報 '!G12,INDIRECT(' 基本情報 '!$D$3&"!$B$12:$I$61"),8,0)-0.1,0)) -> 0 | T9: 0 | U9: =IF(' 基本情報 '!G12="",0,ROUND(IF(OR(' 基本情報 '!G12<税額基本情報!$E$32,' 基本情報 '!G12>税額基本情報!$E$33),W9,VLOOKUP(' 基本情報 '!G12,INDIRECT(' 基本情報 '!$D$3&"!$B$15:$K$46"),10,0))-0.1,0)) -> 0 | V9: =IF(' 基本情報 '!G12="",0,ROUND(IF(OR(' 基本情報 '!G12<税額基本情報!$E$32,' 基本情報 '!G12>税額基本情報!$E$33),X9,VLOOKUP(' 基本情報 '!G12,INDIRECT(' 基本情報 '!$D$3&"!$B$15:$M$46"),12,0))-0.1,0)) -> 0 | W9: =IF(' 基本情報 '!G12="",0,IF(' 基本情報 '!G12<税額基本情報!$E$32,税額基本情報!$F$32,IF(' 基本情報 '!G12>税額基本情報!$E$33,税額基本情報!$F$33,0))) -> 0 | X9: =IF(' 基本情報 '!G12="",0,IF(' 基本情報 '!G12<税額基本情報!$E$32,税額基本情報!$G$32,IF(' 基本情報 '!G12>税額基本情報!$E$33,税額基本情報!$G$33,0))) -> 0 | Y9: 0 | Z9: =ROUND(IF(' 賞与計算 '!F12>税額基本情報!$D$39,税額基本情報!$D$39,ROUNDDOWN(' 賞与計算 '!F12,-3))*INDIRECT(' 基本情報 '!$D$3&"!$F$9")*0.5-0.1,0) -> 0 | AA9: =ROUND(IF(' 賞与計算 '!F12>税額基本情報!$D$39,税額基本情報!$D$39,ROUNDDOWN(' 賞与計算 '!F12,-3))*INDIRECT(' 基本情報 '!$D$3&"!$H$9")/2-0.1,0) -> 0 | AB9: 0 | AC9: =ROUND(IF(' 賞与計算 '!F12>税額基本情報!$D$36,税額基本情報!$D$36,ROUNDDOWN(' 賞与計算 '!F12,-3))*INDIRECT(' 基本情報 '!$D$3&"!$J$9")/2-0.1,0) -> 0 | AD9: =ROUND(IF(' 賞与計算 '!F12>税額基本情報!$D$36,税額基本情報!$D$36,ROUNDDOWN(' 賞与計算 '!F12,-3))*INDIRECT(' 基本情報 '!$D$3&"!$L$9")/2-0.1,0) -> 0
C10: 6 | D10: =' 給与計算 '!C13 ->  | E10: =MAX(IF(' 給与計算 '!N13>=税額基本情報!$D$6,MAX('計算シート ２'!E10:L10),IF(' 給与計算 '!N13<源泉月額表!$B$8,0,VLOOKUP(' 給与計算 '!N13,INDIRECT(税額基本情報!$D$42),IF(' 基本情報 '!E13>=8,10,' 基本情報 '!E13+3),1)))-IF(' 基本情報 '!E13>=8,(' 基本情報 '!E13-7)*税額基本情報!$D$23,0),0) -> 0 | F10: =IF(' 給与計算 '!N13<源泉月額表!$B$8,ROUNDDOWN(' 給与計算 '!N13*税額基本情報!$D$29,0),IF(' 給与計算 '!N13=0,0,IF(' 給与計算 '!N13>=税額基本情報!$D$19,MAX('計算シート ２'!S10:U10),VLOOKUP(' 給与計算 '!N13,INDIRECT(税額基本情報!$D$42),11,1)))) -> 0 | G10: =MAX(IF(' 給与計算 '!N13<源泉月額表!$B$8,ROUNDDOWN(' 給与計算 '!N13*3.063%,0),IF(' 給与計算 '!N13=0,0,IF(' 給与計算 '!N13>=税額基本情報!$D$19,MAX('計算シート ２'!S10:U10),VLOOKUP(' 給与計算 '!N13,INDIRECT(税額基本情報!$D$42),11,1))))-' 基本情報 '!E13*税額基本情報!$D$26,0) -> 0 | H10: =IF(' 賞与計算 '!D13<源泉賞与表!$D$10*1000,0,INDEX(源泉賞与表!$B:$B,MATCH(' 賞与計算 '!D13/1000,源泉賞与表!$D:$D,1))) -> 0 | I10: =IF(' 賞与計算 '!D13<源泉賞与表!$F$10*1000,0,INDEX(源泉賞与表!$B:$B,MATCH(' 賞与計算 '!D13/1000,源泉賞与表!$F:$F,1))) -> 0 | J10: =IF(' 賞与計算 '!D13<源泉賞与表!$H$10*1000,0,INDEX(源泉賞与表!$B:$B,MATCH(' 賞与計算 '!D13/1000,源泉賞与表!$H:$H,1))) -> 0 | K10: =IF(' 賞与計算 '!D13<源泉賞与表!$J$10*1000,0,INDEX(源泉賞与表!$B:$B,MATCH(' 賞与計算 '!D13/1000,源泉賞与表!$J:$J,1))) -> 0 | L10: =IF(' 賞与計算 '!D13<源泉賞与表!$L$10*1000,0,INDEX(源泉賞与表!$B:$B,MATCH(' 賞与計算 '!D13/1000,源泉賞与表!$L:$L,1))) -> 0 | M10: =IF(' 賞与計算 '!D13<源泉賞与表!$N$10*1000,0,INDEX(源泉賞与表!$B:$B,MATCH(' 賞与計算 '!D13/1000,源泉賞与表!$N:$N,1))) -> 0 | N10: =IF(' 賞与計算 '!D13<源泉賞与表!$P$10*1000,0,INDEX(源泉賞与表!$B:$B,MATCH(' 賞与計算 '!D13/1000,源泉賞与表!$P:$P,1))) -> 0 | O10: =IF(' 賞与計算 '!D13<源泉賞与表!$R$10*1000,0,INDEX(源泉賞与表!$B:$B,MATCH(' 賞与計算 '!D13/1000,源泉賞与表!$R:$R,1))) -> 0 | P10: =IF(' 賞与計算 '!D13="","",IF(' 賞与計算 '!D13<源泉賞与表!$T$22*1000,10.21,INDEX(源泉賞与表!$B:$B,MATCH(' 賞与計算 '!D13/1000,源泉賞与表!$T:$T,1)))) ->  | Q10: 0 | R10: =IF(' 基本情報 '!G13="",0,ROUND(VLOOKUP(' 基本情報 '!G13,INDIRECT(' 基本情報 '!$D$3&"!$B$12:$I$61"),6,0)-0.1,0)) -> 0 | S10: =IF(' 基本情報 '!G13="",0,ROUND(VLOOKUP(' 基本情報 '!G13,INDIRECT(' 基本情報 '!$D$3&"!$B$12:$I$61"),8,0)-0.1,0)) -> 0 | T10: 0 | U10: =IF(' 基本情報 '!G13="",0,ROUND(IF(OR(' 基本情報 '!G13<税額基本情報!$E$32,' 基本情報 '!G13>税額基本情報!$E$33),W10,VLOOKUP(' 基本情報 '!G13,INDIRECT(' 基本情報 '!$D$3&"!$B$15:$K$46"),10,0))-0.1,0)) -> 0 | V10: =IF(' 基本情報 '!G13="",0,ROUND(IF(OR(' 基本情報 '!G13<税額基本情報!$E$32,' 基本情報 '!G13>税額基本情報!$E$33),X10,VLOOKUP(' 基本情報 '!G13,INDIRECT(' 基本情報 '!$D$3&"!$B$15:$M$46"),12,0))-0.1,0)) -> 0 | W10: =IF(' 基本情報 '!G13="",0,IF(' 基本情報 '!G13<税額基本情報!$E$32,税額基本情報!$F$32,IF(' 基本情報 '!G13>税額基本情報!$E$33,税額基本情報!$F$33,0))) -> 0 | X10: =IF(' 基本情報 '!G13="",0,IF(' 基本情報 '!G13<税額基本情報!$E$32,税額基本情報!$G$32,IF(' 基本情報 '!G13>税額基本情報!$E$33,税額基本情報!$G$33,0))) -> 0 | Y10: 0 | Z10: =ROUND(IF(' 賞与計算 '!F13>税額基本情報!$D$39,税額基本情報!$D$39,ROUNDDOWN(' 賞与計算 '!F13,-3))*INDIRECT(' 基本情報 '!$D$3&"!$F$9")*0.5-0.1,0) -> 0 | AA10: =ROUND(IF(' 賞与計算 '!F13>税額基本情報!$D$39,税額基本情報!$D$39,ROUNDDOWN(' 賞与計算 '!F13,-3))*INDIRECT(' 基本情報 '!$D$3&"!$H$9")/2-0.1,0) -> 0 | AB10: 0 | AC10: =ROUND(IF(' 賞与計算 '!F13>税額基本情報!$D$36,税額基本情報!$D$36,ROUNDDOWN(' 賞与計算 '!F13,-3))*INDIRECT(' 基本情報 '!$D$3&"!$J$9")/2-0.1,0) -> 0 | AD10: =ROUND(IF(' 賞与計算 '!F13>税額基本情報!$D$36,税額基本情報!$D$36,ROUNDDOWN(' 賞与計算 '!F13,-3))*INDIRECT(' 基本情報 '!$D$3&"!$L$9")/2-0.1,0) -> 0
C11: 7 | D11: =' 給与計算 '!C14 ->  | E11: =MAX(IF(' 給与計算 '!N14>=税額基本情報!$D$6,MAX('計算シート ２'!E11:L11),IF(' 給与計算 '!N14<源泉月額表!$B$8,0,VLOOKUP(' 給与計算 '!N14,INDIRECT(税額基本情報!$D$42),IF(' 基本情報 '!E14>=8,10,' 基本情報 '!E14+3),1)))-IF(' 基本情報 '!E14>=8,(' 基本情報 '!E14-7)*税額基本情報!$D$23,0),0) -> 0 | F11: =IF(' 給与計算 '!N14<源泉月額表!$B$8,ROUNDDOWN(' 給与計算 '!N14*税額基本情報!$D$29,0),IF(' 給与計算 '!N14=0,0,IF(' 給与計算 '!N14>=税額基本情報!$D$19,MAX('計算シート ２'!S11:U11),VLOOKUP(' 給与計算 '!N14,INDIRECT(税額基本情報!$D$42),11,1)))) -> 0 | G11: =MAX(IF(' 給与計算 '!N14<源泉月額表!$B$8,ROUNDDOWN(' 給与計算 '!N14*3.063%,0),IF(' 給与計算 '!N14=0,0,IF(' 給与計算 '!N14>=税額基本情報!$D$19,MAX('計算シート ２'!S11:U11),VLOOKUP(' 給与計算 '!N14,INDIRECT(税額基本情報!$D$42),11,1))))-' 基本情報 '!E14*税額基本情報!$D$26,0) -> 0 | H11: =IF(' 賞与計算 '!D14<源泉賞与表!$D$10*1000,0,INDEX(源泉賞与表!$B:$B,MATCH(' 賞与計算 '!D14/1000,源泉賞与表!$D:$D,1))) -> 0 | I11: =IF(' 賞与計算 '!D14<源泉賞与表!$F$10*1000,0,INDEX(源泉賞与表!$B:$B,MATCH(' 賞与計算 '!D14/1000,源泉賞与表!$F:$F,1))) -> 0 | J11: =IF(' 賞与計算 '!D14<源泉賞与表!$H$10*1000,0,INDEX(源泉賞与表!$B:$B,MATCH(' 賞与計算 '!D14/1000,源泉賞与表!$H:$H,1))) -> 0 | K11: =IF(' 賞与計算 '!D14<源泉賞与表!$J$10*1000,0,INDEX(源泉賞与表!$B:$B,MATCH(' 賞与計算 '!D14/1000,源泉賞与表!$J:$J,1))) -> 0 | L11: =IF(' 賞与計算 '!D14<源泉賞与表!$L$10*1000,0,INDEX(源泉賞与表!$B:$B,MATCH(' 賞与計算 '!D14/1000,源泉賞与表!$L:$L,1))) -> 0 | M11: =IF(' 賞与計算 '!D14<源泉賞与表!$N$10*1000,0,INDEX(源泉賞与表!$B:$B,MATCH(' 賞与計算 '!D14/1000,源泉賞与表!$N:$N,1))) -> 0 | N11: =IF(' 賞与計算 '!D14<源泉賞与表!$P$10*1000,0,INDEX(源泉賞与表!$B:$B,MATCH(' 賞与計算 '!D14/1000,源泉賞与表!$P:$P,1))) -> 0 | O11: =IF(' 賞与計算 '!D14<源泉賞与表!$R$10*1000,0,INDEX(源泉賞与表!$B:$B,MATCH(' 賞与計算 '!D14/1000,源泉賞与表!$R:$R,1))) -> 0 | P11: =IF(' 賞与計算 '!D14="","",IF(' 賞与計算 '!D14<源泉賞与表!$T$22*1000,10.21,INDEX(源泉賞与表!$B:$B,MATCH(' 賞与計算 '!D14/1000,源泉賞与表!$T:$T,1)))) ->  | Q11: 0 | R11: =IF(' 基本情報 '!G14="",0,ROUND(VLOOKUP(' 基本情報 '!G14,INDIRECT(' 基本情報 '!$D$3&"!$B$12:$I$61"),6,0)-0.1,0)) -> 0 | S11: =IF(' 基本情報 '!G14="",0,ROUND(VLOOKUP(' 基本情報 '!G14,INDIRECT(' 基本情報 '!$D$3&"!$B$12:$I$61"),8,0)-0.1,0)) -> 0 | T11: 0 | U11: =IF(' 基本情報 '!G14="",0,ROUND(IF(OR(' 基本情報 '!G14<税額基本情報!$E$32,' 基本情報 '!G14>税額基本情報!$E$33),W11,VLOOKUP(' 基本情報 '!G14,INDIRECT(' 基本情報 '!$D$3&"!$B$15:$K$46"),10,0))-0.1,0)) -> 0 | V11: =IF(' 基本情報 '!G14="",0,ROUND(IF(OR(' 基本情報 '!G14<税額基本情報!$E$32,' 基本情報 '!G14>税額基本情報!$E$33),X11,VLOOKUP(' 基本情報 '!G14,INDIRECT(' 基本情報 '!$D$3&"!$B$15:$M$46"),12,0))-0.1,0)) -> 0 | W11: =IF(' 基本情報 '!G14="",0,IF(' 基本情報 '!G14<税額基本情報!$E$32,税額基本情報!$F$32,IF(' 基本情報 '!G14>税額基本情報!$E$33,税額基本情報!$F$33,0))) -> 0 | X11: =IF(' 基本情報 '!G14="",0,IF(' 基本情報 '!G14<税額基本情報!$E$32,税額基本情報!$G$32,IF(' 基本情報 '!G14>税額基本情報!$E$33,税額基本情報!$G$33,0))) -> 0 | Y11: 0 | Z11: =ROUND(IF(' 賞与計算 '!F14>税額基本情報!$D$39,税額基本情報!$D$39,ROUNDDOWN(' 賞与計算 '!F14,-3))*INDIRECT(' 基本情報 '!$D$3&"!$F$9")*0.5-0.1,0) -> 0 | AA11: =ROUND(IF(' 賞与計算 '!F14>税額基本情報!$D$39,税額基本情報!$D$39,ROUNDDOWN(' 賞与計算 '!F14,-3))*INDIRECT(' 基本情報 '!$D$3&"!$H$9")/2-0.1,0) -> 0 | AB11: 0 | AC11: =ROUND(IF(' 賞与計算 '!F14>税額基本情報!$D$36,税額基本情報!$D$36,ROUNDDOWN(' 賞与計算 '!F14,-3))*INDIRECT(' 基本情報 '!$D$3&"!$J$9")/2-0.1,0) -> 0 | AD11: =ROUND(IF(' 賞与計算 '!F14>税額基本情報!$D$36,税額基本情報!$D$36,ROUNDDOWN(' 賞与計算 '!F14,-3))*INDIRECT(' 基本情報 '!$D$3&"!$L$9")/2-0.1,0) -> 0
C12: 8 | D12: =' 給与計算 '!C15 ->  | E12: =MAX(IF(' 給与計算 '!N15>=税額基本情報!$D$6,MAX('計算シート ２'!E12:L12),IF(' 給与計算 '!N15<源泉月額表!$B$8,0,VLOOKUP(' 給与計算 '!N15,INDIRECT(税額基本情報!$D$42),IF(' 基本情報 '!E15>=8,10,' 基本情報 '!E15+3),1)))-IF(' 基本情報 '!E15>=8,(' 基本情報 '!E15-7)*税額基本情報!$D$23,0),0) -> 0 | F12: =IF(' 給与計算 '!N15<源泉月額表!$B$8,ROUNDDOWN(' 給与計算 '!N15*税額基本情報!$D$29,0),IF(' 給与計算 '!N15=0,0,IF(' 給与計算 '!N15>=税額基本情報!$D$19,MAX('計算シート ２'!S12:U12),VLOOKUP(' 給与計算 '!N15,INDIRECT(税額基本情報!$D$42),11,1)))) -> 0 | G12: =MAX(IF(' 給与計算 '!N15<源泉月額表!$B$8,ROUNDDOWN(' 給与計算 '!N15*3.063%,0),IF(' 給与計算 '!N15=0,0,IF(' 給与計算 '!N15>=税額基本情報!$D$19,MAX('計算シート ２'!S12:U12),VLOOKUP(' 給与計算 '!N15,INDIRECT(税額基本情報!$D$42),11,1))))-' 基本情報 '!E15*税額基本情報!$D$26,0) -> 0 | H12: =IF(' 賞与計算 '!D15<源泉賞与表!$D$10*1000,0,INDEX(源泉賞与表!$B:$B,MATCH(' 賞与計算 '!D15/1000,源泉賞与表!$D:$D,1))) -> 0 | I12: =IF(' 賞与計算 '!D15<源泉賞与表!$F$10*1000,0,INDEX(源泉賞与表!$B:$B,MATCH(' 賞与計算 '!D15/1000,源泉賞与表!$F:$F,1))) -> 0 | J12: =IF(' 賞与計算 '!D15<源泉賞与表!$H$10*1000,0,INDEX(源泉賞与表!$B:$B,MATCH(' 賞与計算 '!D15/1000,源泉賞与表!$H:$H,1))) -> 0 | K12: =IF(' 賞与計算 '!D15<源泉賞与表!$J$10*1000,0,INDEX(源泉賞与表!$B:$B,MATCH(' 賞与計算 '!D15/1000,源泉賞与表!$J:$J,1))) -> 0 | L12: =IF(' 賞与計算 '!D15<源泉賞与表!$L$10*1000,0,INDEX(源泉賞与表!$B:$B,MATCH(' 賞与計算 '!D15/1000,源泉賞与表!$L:$L,1))) -> 0 | M12: =IF(' 賞与計算 '!D15<源泉賞与表!$N$10*1000,0,INDEX(源泉賞与表!$B:$B,MATCH(' 賞与計算 '!D15/1000,源泉賞与表!$N:$N,1))) -> 0 | N12: =IF(' 賞与計算 '!D15<源泉賞与表!$P$10*1000,0,INDEX(源泉賞与表!$B:$B,MATCH(' 賞与計算 '!D15/1000,源泉賞与表!$P:$P,1))) -> 0 | O12: =IF(' 賞与計算 '!D15<源泉賞与表!$R$10*1000,0,INDEX(源泉賞与表!$B:$B,MATCH(' 賞与計算 '!D15/1000,源泉賞与表!$R:$R,1))) -> 0 | P12: =IF(' 賞与計算 '!D15="","",IF(' 賞与計算 '!D15<源泉賞与表!$T$22*1000,10.21,INDEX(源泉賞与表!$B:$B,MATCH(' 賞与計算 '!D15/1000,源泉賞与表!$T:$T,1)))) ->  | Q12: 0 | R12: =IF(' 基本情報 '!G15="",0,ROUND(VLOOKUP(' 基本情報 '!G15,INDIRECT(' 基本情報 '!$D$3&"!$B$12:$I$61"),6,0)-0.1,0)) -> 0 | S12: =IF(' 基本情報 '!G15="",0,ROUND(VLOOKUP(' 基本情報 '!G15,INDIRECT(' 基本情報 '!$D$3&"!$B$12:$I$61"),8,0)-0.1,0)) -> 0 | T12: 0 | U12: =IF(' 基本情報 '!G15="",0,ROUND(IF(OR(' 基本情報 '!G15<税額基本情報!$E$32,' 基本情報 '!G15>税額基本情報!$E$33),W12,VLOOKUP(' 基本情報 '!G15,INDIRECT(' 基本情報 '!$D$3&"!$B$15:$K$46"),10,0))-0.1,0)) -> 0 | V12: =IF(' 基本情報 '!G15="",0,ROUND(IF(OR(' 基本情報 '!G15<税額基本情報!$E$32,' 基本情報 '!G15>税額基本情報!$E$33),X12,VLOOKUP(' 基本情報 '!G15,INDIRECT(' 基本情報 '!$D$3&"!$B$15:$M$46"),12,0))-0.1,0)) -> 0 | W12: =IF(' 基本情報 '!G15="",0,IF(' 基本情報 '!G15<税額基本情報!$E$32,税額基本情報!$F$32,IF(' 基本情報 '!G15>税額基本情報!$E$33,税額基本情報!$F$33,0))) -> 0 | X12: =IF(' 基本情報 '!G15="",0,IF(' 基本情報 '!G15<税額基本情報!$E$32,税額基本情報!$G$32,IF(' 基本情報 '!G15>税額基本情報!$E$33,税額基本情報!$G$33,0))) -> 0 | Y12: 0 | Z12: =ROUND(IF(' 賞与計算 '!F15>税額基本情報!$D$39,税額基本情報!$D$39,ROUNDDOWN(' 賞与計算 '!F15,-3))*INDIRECT(' 基本情報 '!$D$3&"!$F$9")*0.5-0.1,0) -> 0 | AA12: =ROUND(IF(' 賞与計算 '!F15>税額基本情報!$D$39,税額基本情報!$D$39,ROUNDDOWN(' 賞与計算 '!F15,-3))*INDIRECT(' 基本情報 '!$D$3&"!$H$9")/2-0.1,0) -> 0 | AB12: 0 | AC12: =ROUND(IF(' 賞与計算 '!F15>税額基本情報!$D$36,税額基本情報!$D$36,ROUNDDOWN(' 賞与計算 '!F15,-3))*INDIRECT(' 基本情報 '!$D$3&"!$J$9")/2-0.1,0) -> 0 | AD12: =ROUND(IF(' 賞与計算 '!F15>税額基本情報!$D$36,税額基本情報!$D$36,ROUNDDOWN(' 賞与計算 '!F15,-3))*INDIRECT(' 基本情報 '!$D$3&"!$L$9")/2-0.1,0) -> 0
C13: 9 | D13: =' 給与計算 '!C16 ->  | E13: =MAX(IF(' 給与計算 '!N16>=税額基本情報!$D$6,MAX('計算シート ２'!E13:L13),IF(' 給与計算 '!N16<源泉月額表!$B$8,0,VLOOKUP(' 給与計算 '!N16,INDIRECT(税額基本情報!$D$42),IF(' 基本情報 '!E16>=8,10,' 基本情報 '!E16+3),1)))-IF(' 基本情報 '!E16>=8,(' 基本情報 '!E16-7)*税額基本情報!$D$23,0),0) -> 0 | F13: =IF(' 給与計算 '!N16<源泉月額表!$B$8,ROUNDDOWN(' 給与計算 '!N16*税額基本情報!$D$29,0),IF(' 給与計算 '!N16=0,0,IF(' 給与計算 '!N16>=税額基本情報!$D$19,MAX('計算シート ２'!S13:U13),VLOOKUP(' 給与計算 '!N16,INDIRECT(税額基本情報!$D$42),11,1)))) -> 0 | G13: =MAX(IF(' 給与計算 '!N16<源泉月額表!$B$8,ROUNDDOWN(' 給与計算 '!N16*3.063%,0),IF(' 給与計算 '!N16=0,0,IF(' 給与計算 '!N16>=税額基本情報!$D$19,MAX('計算シート ２'!S13:U13),VLOOKUP(' 給与計算 '!N16,INDIRECT(税額基本情報!$D$42),11,1))))-' 基本情報 '!E16*税額基本情報!$D$26,0) -> 0 | H13: =IF(' 賞与計算 '!D16<源泉賞与表!$D$10*1000,0,INDEX(源泉賞与表!$B:$B,MATCH(' 賞与計算 '!D16/1000,源泉賞与表!$D:$D,1))) -> 0 | I13: =IF(' 賞与計算 '!D16<源泉賞与表!$F$10*1000,0,INDEX(源泉賞与表!$B:$B,MATCH(' 賞与計算 '!D16/1000,源泉賞与表!$F:$F,1))) -> 0 | J13: =IF(' 賞与計算 '!D16<源泉賞与表!$H$10*1000,0,INDEX(源泉賞与表!$B:$B,MATCH(' 賞与計算 '!D16/1000,源泉賞与表!$H:$H,1))) -> 0 | K13: =IF(' 賞与計算 '!D16<源泉賞与表!$J$10*1000,0,INDEX(源泉賞与表!$B:$B,MATCH(' 賞与計算 '!D16/1000,源泉賞与表!$J:$J,1))) -> 0 | L13: =IF(' 賞与計算 '!D16<源泉賞与表!$L$10*1000,0,INDEX(源泉賞与表!$B:$B,MATCH(' 賞与計算 '!D16/1000,源泉賞与表!$L:$L,1))) -> 0 | M13: =IF(' 賞与計算 '!D16<源泉賞与表!$N$10*1000,0,INDEX(源泉賞与表!$B:$B,MATCH(' 賞与計算 '!D16/1000,源泉賞与表!$N:$N,1))) -> 0 | N13: =IF(' 賞与計算 '!D16<源泉賞与表!$P$10*1000,0,INDEX(源泉賞与表!$B:$B,MATCH(' 賞与計算 '!D16/1000,源泉賞与表!$P:$P,1))) -> 0 | O13: =IF(' 賞与計算 '!D16<源泉賞与表!$R$10*1000,0,INDEX(源泉賞与表!$B:$B,MATCH(' 賞与計算 '!D16/1000,源泉賞与表!$R:$R,1))) -> 0 | P13: =IF(' 賞与計算 '!D16="","",IF(' 賞与計算 '!D16<源泉賞与表!$T$22*1000,10.21,INDEX(源泉賞与表!$B:$B,MATCH(' 賞与計算 '!D16/1000,源泉賞与表!$T:$T,1)))) ->  | Q13: 0 | R13: =IF(' 基本情報 '!G16="",0,ROUND(VLOOKUP(' 基本情報 '!G16,INDIRECT(' 基本情報 '!$D$3&"!$B$12:$I$61"),6,0)-0.1,0)) -> 0 | S13: =IF(' 基本情報 '!G16="",0,ROUND(VLOOKUP(' 基本情報 '!G16,INDIRECT(' 基本情報 '!$D$3&"!$B$12:$I$61"),8,0)-0.1,0)) -> 0 | T13: 0 | U13: =IF(' 基本情報 '!G16="",0,ROUND(IF(OR(' 基本情報 '!G16<税額基本情報!$E$32,' 基本情報 '!G16>税額基本情報!$E$33),W13,VLOOKUP(' 基本情報 '!G16,INDIRECT(' 基本情報 '!$D$3&"!$B$15:$K$46"),10,0))-0.1,0)) -> 0 | V13: =IF(' 基本情報 '!G16="",0,ROUND(IF(OR(' 基本情報 '!G16<税額基本情報!$E$32,' 基本情報 '!G16>税額基本情報!$E$33),X13,VLOOKUP(' 基本情報 '!G16,INDIRECT(' 基本情報 '!$D$3&"!$B$15:$M$46"),12,0))-0.1,0)) -> 0 | W13: =IF(' 基本情報 '!G16="",0,IF(' 基本情報 '!G16<税額基本情報!$E$32,税額基本情報!$F$32,IF(' 基本情報 '!G16>税額基本情報!$E$33,税額基本情報!$F$33,0))) -> 0 | X13: =IF(' 基本情報 '!G16="",0,IF(' 基本情報 '!G16<税額基本情報!$E$32,税額基本情報!$G$32,IF(' 基本情報 '!G16>税額基本情報!$E$33,税額基本情報!$G$33,0))) -> 0 | Y13: 0 | Z13: =ROUND(IF(' 賞与計算 '!F16>税額基本情報!$D$39,税額基本情報!$D$39,ROUNDDOWN(' 賞与計算 '!F16,-3))*INDIRECT(' 基本情報 '!$D$3&"!$F$9")*0.5-0.1,0) -> 0 | AA13: =ROUND(IF(' 賞与計算 '!F16>税額基本情報!$D$39,税額基本情報!$D$39,ROUNDDOWN(' 賞与計算 '!F16,-3))*INDIRECT(' 基本情報 '!$D$3&"!$H$9")/2-0.1,0) -> 0 | AB13: 0 | AC13: =ROUND(IF(' 賞与計算 '!F16>税額基本情報!$D$36,税額基本情報!$D$36,ROUNDDOWN(' 賞与計算 '!F16,-3))*INDIRECT(' 基本情報 '!$D$3&"!$J$9")/2-0.1,0) -> 0 | AD13: =ROUND(IF(' 賞与計算 '!F16>税額基本情報!$D$36,税額基本情報!$D$36,ROUNDDOWN(' 賞与計算 '!F16,-3))*INDIRECT(' 基本情報 '!$D$3&"!$L$9")/2-0.1,0) -> 0
C14: 10 | D14: =' 給与計算 '!C17 ->  | E14: =MAX(IF(' 給与計算 '!N17>=税額基本情報!$D$6,MAX('計算シート ２'!E14:L14),IF(' 給与計算 '!N17<源泉月額表!$B$8,0,VLOOKUP(' 給与計算 '!N17,INDIRECT(税額基本情報!$D$42),IF(' 基本情報 '!E17>=8,10,' 基本情報 '!E17+3),1)))-IF(' 基本情報 '!E17>=8,(' 基本情報 '!E17-7)*税額基本情報!$D$23,0),0) -> 0 | F14: =IF(' 給与計算 '!N17<源泉月額表!$B$8,ROUNDDOWN(' 給与計算 '!N17*税額基本情報!$D$29,0),IF(' 給与計算 '!N17=0,0,IF(' 給与計算 '!N17>=税額基本情報!$D$19,MAX('計算シート ２'!S14:U14),VLOOKUP(' 給与計算 '!N17,INDIRECT(税額基本情報!$D$42),11,1)))) -> 0 | G14: =MAX(IF(' 給与計算 '!N17<源泉月額表!$B$8,ROUNDDOWN(' 給与計算 '!N17*3.063%,0),IF(' 給与計算 '!N17=0,0,IF(' 給与計算 '!N17>=税額基本情報!$D$19,MAX('計算シート ２'!S14:U14),VLOOKUP(' 給与計算 '!N17,INDIRECT(税額基本情報!$D$42),11,1))))-' 基本情報 '!E17*税額基本情報!$D$26,0) -> 0 | H14: =IF(' 賞与計算 '!D17<源泉賞与表!$D$10*1000,0,INDEX(源泉賞与表!$B:$B,MATCH(' 賞与計算 '!D17/1000,源泉賞与表!$D:$D,1))) -> 0 | I14: =IF(' 賞与計算 '!D17<源泉賞与表!$F$10*1000,0,INDEX(源泉賞与表!$B:$B,MATCH(' 賞与計算 '!D17/1000,源泉賞与表!$F:$F,1))) -> 0 | J14: =IF(' 賞与計算 '!D17<源泉賞与表!$H$10*1000,0,INDEX(源泉賞与表!$B:$B,MATCH(' 賞与計算 '!D17/1000,源泉賞与表!$H:$H,1))) -> 0 | K14: =IF(' 賞与計算 '!D17<源泉賞与表!$J$10*1000,0,INDEX(源泉賞与表!$B:$B,MATCH(' 賞与計算 '!D17/1000,源泉賞与表!$J:$J,1))) -> 0 | L14: =IF(' 賞与計算 '!D17<源泉賞与表!$L$10*1000,0,INDEX(源泉賞与表!$B:$B,MATCH(' 賞与計算 '!D17/1000,源泉賞与表!$L:$L,1))) -> 0 | M14: =IF(' 賞与計算 '!D17<源泉賞与表!$N$10*1000,0,INDEX(源泉賞与表!$B:$B,MATCH(' 賞与計算 '!D17/1000,源泉賞与表!$N:$N,1))) -> 0 | N14: =IF(' 賞与計算 '!D17<源泉賞与表!$P$10*1000,0,INDEX(源泉賞与表!$B:$B,MATCH(' 賞与計算 '!D17/1000,源泉賞与表!$P:$P,1))) -> 0 | O14: =IF(' 賞与計算 '!D17<源泉賞与表!$R$10*1000,0,INDEX(源泉賞与表!$B:$B,MATCH(' 賞与計算 '!D17/1000,源泉賞与表!$R:$R,1))) -> 0 | P14: =IF(' 賞与計算 '!D17="","",IF(' 賞与計算 '!D17<源泉賞与表!$T$22*1000,10.21,INDEX(源泉賞与表!$B:$B,MATCH(' 賞与計算 '!D17/1000,源泉賞与表!$T:$T,1)))) ->  | Q14: 0 | R14: =IF(' 基本情報 '!G17="",0,ROUND(VLOOKUP(' 基本情報 '!G17,INDIRECT(' 基本情報 '!$D$3&"!$B$12:$I$61"),6,0)-0.1,0)) -> 0 | S14: =IF(' 基本情報 '!G17="",0,ROUND(VLOOKUP(' 基本情報 '!G17,INDIRECT(' 基本情報 '!$D$3&"!$B$12:$I$61"),8,0)-0.1,0)) -> 0 | T14: 0 | U14: =IF(' 基本情報 '!G17="",0,ROUND(IF(OR(' 基本情報 '!G17<税額基本情報!$E$32,' 基本情報 '!G17>税額基本情報!$E$33),W14,VLOOKUP(' 基本情報 '!G17,INDIRECT(' 基本情報 '!$D$3&"!$B$15:$K$46"),10,0))-0.1,0)) -> 0 | V14: =IF(' 基本情報 '!G17="",0,ROUND(IF(OR(' 基本情報 '!G17<税額基本情報!$E$32,' 基本情報 '!G17>税額基本情報!$E$33),X14,VLOOKUP(' 基本情報 '!G17,INDIRECT(' 基本情報 '!$D$3&"!$B$15:$M$46"),12,0))-0.1,0)) -> 0 | W14: =IF(' 基本情報 '!G17="",0,IF(' 基本情報 '!G17<税額基本情報!$E$32,税額基本情報!$F$32,IF(' 基本情報 '!G17>税額基本情報!$E$33,税額基本情報!$F$33,0))) -> 0 | X14: =IF(' 基本情報 '!G17="",0,IF(' 基本情報 '!G17<税額基本情報!$E$32,税額基本情報!$G$32,IF(' 基本情報 '!G17>税額基本情報!$E$33,税額基本情報!$G$33,0))) -> 0 | Y14: 0 | Z14: =ROUND(IF(' 賞与計算 '!F17>税額基本情報!$D$39,税額基本情報!$D$39,ROUNDDOWN(' 賞与計算 '!F17,-3))*INDIRECT(' 基本情報 '!$D$3&"!$F$9")*0.5-0.1,0) -> 0 | AA14: =ROUND(IF(' 賞与計算 '!F17>税額基本情報!$D$39,税額基本情報!$D$39,ROUNDDOWN(' 賞与計算 '!F17,-3))*INDIRECT(' 基本情報 '!$D$3&"!$H$9")/2-0.1,0) -> 0 | AB14: 0 | AC14: =ROUND(IF(' 賞与計算 '!F17>税額基本情報!$D$36,税額基本情報!$D$36,ROUNDDOWN(' 賞与計算 '!F17,-3))*INDIRECT(' 基本情報 '!$D$3&"!$J$9")/2-0.1,0) -> 0 | AD14: =ROUND(IF(' 賞与計算 '!F17>税額基本情報!$D$36,税額基本情報!$D$36,ROUNDDOWN(' 賞与計算 '!F17,-3))*INDIRECT(' 基本情報 '!$D$3&"!$L$9")/2-0.1,0) -> 0
C15: 11 | D15: =' 給与計算 '!C18 ->  | E15: =MAX(IF(' 給与計算 '!N18>=税額基本情報!$D$6,MAX('計算シート ２'!E15:L15),IF(' 給与計算 '!N18<源泉月額表!$B$8,0,VLOOKUP(' 給与計算 '!N18,INDIRECT(税額基本情報!$D$42),IF(' 基本情報 '!E18>=8,10,' 基本情報 '!E18+3),1)))-IF(' 基本情報 '!E18>=8,(' 基本情報 '!E18-7)*税額基本情報!$D$23,0),0) -> 0 | F15: =IF(' 給与計算 '!N18<源泉月額表!$B$8,ROUNDDOWN(' 給与計算 '!N18*税額基本情報!$D$29,0),IF(' 給与計算 '!N18=0,0,IF(' 給与計算 '!N18>=税額基本情報!$D$19,MAX('計算シート ２'!S15:U15),VLOOKUP(' 給与計算 '!N18,INDIRECT(税額基本情報!$D$42),11,1)))) -> 0 | G15: =MAX(IF(' 給与計算 '!N18<源泉月額表!$B$8,ROUNDDOWN(' 給与計算 '!N18*3.063%,0),IF(' 給与計算 '!N18=0,0,IF(' 給与計算 '!N18>=税額基本情報!$D$19,MAX('計算シート ２'!S15:U15),VLOOKUP(' 給与計算 '!N18,INDIRECT(税額基本情報!$D$42),11,1))))-' 基本情報 '!E18*税額基本情報!$D$26,0) -> 0 | H15: =IF(' 賞与計算 '!D18<源泉賞与表!$D$10*1000,0,INDEX(源泉賞与表!$B:$B,MATCH(' 賞与計算 '!D18/1000,源泉賞与表!$D:$D,1))) -> 0 | I15: =IF(' 賞与計算 '!D18<源泉賞与表!$F$10*1000,0,INDEX(源泉賞与表!$B:$B,MATCH(' 賞与計算 '!D18/1000,源泉賞与表!$F:$F,1))) -> 0 | J15: =IF(' 賞与計算 '!D18<源泉賞与表!$H$10*1000,0,INDEX(源泉賞与表!$B:$B,MATCH(' 賞与計算 '!D18/1000,源泉賞与表!$H:$H,1))) -> 0 | K15: =IF(' 賞与計算 '!D18<源泉賞与表!$J$10*1000,0,INDEX(源泉賞与表!$B:$B,MATCH(' 賞与計算 '!D18/1000,源泉賞与表!$J:$J,1))) -> 0 | L15: =IF(' 賞与計算 '!D18<源泉賞与表!$L$10*1000,0,INDEX(源泉賞与表!$B:$B,MATCH(' 賞与計算 '!D18/1000,源泉賞与表!$L:$L,1))) -> 0 | M15: =IF(' 賞与計算 '!D18<源泉賞与表!$N$10*1000,0,INDEX(源泉賞与表!$B:$B,MATCH(' 賞与計算 '!D18/1000,源泉賞与表!$N:$N,1))) -> 0 | N15: =IF(' 賞与計算 '!D18<源泉賞与表!$P$10*1000,0,INDEX(源泉賞与表!$B:$B,MATCH(' 賞与計算 '!D18/1000,源泉賞与表!$P:$P,1))) -> 0 | O15: =IF(' 賞与計算 '!D18<源泉賞与表!$R$10*1000,0,INDEX(源泉賞与表!$B:$B,MATCH(' 賞与計算 '!D18/1000,源泉賞与表!$R:$R,1))) -> 0 | P15: =IF(' 賞与計算 '!D18="","",IF(' 賞与計算 '!D18<源泉賞与表!$T$22*1000,10.21,INDEX(源泉賞与表!$B:$B,MATCH(' 賞与計算 '!D18/1000,源泉賞与表!$T:$T,1)))) ->  | Q15: 0 | R15: =IF(' 基本情報 '!G18="",0,ROUND(VLOOKUP(' 基本情報 '!G18,INDIRECT(' 基本情報 '!$D$3&"!$B$12:$I$61"),6,0)-0.1,0)) -> 0 | S15: =IF(' 基本情報 '!G18="",0,ROUND(VLOOKUP(' 基本情報 '!G18,INDIRECT(' 基本情報 '!$D$3&"!$B$12:$I$61"),8,0)-0.1,0)) -> 0 | T15: 0 | U15: =IF(' 基本情報 '!G18="",0,ROUND(IF(OR(' 基本情報 '!G18<税額基本情報!$E$32,' 基本情報 '!G18>税額基本情報!$E$33),W15,VLOOKUP(' 基本情報 '!G18,INDIRECT(' 基本情報 '!$D$3&"!$B$15:$K$46"),10,0))-0.1,0)) -> 0 | V15: =IF(' 基本情報 '!G18="",0,ROUND(IF(OR(' 基本情報 '!G18<税額基本情報!$E$32,' 基本情報 '!G18>税額基本情報!$E$33),X15,VLOOKUP(' 基本情報 '!G18,INDIRECT(' 基本情報 '!$D$3&"!$B$15:$M$46"),12,0))-0.1,0)) -> 0 | W15: =IF(' 基本情報 '!G18="",0,IF(' 基本情報 '!G18<税額基本情報!$E$32,税額基本情報!$F$32,IF(' 基本情報 '!G18>税額基本情報!$E$33,税額基本情報!$F$33,0))) -> 0 | X15: =IF(' 基本情報 '!G18="",0,IF(' 基本情報 '!G18<税額基本情報!$E$32,税額基本情報!$G$32,IF(' 基本情報 '!G18>税額基本情報!$E$33,税額基本情報!$G$33,0))) -> 0 | Y15: 0 | Z15: =ROUND(IF(' 賞与計算 '!F18>税額基本情報!$D$39,税額基本情報!$D$39,ROUNDDOWN(' 賞与計算 '!F18,-3))*INDIRECT(' 基本情報 '!$D$3&"!$F$9")*0.5-0.1,0) -> 0 | AA15: =ROUND(IF(' 賞与計算 '!F18>税額基本情報!$D$39,税額基本情報!$D$39,ROUNDDOWN(' 賞与計算 '!F18,-3))*INDIRECT(' 基本情報 '!$D$3&"!$H$9")/2-0.1,0) -> 0 | AB15: 0 | AC15: =ROUND(IF(' 賞与計算 '!F18>税額基本情報!$D$36,税額基本情報!$D$36,ROUNDDOWN(' 賞与計算 '!F18,-3))*INDIRECT(' 基本情報 '!$D$3&"!$J$9")/2-0.1,0) -> 0 | AD15: =ROUND(IF(' 賞与計算 '!F18>税額基本情報!$D$36,税額基本情報!$D$36,ROUNDDOWN(' 賞与計算 '!F18,-3))*INDIRECT(' 基本情報 '!$D$3&"!$L$9")/2-0.1,0) -> 0
C16: 12 | D16: =' 給与計算 '!C19 ->  | E16: =MAX(IF(' 給与計算 '!N19>=税額基本情報!$D$6,MAX('計算シート ２'!E16:L16),IF(' 給与計算 '!N19<源泉月額表!$B$8,0,VLOOKUP(' 給与計算 '!N19,INDIRECT(税額基本情報!$D$42),IF(' 基本情報 '!E19>=8,10,' 基本情報 '!E19+3),1)))-IF(' 基本情報 '!E19>=8,(' 基本情報 '!E19-7)*税額基本情報!$D$23,0),0) -> 0 | F16: =IF(' 給与計算 '!N19<源泉月額表!$B$8,ROUNDDOWN(' 給与計算 '!N19*税額基本情報!$D$29,0),IF(' 給与計算 '!N19=0,0,IF(' 給与計算 '!N19>=税額基本情報!$D$19,MAX('計算シート ２'!S16:U16),VLOOKUP(' 給与計算 '!N19,INDIRECT(税額基本情報!$D$42),11,1)))) -> 0 | G16: =MAX(IF(' 給与計算 '!N19<源泉月額表!$B$8,ROUNDDOWN(' 給与計算 '!N19*3.063%,0),IF(' 給与計算 '!N19=0,0,IF(' 給与計算 '!N19>=税額基本情報!$D$19,MAX('計算シート ２'!S16:U16),VLOOKUP(' 給与計算 '!N19,INDIRECT(税額基本情報!$D$42),11,1))))-' 基本情報 '!E19*税額基本情報!$D$26,0) -> 0 | H16: =IF(' 賞与計算 '!D19<源泉賞与表!$D$10*1000,0,INDEX(源泉賞与表!$B:$B,MATCH(' 賞与計算 '!D19/1000,源泉賞与表!$D:$D,1))) -> 0 | I16: =IF(' 賞与計算 '!D19<源泉賞与表!$F$10*1000,0,INDEX(源泉賞与表!$B:$B,MATCH(' 賞与計算 '!D19/1000,源泉賞与表!$F:$F,1))) -> 0 | J16: =IF(' 賞与計算 '!D19<源泉賞与表!$H$10*1000,0,INDEX(源泉賞与表!$B:$B,MATCH(' 賞与計算 '!D19/1000,源泉賞与表!$H:$H,1))) -> 0 | K16: =IF(' 賞与計算 '!D19<源泉賞与表!$J$10*1000,0,INDEX(源泉賞与表!$B:$B,MATCH(' 賞与計算 '!D19/1000,源泉賞与表!$J:$J,1))) -> 0 | L16: =IF(' 賞与計算 '!D19<源泉賞与表!$L$10*1000,0,INDEX(源泉賞与表!$B:$B,MATCH(' 賞与計算 '!D19/1000,源泉賞与表!$L:$L,1))) -> 0 | M16: =IF(' 賞与計算 '!D19<源泉賞与表!$N$10*1000,0,INDEX(源泉賞与表!$B:$B,MATCH(' 賞与計算 '!D19/1000,源泉賞与表!$N:$N,1))) -> 0 | N16: =IF(' 賞与計算 '!D19<源泉賞与表!$P$10*1000,0,INDEX(源泉賞与表!$B:$B,MATCH(' 賞与計算 '!D19/1000,源泉賞与表!$P:$P,1))) -> 0 | O16: =IF(' 賞与計算 '!D19<源泉賞与表!$R$10*1000,0,INDEX(源泉賞与表!$B:$B,MATCH(' 賞与計算 '!D19/1000,源泉賞与表!$R:$R,1))) -> 0 | P16: =IF(' 賞与計算 '!D19="","",IF(' 賞与計算 '!D19<源泉賞与表!$T$22*1000,10.21,INDEX(源泉賞与表!$B:$B,MATCH(' 賞与計算 '!D19/1000,源泉賞与表!$T:$T,1)))) ->  | Q16: 0 | R16: =IF(' 基本情報 '!G19="",0,ROUND(VLOOKUP(' 基本情報 '!G19,INDIRECT(' 基本情報 '!$D$3&"!$B$12:$I$61"),6,0)-0.1,0)) -> 0 | S16: =IF(' 基本情報 '!G19="",0,ROUND(VLOOKUP(' 基本情報 '!G19,INDIRECT(' 基本情報 '!$D$3&"!$B$12:$I$61"),8,0)-0.1,0)) -> 0 | T16: 0 | U16: =IF(' 基本情報 '!G19="",0,ROUND(IF(OR(' 基本情報 '!G19<税額基本情報!$E$32,' 基本情報 '!G19>税額基本情報!$E$33),W16,VLOOKUP(' 基本情報 '!G19,INDIRECT(' 基本情報 '!$D$3&"!$B$15:$K$46"),10,0))-0.1,0)) -> 0 | V16: =IF(' 基本情報 '!G19="",0,ROUND(IF(OR(' 基本情報 '!G19<税額基本情報!$E$32,' 基本情報 '!G19>税額基本情報!$E$33),X16,VLOOKUP(' 基本情報 '!G19,INDIRECT(' 基本情報 '!$D$3&"!$B$15:$M$46"),12,0))-0.1,0)) -> 0 | W16: =IF(' 基本情報 '!G19="",0,IF(' 基本情報 '!G19<税額基本情報!$E$32,税額基本情報!$F$32,IF(' 基本情報 '!G19>税額基本情報!$E$33,税額基本情報!$F$33,0))) -> 0 | X16: =IF(' 基本情報 '!G19="",0,IF(' 基本情報 '!G19<税額基本情報!$E$32,税額基本情報!$G$32,IF(' 基本情報 '!G19>税額基本情報!$E$33,税額基本情報!$G$33,0))) -> 0 | Y16: 0 | Z16: =ROUND(IF(' 賞与計算 '!F19>税額基本情報!$D$39,税額基本情報!$D$39,ROUNDDOWN(' 賞与計算 '!F19,-3))*INDIRECT(' 基本情報 '!$D$3&"!$F$9")*0.5-0.1,0) -> 0 | AA16: =ROUND(IF(' 賞与計算 '!F19>税額基本情報!$D$39,税額基本情報!$D$39,ROUNDDOWN(' 賞与計算 '!F19,-3))*INDIRECT(' 基本情報 '!$D$3&"!$H$9")/2-0.1,0) -> 0 | AB16: 0 | AC16: =ROUND(IF(' 賞与計算 '!F19>税額基本情報!$D$36,税額基本情報!$D$36,ROUNDDOWN(' 賞与計算 '!F19,-3))*INDIRECT(' 基本情報 '!$D$3&"!$J$9")/2-0.1,0) -> 0 | AD16: =ROUND(IF(' 賞与計算 '!F19>税額基本情報!$D$36,税額基本情報!$D$36,ROUNDDOWN(' 賞与計算 '!F19,-3))*INDIRECT(' 基本情報 '!$D$3&"!$L$9")/2-0.1,0) -> 0
C17: 13 | D17: =' 給与計算 '!C20 ->  | E17: =MAX(IF(' 給与計算 '!N20>=税額基本情報!$D$6,MAX('計算シート ２'!E17:L17),IF(' 給与計算 '!N20<源泉月額表!$B$8,0,VLOOKUP(' 給与計算 '!N20,INDIRECT(税額基本情報!$D$42),IF(' 基本情報 '!E20>=8,10,' 基本情報 '!E20+3),1)))-IF(' 基本情報 '!E20>=8,(' 基本情報 '!E20-7)*税額基本情報!$D$23,0),0) -> 0 | F17: =IF(' 給与計算 '!N20<源泉月額表!$B$8,ROUNDDOWN(' 給与計算 '!N20*税額基本情報!$D$29,0),IF(' 給与計算 '!N20=0,0,IF(' 給与計算 '!N20>=税額基本情報!$D$19,MAX('計算シート ２'!S17:U17),VLOOKUP(' 給与計算 '!N20,INDIRECT(税額基本情報!$D$42),11,1)))) -> 0 | G17: =MAX(IF(' 給与計算 '!N20<源泉月額表!$B$8,ROUNDDOWN(' 給与計算 '!N20*3.063%,0),IF(' 給与計算 '!N20=0,0,IF(' 給与計算 '!N20>=税額基本情報!$D$19,MAX('計算シート ２'!S17:U17),VLOOKUP(' 給与計算 '!N20,INDIRECT(税額基本情報!$D$42),11,1))))-' 基本情報 '!E20*税額基本情報!$D$26,0) -> 0 | H17: =IF(' 賞与計算 '!D20<源泉賞与表!$D$10*1000,0,INDEX(源泉賞与表!$B:$B,MATCH(' 賞与計算 '!D20/1000,源泉賞与表!$D:$D,1))) -> 0 | I17: =IF(' 賞与計算 '!D20<源泉賞与表!$F$10*1000,0,INDEX(源泉賞与表!$B:$B,MATCH(' 賞与計算 '!D20/1000,源泉賞与表!$F:$F,1))) -> 0 | J17: =IF(' 賞与計算 '!D20<源泉賞与表!$H$10*1000,0,INDEX(源泉賞与表!$B:$B,MATCH(' 賞与計算 '!D20/1000,源泉賞与表!$H:$H,1))) -> 0 | K17: =IF(' 賞与計算 '!D20<源泉賞与表!$J$10*1000,0,INDEX(源泉賞与表!$B:$B,MATCH(' 賞与計算 '!D20/1000,源泉賞与表!$J:$J,1))) -> 0 | L17: =IF(' 賞与計算 '!D20<源泉賞与表!$L$10*1000,0,INDEX(源泉賞与表!$B:$B,MATCH(' 賞与計算 '!D20/1000,源泉賞与表!$L:$L,1))) -> 0 | M17: =IF(' 賞与計算 '!D20<源泉賞与表!$N$10*1000,0,INDEX(源泉賞与表!$B:$B,MATCH(' 賞与計算 '!D20/1000,源泉賞与表!$N:$N,1))) -> 0 | N17: =IF(' 賞与計算 '!D20<源泉賞与表!$P$10*1000,0,INDEX(源泉賞与表!$B:$B,MATCH(' 賞与計算 '!D20/1000,源泉賞与表!$P:$P,1))) -> 0 | O17: =IF(' 賞与計算 '!D20<源泉賞与表!$R$10*1000,0,INDEX(源泉賞与表!$B:$B,MATCH(' 賞与計算 '!D20/1000,源泉賞与表!$R:$R,1))) -> 0 | P17: =IF(' 賞与計算 '!D20="","",IF(' 賞与計算 '!D20<源泉賞与表!$T$22*1000,10.21,INDEX(源泉賞与表!$B:$B,MATCH(' 賞与計算 '!D20/1000,源泉賞与表!$T:$T,1)))) ->  | Q17: 0 | R17: =IF(' 基本情報 '!G20="",0,ROUND(VLOOKUP(' 基本情報 '!G20,INDIRECT(' 基本情報 '!$D$3&"!$B$12:$I$61"),6,0)-0.1,0)) -> 0 | S17: =IF(' 基本情報 '!G20="",0,ROUND(VLOOKUP(' 基本情報 '!G20,INDIRECT(' 基本情報 '!$D$3&"!$B$12:$I$61"),8,0)-0.1,0)) -> 0 | T17: 0 | U17: =IF(' 基本情報 '!G20="",0,ROUND(IF(OR(' 基本情報 '!G20<税額基本情報!$E$32,' 基本情報 '!G20>税額基本情報!$E$33),W17,VLOOKUP(' 基本情報 '!G20,INDIRECT(' 基本情報 '!$D$3&"!$B$15:$K$46"),10,0))-0.1,0)) -> 0 | V17: =IF(' 基本情報 '!G20="",0,ROUND(IF(OR(' 基本情報 '!G20<税額基本情報!$E$32,' 基本情報 '!G20>税額基本情報!$E$33),X17,VLOOKUP(' 基本情報 '!G20,INDIRECT(' 基本情報 '!$D$3&"!$B$15:$M$46"),12,0))-0.1,0)) -> 0 | W17: =IF(' 基本情報 '!G20="",0,IF(' 基本情報 '!G20<税額基本情報!$E$32,税額基本情報!$F$32,IF(' 基本情報 '!G20>税額基本情報!$E$33,税額基本情報!$F$33,0))) -> 0 | X17: =IF(' 基本情報 '!G20="",0,IF(' 基本情報 '!G20<税額基本情報!$E$32,税額基本情報!$G$32,IF(' 基本情報 '!G20>税額基本情報!$E$33,税額基本情報!$G$33,0))) -> 0 | Y17: 0 | Z17: =ROUND(IF(' 賞与計算 '!F20>税額基本情報!$D$39,税額基本情報!$D$39,ROUNDDOWN(' 賞与計算 '!F20,-3))*INDIRECT(' 基本情報 '!$D$3&"!$F$9")*0.5-0.1,0) -> 0 | AA17: =ROUND(IF(' 賞与計算 '!F20>税額基本情報!$D$39,税額基本情報!$D$39,ROUNDDOWN(' 賞与計算 '!F20,-3))*INDIRECT(' 基本情報 '!$D$3&"!$H$9")/2-0.1,0) -> 0 | AB17: 0 | AC17: =ROUND(IF(' 賞与計算 '!F20>税額基本情報!$D$36,税額基本情報!$D$36,ROUNDDOWN(' 賞与計算 '!F20,-3))*INDIRECT(' 基本情報 '!$D$3&"!$J$9")/2-0.1,0) -> 0 | AD17: =ROUND(IF(' 賞与計算 '!F20>税額基本情報!$D$36,税額基本情報!$D$36,ROUNDDOWN(' 賞与計算 '!F20,-3))*INDIRECT(' 基本情報 '!$D$3&"!$L$9")/2-0.1,0) -> 0
C18: 14 | D18: =' 給与計算 '!C21 ->  | E18: =MAX(IF(' 給与計算 '!N21>=税額基本情報!$D$6,MAX('計算シート ２'!E18:L18),IF(' 給与計算 '!N21<源泉月額表!$B$8,0,VLOOKUP(' 給与計算 '!N21,INDIRECT(税額基本情報!$D$42),IF(' 基本情報 '!E21>=8,10,' 基本情報 '!E21+3),1)))-IF(' 基本情報 '!E21>=8,(' 基本情報 '!E21-7)*税額基本情報!$D$23,0),0) -> 0 | F18: =IF(' 給与計算 '!N21<源泉月額表!$B$8,ROUNDDOWN(' 給与計算 '!N21*税額基本情報!$D$29,0),IF(' 給与計算 '!N21=0,0,IF(' 給与計算 '!N21>=税額基本情報!$D$19,MAX('計算シート ２'!S18:U18),VLOOKUP(' 給与計算 '!N21,INDIRECT(税額基本情報!$D$42),11,1)))) -> 0 | G18: =MAX(IF(' 給与計算 '!N21<源泉月額表!$B$8,ROUNDDOWN(' 給与計算 '!N21*3.063%,0),IF(' 給与計算 '!N21=0,0,IF(' 給与計算 '!N21>=税額基本情報!$D$19,MAX('計算シート ２'!S18:U18),VLOOKUP(' 給与計算 '!N21,INDIRECT(税額基本情報!$D$42),11,1))))-' 基本情報 '!E21*税額基本情報!$D$26,0) -> 0 | H18: =IF(' 賞与計算 '!D21<源泉賞与表!$D$10*1000,0,INDEX(源泉賞与表!$B:$B,MATCH(' 賞与計算 '!D21/1000,源泉賞与表!$D:$D,1))) -> 0 | I18: =IF(' 賞与計算 '!D21<源泉賞与表!$F$10*1000,0,INDEX(源泉賞与表!$B:$B,MATCH(' 賞与計算 '!D21/1000,源泉賞与表!$F:$F,1))) -> 0 | J18: =IF(' 賞与計算 '!D21<源泉賞与表!$H$10*1000,0,INDEX(源泉賞与表!$B:$B,MATCH(' 賞与計算 '!D21/1000,源泉賞与表!$H:$H,1))) -> 0 | K18: =IF(' 賞与計算 '!D21<源泉賞与表!$J$10*1000,0,INDEX(源泉賞与表!$B:$B,MATCH(' 賞与計算 '!D21/1000,源泉賞与表!$J:$J,1))) -> 0 | L18: =IF(' 賞与計算 '!D21<源泉賞与表!$L$10*1000,0,INDEX(源泉賞与表!$B:$B,MATCH(' 賞与計算 '!D21/1000,源泉賞与表!$L:$L,1))) -> 0 | M18: =IF(' 賞与計算 '!D21<源泉賞与表!$N$10*1000,0,INDEX(源泉賞与表!$B:$B,MATCH(' 賞与計算 '!D21/1000,源泉賞与表!$N:$N,1))) -> 0 | N18: =IF(' 賞与計算 '!D21<源泉賞与表!$P$10*1000,0,INDEX(源泉賞与表!$B:$B,MATCH(' 賞与計算 '!D21/1000,源泉賞与表!$P:$P,1))) -> 0 | O18: =IF(' 賞与計算 '!D21<源泉賞与表!$R$10*1000,0,INDEX(源泉賞与表!$B:$B,MATCH(' 賞与計算 '!D21/1000,源泉賞与表!$R:$R,1))) -> 0 | P18: =IF(' 賞与計算 '!D21="","",IF(' 賞与計算 '!D21<源泉賞与表!$T$22*1000,10.21,INDEX(源泉賞与表!$B:$B,MATCH(' 賞与計算 '!D21/1000,源泉賞与表!$T:$T,1)))) ->  | Q18: 0 | R18: =IF(' 基本情報 '!G21="",0,ROUND(VLOOKUP(' 基本情報 '!G21,INDIRECT(' 基本情報 '!$D$3&"!$B$12:$I$61"),6,0)-0.1,0)) -> 0 | S18: =IF(' 基本情報 '!G21="",0,ROUND(VLOOKUP(' 基本情報 '!G21,INDIRECT(' 基本情報 '!$D$3&"!$B$12:$I$61"),8,0)-0.1,0)) -> 0 | T18: 0 | U18: =IF(' 基本情報 '!G21="",0,ROUND(IF(OR(' 基本情報 '!G21<税額基本情報!$E$32,' 基本情報 '!G21>税額基本情報!$E$33),W18,VLOOKUP(' 基本情報 '!G21,INDIRECT(' 基本情報 '!$D$3&"!$B$15:$K$46"),10,0))-0.1,0)) -> 0 | V18: =IF(' 基本情報 '!G21="",0,ROUND(IF(OR(' 基本情報 '!G21<税額基本情報!$E$32,' 基本情報 '!G21>税額基本情報!$E$33),X18,VLOOKUP(' 基本情報 '!G21,INDIRECT(' 基本情報 '!$D$3&"!$B$15:$M$46"),12,0))-0.1,0)) -> 0 | W18: =IF(' 基本情報 '!G21="",0,IF(' 基本情報 '!G21<税額基本情報!$E$32,税額基本情報!$F$32,IF(' 基本情報 '!G21>税額基本情報!$E$33,税額基本情報!$F$33,0))) -> 0 | X18: =IF(' 基本情報 '!G21="",0,IF(' 基本情報 '!G21<税額基本情報!$E$32,税額基本情報!$G$32,IF(' 基本情報 '!G21>税額基本情報!$E$33,税額基本情報!$G$33,0))) -> 0 | Y18: 0 | Z18: =ROUND(IF(' 賞与計算 '!F21>税額基本情報!$D$39,税額基本情報!$D$39,ROUNDDOWN(' 賞与計算 '!F21,-3))*INDIRECT(' 基本情報 '!$D$3&"!$F$9")*0.5-0.1,0) -> 0 | AA18: =ROUND(IF(' 賞与計算 '!F21>税額基本情報!$D$39,税額基本情報!$D$39,ROUNDDOWN(' 賞与計算 '!F21,-3))*INDIRECT(' 基本情報 '!$D$3&"!$H$9")/2-0.1,0) -> 0 | AB18: 0 | AC18: =ROUND(IF(' 賞与計算 '!F21>税額基本情報!$D$36,税額基本情報!$D$36,ROUNDDOWN(' 賞与計算 '!F21,-3))*INDIRECT(' 基本情報 '!$D$3&"!$J$9")/2-0.1,0) -> 0 | AD18: =ROUND(IF(' 賞与計算 '!F21>税額基本情報!$D$36,税額基本情報!$D$36,ROUNDDOWN(' 賞与計算 '!F21,-3))*INDIRECT(' 基本情報 '!$D$3&"!$L$9")/2-0.1,0) -> 0
C19: 15 | D19: =' 給与計算 '!C22 ->  | E19: =MAX(IF(' 給与計算 '!N22>=税額基本情報!$D$6,MAX('計算シート ２'!E19:L19),IF(' 給与計算 '!N22<源泉月額表!$B$8,0,VLOOKUP(' 給与計算 '!N22,INDIRECT(税額基本情報!$D$42),IF(' 基本情報 '!E22>=8,10,' 基本情報 '!E22+3),1)))-IF(' 基本情報 '!E22>=8,(' 基本情報 '!E22-7)*税額基本情報!$D$23,0),0) -> 0 | F19: =IF(' 給与計算 '!N22<源泉月額表!$B$8,ROUNDDOWN(' 給与計算 '!N22*税額基本情報!$D$29,0),IF(' 給与計算 '!N22=0,0,IF(' 給与計算 '!N22>=税額基本情報!$D$19,MAX('計算シート ２'!S19:U19),VLOOKUP(' 給与計算 '!N22,INDIRECT(税額基本情報!$D$42),11,1)))) -> 0 | G19: =MAX(IF(' 給与計算 '!N22<源泉月額表!$B$8,ROUNDDOWN(' 給与計算 '!N22*3.063%,0),IF(' 給与計算 '!N22=0,0,IF(' 給与計算 '!N22>=税額基本情報!$D$19,MAX('計算シート ２'!S19:U19),VLOOKUP(' 給与計算 '!N22,INDIRECT(税額基本情報!$D$42),11,1))))-' 基本情報 '!E22*税額基本情報!$D$26,0) -> 0 | H19: =IF(' 賞与計算 '!D22<源泉賞与表!$D$10*1000,0,INDEX(源泉賞与表!$B:$B,MATCH(' 賞与計算 '!D22/1000,源泉賞与表!$D:$D,1))) -> 0 | I19: =IF(' 賞与計算 '!D22<源泉賞与表!$F$10*1000,0,INDEX(源泉賞与表!$B:$B,MATCH(' 賞与計算 '!D22/1000,源泉賞与表!$F:$F,1))) -> 0 | J19: =IF(' 賞与計算 '!D22<源泉賞与表!$H$10*1000,0,INDEX(源泉賞与表!$B:$B,MATCH(' 賞与計算 '!D22/1000,源泉賞与表!$H:$H,1))) -> 0 | K19: =IF(' 賞与計算 '!D22<源泉賞与表!$J$10*1000,0,INDEX(源泉賞与表!$B:$B,MATCH(' 賞与計算 '!D22/1000,源泉賞与表!$J:$J,1))) -> 0 | L19: =IF(' 賞与計算 '!D22<源泉賞与表!$L$10*1000,0,INDEX(源泉賞与表!$B:$B,MATCH(' 賞与計算 '!D22/1000,源泉賞与表!$L:$L,1))) -> 0 | M19: =IF(' 賞与計算 '!D22<源泉賞与表!$N$10*1000,0,INDEX(源泉賞与表!$B:$B,MATCH(' 賞与計算 '!D22/1000,源泉賞与表!$N:$N,1))) -> 0 | N19: =IF(' 賞与計算 '!D22<源泉賞与表!$P$10*1000,0,INDEX(源泉賞与表!$B:$B,MATCH(' 賞与計算 '!D22/1000,源泉賞与表!$P:$P,1))) -> 0 | O19: =IF(' 賞与計算 '!D22<源泉賞与表!$R$10*1000,0,INDEX(源泉賞与表!$B:$B,MATCH(' 賞与計算 '!D22/1000,源泉賞与表!$R:$R,1))) -> 0 | P19: =IF(' 賞与計算 '!D22="","",IF(' 賞与計算 '!D22<源泉賞与表!$T$22*1000,10.21,INDEX(源泉賞与表!$B:$B,MATCH(' 賞与計算 '!D22/1000,源泉賞与表!$T:$T,1)))) ->  | Q19: 0 | R19: =IF(' 基本情報 '!G22="",0,ROUND(VLOOKUP(' 基本情報 '!G22,INDIRECT(' 基本情報 '!$D$3&"!$B$12:$I$61"),6,0)-0.1,0)) -> 0 | S19: =IF(' 基本情報 '!G22="",0,ROUND(VLOOKUP(' 基本情報 '!G22,INDIRECT(' 基本情報 '!$D$3&"!$B$12:$I$61"),8,0)-0.1,0)) -> 0 | T19: 0 | U19: =IF(' 基本情報 '!G22="",0,ROUND(IF(OR(' 基本情報 '!G22<税額基本情報!$E$32,' 基本情報 '!G22>税額基本情報!$E$33),W19,VLOOKUP(' 基本情報 '!G22,INDIRECT(' 基本情報 '!$D$3&"!$B$15:$K$46"),10,0))-0.1,0)) -> 0 | V19: =IF(' 基本情報 '!G22="",0,ROUND(IF(OR(' 基本情報 '!G22<税額基本情報!$E$32,' 基本情報 '!G22>税額基本情報!$E$33),X19,VLOOKUP(' 基本情報 '!G22,INDIRECT(' 基本情報 '!$D$3&"!$B$15:$M$46"),12,0))-0.1,0)) -> 0 | W19: =IF(' 基本情報 '!G22="",0,IF(' 基本情報 '!G22<税額基本情報!$E$32,税額基本情報!$F$32,IF(' 基本情報 '!G22>税額基本情報!$E$33,税額基本情報!$F$33,0))) -> 0 | X19: =IF(' 基本情報 '!G22="",0,IF(' 基本情報 '!G22<税額基本情報!$E$32,税額基本情報!$G$32,IF(' 基本情報 '!G22>税額基本情報!$E$33,税額基本情報!$G$33,0))) -> 0 | Y19: 0 | Z19: =ROUND(IF(' 賞与計算 '!F22>税額基本情報!$D$39,税額基本情報!$D$39,ROUNDDOWN(' 賞与計算 '!F22,-3))*INDIRECT(' 基本情報 '!$D$3&"!$F$9")*0.5-0.1,0) -> 0 | AA19: =ROUND(IF(' 賞与計算 '!F22>税額基本情報!$D$39,税額基本情報!$D$39,ROUNDDOWN(' 賞与計算 '!F22,-3))*INDIRECT(' 基本情報 '!$D$3&"!$H$9")/2-0.1,0) -> 0 | AB19: 0 | AC19: =ROUND(IF(' 賞与計算 '!F22>税額基本情報!$D$36,税額基本情報!$D$36,ROUNDDOWN(' 賞与計算 '!F22,-3))*INDIRECT(' 基本情報 '!$D$3&"!$J$9")/2-0.1,0) -> 0 | AD19: =ROUND(IF(' 賞与計算 '!F22>税額基本情報!$D$36,税額基本情報!$D$36,ROUNDDOWN(' 賞与計算 '!F22,-3))*INDIRECT(' 基本情報 '!$D$3&"!$L$9")/2-0.1,0) -> 0
C20: 16 | D20: =' 給与計算 '!C23 ->  | E20: =MAX(IF(' 給与計算 '!N23>=税額基本情報!$D$6,MAX('計算シート ２'!E20:L20),IF(' 給与計算 '!N23<源泉月額表!$B$8,0,VLOOKUP(' 給与計算 '!N23,INDIRECT(税額基本情報!$D$42),IF(' 基本情報 '!E23>=8,10,' 基本情報 '!E23+3),1)))-IF(' 基本情報 '!E23>=8,(' 基本情報 '!E23-7)*税額基本情報!$D$23,0),0) -> 0 | F20: =IF(' 給与計算 '!N23<源泉月額表!$B$8,ROUNDDOWN(' 給与計算 '!N23*税額基本情報!$D$29,0),IF(' 給与計算 '!N23=0,0,IF(' 給与計算 '!N23>=税額基本情報!$D$19,MAX('計算シート ２'!S20:U20),VLOOKUP(' 給与計算 '!N23,INDIRECT(税額基本情報!$D$42),11,1)))) -> 0 | G20: =MAX(IF(' 給与計算 '!N23<源泉月額表!$B$8,ROUNDDOWN(' 給与計算 '!N23*3.063%,0),IF(' 給与計算 '!N23=0,0,IF(' 給与計算 '!N23>=税額基本情報!$D$19,MAX('計算シート ２'!S20:U20),VLOOKUP(' 給与計算 '!N23,INDIRECT(税額基本情報!$D$42),11,1))))-' 基本情報 '!E23*税額基本情報!$D$26,0) -> 0 | H20: =IF(' 賞与計算 '!D23<源泉賞与表!$D$10*1000,0,INDEX(源泉賞与表!$B:$B,MATCH(' 賞与計算 '!D23/1000,源泉賞与表!$D:$D,1))) -> 0 | I20: =IF(' 賞与計算 '!D23<源泉賞与表!$F$10*1000,0,INDEX(源泉賞与表!$B:$B,MATCH(' 賞与計算 '!D23/1000,源泉賞与表!$F:$F,1))) -> 0 | J20: =IF(' 賞与計算 '!D23<源泉賞与表!$H$10*1000,0,INDEX(源泉賞与表!$B:$B,MATCH(' 賞与計算 '!D23/1000,源泉賞与表!$H:$H,1))) -> 0 | K20: =IF(' 賞与計算 '!D23<源泉賞与表!$J$10*1000,0,INDEX(源泉賞与表!$B:$B,MATCH(' 賞与計算 '!D23/1000,源泉賞与表!$J:$J,1))) -> 0 | L20: =IF(' 賞与計算 '!D23<源泉賞与表!$L$10*1000,0,INDEX(源泉賞与表!$B:$B,MATCH(' 賞与計算 '!D23/1000,源泉賞与表!$L:$L,1))) -> 0 | M20: =IF(' 賞与計算 '!D23<源泉賞与表!$N$10*1000,0,INDEX(源泉賞与表!$B:$B,MATCH(' 賞与計算 '!D23/1000,源泉賞与表!$N:$N,1))) -> 0 | N20: =IF(' 賞与計算 '!D23<源泉賞与表!$P$10*1000,0,INDEX(源泉賞与表!$B:$B,MATCH(' 賞与計算 '!D23/1000,源泉賞与表!$P:$P,1))) -> 0 | O20: =IF(' 賞与計算 '!D23<源泉賞与表!$R$10*1000,0,INDEX(源泉賞与表!$B:$B,MATCH(' 賞与計算 '!D23/1000,源泉賞与表!$R:$R,1))) -> 0 | P20: =IF(' 賞与計算 '!D23="","",IF(' 賞与計算 '!D23<源泉賞与表!$T$22*1000,10.21,INDEX(源泉賞与表!$B:$B,MATCH(' 賞与計算 '!D23/1000,源泉賞与表!$T:$T,1)))) ->  | Q20: 0 | R20: =IF(' 基本情報 '!G23="",0,ROUND(VLOOKUP(' 基本情報 '!G23,INDIRECT(' 基本情報 '!$D$3&"!$B$12:$I$61"),6,0)-0.1,0)) -> 0 | S20: =IF(' 基本情報 '!G23="",0,ROUND(VLOOKUP(' 基本情報 '!G23,INDIRECT(' 基本情報 '!$D$3&"!$B$12:$I$61"),8,0)-0.1,0)) -> 0 | T20: 0 | U20: =IF(' 基本情報 '!G23="",0,ROUND(IF(OR(' 基本情報 '!G23<税額基本情報!$E$32,' 基本情報 '!G23>税額基本情報!$E$33),W20,VLOOKUP(' 基本情報 '!G23,INDIRECT(' 基本情報 '!$D$3&"!$B$15:$K$46"),10,0))-0.1,0)) -> 0 | V20: =IF(' 基本情報 '!G23="",0,ROUND(IF(OR(' 基本情報 '!G23<税額基本情報!$E$32,' 基本情報 '!G23>税額基本情報!$E$33),X20,VLOOKUP(' 基本情報 '!G23,INDIRECT(' 基本情報 '!$D$3&"!$B$15:$M$46"),12,0))-0.1,0)) -> 0 | W20: =IF(' 基本情報 '!G23="",0,IF(' 基本情報 '!G23<税額基本情報!$E$32,税額基本情報!$F$32,IF(' 基本情報 '!G23>税額基本情報!$E$33,税額基本情報!$F$33,0))) -> 0 | X20: =IF(' 基本情報 '!G23="",0,IF(' 基本情報 '!G23<税額基本情報!$E$32,税額基本情報!$G$32,IF(' 基本情報 '!G23>税額基本情報!$E$33,税額基本情報!$G$33,0))) -> 0 | Y20: 0 | Z20: =ROUND(IF(' 賞与計算 '!F23>税額基本情報!$D$39,税額基本情報!$D$39,ROUNDDOWN(' 賞与計算 '!F23,-3))*INDIRECT(' 基本情報 '!$D$3&"!$F$9")*0.5-0.1,0) -> 0 | AA20: =ROUND(IF(' 賞与計算 '!F23>税額基本情報!$D$39,税額基本情報!$D$39,ROUNDDOWN(' 賞与計算 '!F23,-3))*INDIRECT(' 基本情報 '!$D$3&"!$H$9")/2-0.1,0) -> 0 | AB20: 0 | AC20: =ROUND(IF(' 賞与計算 '!F23>税額基本情報!$D$36,税額基本情報!$D$36,ROUNDDOWN(' 賞与計算 '!F23,-3))*INDIRECT(' 基本情報 '!$D$3&"!$J$9")/2-0.1,0) -> 0 | AD20: =ROUND(IF(' 賞与計算 '!F23>税額基本情報!$D$36,税額基本情報!$D$36,ROUNDDOWN(' 賞与計算 '!F23,-3))*INDIRECT(' 基本情報 '!$D$3&"!$L$9")/2-0.1,0) -> 0
C21: 17 | D21: =' 給与計算 '!C24 ->  | E21: =MAX(IF(' 給与計算 '!N24>=税額基本情報!$D$6,MAX('計算シート ２'!E21:L21),IF(' 給与計算 '!N24<源泉月額表!$B$8,0,VLOOKUP(' 給与計算 '!N24,INDIRECT(税額基本情報!$D$42),IF(' 基本情報 '!E24>=8,10,' 基本情報 '!E24+3),1)))-IF(' 基本情報 '!E24>=8,(' 基本情報 '!E24-7)*税額基本情報!$D$23,0),0) -> 0 | F21: =IF(' 給与計算 '!N24<源泉月額表!$B$8,ROUNDDOWN(' 給与計算 '!N24*税額基本情報!$D$29,0),IF(' 給与計算 '!N24=0,0,IF(' 給与計算 '!N24>=税額基本情報!$D$19,MAX('計算シート ２'!S21:U21),VLOOKUP(' 給与計算 '!N24,INDIRECT(税額基本情報!$D$42),11,1)))) -> 0 | G21: =MAX(IF(' 給与計算 '!N24<源泉月額表!$B$8,ROUNDDOWN(' 給与計算 '!N24*3.063%,0),IF(' 給与計算 '!N24=0,0,IF(' 給与計算 '!N24>=税額基本情報!$D$19,MAX('計算シート ２'!S21:U21),VLOOKUP(' 給与計算 '!N24,INDIRECT(税額基本情報!$D$42),11,1))))-' 基本情報 '!E24*税額基本情報!$D$26,0) -> 0 | H21: =IF(' 賞与計算 '!D24<源泉賞与表!$D$10*1000,0,INDEX(源泉賞与表!$B:$B,MATCH(' 賞与計算 '!D24/1000,源泉賞与表!$D:$D,1))) -> 0 | I21: =IF(' 賞与計算 '!D24<源泉賞与表!$F$10*1000,0,INDEX(源泉賞与表!$B:$B,MATCH(' 賞与計算 '!D24/1000,源泉賞与表!$F:$F,1))) -> 0 | J21: =IF(' 賞与計算 '!D24<源泉賞与表!$H$10*1000,0,INDEX(源泉賞与表!$B:$B,MATCH(' 賞与計算 '!D24/1000,源泉賞与表!$H:$H,1))) -> 0 | K21: =IF(' 賞与計算 '!D24<源泉賞与表!$J$10*1000,0,INDEX(源泉賞与表!$B:$B,MATCH(' 賞与計算 '!D24/1000,源泉賞与表!$J:$J,1))) -> 0 | L21: =IF(' 賞与計算 '!D24<源泉賞与表!$L$10*1000,0,INDEX(源泉賞与表!$B:$B,MATCH(' 賞与計算 '!D24/1000,源泉賞与表!$L:$L,1))) -> 0 | M21: =IF(' 賞与計算 '!D24<源泉賞与表!$N$10*1000,0,INDEX(源泉賞与表!$B:$B,MATCH(' 賞与計算 '!D24/1000,源泉賞与表!$N:$N,1))) -> 0 | N21: =IF(' 賞与計算 '!D24<源泉賞与表!$P$10*1000,0,INDEX(源泉賞与表!$B:$B,MATCH(' 賞与計算 '!D24/1000,源泉賞与表!$P:$P,1))) -> 0 | O21: =IF(' 賞与計算 '!D24<源泉賞与表!$R$10*1000,0,INDEX(源泉賞与表!$B:$B,MATCH(' 賞与計算 '!D24/1000,源泉賞与表!$R:$R,1))) -> 0 | P21: =IF(' 賞与計算 '!D24="","",IF(' 賞与計算 '!D24<源泉賞与表!$T$22*1000,10.21,INDEX(源泉賞与表!$B:$B,MATCH(' 賞与計算 '!D24/1000,源泉賞与表!$T:$T,1)))) ->  | Q21: 0 | R21: =IF(' 基本情報 '!G24="",0,ROUND(VLOOKUP(' 基本情報 '!G24,INDIRECT(' 基本情報 '!$D$3&"!$B$12:$I$61"),6,0)-0.1,0)) -> 0 | S21: =IF(' 基本情報 '!G24="",0,ROUND(VLOOKUP(' 基本情報 '!G24,INDIRECT(' 基本情報 '!$D$3&"!$B$12:$I$61"),8,0)-0.1,0)) -> 0 | T21: 0 | U21: =IF(' 基本情報 '!G24="",0,ROUND(IF(OR(' 基本情報 '!G24<税額基本情報!$E$32,' 基本情報 '!G24>税額基本情報!$E$33),W21,VLOOKUP(' 基本情報 '!G24,INDIRECT(' 基本情報 '!$D$3&"!$B$15:$K$46"),10,0))-0.1,0)) -> 0 | V21: =IF(' 基本情報 '!G24="",0,ROUND(IF(OR(' 基本情報 '!G24<税額基本情報!$E$32,' 基本情報 '!G24>税額基本情報!$E$33),X21,VLOOKUP(' 基本情報 '!G24,INDIRECT(' 基本情報 '!$D$3&"!$B$15:$M$46"),12,0))-0.1,0)) -> 0 | W21: =IF(' 基本情報 '!G24="",0,IF(' 基本情報 '!G24<税額基本情報!$E$32,税額基本情報!$F$32,IF(' 基本情報 '!G24>税額基本情報!$E$33,税額基本情報!$F$33,0))) -> 0 | X21: =IF(' 基本情報 '!G24="",0,IF(' 基本情報 '!G24<税額基本情報!$E$32,税額基本情報!$G$32,IF(' 基本情報 '!G24>税額基本情報!$E$33,税額基本情報!$G$33,0))) -> 0 | Y21: 0 | Z21: =ROUND(IF(' 賞与計算 '!F24>税額基本情報!$D$39,税額基本情報!$D$39,ROUNDDOWN(' 賞与計算 '!F24,-3))*INDIRECT(' 基本情報 '!$D$3&"!$F$9")*0.5-0.1,0) -> 0 | AA21: =ROUND(IF(' 賞与計算 '!F24>税額基本情報!$D$39,税額基本情報!$D$39,ROUNDDOWN(' 賞与計算 '!F24,-3))*INDIRECT(' 基本情報 '!$D$3&"!$H$9")/2-0.1,0) -> 0 | AB21: 0 | AC21: =ROUND(IF(' 賞与計算 '!F24>税額基本情報!$D$36,税額基本情報!$D$36,ROUNDDOWN(' 賞与計算 '!F24,-3))*INDIRECT(' 基本情報 '!$D$3&"!$J$9")/2-0.1,0) -> 0 | AD21: =ROUND(IF(' 賞与計算 '!F24>税額基本情報!$D$36,税額基本情報!$D$36,ROUNDDOWN(' 賞与計算 '!F24,-3))*INDIRECT(' 基本情報 '!$D$3&"!$L$9")/2-0.1,0) -> 0
C22: 18 | D22: =' 給与計算 '!C25 ->  | E22: =MAX(IF(' 給与計算 '!N25>=税額基本情報!$D$6,MAX('計算シート ２'!E22:L22),IF(' 給与計算 '!N25<源泉月額表!$B$8,0,VLOOKUP(' 給与計算 '!N25,INDIRECT(税額基本情報!$D$42),IF(' 基本情報 '!E25>=8,10,' 基本情報 '!E25+3),1)))-IF(' 基本情報 '!E25>=8,(' 基本情報 '!E25-7)*税額基本情報!$D$23,0),0) -> 0 | F22: =IF(' 給与計算 '!N25<源泉月額表!$B$8,ROUNDDOWN(' 給与計算 '!N25*税額基本情報!$D$29,0),IF(' 給与計算 '!N25=0,0,IF(' 給与計算 '!N25>=税額基本情報!$D$19,MAX('計算シート ２'!S22:U22),VLOOKUP(' 給与計算 '!N25,INDIRECT(税額基本情報!$D$42),11,1)))) -> 0 | G22: =MAX(IF(' 給与計算 '!N25<源泉月額表!$B$8,ROUNDDOWN(' 給与計算 '!N25*3.063%,0),IF(' 給与計算 '!N25=0,0,IF(' 給与計算 '!N25>=税額基本情報!$D$19,MAX('計算シート ２'!S22:U22),VLOOKUP(' 給与計算 '!N25,INDIRECT(税額基本情報!$D$42),11,1))))-' 基本情報 '!E25*税額基本情報!$D$26,0) -> 0 | H22: =IF(' 賞与計算 '!D25<源泉賞与表!$D$10*1000,0,INDEX(源泉賞与表!$B:$B,MATCH(' 賞与計算 '!D25/1000,源泉賞与表!$D:$D,1))) -> 0 | I22: =IF(' 賞与計算 '!D25<源泉賞与表!$F$10*1000,0,INDEX(源泉賞与表!$B:$B,MATCH(' 賞与計算 '!D25/1000,源泉賞与表!$F:$F,1))) -> 0 | J22: =IF(' 賞与計算 '!D25<源泉賞与表!$H$10*1000,0,INDEX(源泉賞与表!$B:$B,MATCH(' 賞与計算 '!D25/1000,源泉賞与表!$H:$H,1))) -> 0 | K22: =IF(' 賞与計算 '!D25<源泉賞与表!$J$10*1000,0,INDEX(源泉賞与表!$B:$B,MATCH(' 賞与計算 '!D25/1000,源泉賞与表!$J:$J,1))) -> 0 | L22: =IF(' 賞与計算 '!D25<源泉賞与表!$L$10*1000,0,INDEX(源泉賞与表!$B:$B,MATCH(' 賞与計算 '!D25/1000,源泉賞与表!$L:$L,1))) -> 0 | M22: =IF(' 賞与計算 '!D25<源泉賞与表!$N$10*1000,0,INDEX(源泉賞与表!$B:$B,MATCH(' 賞与計算 '!D25/1000,源泉賞与表!$N:$N,1))) -> 0 | N22: =IF(' 賞与計算 '!D25<源泉賞与表!$P$10*1000,0,INDEX(源泉賞与表!$B:$B,MATCH(' 賞与計算 '!D25/1000,源泉賞与表!$P:$P,1))) -> 0 | O22: =IF(' 賞与計算 '!D25<源泉賞与表!$R$10*1000,0,INDEX(源泉賞与表!$B:$B,MATCH(' 賞与計算 '!D25/1000,源泉賞与表!$R:$R,1))) -> 0 | P22: =IF(' 賞与計算 '!D25="","",IF(' 賞与計算 '!D25<源泉賞与表!$T$22*1000,10.21,INDEX(源泉賞与表!$B:$B,MATCH(' 賞与計算 '!D25/1000,源泉賞与表!$T:$T,1)))) ->  | Q22: 0 | R22: =IF(' 基本情報 '!G25="",0,ROUND(VLOOKUP(' 基本情報 '!G25,INDIRECT(' 基本情報 '!$D$3&"!$B$12:$I$61"),6,0)-0.1,0)) -> 0 | S22: =IF(' 基本情報 '!G25="",0,ROUND(VLOOKUP(' 基本情報 '!G25,INDIRECT(' 基本情報 '!$D$3&"!$B$12:$I$61"),8,0)-0.1,0)) -> 0 | T22: 0 | U22: =IF(' 基本情報 '!G25="",0,ROUND(IF(OR(' 基本情報 '!G25<税額基本情報!$E$32,' 基本情報 '!G25>税額基本情報!$E$33),W22,VLOOKUP(' 基本情報 '!G25,INDIRECT(' 基本情報 '!$D$3&"!$B$15:$K$46"),10,0))-0.1,0)) -> 0 | V22: =IF(' 基本情報 '!G25="",0,ROUND(IF(OR(' 基本情報 '!G25<税額基本情報!$E$32,' 基本情報 '!G25>税額基本情報!$E$33),X22,VLOOKUP(' 基本情報 '!G25,INDIRECT(' 基本情報 '!$D$3&"!$B$15:$M$46"),12,0))-0.1,0)) -> 0 | W22: =IF(' 基本情報 '!G25="",0,IF(' 基本情報 '!G25<税額基本情報!$E$32,税額基本情報!$F$32,IF(' 基本情報 '!G25>税額基本情報!$E$33,税額基本情報!$F$33,0))) -> 0 | X22: =IF(' 基本情報 '!G25="",0,IF(' 基本情報 '!G25<税額基本情報!$E$32,税額基本情報!$G$32,IF(' 基本情報 '!G25>税額基本情報!$E$33,税額基本情報!$G$33,0))) -> 0 | Y22: 0 | Z22: =ROUND(IF(' 賞与計算 '!F25>税額基本情報!$D$39,税額基本情報!$D$39,ROUNDDOWN(' 賞与計算 '!F25,-3))*INDIRECT(' 基本情報 '!$D$3&"!$F$9")*0.5-0.1,0) -> 0 | AA22: =ROUND(IF(' 賞与計算 '!F25>税額基本情報!$D$39,税額基本情報!$D$39,ROUNDDOWN(' 賞与計算 '!F25,-3))*INDIRECT(' 基本情報 '!$D$3&"!$H$9")/2-0.1,0) -> 0 | AB22: 0 | AC22: =ROUND(IF(' 賞与計算 '!F25>税額基本情報!$D$36,税額基本情報!$D$36,ROUNDDOWN(' 賞与計算 '!F25,-3))*INDIRECT(' 基本情報 '!$D$3&"!$J$9")/2-0.1,0) -> 0 | AD22: =ROUND(IF(' 賞与計算 '!F25>税額基本情報!$D$36,税額基本情報!$D$36,ROUNDDOWN(' 賞与計算 '!F25,-3))*INDIRECT(' 基本情報 '!$D$3&"!$L$9")/2-0.1,0) -> 0
C23: 19 | D23: =' 給与計算 '!C26 ->  | E23: =MAX(IF(' 給与計算 '!N26>=税額基本情報!$D$6,MAX('計算シート ２'!E23:L23),IF(' 給与計算 '!N26<源泉月額表!$B$8,0,VLOOKUP(' 給与計算 '!N26,INDIRECT(税額基本情報!$D$42),IF(' 基本情報 '!E26>=8,10,' 基本情報 '!E26+3),1)))-IF(' 基本情報 '!E26>=8,(' 基本情報 '!E26-7)*税額基本情報!$D$23,0),0) -> 0 | F23: =IF(' 給与計算 '!N26<源泉月額表!$B$8,ROUNDDOWN(' 給与計算 '!N26*税額基本情報!$D$29,0),IF(' 給与計算 '!N26=0,0,IF(' 給与計算 '!N26>=税額基本情報!$D$19,MAX('計算シート ２'!S23:U23),VLOOKUP(' 給与計算 '!N26,INDIRECT(税額基本情報!$D$42),11,1)))) -> 0 | G23: =MAX(IF(' 給与計算 '!N26<源泉月額表!$B$8,ROUNDDOWN(' 給与計算 '!N26*3.063%,0),IF(' 給与計算 '!N26=0,0,IF(' 給与計算 '!N26>=税額基本情報!$D$19,MAX('計算シート ２'!S23:U23),VLOOKUP(' 給与計算 '!N26,INDIRECT(税額基本情報!$D$42),11,1))))-' 基本情報 '!E26*税額基本情報!$D$26,0) -> 0 | H23: =IF(' 賞与計算 '!D26<源泉賞与表!$D$10*1000,0,INDEX(源泉賞与表!$B:$B,MATCH(' 賞与計算 '!D26/1000,源泉賞与表!$D:$D,1))) -> 0 | I23: =IF(' 賞与計算 '!D26<源泉賞与表!$F$10*1000,0,INDEX(源泉賞与表!$B:$B,MATCH(' 賞与計算 '!D26/1000,源泉賞与表!$F:$F,1))) -> 0 | J23: =IF(' 賞与計算 '!D26<源泉賞与表!$H$10*1000,0,INDEX(源泉賞与表!$B:$B,MATCH(' 賞与計算 '!D26/1000,源泉賞与表!$H:$H,1))) -> 0 | K23: =IF(' 賞与計算 '!D26<源泉賞与表!$J$10*1000,0,INDEX(源泉賞与表!$B:$B,MATCH(' 賞与計算 '!D26/1000,源泉賞与表!$J:$J,1))) -> 0 | L23: =IF(' 賞与計算 '!D26<源泉賞与表!$L$10*1000,0,INDEX(源泉賞与表!$B:$B,MATCH(' 賞与計算 '!D26/1000,源泉賞与表!$L:$L,1))) -> 0 | M23: =IF(' 賞与計算 '!D26<源泉賞与表!$N$10*1000,0,INDEX(源泉賞与表!$B:$B,MATCH(' 賞与計算 '!D26/1000,源泉賞与表!$N:$N,1))) -> 0 | N23: =IF(' 賞与計算 '!D26<源泉賞与表!$P$10*1000,0,INDEX(源泉賞与表!$B:$B,MATCH(' 賞与計算 '!D26/1000,源泉賞与表!$P:$P,1))) -> 0 | O23: =IF(' 賞与計算 '!D26<源泉賞与表!$R$10*1000,0,INDEX(源泉賞与表!$B:$B,MATCH(' 賞与計算 '!D26/1000,源泉賞与表!$R:$R,1))) -> 0 | P23: =IF(' 賞与計算 '!D26="","",IF(' 賞与計算 '!D26<源泉賞与表!$T$22*1000,10.21,INDEX(源泉賞与表!$B:$B,MATCH(' 賞与計算 '!D26/1000,源泉賞与表!$T:$T,1)))) ->  | Q23: 0 | R23: =IF(' 基本情報 '!G26="",0,ROUND(VLOOKUP(' 基本情報 '!G26,INDIRECT(' 基本情報 '!$D$3&"!$B$12:$I$61"),6,0)-0.1,0)) -> 0 | S23: =IF(' 基本情報 '!G26="",0,ROUND(VLOOKUP(' 基本情報 '!G26,INDIRECT(' 基本情報 '!$D$3&"!$B$12:$I$61"),8,0)-0.1,0)) -> 0 | T23: 0 | U23: =IF(' 基本情報 '!G26="",0,ROUND(IF(OR(' 基本情報 '!G26<税額基本情報!$E$32,' 基本情報 '!G26>税額基本情報!$E$33),W23,VLOOKUP(' 基本情報 '!G26,INDIRECT(' 基本情報 '!$D$3&"!$B$15:$K$46"),10,0))-0.1,0)) -> 0 | V23: =IF(' 基本情報 '!G26="",0,ROUND(IF(OR(' 基本情報 '!G26<税額基本情報!$E$32,' 基本情報 '!G26>税額基本情報!$E$33),X23,VLOOKUP(' 基本情報 '!G26,INDIRECT(' 基本情報 '!$D$3&"!$B$15:$M$46"),12,0))-0.1,0)) -> 0 | W23: =IF(' 基本情報 '!G26="",0,IF(' 基本情報 '!G26<税額基本情報!$E$32,税額基本情報!$F$32,IF(' 基本情報 '!G26>税額基本情報!$E$33,税額基本情報!$F$33,0))) -> 0 | X23: =IF(' 基本情報 '!G26="",0,IF(' 基本情報 '!G26<税額基本情報!$E$32,税額基本情報!$G$32,IF(' 基本情報 '!G26>税額基本情報!$E$33,税額基本情報!$G$33,0))) -> 0 | Y23: 0 | Z23: =ROUND(IF(' 賞与計算 '!F26>税額基本情報!$D$39,税額基本情報!$D$39,ROUNDDOWN(' 賞与計算 '!F26,-3))*INDIRECT(' 基本情報 '!$D$3&"!$F$9")*0.5-0.1,0) -> 0 | AA23: =ROUND(IF(' 賞与計算 '!F26>税額基本情報!$D$39,税額基本情報!$D$39,ROUNDDOWN(' 賞与計算 '!F26,-3))*INDIRECT(' 基本情報 '!$D$3&"!$H$9")/2-0.1,0) -> 0 | AB23: 0 | AC23: =ROUND(IF(' 賞与計算 '!F26>税額基本情報!$D$36,税額基本情報!$D$36,ROUNDDOWN(' 賞与計算 '!F26,-3))*INDIRECT(' 基本情報 '!$D$3&"!$J$9")/2-0.1,0) -> 0 | AD23: =ROUND(IF(' 賞与計算 '!F26>税額基本情報!$D$36,税額基本情報!$D$36,ROUNDDOWN(' 賞与計算 '!F26,-3))*INDIRECT(' 基本情報 '!$D$3&"!$L$9")/2-0.1,0) -> 0
C24: 20 | D24: =' 給与計算 '!C27 ->  | E24: =MAX(IF(' 給与計算 '!N27>=税額基本情報!$D$6,MAX('計算シート ２'!E24:L24),IF(' 給与計算 '!N27<源泉月額表!$B$8,0,VLOOKUP(' 給与計算 '!N27,INDIRECT(税額基本情報!$D$42),IF(' 基本情報 '!E27>=8,10,' 基本情報 '!E27+3),1)))-IF(' 基本情報 '!E27>=8,(' 基本情報 '!E27-7)*税額基本情報!$D$23,0),0) -> 0 | F24: =IF(' 給与計算 '!N27<源泉月額表!$B$8,ROUNDDOWN(' 給与計算 '!N27*税額基本情報!$D$29,0),IF(' 給与計算 '!N27=0,0,IF(' 給与計算 '!N27>=税額基本情報!$D$19,MAX('計算シート ２'!S24:U24),VLOOKUP(' 給与計算 '!N27,INDIRECT(税額基本情報!$D$42),11,1)))) -> 0 | G24: =MAX(IF(' 給与計算 '!N27<源泉月額表!$B$8,ROUNDDOWN(' 給与計算 '!N27*3.063%,0),IF(' 給与計算 '!N27=0,0,IF(' 給与計算 '!N27>=税額基本情報!$D$19,MAX('計算シート ２'!S24:U24),VLOOKUP(' 給与計算 '!N27,INDIRECT(税額基本情報!$D$42),11,1))))-' 基本情報 '!E27*税額基本情報!$D$26,0) -> 0 | H24: =IF(' 賞与計算 '!D27<源泉賞与表!$D$10*1000,0,INDEX(源泉賞与表!$B:$B,MATCH(' 賞与計算 '!D27/1000,源泉賞与表!$D:$D,1))) -> 0 | I24: =IF(' 賞与計算 '!D27<源泉賞与表!$F$10*1000,0,INDEX(源泉賞与表!$B:$B,MATCH(' 賞与計算 '!D27/1000,源泉賞与表!$F:$F,1))) -> 0 | J24: =IF(' 賞与計算 '!D27<源泉賞与表!$H$10*1000,0,INDEX(源泉賞与表!$B:$B,MATCH(' 賞与計算 '!D27/1000,源泉賞与表!$H:$H,1))) -> 0 | K24: =IF(' 賞与計算 '!D27<源泉賞与表!$J$10*1000,0,INDEX(源泉賞与表!$B:$B,MATCH(' 賞与計算 '!D27/1000,源泉賞与表!$J:$J,1))) -> 0 | L24: =IF(' 賞与計算 '!D27<源泉賞与表!$L$10*1000,0,INDEX(源泉賞与表!$B:$B,MATCH(' 賞与計算 '!D27/1000,源泉賞与表!$L:$L,1))) -> 0 | M24: =IF(' 賞与計算 '!D27<源泉賞与表!$N$10*1000,0,INDEX(源泉賞与表!$B:$B,MATCH(' 賞与計算 '!D27/1000,源泉賞与表!$N:$N,1))) -> 0 | N24: =IF(' 賞与計算 '!D27<源泉賞与表!$P$10*1000,0,INDEX(源泉賞与表!$B:$B,MATCH(' 賞与計算 '!D27/1000,源泉賞与表!$P:$P,1))) -> 0 | O24: =IF(' 賞与計算 '!D27<源泉賞与表!$R$10*1000,0,INDEX(源泉賞与表!$B:$B,MATCH(' 賞与計算 '!D27/1000,源泉賞与表!$R:$R,1))) -> 0 | P24: =IF(' 賞与計算 '!D27="","",IF(' 賞与計算 '!D27<源泉賞与表!$T$22*1000,10.21,INDEX(源泉賞与表!$B:$B,MATCH(' 賞与計算 '!D27/1000,源泉賞与表!$T:$T,1)))) ->  | Q24: 0 | R24: =IF(' 基本情報 '!G27="",0,ROUND(VLOOKUP(' 基本情報 '!G27,INDIRECT(' 基本情報 '!$D$3&"!$B$12:$I$61"),6,0)-0.1,0)) -> 0 | S24: =IF(' 基本情報 '!G27="",0,ROUND(VLOOKUP(' 基本情報 '!G27,INDIRECT(' 基本情報 '!$D$3&"!$B$12:$I$61"),8,0)-0.1,0)) -> 0 | T24: 0 | U24: =IF(' 基本情報 '!G27="",0,ROUND(IF(OR(' 基本情報 '!G27<税額基本情報!$E$32,' 基本情報 '!G27>税額基本情報!$E$33),W24,VLOOKUP(' 基本情報 '!G27,INDIRECT(' 基本情報 '!$D$3&"!$B$15:$K$46"),10,0))-0.1,0)) -> 0 | V24: =IF(' 基本情報 '!G27="",0,ROUND(IF(OR(' 基本情報 '!G27<税額基本情報!$E$32,' 基本情報 '!G27>税額基本情報!$E$33),X24,VLOOKUP(' 基本情報 '!G27,INDIRECT(' 基本情報 '!$D$3&"!$B$15:$M$46"),12,0))-0.1,0)) -> 0 | W24: =IF(' 基本情報 '!G27="",0,IF(' 基本情報 '!G27<税額基本情報!$E$32,税額基本情報!$F$32,IF(' 基本情報 '!G27>税額基本情報!$E$33,税額基本情報!$F$33,0))) -> 0 | X24: =IF(' 基本情報 '!G27="",0,IF(' 基本情報 '!G27<税額基本情報!$E$32,税額基本情報!$G$32,IF(' 基本情報 '!G27>税額基本情報!$E$33,税額基本情報!$G$33,0))) -> 0 | Y24: 0 | Z24: =ROUND(IF(' 賞与計算 '!F27>税額基本情報!$D$39,税額基本情報!$D$39,ROUNDDOWN(' 賞与計算 '!F27,-3))*INDIRECT(' 基本情報 '!$D$3&"!$F$9")*0.5-0.1,0) -> 0 | AA24: =ROUND(IF(' 賞与計算 '!F27>税額基本情報!$D$39,税額基本情報!$D$39,ROUNDDOWN(' 賞与計算 '!F27,-3))*INDIRECT(' 基本情報 '!$D$3&"!$H$9")/2-0.1,0) -> 0 | AB24: 0 | AC24: =ROUND(IF(' 賞与計算 '!F27>税額基本情報!$D$36,税額基本情報!$D$36,ROUNDDOWN(' 賞与計算 '!F27,-3))*INDIRECT(' 基本情報 '!$D$3&"!$J$9")/2-0.1,0) -> 0 | AD24: =ROUND(IF(' 賞与計算 '!F27>税額基本情報!$D$36,税額基本情報!$D$36,ROUNDDOWN(' 賞与計算 '!F27,-3))*INDIRECT(' 基本情報 '!$D$3&"!$L$9")/2-0.1,0) -> 0
C25: 21 | D25: =' 給与計算 '!C28 ->  | E25: =MAX(IF(' 給与計算 '!N28>=税額基本情報!$D$6,MAX('計算シート ２'!E25:L25),IF(' 給与計算 '!N28<源泉月額表!$B$8,0,VLOOKUP(' 給与計算 '!N28,INDIRECT(税額基本情報!$D$42),IF(' 基本情報 '!E28>=8,10,' 基本情報 '!E28+3),1)))-IF(' 基本情報 '!E28>=8,(' 基本情報 '!E28-7)*税額基本情報!$D$23,0),0) -> 0 | F25: =IF(' 給与計算 '!N28<源泉月額表!$B$8,ROUNDDOWN(' 給与計算 '!N28*税額基本情報!$D$29,0),IF(' 給与計算 '!N28=0,0,IF(' 給与計算 '!N28>=税額基本情報!$D$19,MAX('計算シート ２'!S25:U25),VLOOKUP(' 給与計算 '!N28,INDIRECT(税額基本情報!$D$42),11,1)))) -> 0 | G25: =MAX(IF(' 給与計算 '!N28<源泉月額表!$B$8,ROUNDDOWN(' 給与計算 '!N28*3.063%,0),IF(' 給与計算 '!N28=0,0,IF(' 給与計算 '!N28>=税額基本情報!$D$19,MAX('計算シート ２'!S25:U25),VLOOKUP(' 給与計算 '!N28,INDIRECT(税額基本情報!$D$42),11,1))))-' 基本情報 '!E28*税額基本情報!$D$26,0) -> 0 | H25: =IF(' 賞与計算 '!D28<源泉賞与表!$D$10*1000,0,INDEX(源泉賞与表!$B:$B,MATCH(' 賞与計算 '!D28/1000,源泉賞与表!$D:$D,1))) -> 0 | I25: =IF(' 賞与計算 '!D28<源泉賞与表!$F$10*1000,0,INDEX(源泉賞与表!$B:$B,MATCH(' 賞与計算 '!D28/1000,源泉賞与表!$F:$F,1))) -> 0 | J25: =IF(' 賞与計算 '!D28<源泉賞与表!$H$10*1000,0,INDEX(源泉賞与表!$B:$B,MATCH(' 賞与計算 '!D28/1000,源泉賞与表!$H:$H,1))) -> 0 | K25: =IF(' 賞与計算 '!D28<源泉賞与表!$J$10*1000,0,INDEX(源泉賞与表!$B:$B,MATCH(' 賞与計算 '!D28/1000,源泉賞与表!$J:$J,1))) -> 0 | L25: =IF(' 賞与計算 '!D28<源泉賞与表!$L$10*1000,0,INDEX(源泉賞与表!$B:$B,MATCH(' 賞与計算 '!D28/1000,源泉賞与表!$L:$L,1))) -> 0 | M25: =IF(' 賞与計算 '!D28<源泉賞与表!$N$10*1000,0,INDEX(源泉賞与表!$B:$B,MATCH(' 賞与計算 '!D28/1000,源泉賞与表!$N:$N,1))) -> 0 | N25: =IF(' 賞与計算 '!D28<源泉賞与表!$P$10*1000,0,INDEX(源泉賞与表!$B:$B,MATCH(' 賞与計算 '!D28/1000,源泉賞与表!$P:$P,1))) -> 0 | O25: =IF(' 賞与計算 '!D28<源泉賞与表!$R$10*1000,0,INDEX(源泉賞与表!$B:$B,MATCH(' 賞与計算 '!D28/1000,源泉賞与表!$R:$R,1))) -> 0 | P25: =IF(' 賞与計算 '!D28="","",IF(' 賞与計算 '!D28<源泉賞与表!$T$22*1000,10.21,INDEX(源泉賞与表!$B:$B,MATCH(' 賞与計算 '!D28/1000,源泉賞与表!$T:$T,1)))) ->  | Q25: 0 | R25: =IF(' 基本情報 '!G28="",0,ROUND(VLOOKUP(' 基本情報 '!G28,INDIRECT(' 基本情報 '!$D$3&"!$B$12:$I$61"),6,0)-0.1,0)) -> 0 | S25: =IF(' 基本情報 '!G28="",0,ROUND(VLOOKUP(' 基本情報 '!G28,INDIRECT(' 基本情報 '!$D$3&"!$B$12:$I$61"),8,0)-0.1,0)) -> 0 | T25: 0 | U25: =IF(' 基本情報 '!G28="",0,ROUND(IF(OR(' 基本情報 '!G28<税額基本情報!$E$32,' 基本情報 '!G28>税額基本情報!$E$33),W25,VLOOKUP(' 基本情報 '!G28,INDIRECT(' 基本情報 '!$D$3&"!$B$15:$K$46"),10,0))-0.1,0)) -> 0 | V25: =IF(' 基本情報 '!G28="",0,ROUND(IF(OR(' 基本情報 '!G28<税額基本情報!$E$32,' 基本情報 '!G28>税額基本情報!$E$33),X25,VLOOKUP(' 基本情報 '!G28,INDIRECT(' 基本情報 '!$D$3&"!$B$15:$M$46"),12,0))-0.1,0)) -> 0 | W25: =IF(' 基本情報 '!G28="",0,IF(' 基本情報 '!G28<税額基本情報!$E$32,税額基本情報!$F$32,IF(' 基本情報 '!G28>税額基本情報!$E$33,税額基本情報!$F$33,0))) -> 0 | X25: =IF(' 基本情報 '!G28="",0,IF(' 基本情報 '!G28<税額基本情報!$E$32,税額基本情報!$G$32,IF(' 基本情報 '!G28>税額基本情報!$E$33,税額基本情報!$G$33,0))) -> 0 | Y25: 0 | Z25: =ROUND(IF(' 賞与計算 '!F28>税額基本情報!$D$39,税額基本情報!$D$39,ROUNDDOWN(' 賞与計算 '!F28,-3))*INDIRECT(' 基本情報 '!$D$3&"!$F$9")*0.5-0.1,0) -> 0 | AA25: =ROUND(IF(' 賞与計算 '!F28>税額基本情報!$D$39,税額基本情報!$D$39,ROUNDDOWN(' 賞与計算 '!F28,-3))*INDIRECT(' 基本情報 '!$D$3&"!$H$9")/2-0.1,0) -> 0 | AB25: 0 | AC25: =ROUND(IF(' 賞与計算 '!F28>税額基本情報!$D$36,税額基本情報!$D$36,ROUNDDOWN(' 賞与計算 '!F28,-3))*INDIRECT(' 基本情報 '!$D$3&"!$J$9")/2-0.1,0) -> 0 | AD25: =ROUND(IF(' 賞与計算 '!F28>税額基本情報!$D$36,税額基本情報!$D$36,ROUNDDOWN(' 賞与計算 '!F28,-3))*INDIRECT(' 基本情報 '!$D$3&"!$L$9")/2-0.1,0) -> 0
C26: 22 | D26: =' 給与計算 '!C29 ->  | E26: =MAX(IF(' 給与計算 '!N29>=税額基本情報!$D$6,MAX('計算シート ２'!E26:L26),IF(' 給与計算 '!N29<源泉月額表!$B$8,0,VLOOKUP(' 給与計算 '!N29,INDIRECT(税額基本情報!$D$42),IF(' 基本情報 '!E29>=8,10,' 基本情報 '!E29+3),1)))-IF(' 基本情報 '!E29>=8,(' 基本情報 '!E29-7)*税額基本情報!$D$23,0),0) -> 0 | F26: =IF(' 給与計算 '!N29<源泉月額表!$B$8,ROUNDDOWN(' 給与計算 '!N29*税額基本情報!$D$29,0),IF(' 給与計算 '!N29=0,0,IF(' 給与計算 '!N29>=税額基本情報!$D$19,MAX('計算シート ２'!S26:U26),VLOOKUP(' 給与計算 '!N29,INDIRECT(税額基本情報!$D$42),11,1)))) -> 0 | G26: =MAX(IF(' 給与計算 '!N29<源泉月額表!$B$8,ROUNDDOWN(' 給与計算 '!N29*3.063%,0),IF(' 給与計算 '!N29=0,0,IF(' 給与計算 '!N29>=税額基本情報!$D$19,MAX('計算シート ２'!S26:U26),VLOOKUP(' 給与計算 '!N29,INDIRECT(税額基本情報!$D$42),11,1))))-' 基本情報 '!E29*税額基本情報!$D$26,0) -> 0 | H26: =IF(' 賞与計算 '!D29<源泉賞与表!$D$10*1000,0,INDEX(源泉賞与表!$B:$B,MATCH(' 賞与計算 '!D29/1000,源泉賞与表!$D:$D,1))) -> 0 | I26: =IF(' 賞与計算 '!D29<源泉賞与表!$F$10*1000,0,INDEX(源泉賞与表!$B:$B,MATCH(' 賞与計算 '!D29/1000,源泉賞与表!$F:$F,1))) -> 0 | J26: =IF(' 賞与計算 '!D29<源泉賞与表!$H$10*1000,0,INDEX(源泉賞与表!$B:$B,MATCH(' 賞与計算 '!D29/1000,源泉賞与表!$H:$H,1))) -> 0 | K26: =IF(' 賞与計算 '!D29<源泉賞与表!$J$10*1000,0,INDEX(源泉賞与表!$B:$B,MATCH(' 賞与計算 '!D29/1000,源泉賞与表!$J:$J,1))) -> 0 | L26: =IF(' 賞与計算 '!D29<源泉賞与表!$L$10*1000,0,INDEX(源泉賞与表!$B:$B,MATCH(' 賞与計算 '!D29/1000,源泉賞与表!$L:$L,1))) -> 0 | M26: =IF(' 賞与計算 '!D29<源泉賞与表!$N$10*1000,0,INDEX(源泉賞与表!$B:$B,MATCH(' 賞与計算 '!D29/1000,源泉賞与表!$N:$N,1))) -> 0 | N26: =IF(' 賞与計算 '!D29<源泉賞与表!$P$10*1000,0,INDEX(源泉賞与表!$B:$B,MATCH(' 賞与計算 '!D29/1000,源泉賞与表!$P:$P,1))) -> 0 | O26: =IF(' 賞与計算 '!D29<源泉賞与表!$R$10*1000,0,INDEX(源泉賞与表!$B:$B,MATCH(' 賞与計算 '!D29/1000,源泉賞与表!$R:$R,1))) -> 0 | P26: =IF(' 賞与計算 '!D29="","",IF(' 賞与計算 '!D29<源泉賞与表!$T$22*1000,10.21,INDEX(源泉賞与表!$B:$B,MATCH(' 賞与計算 '!D29/1000,源泉賞与表!$T:$T,1)))) ->  | Q26: 0 | R26: =IF(' 基本情報 '!G29="",0,ROUND(VLOOKUP(' 基本情報 '!G29,INDIRECT(' 基本情報 '!$D$3&"!$B$12:$I$61"),6,0)-0.1,0)) -> 0 | S26: =IF(' 基本情報 '!G29="",0,ROUND(VLOOKUP(' 基本情報 '!G29,INDIRECT(' 基本情報 '!$D$3&"!$B$12:$I$61"),8,0)-0.1,0)) -> 0 | T26: 0 | U26: =IF(' 基本情報 '!G29="",0,ROUND(IF(OR(' 基本情報 '!G29<税額基本情報!$E$32,' 基本情報 '!G29>税額基本情報!$E$33),W26,VLOOKUP(' 基本情報 '!G29,INDIRECT(' 基本情報 '!$D$3&"!$B$15:$K$46"),10,0))-0.1,0)) -> 0 | V26: =IF(' 基本情報 '!G29="",0,ROUND(IF(OR(' 基本情報 '!G29<税額基本情報!$E$32,' 基本情報 '!G29>税額基本情報!$E$33),X26,VLOOKUP(' 基本情報 '!G29,INDIRECT(' 基本情報 '!$D$3&"!$B$15:$M$46"),12,0))-0.1,0)) -> 0 | W26: =IF(' 基本情報 '!G29="",0,IF(' 基本情報 '!G29<税額基本情報!$E$32,税額基本情報!$F$32,IF(' 基本情報 '!G29>税額基本情報!$E$33,税額基本情報!$F$33,0))) -> 0 | X26: =IF(' 基本情報 '!G29="",0,IF(' 基本情報 '!G29<税額基本情報!$E$32,税額基本情報!$G$32,IF(' 基本情報 '!G29>税額基本情報!$E$33,税額基本情報!$G$33,0))) -> 0 | Y26: 0 | Z26: =ROUND(IF(' 賞与計算 '!F29>税額基本情報!$D$39,税額基本情報!$D$39,ROUNDDOWN(' 賞与計算 '!F29,-3))*INDIRECT(' 基本情報 '!$D$3&"!$F$9")*0.5-0.1,0) -> 0 | AA26: =ROUND(IF(' 賞与計算 '!F29>税額基本情報!$D$39,税額基本情報!$D$39,ROUNDDOWN(' 賞与計算 '!F29,-3))*INDIRECT(' 基本情報 '!$D$3&"!$H$9")/2-0.1,0) -> 0 | AB26: 0 | AC26: =ROUND(IF(' 賞与計算 '!F29>税額基本情報!$D$36,税額基本情報!$D$36,ROUNDDOWN(' 賞与計算 '!F29,-3))*INDIRECT(' 基本情報 '!$D$3&"!$J$9")/2-0.1,0) -> 0 | AD26: =ROUND(IF(' 賞与計算 '!F29>税額基本情報!$D$36,税額基本情報!$D$36,ROUNDDOWN(' 賞与計算 '!F29,-3))*INDIRECT(' 基本情報 '!$D$3&"!$L$9")/2-0.1,0) -> 0
C27: 23 | D27: =' 給与計算 '!C30 ->  | E27: =MAX(IF(' 給与計算 '!N30>=税額基本情報!$D$6,MAX('計算シート ２'!E27:L27),IF(' 給与計算 '!N30<源泉月額表!$B$8,0,VLOOKUP(' 給与計算 '!N30,INDIRECT(税額基本情報!$D$42),IF(' 基本情報 '!E30>=8,10,' 基本情報 '!E30+3),1)))-IF(' 基本情報 '!E30>=8,(' 基本情報 '!E30-7)*税額基本情報!$D$23,0),0) -> 0 | F27: =IF(' 給与計算 '!N30<源泉月額表!$B$8,ROUNDDOWN(' 給与計算 '!N30*税額基本情報!$D$29,0),IF(' 給与計算 '!N30=0,0,IF(' 給与計算 '!N30>=税額基本情報!$D$19,MAX('計算シート ２'!S27:U27),VLOOKUP(' 給与計算 '!N30,INDIRECT(税額基本情報!$D$42),11,1)))) -> 0 | G27: =MAX(IF(' 給与計算 '!N30<源泉月額表!$B$8,ROUNDDOWN(' 給与計算 '!N30*3.063%,0),IF(' 給与計算 '!N30=0,0,IF(' 給与計算 '!N30>=税額基本情報!$D$19,MAX('計算シート ２'!S27:U27),VLOOKUP(' 給与計算 '!N30,INDIRECT(税額基本情報!$D$42),11,1))))-' 基本情報 '!E30*税額基本情報!$D$26,0) -> 0 | H27: =IF(' 賞与計算 '!D30<源泉賞与表!$D$10*1000,0,INDEX(源泉賞与表!$B:$B,MATCH(' 賞与計算 '!D30/1000,源泉賞与表!$D:$D,1))) -> 0 | I27: =IF(' 賞与計算 '!D30<源泉賞与表!$F$10*1000,0,INDEX(源泉賞与表!$B:$B,MATCH(' 賞与計算 '!D30/1000,源泉賞与表!$F:$F,1))) -> 0 | J27: =IF(' 賞与計算 '!D30<源泉賞与表!$H$10*1000,0,INDEX(源泉賞与表!$B:$B,MATCH(' 賞与計算 '!D30/1000,源泉賞与表!$H:$H,1))) -> 0 | K27: =IF(' 賞与計算 '!D30<源泉賞与表!$J$10*1000,0,INDEX(源泉賞与表!$B:$B,MATCH(' 賞与計算 '!D30/1000,源泉賞与表!$J:$J,1))) -> 0 | L27: =IF(' 賞与計算 '!D30<源泉賞与表!$L$10*1000,0,INDEX(源泉賞与表!$B:$B,MATCH(' 賞与計算 '!D30/1000,源泉賞与表!$L:$L,1))) -> 0 | M27: =IF(' 賞与計算 '!D30<源泉賞与表!$N$10*1000,0,INDEX(源泉賞与表!$B:$B,MATCH(' 賞与計算 '!D30/1000,源泉賞与表!$N:$N,1))) -> 0 | N27: =IF(' 賞与計算 '!D30<源泉賞与表!$P$10*1000,0,INDEX(源泉賞与表!$B:$B,MATCH(' 賞与計算 '!D30/1000,源泉賞与表!$P:$P,1))) -> 0 | O27: =IF(' 賞与計算 '!D30<源泉賞与表!$R$10*1000,0,INDEX(源泉賞与表!$B:$B,MATCH(' 賞与計算 '!D30/1000,源泉賞与表!$R:$R,1))) -> 0 | P27: =IF(' 賞与計算 '!D30="","",IF(' 賞与計算 '!D30<源泉賞与表!$T$22*1000,10.21,INDEX(源泉賞与表!$B:$B,MATCH(' 賞与計算 '!D30/1000,源泉賞与表!$T:$T,1)))) ->  | Q27: 0 | R27: =IF(' 基本情報 '!G30="",0,ROUND(VLOOKUP(' 基本情報 '!G30,INDIRECT(' 基本情報 '!$D$3&"!$B$12:$I$61"),6,0)-0.1,0)) -> 0 | S27: =IF(' 基本情報 '!G30="",0,ROUND(VLOOKUP(' 基本情報 '!G30,INDIRECT(' 基本情報 '!$D$3&"!$B$12:$I$61"),8,0)-0.1,0)) -> 0 | T27: 0 | U27: =IF(' 基本情報 '!G30="",0,ROUND(IF(OR(' 基本情報 '!G30<税額基本情報!$E$32,' 基本情報 '!G30>税額基本情報!$E$33),W27,VLOOKUP(' 基本情報 '!G30,INDIRECT(' 基本情報 '!$D$3&"!$B$15:$K$46"),10,0))-0.1,0)) -> 0 | V27: =IF(' 基本情報 '!G30="",0,ROUND(IF(OR(' 基本情報 '!G30<税額基本情報!$E$32,' 基本情報 '!G30>税額基本情報!$E$33),X27,VLOOKUP(' 基本情報 '!G30,INDIRECT(' 基本情報 '!$D$3&"!$B$15:$M$46"),12,0))-0.1,0)) -> 0 | W27: =IF(' 基本情報 '!G30="",0,IF(' 基本情報 '!G30<税額基本情報!$E$32,税額基本情報!$F$32,IF(' 基本情報 '!G30>税額基本情報!$E$33,税額基本情報!$F$33,0))) -> 0 | X27: =IF(' 基本情報 '!G30="",0,IF(' 基本情報 '!G30<税額基本情報!$E$32,税額基本情報!$G$32,IF(' 基本情報 '!G30>税額基本情報!$E$33,税額基本情報!$G$33,0))) -> 0 | Y27: 0 | Z27: =ROUND(IF(' 賞与計算 '!F30>税額基本情報!$D$39,税額基本情報!$D$39,ROUNDDOWN(' 賞与計算 '!F30,-3))*INDIRECT(' 基本情報 '!$D$3&"!$F$9")*0.5-0.1,0) -> 0 | AA27: =ROUND(IF(' 賞与計算 '!F30>税額基本情報!$D$39,税額基本情報!$D$39,ROUNDDOWN(' 賞与計算 '!F30,-3))*INDIRECT(' 基本情報 '!$D$3&"!$H$9")/2-0.1,0) -> 0 | AB27: 0 | AC27: =ROUND(IF(' 賞与計算 '!F30>税額基本情報!$D$36,税額基本情報!$D$36,ROUNDDOWN(' 賞与計算 '!F30,-3))*INDIRECT(' 基本情報 '!$D$3&"!$J$9")/2-0.1,0) -> 0 | AD27: =ROUND(IF(' 賞与計算 '!F30>税額基本情報!$D$36,税額基本情報!$D$36,ROUNDDOWN(' 賞与計算 '!F30,-3))*INDIRECT(' 基本情報 '!$D$3&"!$L$9")/2-0.1,0) -> 0
C28: 24 | D28: =' 給与計算 '!C31 ->  | E28: =MAX(IF(' 給与計算 '!N31>=税額基本情報!$D$6,MAX('計算シート ２'!E28:L28),IF(' 給与計算 '!N31<源泉月額表!$B$8,0,VLOOKUP(' 給与計算 '!N31,INDIRECT(税額基本情報!$D$42),IF(' 基本情報 '!E31>=8,10,' 基本情報 '!E31+3),1)))-IF(' 基本情報 '!E31>=8,(' 基本情報 '!E31-7)*税額基本情報!$D$23,0),0) -> 0 | F28: =IF(' 給与計算 '!N31<源泉月額表!$B$8,ROUNDDOWN(' 給与計算 '!N31*税額基本情報!$D$29,0),IF(' 給与計算 '!N31=0,0,IF(' 給与計算 '!N31>=税額基本情報!$D$19,MAX('計算シート ２'!S28:U28),VLOOKUP(' 給与計算 '!N31,INDIRECT(税額基本情報!$D$42),11,1)))) -> 0 | G28: =MAX(IF(' 給与計算 '!N31<源泉月額表!$B$8,ROUNDDOWN(' 給与計算 '!N31*3.063%,0),IF(' 給与計算 '!N31=0,0,IF(' 給与計算 '!N31>=税額基本情報!$D$19,MAX('計算シート ２'!S28:U28),VLOOKUP(' 給与計算 '!N31,INDIRECT(税額基本情報!$D$42),11,1))))-' 基本情報 '!E31*税額基本情報!$D$26,0) -> 0 | H28: =IF(' 賞与計算 '!D31<源泉賞与表!$D$10*1000,0,INDEX(源泉賞与表!$B:$B,MATCH(' 賞与計算 '!D31/1000,源泉賞与表!$D:$D,1))) -> 0 | I28: =IF(' 賞与計算 '!D31<源泉賞与表!$F$10*1000,0,INDEX(源泉賞与表!$B:$B,MATCH(' 賞与計算 '!D31/1000,源泉賞与表!$F:$F,1))) -> 0 | J28: =IF(' 賞与計算 '!D31<源泉賞与表!$H$10*1000,0,INDEX(源泉賞与表!$B:$B,MATCH(' 賞与計算 '!D31/1000,源泉賞与表!$H:$H,1))) -> 0 | K28: =IF(' 賞与計算 '!D31<源泉賞与表!$J$10*1000,0,INDEX(源泉賞与表!$B:$B,MATCH(' 賞与計算 '!D31/1000,源泉賞与表!$J:$J,1))) -> 0 | L28: =IF(' 賞与計算 '!D31<源泉賞与表!$L$10*1000,0,INDEX(源泉賞与表!$B:$B,MATCH(' 賞与計算 '!D31/1000,源泉賞与表!$L:$L,1))) -> 0 | M28: =IF(' 賞与計算 '!D31<源泉賞与表!$N$10*1000,0,INDEX(源泉賞与表!$B:$B,MATCH(' 賞与計算 '!D31/1000,源泉賞与表!$N:$N,1))) -> 0 | N28: =IF(' 賞与計算 '!D31<源泉賞与表!$P$10*1000,0,INDEX(源泉賞与表!$B:$B,MATCH(' 賞与計算 '!D31/1000,源泉賞与表!$P:$P,1))) -> 0 | O28: =IF(' 賞与計算 '!D31<源泉賞与表!$R$10*1000,0,INDEX(源泉賞与表!$B:$B,MATCH(' 賞与計算 '!D31/1000,源泉賞与表!$R:$R,1))) -> 0 | P28: =IF(' 賞与計算 '!D31="","",IF(' 賞与計算 '!D31<源泉賞与表!$T$22*1000,10.21,INDEX(源泉賞与表!$B:$B,MATCH(' 賞与計算 '!D31/1000,源泉賞与表!$T:$T,1)))) ->  | Q28: 0 | R28: =IF(' 基本情報 '!G31="",0,ROUND(VLOOKUP(' 基本情報 '!G31,INDIRECT(' 基本情報 '!$D$3&"!$B$12:$I$61"),6,0)-0.1,0)) -> 0 | S28: =IF(' 基本情報 '!G31="",0,ROUND(VLOOKUP(' 基本情報 '!G31,INDIRECT(' 基本情報 '!$D$3&"!$B$12:$I$61"),8,0)-0.1,0)) -> 0 | T28: 0 | U28: =IF(' 基本情報 '!G31="",0,ROUND(IF(OR(' 基本情報 '!G31<税額基本情報!$E$32,' 基本情報 '!G31>税額基本情報!$E$33),W28,VLOOKUP(' 基本情報 '!G31,INDIRECT(' 基本情報 '!$D$3&"!$B$15:$K$46"),10,0))-0.1,0)) -> 0 | V28: =IF(' 基本情報 '!G31="",0,ROUND(IF(OR(' 基本情報 '!G31<税額基本情報!$E$32,' 基本情報 '!G31>税額基本情報!$E$33),X28,VLOOKUP(' 基本情報 '!G31,INDIRECT(' 基本情報 '!$D$3&"!$B$15:$M$46"),12,0))-0.1,0)) -> 0 | W28: =IF(' 基本情報 '!G31="",0,IF(' 基本情報 '!G31<税額基本情報!$E$32,税額基本情報!$F$32,IF(' 基本情報 '!G31>税額基本情報!$E$33,税額基本情報!$F$33,0))) -> 0 | X28: =IF(' 基本情報 '!G31="",0,IF(' 基本情報 '!G31<税額基本情報!$E$32,税額基本情報!$G$32,IF(' 基本情報 '!G31>税額基本情報!$E$33,税額基本情報!$G$33,0))) -> 0 | Y28: 0 | Z28: =ROUND(IF(' 賞与計算 '!F31>税額基本情報!$D$39,税額基本情報!$D$39,ROUNDDOWN(' 賞与計算 '!F31,-3))*INDIRECT(' 基本情報 '!$D$3&"!$F$9")*0.5-0.1,0) -> 0 | AA28: =ROUND(IF(' 賞与計算 '!F31>税額基本情報!$D$39,税額基本情報!$D$39,ROUNDDOWN(' 賞与計算 '!F31,-3))*INDIRECT(' 基本情報 '!$D$3&"!$H$9")/2-0.1,0) -> 0 | AB28: 0 | AC28: =ROUND(IF(' 賞与計算 '!F31>税額基本情報!$D$36,税額基本情報!$D$36,ROUNDDOWN(' 賞与計算 '!F31,-3))*INDIRECT(' 基本情報 '!$D$3&"!$J$9")/2-0.1,0) -> 0 | AD28: =ROUND(IF(' 賞与計算 '!F31>税額基本情報!$D$36,税額基本情報!$D$36,ROUNDDOWN(' 賞与計算 '!F31,-3))*INDIRECT(' 基本情報 '!$D$3&"!$L$9")/2-0.1,0) -> 0
C29: 25 | D29: =' 給与計算 '!C32 ->  | E29: =MAX(IF(' 給与計算 '!N32>=税額基本情報!$D$6,MAX('計算シート ２'!E29:L29),IF(' 給与計算 '!N32<源泉月額表!$B$8,0,VLOOKUP(' 給与計算 '!N32,INDIRECT(税額基本情報!$D$42),IF(' 基本情報 '!E32>=8,10,' 基本情報 '!E32+3),1)))-IF(' 基本情報 '!E32>=8,(' 基本情報 '!E32-7)*税額基本情報!$D$23,0),0) -> 0 | F29: =IF(' 給与計算 '!N32<源泉月額表!$B$8,ROUNDDOWN(' 給与計算 '!N32*税額基本情報!$D$29,0),IF(' 給与計算 '!N32=0,0,IF(' 給与計算 '!N32>=税額基本情報!$D$19,MAX('計算シート ２'!S29:U29),VLOOKUP(' 給与計算 '!N32,INDIRECT(税額基本情報!$D$42),11,1)))) -> 0 | G29: =MAX(IF(' 給与計算 '!N32<源泉月額表!$B$8,ROUNDDOWN(' 給与計算 '!N32*3.063%,0),IF(' 給与計算 '!N32=0,0,IF(' 給与計算 '!N32>=税額基本情報!$D$19,MAX('計算シート ２'!S29:U29),VLOOKUP(' 給与計算 '!N32,INDIRECT(税額基本情報!$D$42),11,1))))-' 基本情報 '!E32*税額基本情報!$D$26,0) -> 0 | H29: =IF(' 賞与計算 '!D32<源泉賞与表!$D$10*1000,0,INDEX(源泉賞与表!$B:$B,MATCH(' 賞与計算 '!D32/1000,源泉賞与表!$D:$D,1))) -> 0 | I29: =IF(' 賞与計算 '!D32<源泉賞与表!$F$10*1000,0,INDEX(源泉賞与表!$B:$B,MATCH(' 賞与計算 '!D32/1000,源泉賞与表!$F:$F,1))) -> 0 | J29: =IF(' 賞与計算 '!D32<源泉賞与表!$H$10*1000,0,INDEX(源泉賞与表!$B:$B,MATCH(' 賞与計算 '!D32/1000,源泉賞与表!$H:$H,1))) -> 0 | K29: =IF(' 賞与計算 '!D32<源泉賞与表!$J$10*1000,0,INDEX(源泉賞与表!$B:$B,MATCH(' 賞与計算 '!D32/1000,源泉賞与表!$J:$J,1))) -> 0 | L29: =IF(' 賞与計算 '!D32<源泉賞与表!$L$10*1000,0,INDEX(源泉賞与表!$B:$B,MATCH(' 賞与計算 '!D32/1000,源泉賞与表!$L:$L,1))) -> 0 | M29: =IF(' 賞与計算 '!D32<源泉賞与表!$N$10*1000,0,INDEX(源泉賞与表!$B:$B,MATCH(' 賞与計算 '!D32/1000,源泉賞与表!$N:$N,1))) -> 0 | N29: =IF(' 賞与計算 '!D32<源泉賞与表!$P$10*1000,0,INDEX(源泉賞与表!$B:$B,MATCH(' 賞与計算 '!D32/1000,源泉賞与表!$P:$P,1))) -> 0 | O29: =IF(' 賞与計算 '!D32<源泉賞与表!$R$10*1000,0,INDEX(源泉賞与表!$B:$B,MATCH(' 賞与計算 '!D32/1000,源泉賞与表!$R:$R,1))) -> 0 | P29: =IF(' 賞与計算 '!D32="","",IF(' 賞与計算 '!D32<源泉賞与表!$T$22*1000,10.21,INDEX(源泉賞与表!$B:$B,MATCH(' 賞与計算 '!D32/1000,源泉賞与表!$T:$T,1)))) ->  | Q29: 0 | R29: =IF(' 基本情報 '!G32="",0,ROUND(VLOOKUP(' 基本情報 '!G32,INDIRECT(' 基本情報 '!$D$3&"!$B$12:$I$61"),6,0)-0.1,0)) -> 0 | S29: =IF(' 基本情報 '!G32="",0,ROUND(VLOOKUP(' 基本情報 '!G32,INDIRECT(' 基本情報 '!$D$3&"!$B$12:$I$61"),8,0)-0.1,0)) -> 0 | T29: 0 | U29: =IF(' 基本情報 '!G32="",0,ROUND(IF(OR(' 基本情報 '!G32<税額基本情報!$E$32,' 基本情報 '!G32>税額基本情報!$E$33),W29,VLOOKUP(' 基本情報 '!G32,INDIRECT(' 基本情報 '!$D$3&"!$B$15:$K$46"),10,0))-0.1,0)) -> 0 | V29: =IF(' 基本情報 '!G32="",0,ROUND(IF(OR(' 基本情報 '!G32<税額基本情報!$E$32,' 基本情報 '!G32>税額基本情報!$E$33),X29,VLOOKUP(' 基本情報 '!G32,INDIRECT(' 基本情報 '!$D$3&"!$B$15:$M$46"),12,0))-0.1,0)) -> 0 | W29: =IF(' 基本情報 '!G32="",0,IF(' 基本情報 '!G32<税額基本情報!$E$32,税額基本情報!$F$32,IF(' 基本情報 '!G32>税額基本情報!$E$33,税額基本情報!$F$33,0))) -> 0 | X29: =IF(' 基本情報 '!G32="",0,IF(' 基本情報 '!G32<税額基本情報!$E$32,税額基本情報!$G$32,IF(' 基本情報 '!G32>税額基本情報!$E$33,税額基本情報!$G$33,0))) -> 0 | Y29: 0 | Z29: =ROUND(IF(' 賞与計算 '!F32>税額基本情報!$D$39,税額基本情報!$D$39,ROUNDDOWN(' 賞与計算 '!F32,-3))*INDIRECT(' 基本情報 '!$D$3&"!$F$9")*0.5-0.1,0) -> 0 | AA29: =ROUND(IF(' 賞与計算 '!F32>税額基本情報!$D$39,税額基本情報!$D$39,ROUNDDOWN(' 賞与計算 '!F32,-3))*INDIRECT(' 基本情報 '!$D$3&"!$H$9")/2-0.1,0) -> 0 | AB29: 0 | AC29: =ROUND(IF(' 賞与計算 '!F32>税額基本情報!$D$36,税額基本情報!$D$36,ROUNDDOWN(' 賞与計算 '!F32,-3))*INDIRECT(' 基本情報 '!$D$3&"!$J$9")/2-0.1,0) -> 0 | AD29: =ROUND(IF(' 賞与計算 '!F32>税額基本情報!$D$36,税額基本情報!$D$36,ROUNDDOWN(' 賞与計算 '!F32,-3))*INDIRECT(' 基本情報 '!$D$3&"!$L$9")/2-0.1,0) -> 0
C30: 26 | D30: =' 給与計算 '!C33 ->  | E30: =MAX(IF(' 給与計算 '!N33>=税額基本情報!$D$6,MAX('計算シート ２'!E30:L30),IF(' 給与計算 '!N33<源泉月額表!$B$8,0,VLOOKUP(' 給与計算 '!N33,INDIRECT(税額基本情報!$D$42),IF(' 基本情報 '!E33>=8,10,' 基本情報 '!E33+3),1)))-IF(' 基本情報 '!E33>=8,(' 基本情報 '!E33-7)*税額基本情報!$D$23,0),0) -> 0 | F30: =IF(' 給与計算 '!N33<源泉月額表!$B$8,ROUNDDOWN(' 給与計算 '!N33*税額基本情報!$D$29,0),IF(' 給与計算 '!N33=0,0,IF(' 給与計算 '!N33>=税額基本情報!$D$19,MAX('計算シート ２'!S30:U30),VLOOKUP(' 給与計算 '!N33,INDIRECT(税額基本情報!$D$42),11,1)))) -> 0 | G30: =MAX(IF(' 給与計算 '!N33<源泉月額表!$B$8,ROUNDDOWN(' 給与計算 '!N33*3.063%,0),IF(' 給与計算 '!N33=0,0,IF(' 給与計算 '!N33>=税額基本情報!$D$19,MAX('計算シート ２'!S30:U30),VLOOKUP(' 給与計算 '!N33,INDIRECT(税額基本情報!$D$42),11,1))))-' 基本情報 '!E33*税額基本情報!$D$26,0) -> 0 | H30: =IF(' 賞与計算 '!D33<源泉賞与表!$D$10*1000,0,INDEX(源泉賞与表!$B:$B,MATCH(' 賞与計算 '!D33/1000,源泉賞与表!$D:$D,1))) -> 0 | I30: =IF(' 賞与計算 '!D33<源泉賞与表!$F$10*1000,0,INDEX(源泉賞与表!$B:$B,MATCH(' 賞与計算 '!D33/1000,源泉賞与表!$F:$F,1))) -> 0 | J30: =IF(' 賞与計算 '!D33<源泉賞与表!$H$10*1000,0,INDEX(源泉賞与表!$B:$B,MATCH(' 賞与計算 '!D33/1000,源泉賞与表!$H:$H,1))) -> 0 | K30: =IF(' 賞与計算 '!D33<源泉賞与表!$J$10*1000,0,INDEX(源泉賞与表!$B:$B,MATCH(' 賞与計算 '!D33/1000,源泉賞与表!$J:$J,1))) -> 0 | L30: =IF(' 賞与計算 '!D33<源泉賞与表!$L$10*1000,0,INDEX(源泉賞与表!$B:$B,MATCH(' 賞与計算 '!D33/1000,源泉賞与表!$L:$L,1))) -> 0 | M30: =IF(' 賞与計算 '!D33<源泉賞与表!$N$10*1000,0,INDEX(源泉賞与表!$B:$B,MATCH(' 賞与計算 '!D33/1000,源泉賞与表!$N:$N,1))) -> 0 | N30: =IF(' 賞与計算 '!D33<源泉賞与表!$P$10*1000,0,INDEX(源泉賞与表!$B:$B,MATCH(' 賞与計算 '!D33/1000,源泉賞与表!$P:$P,1))) -> 0 | O30: =IF(' 賞与計算 '!D33<源泉賞与表!$R$10*1000,0,INDEX(源泉賞与表!$B:$B,MATCH(' 賞与計算 '!D33/1000,源泉賞与表!$R:$R,1))) -> 0 | P30: =IF(' 賞与計算 '!D33="","",IF(' 賞与計算 '!D33<源泉賞与表!$T$22*1000,10.21,INDEX(源泉賞与表!$B:$B,MATCH(' 賞与計算 '!D33/1000,源泉賞与表!$T:$T,1)))) ->  | Q30: 0 | R30: =IF(' 基本情報 '!G33="",0,ROUND(VLOOKUP(' 基本情報 '!G33,INDIRECT(' 基本情報 '!$D$3&"!$B$12:$I$61"),6,0)-0.1,0)) -> 0 | S30: =IF(' 基本情報 '!G33="",0,ROUND(VLOOKUP(' 基本情報 '!G33,INDIRECT(' 基本情報 '!$D$3&"!$B$12:$I$61"),8,0)-0.1,0)) -> 0 | T30: 0 | U30: =IF(' 基本情報 '!G33="",0,ROUND(IF(OR(' 基本情報 '!G33<税額基本情報!$E$32,' 基本情報 '!G33>税額基本情報!$E$33),W30,VLOOKUP(' 基本情報 '!G33,INDIRECT(' 基本情報 '!$D$3&"!$B$15:$K$46"),10,0))-0.1,0)) -> 0 | V30: =IF(' 基本情報 '!G33="",0,ROUND(IF(OR(' 基本情報 '!G33<税額基本情報!$E$32,' 基本情報 '!G33>税額基本情報!$E$33),X30,VLOOKUP(' 基本情報 '!G33,INDIRECT(' 基本情報 '!$D$3&"!$B$15:$M$46"),12,0))-0.1,0)) -> 0 | W30: =IF(' 基本情報 '!G33="",0,IF(' 基本情報 '!G33<税額基本情報!$E$32,税額基本情報!$F$32,IF(' 基本情報 '!G33>税額基本情報!$E$33,税額基本情報!$F$33,0))) -> 0 | X30: =IF(' 基本情報 '!G33="",0,IF(' 基本情報 '!G33<税額基本情報!$E$32,税額基本情報!$G$32,IF(' 基本情報 '!G33>税額基本情報!$E$33,税額基本情報!$G$33,0))) -> 0 | Y30: 0 | Z30: =ROUND(IF(' 賞与計算 '!F33>税額基本情報!$D$39,税額基本情報!$D$39,ROUNDDOWN(' 賞与計算 '!F33,-3))*INDIRECT(' 基本情報 '!$D$3&"!$F$9")*0.5-0.1,0) -> 0 | AA30: =ROUND(IF(' 賞与計算 '!F33>税額基本情報!$D$39,税額基本情報!$D$39,ROUNDDOWN(' 賞与計算 '!F33,-3))*INDIRECT(' 基本情報 '!$D$3&"!$H$9")/2-0.1,0) -> 0 | AB30: 0 | AC30: =ROUND(IF(' 賞与計算 '!F33>税額基本情報!$D$36,税額基本情報!$D$36,ROUNDDOWN(' 賞与計算 '!F33,-3))*INDIRECT(' 基本情報 '!$D$3&"!$J$9")/2-0.1,0) -> 0 | AD30: =ROUND(IF(' 賞与計算 '!F33>税額基本情報!$D$36,税額基本情報!$D$36,ROUNDDOWN(' 賞与計算 '!F33,-3))*INDIRECT(' 基本情報 '!$D$3&"!$L$9")/2-0.1,0) -> 0
C31: 27 | D31: =' 給与計算 '!C34 ->  | E31: =MAX(IF(' 給与計算 '!N34>=税額基本情報!$D$6,MAX('計算シート ２'!E31:L31),IF(' 給与計算 '!N34<源泉月額表!$B$8,0,VLOOKUP(' 給与計算 '!N34,INDIRECT(税額基本情報!$D$42),IF(' 基本情報 '!E34>=8,10,' 基本情報 '!E34+3),1)))-IF(' 基本情報 '!E34>=8,(' 基本情報 '!E34-7)*税額基本情報!$D$23,0),0) -> 0 | F31: =IF(' 給与計算 '!N34<源泉月額表!$B$8,ROUNDDOWN(' 給与計算 '!N34*税額基本情報!$D$29,0),IF(' 給与計算 '!N34=0,0,IF(' 給与計算 '!N34>=税額基本情報!$D$19,MAX('計算シート ２'!S31:U31),VLOOKUP(' 給与計算 '!N34,INDIRECT(税額基本情報!$D$42),11,1)))) -> 0 | G31: =MAX(IF(' 給与計算 '!N34<源泉月額表!$B$8,ROUNDDOWN(' 給与計算 '!N34*3.063%,0),IF(' 給与計算 '!N34=0,0,IF(' 給与計算 '!N34>=税額基本情報!$D$19,MAX('計算シート ２'!S31:U31),VLOOKUP(' 給与計算 '!N34,INDIRECT(税額基本情報!$D$42),11,1))))-' 基本情報 '!E34*税額基本情報!$D$26,0) -> 0 | H31: =IF(' 賞与計算 '!D34<源泉賞与表!$D$10*1000,0,INDEX(源泉賞与表!$B:$B,MATCH(' 賞与計算 '!D34/1000,源泉賞与表!$D:$D,1))) -> 0 | I31: =IF(' 賞与計算 '!D34<源泉賞与表!$F$10*1000,0,INDEX(源泉賞与表!$B:$B,MATCH(' 賞与計算 '!D34/1000,源泉賞与表!$F:$F,1))) -> 0 | J31: =IF(' 賞与計算 '!D34<源泉賞与表!$H$10*1000,0,INDEX(源泉賞与表!$B:$B,MATCH(' 賞与計算 '!D34/1000,源泉賞与表!$H:$H,1))) -> 0 | K31: =IF(' 賞与計算 '!D34<源泉賞与表!$J$10*1000,0,INDEX(源泉賞与表!$B:$B,MATCH(' 賞与計算 '!D34/1000,源泉賞与表!$J:$J,1))) -> 0 | L31: =IF(' 賞与計算 '!D34<源泉賞与表!$L$10*1000,0,INDEX(源泉賞与表!$B:$B,MATCH(' 賞与計算 '!D34/1000,源泉賞与表!$L:$L,1))) -> 0 | M31: =IF(' 賞与計算 '!D34<源泉賞与表!$N$10*1000,0,INDEX(源泉賞与表!$B:$B,MATCH(' 賞与計算 '!D34/1000,源泉賞与表!$N:$N,1))) -> 0 | N31: =IF(' 賞与計算 '!D34<源泉賞与表!$P$10*1000,0,INDEX(源泉賞与表!$B:$B,MATCH(' 賞与計算 '!D34/1000,源泉賞与表!$P:$P,1))) -> 0 | O31: =IF(' 賞与計算 '!D34<源泉賞与表!$R$10*1000,0,INDEX(源泉賞与表!$B:$B,MATCH(' 賞与計算 '!D34/1000,源泉賞与表!$R:$R,1))) -> 0 | P31: =IF(' 賞与計算 '!D34="","",IF(' 賞与計算 '!D34<源泉賞与表!$T$22*1000,10.21,INDEX(源泉賞与表!$B:$B,MATCH(' 賞与計算 '!D34/1000,源泉賞与表!$T:$T,1)))) ->  | Q31: 0 | R31: =IF(' 基本情報 '!G34="",0,ROUND(VLOOKUP(' 基本情報 '!G34,INDIRECT(' 基本情報 '!$D$3&"!$B$12:$I$61"),6,0)-0.1,0)) -> 0 | S31: =IF(' 基本情報 '!G34="",0,ROUND(VLOOKUP(' 基本情報 '!G34,INDIRECT(' 基本情報 '!$D$3&"!$B$12:$I$61"),8,0)-0.1,0)) -> 0 | T31: 0 | U31: =IF(' 基本情報 '!G34="",0,ROUND(IF(OR(' 基本情報 '!G34<税額基本情報!$E$32,' 基本情報 '!G34>税額基本情報!$E$33),W31,VLOOKUP(' 基本情報 '!G34,INDIRECT(' 基本情報 '!$D$3&"!$B$15:$K$46"),10,0))-0.1,0)) -> 0 | V31: =IF(' 基本情報 '!G34="",0,ROUND(IF(OR(' 基本情報 '!G34<税額基本情報!$E$32,' 基本情報 '!G34>税額基本情報!$E$33),X31,VLOOKUP(' 基本情報 '!G34,INDIRECT(' 基本情報 '!$D$3&"!$B$15:$M$46"),12,0))-0.1,0)) -> 0 | W31: =IF(' 基本情報 '!G34="",0,IF(' 基本情報 '!G34<税額基本情報!$E$32,税額基本情報!$F$32,IF(' 基本情報 '!G34>税額基本情報!$E$33,税額基本情報!$F$33,0))) -> 0 | X31: =IF(' 基本情報 '!G34="",0,IF(' 基本情報 '!G34<税額基本情報!$E$32,税額基本情報!$G$32,IF(' 基本情報 '!G34>税額基本情報!$E$33,税額基本情報!$G$33,0))) -> 0 | Y31: 0 | Z31: =ROUND(IF(' 賞与計算 '!F34>税額基本情報!$D$39,税額基本情報!$D$39,ROUNDDOWN(' 賞与計算 '!F34,-3))*INDIRECT(' 基本情報 '!$D$3&"!$F$9")*0.5-0.1,0) -> 0 | AA31: =ROUND(IF(' 賞与計算 '!F34>税額基本情報!$D$39,税額基本情報!$D$39,ROUNDDOWN(' 賞与計算 '!F34,-3))*INDIRECT(' 基本情報 '!$D$3&"!$H$9")/2-0.1,0) -> 0 | AB31: 0 | AC31: =ROUND(IF(' 賞与計算 '!F34>税額基本情報!$D$36,税額基本情報!$D$36,ROUNDDOWN(' 賞与計算 '!F34,-3))*INDIRECT(' 基本情報 '!$D$3&"!$J$9")/2-0.1,0) -> 0 | AD31: =ROUND(IF(' 賞与計算 '!F34>税額基本情報!$D$36,税額基本情報!$D$36,ROUNDDOWN(' 賞与計算 '!F34,-3))*INDIRECT(' 基本情報 '!$D$3&"!$L$9")/2-0.1,0) -> 0
C32: 28 | D32: =' 給与計算 '!C35 ->  | E32: =MAX(IF(' 給与計算 '!N35>=税額基本情報!$D$6,MAX('計算シート ２'!E32:L32),IF(' 給与計算 '!N35<源泉月額表!$B$8,0,VLOOKUP(' 給与計算 '!N35,INDIRECT(税額基本情報!$D$42),IF(' 基本情報 '!E35>=8,10,' 基本情報 '!E35+3),1)))-IF(' 基本情報 '!E35>=8,(' 基本情報 '!E35-7)*税額基本情報!$D$23,0),0) -> 0 | F32: =IF(' 給与計算 '!N35<源泉月額表!$B$8,ROUNDDOWN(' 給与計算 '!N35*税額基本情報!$D$29,0),IF(' 給与計算 '!N35=0,0,IF(' 給与計算 '!N35>=税額基本情報!$D$19,MAX('計算シート ２'!S32:U32),VLOOKUP(' 給与計算 '!N35,INDIRECT(税額基本情報!$D$42),11,1)))) -> 0 | G32: =MAX(IF(' 給与計算 '!N35<源泉月額表!$B$8,ROUNDDOWN(' 給与計算 '!N35*3.063%,0),IF(' 給与計算 '!N35=0,0,IF(' 給与計算 '!N35>=税額基本情報!$D$19,MAX('計算シート ２'!S32:U32),VLOOKUP(' 給与計算 '!N35,INDIRECT(税額基本情報!$D$42),11,1))))-' 基本情報 '!E35*税額基本情報!$D$26,0) -> 0 | H32: =IF(' 賞与計算 '!D35<源泉賞与表!$D$10*1000,0,INDEX(源泉賞与表!$B:$B,MATCH(' 賞与計算 '!D35/1000,源泉賞与表!$D:$D,1))) -> 0 | I32: =IF(' 賞与計算 '!D35<源泉賞与表!$F$10*1000,0,INDEX(源泉賞与表!$B:$B,MATCH(' 賞与計算 '!D35/1000,源泉賞与表!$F:$F,1))) -> 0 | J32: =IF(' 賞与計算 '!D35<源泉賞与表!$H$10*1000,0,INDEX(源泉賞与表!$B:$B,MATCH(' 賞与計算 '!D35/1000,源泉賞与表!$H:$H,1))) -> 0 | K32: =IF(' 賞与計算 '!D35<源泉賞与表!$J$10*1000,0,INDEX(源泉賞与表!$B:$B,MATCH(' 賞与計算 '!D35/1000,源泉賞与表!$J:$J,1))) -> 0 | L32: =IF(' 賞与計算 '!D35<源泉賞与表!$L$10*1000,0,INDEX(源泉賞与表!$B:$B,MATCH(' 賞与計算 '!D35/1000,源泉賞与表!$L:$L,1))) -> 0 | M32: =IF(' 賞与計算 '!D35<源泉賞与表!$N$10*1000,0,INDEX(源泉賞与表!$B:$B,MATCH(' 賞与計算 '!D35/1000,源泉賞与表!$N:$N,1))) -> 0 | N32: =IF(' 賞与計算 '!D35<源泉賞与表!$P$10*1000,0,INDEX(源泉賞与表!$B:$B,MATCH(' 賞与計算 '!D35/1000,源泉賞与表!$P:$P,1))) -> 0 | O32: =IF(' 賞与計算 '!D35<源泉賞与表!$R$10*1000,0,INDEX(源泉賞与表!$B:$B,MATCH(' 賞与計算 '!D35/1000,源泉賞与表!$R:$R,1))) -> 0 | P32: =IF(' 賞与計算 '!D35="","",IF(' 賞与計算 '!D35<源泉賞与表!$T$22*1000,10.21,INDEX(源泉賞与表!$B:$B,MATCH(' 賞与計算 '!D35/1000,源泉賞与表!$T:$T,1)))) ->  | Q32: 0 | R32: =IF(' 基本情報 '!G35="",0,ROUND(VLOOKUP(' 基本情報 '!G35,INDIRECT(' 基本情報 '!$D$3&"!$B$12:$I$61"),6,0)-0.1,0)) -> 0 | S32: =IF(' 基本情報 '!G35="",0,ROUND(VLOOKUP(' 基本情報 '!G35,INDIRECT(' 基本情報 '!$D$3&"!$B$12:$I$61"),8,0)-0.1,0)) -> 0 | T32: 0 | U32: =IF(' 基本情報 '!G35="",0,ROUND(IF(OR(' 基本情報 '!G35<税額基本情報!$E$32,' 基本情報 '!G35>税額基本情報!$E$33),W32,VLOOKUP(' 基本情報 '!G35,INDIRECT(' 基本情報 '!$D$3&"!$B$15:$K$46"),10,0))-0.1,0)) -> 0 | V32: =IF(' 基本情報 '!G35="",0,ROUND(IF(OR(' 基本情報 '!G35<税額基本情報!$E$32,' 基本情報 '!G35>税額基本情報!$E$33),X32,VLOOKUP(' 基本情報 '!G35,INDIRECT(' 基本情報 '!$D$3&"!$B$15:$M$46"),12,0))-0.1,0)) -> 0 | W32: =IF(' 基本情報 '!G35="",0,IF(' 基本情報 '!G35<税額基本情報!$E$32,税額基本情報!$F$32,IF(' 基本情報 '!G35>税額基本情報!$E$33,税額基本情報!$F$33,0))) -> 0 | X32: =IF(' 基本情報 '!G35="",0,IF(' 基本情報 '!G35<税額基本情報!$E$32,税額基本情報!$G$32,IF(' 基本情報 '!G35>税額基本情報!$E$33,税額基本情報!$G$33,0))) -> 0 | Y32: 0 | Z32: =ROUND(IF(' 賞与計算 '!F35>税額基本情報!$D$39,税額基本情報!$D$39,ROUNDDOWN(' 賞与計算 '!F35,-3))*INDIRECT(' 基本情報 '!$D$3&"!$F$9")*0.5-0.1,0) -> 0 | AA32: =ROUND(IF(' 賞与計算 '!F35>税額基本情報!$D$39,税額基本情報!$D$39,ROUNDDOWN(' 賞与計算 '!F35,-3))*INDIRECT(' 基本情報 '!$D$3&"!$H$9")/2-0.1,0) -> 0 | AB32: 0 | AC32: =ROUND(IF(' 賞与計算 '!F35>税額基本情報!$D$36,税額基本情報!$D$36,ROUNDDOWN(' 賞与計算 '!F35,-3))*INDIRECT(' 基本情報 '!$D$3&"!$J$9")/2-0.1,0) -> 0 | AD32: =ROUND(IF(' 賞与計算 '!F35>税額基本情報!$D$36,税額基本情報!$D$36,ROUNDDOWN(' 賞与計算 '!F35,-3))*INDIRECT(' 基本情報 '!$D$3&"!$L$9")/2-0.1,0) -> 0
C33: 29 | D33: =' 給与計算 '!C36 ->  | E33: =MAX(IF(' 給与計算 '!N36>=税額基本情報!$D$6,MAX('計算シート ２'!E33:L33),IF(' 給与計算 '!N36<源泉月額表!$B$8,0,VLOOKUP(' 給与計算 '!N36,INDIRECT(税額基本情報!$D$42),IF(' 基本情報 '!E36>=8,10,' 基本情報 '!E36+3),1)))-IF(' 基本情報 '!E36>=8,(' 基本情報 '!E36-7)*税額基本情報!$D$23,0),0) -> 0 | F33: =IF(' 給与計算 '!N36<源泉月額表!$B$8,ROUNDDOWN(' 給与計算 '!N36*税額基本情報!$D$29,0),IF(' 給与計算 '!N36=0,0,IF(' 給与計算 '!N36>=税額基本情報!$D$19,MAX('計算シート ２'!S33:U33),VLOOKUP(' 給与計算 '!N36,INDIRECT(税額基本情報!$D$42),11,1)))) -> 0 | G33: =MAX(IF(' 給与計算 '!N36<源泉月額表!$B$8,ROUNDDOWN(' 給与計算 '!N36*3.063%,0),IF(' 給与計算 '!N36=0,0,IF(' 給与計算 '!N36>=税額基本情報!$D$19,MAX('計算シート ２'!S33:U33),VLOOKUP(' 給与計算 '!N36,INDIRECT(税額基本情報!$D$42),11,1))))-' 基本情報 '!E36*税額基本情報!$D$26,0) -> 0 | H33: =IF(' 賞与計算 '!D36<源泉賞与表!$D$10*1000,0,INDEX(源泉賞与表!$B:$B,MATCH(' 賞与計算 '!D36/1000,源泉賞与表!$D:$D,1))) -> 0 | I33: =IF(' 賞与計算 '!D36<源泉賞与表!$F$10*1000,0,INDEX(源泉賞与表!$B:$B,MATCH(' 賞与計算 '!D36/1000,源泉賞与表!$F:$F,1))) -> 0 | J33: =IF(' 賞与計算 '!D36<源泉賞与表!$H$10*1000,0,INDEX(源泉賞与表!$B:$B,MATCH(' 賞与計算 '!D36/1000,源泉賞与表!$H:$H,1))) -> 0 | K33: =IF(' 賞与計算 '!D36<源泉賞与表!$J$10*1000,0,INDEX(源泉賞与表!$B:$B,MATCH(' 賞与計算 '!D36/1000,源泉賞与表!$J:$J,1))) -> 0 | L33: =IF(' 賞与計算 '!D36<源泉賞与表!$L$10*1000,0,INDEX(源泉賞与表!$B:$B,MATCH(' 賞与計算 '!D36/1000,源泉賞与表!$L:$L,1))) -> 0 | M33: =IF(' 賞与計算 '!D36<源泉賞与表!$N$10*1000,0,INDEX(源泉賞与表!$B:$B,MATCH(' 賞与計算 '!D36/1000,源泉賞与表!$N:$N,1))) -> 0 | N33: =IF(' 賞与計算 '!D36<源泉賞与表!$P$10*1000,0,INDEX(源泉賞与表!$B:$B,MATCH(' 賞与計算 '!D36/1000,源泉賞与表!$P:$P,1))) -> 0 | O33: =IF(' 賞与計算 '!D36<源泉賞与表!$R$10*1000,0,INDEX(源泉賞与表!$B:$B,MATCH(' 賞与計算 '!D36/1000,源泉賞与表!$R:$R,1))) -> 0 | P33: =IF(' 賞与計算 '!D36="","",IF(' 賞与計算 '!D36<源泉賞与表!$T$22*1000,10.21,INDEX(源泉賞与表!$B:$B,MATCH(' 賞与計算 '!D36/1000,源泉賞与表!$T:$T,1)))) ->  | Q33: 0 | R33: =IF(' 基本情報 '!G36="",0,ROUND(VLOOKUP(' 基本情報 '!G36,INDIRECT(' 基本情報 '!$D$3&"!$B$12:$I$61"),6,0)-0.1,0)) -> 0 | S33: =IF(' 基本情報 '!G36="",0,ROUND(VLOOKUP(' 基本情報 '!G36,INDIRECT(' 基本情報 '!$D$3&"!$B$12:$I$61"),8,0)-0.1,0)) -> 0 | T33: 0 | U33: =IF(' 基本情報 '!G36="",0,ROUND(IF(OR(' 基本情報 '!G36<税額基本情報!$E$32,' 基本情報 '!G36>税額基本情報!$E$33),W33,VLOOKUP(' 基本情報 '!G36,INDIRECT(' 基本情報 '!$D$3&"!$B$15:$K$46"),10,0))-0.1,0)) -> 0 | V33: =IF(' 基本情報 '!G36="",0,ROUND(IF(OR(' 基本情報 '!G36<税額基本情報!$E$32,' 基本情報 '!G36>税額基本情報!$E$33),X33,VLOOKUP(' 基本情報 '!G36,INDIRECT(' 基本情報 '!$D$3&"!$B$15:$M$46"),12,0))-0.1,0)) -> 0 | W33: =IF(' 基本情報 '!G36="",0,IF(' 基本情報 '!G36<税額基本情報!$E$32,税額基本情報!$F$32,IF(' 基本情報 '!G36>税額基本情報!$E$33,税額基本情報!$F$33,0))) -> 0 | X33: =IF(' 基本情報 '!G36="",0,IF(' 基本情報 '!G36<税額基本情報!$E$32,税額基本情報!$G$32,IF(' 基本情報 '!G36>税額基本情報!$E$33,税額基本情報!$G$33,0))) -> 0 | Y33: 0 | Z33: =ROUND(IF(' 賞与計算 '!F36>税額基本情報!$D$39,税額基本情報!$D$39,ROUNDDOWN(' 賞与計算 '!F36,-3))*INDIRECT(' 基本情報 '!$D$3&"!$F$9")*0.5-0.1,0) -> 0 | AA33: =ROUND(IF(' 賞与計算 '!F36>税額基本情報!$D$39,税額基本情報!$D$39,ROUNDDOWN(' 賞与計算 '!F36,-3))*INDIRECT(' 基本情報 '!$D$3&"!$H$9")/2-0.1,0) -> 0 | AB33: 0 | AC33: =ROUND(IF(' 賞与計算 '!F36>税額基本情報!$D$36,税額基本情報!$D$36,ROUNDDOWN(' 賞与計算 '!F36,-3))*INDIRECT(' 基本情報 '!$D$3&"!$J$9")/2-0.1,0) -> 0 | AD33: =ROUND(IF(' 賞与計算 '!F36>税額基本情報!$D$36,税額基本情報!$D$36,ROUNDDOWN(' 賞与計算 '!F36,-3))*INDIRECT(' 基本情報 '!$D$3&"!$L$9")/2-0.1,0) -> 0
C34: 30 | D34: =' 給与計算 '!C37 ->  | E34: =MAX(IF(' 給与計算 '!N37>=税額基本情報!$D$6,MAX('計算シート ２'!E34:L34),IF(' 給与計算 '!N37<源泉月額表!$B$8,0,VLOOKUP(' 給与計算 '!N37,INDIRECT(税額基本情報!$D$42),IF(' 基本情報 '!E37>=8,10,' 基本情報 '!E37+3),1)))-IF(' 基本情報 '!E37>=8,(' 基本情報 '!E37-7)*税額基本情報!$D$23,0),0) -> 0 | F34: =IF(' 給与計算 '!N37<源泉月額表!$B$8,ROUNDDOWN(' 給与計算 '!N37*税額基本情報!$D$29,0),IF(' 給与計算 '!N37=0,0,IF(' 給与計算 '!N37>=税額基本情報!$D$19,MAX('計算シート ２'!S34:U34),VLOOKUP(' 給与計算 '!N37,INDIRECT(税額基本情報!$D$42),11,1)))) -> 0 | G34: =MAX(IF(' 給与計算 '!N37<源泉月額表!$B$8,ROUNDDOWN(' 給与計算 '!N37*3.063%,0),IF(' 給与計算 '!N37=0,0,IF(' 給与計算 '!N37>=税額基本情報!$D$19,MAX('計算シート ２'!S34:U34),VLOOKUP(' 給与計算 '!N37,INDIRECT(税額基本情報!$D$42),11,1))))-' 基本情報 '!E37*税額基本情報!$D$26,0) -> 0 | H34: =IF(' 賞与計算 '!D37<源泉賞与表!$D$10*1000,0,INDEX(源泉賞与表!$B:$B,MATCH(' 賞与計算 '!D37/1000,源泉賞与表!$D:$D,1))) -> 0 | I34: =IF(' 賞与計算 '!D37<源泉賞与表!$F$10*1000,0,INDEX(源泉賞与表!$B:$B,MATCH(' 賞与計算 '!D37/1000,源泉賞与表!$F:$F,1))) -> 0 | J34: =IF(' 賞与計算 '!D37<源泉賞与表!$H$10*1000,0,INDEX(源泉賞与表!$B:$B,MATCH(' 賞与計算 '!D37/1000,源泉賞与表!$H:$H,1))) -> 0 | K34: =IF(' 賞与計算 '!D37<源泉賞与表!$J$10*1000,0,INDEX(源泉賞与表!$B:$B,MATCH(' 賞与計算 '!D37/1000,源泉賞与表!$J:$J,1))) -> 0 | L34: =IF(' 賞与計算 '!D37<源泉賞与表!$L$10*1000,0,INDEX(源泉賞与表!$B:$B,MATCH(' 賞与計算 '!D37/1000,源泉賞与表!$L:$L,1))) -> 0 | M34: =IF(' 賞与計算 '!D37<源泉賞与表!$N$10*1000,0,INDEX(源泉賞与表!$B:$B,MATCH(' 賞与計算 '!D37/1000,源泉賞与表!$N:$N,1))) -> 0 | N34: =IF(' 賞与計算 '!D37<源泉賞与表!$P$10*1000,0,INDEX(源泉賞与表!$B:$B,MATCH(' 賞与計算 '!D37/1000,源泉賞与表!$P:$P,1))) -> 0 | O34: =IF(' 賞与計算 '!D37<源泉賞与表!$R$10*1000,0,INDEX(源泉賞与表!$B:$B,MATCH(' 賞与計算 '!D37/1000,源泉賞与表!$R:$R,1))) -> 0 | P34: =IF(' 賞与計算 '!D37="","",IF(' 賞与計算 '!D37<源泉賞与表!$T$22*1000,10.21,INDEX(源泉賞与表!$B:$B,MATCH(' 賞与計算 '!D37/1000,源泉賞与表!$T:$T,1)))) ->  | Q34: 0 | R34: =IF(' 基本情報 '!G37="",0,ROUND(VLOOKUP(' 基本情報 '!G37,INDIRECT(' 基本情報 '!$D$3&"!$B$12:$I$61"),6,0)-0.1,0)) -> 0 | S34: =IF(' 基本情報 '!G37="",0,ROUND(VLOOKUP(' 基本情報 '!G37,INDIRECT(' 基本情報 '!$D$3&"!$B$12:$I$61"),8,0)-0.1,0)) -> 0 | T34: 0 | U34: =IF(' 基本情報 '!G37="",0,ROUND(IF(OR(' 基本情報 '!G37<税額基本情報!$E$32,' 基本情報 '!G37>税額基本情報!$E$33),W34,VLOOKUP(' 基本情報 '!G37,INDIRECT(' 基本情報 '!$D$3&"!$B$15:$K$46"),10,0))-0.1,0)) -> 0 | V34: =IF(' 基本情報 '!G37="",0,ROUND(IF(OR(' 基本情報 '!G37<税額基本情報!$E$32,' 基本情報 '!G37>税額基本情報!$E$33),X34,VLOOKUP(' 基本情報 '!G37,INDIRECT(' 基本情報 '!$D$3&"!$B$15:$M$46"),12,0))-0.1,0)) -> 0 | W34: =IF(' 基本情報 '!G37="",0,IF(' 基本情報 '!G37<税額基本情報!$E$32,税額基本情報!$F$32,IF(' 基本情報 '!G37>税額基本情報!$E$33,税額基本情報!$F$33,0))) -> 0 | X34: =IF(' 基本情報 '!G37="",0,IF(' 基本情報 '!G37<税額基本情報!$E$32,税額基本情報!$G$32,IF(' 基本情報 '!G37>税額基本情報!$E$33,税額基本情報!$G$33,0))) -> 0 | Y34: 0 | Z34: =ROUND(IF(' 賞与計算 '!F37>税額基本情報!$D$39,税額基本情報!$D$39,ROUNDDOWN(' 賞与計算 '!F37,-3))*INDIRECT(' 基本情報 '!$D$3&"!$F$9")*0.5-0.1,0) -> 0 | AA34: =ROUND(IF(' 賞与計算 '!F37>税額基本情報!$D$39,税額基本情報!$D$39,ROUNDDOWN(' 賞与計算 '!F37,-3))*INDIRECT(' 基本情報 '!$D$3&"!$H$9")/2-0.1,0) -> 0 | AB34: 0 | AC34: =ROUND(IF(' 賞与計算 '!F37>税額基本情報!$D$36,税額基本情報!$D$36,ROUNDDOWN(' 賞与計算 '!F37,-3))*INDIRECT(' 基本情報 '!$D$3&"!$J$9")/2-0.1,0) -> 0 | AD34: =ROUND(IF(' 賞与計算 '!F37>税額基本情報!$D$36,税額基本情報!$D$36,ROUNDDOWN(' 賞与計算 '!F37,-3))*INDIRECT(' 基本情報 '!$D$3&"!$L$9")/2-0.1,0) -> 0

Sheet 計算シート ２ (hidden)
C3: NO. | D3: 名前 | E3: 月額74万円超えた場合の源泉徴収税額（甲欄） | S3: 月額74万円超えた場合の税額表（乙欄)
E4: =税額基本情報!C6 -> 740,000円以上 780,000円未満 | F4: =税額基本情報!C7 -> 780,000円以上 950,000円未満 | G4: =税額基本情報!C8 -> 950,000円以上 1,700,000円未満 | H4: =税額基本情報!C9 -> 1,700,000円以上 2,170,000円未満 | I4: =税額基本情報!C10 -> 2,170,000円以上 2,210,000円未満 | J4: =税額基本情報!C11 -> 2,210,000円以上 2,250,000円未満 | K4: =税額基本情報!C12 -> 2,250,000円以上 3,500,000円未満 | L4: =税額基本情報!C13 -> 3,500,000円以上 | S4: =税額基本情報!C19 -> 740,000円以上 1,700,000円未満 | T4: =税額基本情報!C20 -> 1,700,000円以上 3,500,000円未満 | U4: =税額基本情報!C21 -> 3,500,000円以上
C5: 1 | D5: =' 給与計算 '!C8 -> 給与一郎 | E5: =IF(AND(' 給与計算 '!N8>=税額基本情報!$D$6,' 給与計算 '!N8<税額基本情報!$D$7),VLOOKUP(' 給与計算 '!N8,税額基本情報!$D$6:$M$13,IF(' 基本情報 '!E8>=8,10,' 基本情報 '!E8+3),1)+ROUNDDOWN((' 給与計算 '!N8-税額基本情報!$D$6)*税額基本情報!$E$6,0),0) -> 0 | F5: =IF(AND(' 給与計算 '!N8>=税額基本情報!$D$7,' 給与計算 '!N8<税額基本情報!$D$8),VLOOKUP(' 給与計算 '!N8,税額基本情報!$D$6:$M$13,IF(' 基本情報 '!E8>=8,10,' 基本情報 '!E8+3),1)+ROUNDDOWN((' 給与計算 '!N8-税額基本情報!$D$7)*税額基本情報!$E$7,0),0) -> 0 | G5: =IF(AND(' 給与計算 '!N8>=税額基本情報!$D$8,' 給与計算 '!N8<税額基本情報!$D$9),VLOOKUP(' 給与計算 '!N8,税額基本情報!$D$6:$M$13,IF(' 基本情報 '!E8>=8,10,' 基本情報 '!E8+3),1)+ROUNDDOWN((' 給与計算 '!N8-税額基本情報!$D$8)*税額基本情報!$E$8,0),0) -> 0 | H5: =IF(AND(' 給与計算 '!$N8>=税額基本情報!$D$9,' 給与計算 '!$N8<税額基本情報!$D$10),VLOOKUP(' 給与計算 '!$N8,税額基本情報!$D$6:$M$13,IF(' 基本情報 '!$E8>=8,10,' 基本情報 '!$E8+3),1)+ROUNDDOWN((' 給与計算 '!$N8-税額基本情報!$D$9)*税額基本情報!$E$9,0),0) -> 0 | I5: =IF(AND(' 給与計算 '!$N8>=税額基本情報!$D$10,' 給与計算 '!$N8<税額基本情報!$D$11),VLOOKUP(' 給与計算 '!$N8,税額基本情報!$D$6:$M$13,IF(' 基本情報 '!$E8>=8,10,' 基本情報 '!$E8+3),1)+ROUNDDOWN((' 給与計算 '!$N8-税額基本情報!$D$10)*税額基本情報!$E$10,0),0) -> 0 | J5: =IF(AND(' 給与計算 '!$N8>=税額基本情報!$D$11,' 給与計算 '!$N8<税額基本情報!$D$12),VLOOKUP(' 給与計算 '!$N8,税額基本情報!$D$6:$M$13,IF(' 基本情報 '!$E8>=8,10,' 基本情報 '!$E8+3),1)+ROUNDDOWN((' 給与計算 '!$N8-税額基本情報!$D$11)*税額基本情報!$E$11,0),0) -> 0 | K5: =IF(AND(' 給与計算 '!$N8>=税額基本情報!$D$12,' 給与計算 '!$N8<税額基本情報!$D$13),VLOOKUP(' 給与計算 '!$N8,税額基本情報!$D$6:$M$13,IF(' 基本情報 '!$E8>=8,10,' 基本情報 '!$E8+3),1)+ROUNDDOWN((' 給与計算 '!$N8-税額基本情報!$D$12)*税額基本情報!$E$12,0),0) -> 0 | L5: =IF(' 給与計算 '!N8>=税額基本情報!$D$13,VLOOKUP(' 給与計算 '!N8,税額基本情報!$D$6:$M$13,IF(' 基本情報 '!E8>=8,10,' 基本情報 '!E8+3),1)+ROUNDDOWN((' 給与計算 '!N8-税額基本情報!$D$13)*税額基本情報!$E$13,0),0) -> 0 | S5: =IF(AND(' 給与計算 '!$N8>=税額基本情報!$D$19,' 給与計算 '!$N8<税額基本情報!$D$20),税額基本情報!$F$19+ROUNDDOWN((' 給与計算 '!$N8-税額基本情報!$D$19)*税額基本情報!$E$19,0),0) -> 0 | T5: =IF(AND(' 給与計算 '!$N8>=税額基本情報!$D$20,' 給与計算 '!$N8<税額基本情報!$D$21),税額基本情報!$F$20+ROUNDDOWN((' 給与計算 '!$N8-税額基本情報!$D$20)*税額基本情報!$E$20,0),0) -> 0 | U5: =IF(' 給与計算 '!N8>=税額基本情報!$D$21,税額基本情報!$F$21+ROUNDDOWN((' 給与計算 '!N8-税額基本情報!$D$21)*税額基本情報!$E$21,0),0) -> 0
C6: 2 | D6: =' 給与計算 '!C9 -> 給与二郎 | E6: =IF(AND(' 給与計算 '!N9>=税額基本情報!$D$6,' 給与計算 '!N9<税額基本情報!$D$7),VLOOKUP(' 給与計算 '!N9,税額基本情報!$D$6:$M$13,IF(' 基本情報 '!E9>=8,10,' 基本情報 '!E9+3),1)+ROUNDDOWN((' 給与計算 '!N9-税額基本情報!$D$6)*税額基本情報!$E$6,0),0) -> 0 | F6: =IF(AND(' 給与計算 '!N9>=税額基本情報!$D$7,' 給与計算 '!N9<税額基本情報!$D$8),VLOOKUP(' 給与計算 '!N9,税額基本情報!$D$6:$M$13,IF(' 基本情報 '!E9>=8,10,' 基本情報 '!E9+3),1)+ROUNDDOWN((' 給与計算 '!N9-税額基本情報!$D$7)*税額基本情報!$E$7,0),0) -> 0 | G6: =IF(AND(' 給与計算 '!N9>=税額基本情報!$D$8,' 給与計算 '!N9<税額基本情報!$D$9),VLOOKUP(' 給与計算 '!N9,税額基本情報!$D$6:$M$13,IF(' 基本情報 '!E9>=8,10,' 基本情報 '!E9+3),1)+ROUNDDOWN((' 給与計算 '!N9-税額基本情報!$D$8)*税額基本情報!$E$8,0),0) -> 0 | H6: =IF(AND(' 給与計算 '!$N9>=税額基本情報!$D$9,' 給与計算 '!$N9<税額基本情報!$D$10),VLOOKUP(' 給与計算 '!$N9,税額基本情報!$D$6:$M$13,IF(' 基本情報 '!$E9>=8,10,' 基本情報 '!$E9+3),1)+ROUNDDOWN((' 給与計算 '!$N9-税額基本情報!$D$9)*税額基本情報!$E$9,0),0) -> 0 | I6: =IF(AND(' 給与計算 '!$N9>=税額基本情報!$D$10,' 給与計算 '!$N9<税額基本情報!$D$11),VLOOKUP(' 給与計算 '!$N9,税額基本情報!$D$6:$M$13,IF(' 基本情報 '!$E9>=8,10,' 基本情報 '!$E9+3),1)+ROUNDDOWN((' 給与計算 '!$N9-税額基本情報!$D$10)*税額基本情報!$E$10,0),0) -> 0 | J6: =IF(AND(' 給与計算 '!$N9>=税額基本情報!$D$11,' 給与計算 '!$N9<税額基本情報!$D$12),VLOOKUP(' 給与計算 '!$N9,税額基本情報!$D$6:$M$13,IF(' 基本情報 '!$E9>=8,10,' 基本情報 '!$E9+3),1)+ROUNDDOWN((' 給与計算 '!$N9-税額基本情報!$D$11)*税額基本情報!$E$11,0),0) -> 0 | K6: =IF(AND(' 給与計算 '!$N9>=税額基本情報!$D$12,' 給与計算 '!$N9<税額基本情報!$D$13),VLOOKUP(' 給与計算 '!$N9,税額基本情報!$D$6:$M$13,IF(' 基本情報 '!$E9>=8,10,' 基本情報 '!$E9+3),1)+ROUNDDOWN((' 給与計算 '!$N9-税額基本情報!$D$12)*税額基本情報!$E$12,0),0) -> 0 | L6: =IF(' 給与計算 '!N9>=税額基本情報!$D$13,VLOOKUP(' 給与計算 '!N9,税額基本情報!$D$6:$M$13,IF(' 基本情報 '!E9>=8,10,' 基本情報 '!E9+3),1)+ROUNDDOWN((' 給与計算 '!N9-税額基本情報!$D$13)*税額基本情報!$E$13,0),0) -> 0 | S6: =IF(AND(' 給与計算 '!$N9>=税額基本情報!$D$19,' 給与計算 '!$N9<税額基本情報!$D$20),税額基本情報!$F$19+ROUNDDOWN((' 給与計算 '!$N9-税額基本情報!$D$19)*税額基本情報!$E$19,0),0) -> 0 | T6: =IF(AND(' 給与計算 '!$N9>=税額基本情報!$D$20,' 給与計算 '!$N9<税額基本情報!$D$21),税額基本情報!$F$20+ROUNDDOWN((' 給与計算 '!$N9-税額基本情報!$D$20)*税額基本情報!$E$20,0),0) -> 0 | U6: =IF(' 給与計算 '!N9>=税額基本情報!$D$21,税額基本情報!$F$21+ROUNDDOWN((' 給与計算 '!N9-税額基本情報!$D$21)*税額基本情報!$E$21,0),0) -> 0
C7: 3 | D7: =' 給与計算 '!C10 -> 給与三郎 | E7: =IF(AND(' 給与計算 '!N10>=税額基本情報!$D$6,' 給与計算 '!N10<税額基本情報!$D$7),VLOOKUP(' 給与計算 '!N10,税額基本情報!$D$6:$M$13,IF(' 基本情報 '!E10>=8,10,' 基本情報 '!E10+3),1)+ROUNDDOWN((' 給与計算 '!N10-税額基本情報!$D$6)*税額基本情報!$E$6,0),0) -> 0 | F7: =IF(AND(' 給与計算 '!N10>=税額基本情報!$D$7,' 給与計算 '!N10<税額基本情報!$D$8),VLOOKUP(' 給与計算 '!N10,税額基本情報!$D$6:$M$13,IF(' 基本情報 '!E10>=8,10,' 基本情報 '!E10+3),1)+ROUNDDOWN((' 給与計算 '!N10-税額基本情報!$D$7)*税額基本情報!$E$7,0),0) -> 0 | G7: =IF(AND(' 給与計算 '!N10>=税額基本情報!$D$8,' 給与計算 '!N10<税額基本情報!$D$9),VLOOKUP(' 給与計算 '!N10,税額基本情報!$D$6:$M$13,IF(' 基本情報 '!E10>=8,10,' 基本情報 '!E10+3),1)+ROUNDDOWN((' 給与計算 '!N10-税額基本情報!$D$8)*税額基本情報!$E$8,0),0) -> 0 | H7: =IF(AND(' 給与計算 '!$N10>=税額基本情報!$D$9,' 給与計算 '!$N10<税額基本情報!$D$10),VLOOKUP(' 給与計算 '!$N10,税額基本情報!$D$6:$M$13,IF(' 基本情報 '!$E10>=8,10,' 基本情報 '!$E10+3),1)+ROUNDDOWN((' 給与計算 '!$N10-税額基本情報!$D$9)*税額基本情報!$E$9,0),0) -> 0 | I7: =IF(AND(' 給与計算 '!$N10>=税額基本情報!$D$10,' 給与計算 '!$N10<税額基本情報!$D$11),VLOOKUP(' 給与計算 '!$N10,税額基本情報!$D$6:$M$13,IF(' 基本情報 '!$E10>=8,10,' 基本情報 '!$E10+3),1)+ROUNDDOWN((' 給与計算 '!$N10-税額基本情報!$D$10)*税額基本情報!$E$10,0),0) -> 0 | J7: =IF(AND(' 給与計算 '!$N10>=税額基本情報!$D$11,' 給与計算 '!$N10<税額基本情報!$D$12),VLOOKUP(' 給与計算 '!$N10,税額基本情報!$D$6:$M$13,IF(' 基本情報 '!$E10>=8,10,' 基本情報 '!$E10+3),1)+ROUNDDOWN((' 給与計算 '!$N10-税額基本情報!$D$11)*税額基本情報!$E$11,0),0) -> 0 | K7: =IF(AND(' 給与計算 '!$N10>=税額基本情報!$D$12,' 給与計算 '!$N10<税額基本情報!$D$13),VLOOKUP(' 給与計算 '!$N10,税額基本情報!$D$6:$M$13,IF(' 基本情報 '!$E10>=8,10,' 基本情報 '!$E10+3),1)+ROUNDDOWN((' 給与計算 '!$N10-税額基本情報!$D$12)*税額基本情報!$E$12,0),0) -> 0 | L7: =IF(' 給与計算 '!N10>=税額基本情報!$D$13,VLOOKUP(' 給与計算 '!N10,税額基本情報!$D$6:$M$13,IF(' 基本情報 '!E10>=8,10,' 基本情報 '!E10+3),1)+ROUNDDOWN((' 給与計算 '!N10-税額基本情報!$D$13)*税額基本情報!$E$13,0),0) -> 0 | S7: =IF(AND(' 給与計算 '!$N10>=税額基本情報!$D$19,' 給与計算 '!$N10<税額基本情報!$D$20),税額基本情報!$F$19+ROUNDDOWN((' 給与計算 '!$N10-税額基本情報!$D$19)*税額基本情報!$E$19,0),0) -> 0 | T7: =IF(AND(' 給与計算 '!$N10>=税額基本情報!$D$20,' 給与計算 '!$N10<税額基本情報!$D$21),税額基本情報!$F$20+ROUNDDOWN((' 給与計算 '!$N10-税額基本情報!$D$20)*税額基本情報!$E$20,0),0) -> 0 | U7: =IF(' 給与計算 '!N10>=税額基本情報!$D$21,税額基本情報!$F$21+ROUNDDOWN((' 給与計算 '!N10-税額基本情報!$D$21)*税額基本情報!$E$21,0),0) -> 0
C8: 4 | D8: =' 給与計算 '!C11 ->  | E8: =IF(AND(' 給与計算 '!N11>=税額基本情報!$D$6,' 給与計算 '!N11<税額基本情報!$D$7),VLOOKUP(' 給与計算 '!N11,税額基本情報!$D$6:$M$13,IF(' 基本情報 '!E11>=8,10,' 基本情報 '!E11+3),1)+ROUNDDOWN((' 給与計算 '!N11-税額基本情報!$D$6)*税額基本情報!$E$6,0),0) -> 0 | F8: =IF(AND(' 給与計算 '!N11>=税額基本情報!$D$7,' 給与計算 '!N11<税額基本情報!$D$8),VLOOKUP(' 給与計算 '!N11,税額基本情報!$D$6:$M$13,IF(' 基本情報 '!E11>=8,10,' 基本情報 '!E11+3),1)+ROUNDDOWN((' 給与計算 '!N11-税額基本情報!$D$7)*税額基本情報!$E$7,0),0) -> 0 | G8: =IF(AND(' 給与計算 '!N11>=税額基本情報!$D$8,' 給与計算 '!N11<税額基本情報!$D$9),VLOOKUP(' 給与計算 '!N11,税額基本情報!$D$6:$M$13,IF(' 基本情報 '!E11>=8,10,' 基本情報 '!E11+3),1)+ROUNDDOWN((' 給与計算 '!N11-税額基本情報!$D$8)*税額基本情報!$E$8,0),0) -> 0 | H8: =IF(AND(' 給与計算 '!$N11>=税額基本情報!$D$9,' 給与計算 '!$N11<税額基本情報!$D$10),VLOOKUP(' 給与計算 '!$N11,税額基本情報!$D$6:$M$13,IF(' 基本情報 '!$E11>=8,10,' 基本情報 '!$E11+3),1)+ROUNDDOWN((' 給与計算 '!$N11-税額基本情報!$D$9)*税額基本情報!$E$9,0),0) -> 0 | I8: =IF(AND(' 給与計算 '!$N11>=税額基本情報!$D$10,' 給与計算 '!$N11<税額基本情報!$D$11),VLOOKUP(' 給与計算 '!$N11,税額基本情報!$D$6:$M$13,IF(' 基本情報 '!$E11>=8,10,' 基本情報 '!$E11+3),1)+ROUNDDOWN((' 給与計算 '!$N11-税額基本情報!$D$10)*税額基本情報!$E$10,0),0) -> 0 | J8: =IF(AND(' 給与計算 '!$N11>=税額基本情報!$D$11,' 給与計算 '!$N11<税額基本情報!$D$12),VLOOKUP(' 給与計算 '!$N11,税額基本情報!$D$6:$M$13,IF(' 基本情報 '!$E11>=8,10,' 基本情報 '!$E11+3),1)+ROUNDDOWN((' 給与計算 '!$N11-税額基本情報!$D$11)*税額基本情報!$E$11,0),0) -> 0 | K8: =IF(AND(' 給与計算 '!$N11>=税額基本情報!$D$12,' 給与計算 '!$N11<税額基本情報!$D$13),VLOOKUP(' 給与計算 '!$N11,税額基本情報!$D$6:$M$13,IF(' 基本情報 '!$E11>=8,10,' 基本情報 '!$E11+3),1)+ROUNDDOWN((' 給与計算 '!$N11-税額基本情報!$D$12)*税額基本情報!$E$12,0),0) -> 0 | L8: =IF(' 給与計算 '!N11>=税額基本情報!$D$13,VLOOKUP(' 給与計算 '!N11,税額基本情報!$D$6:$M$13,IF(' 基本情報 '!E11>=8,10,' 基本情報 '!E11+3),1)+ROUNDDOWN((' 給与計算 '!N11-税額基本情報!$D$13)*税額基本情報!$E$13,0),0) -> 0 | S8: =IF(AND(' 給与計算 '!$N11>=税額基本情報!$D$19,' 給与計算 '!$N11<税額基本情報!$D$20),税額基本情報!$F$19+ROUNDDOWN((' 給与計算 '!$N11-税額基本情報!$D$19)*税額基本情報!$E$19,0),0) -> 0 | T8: =IF(AND(' 給与計算 '!$N11>=税額基本情報!$D$20,' 給与計算 '!$N11<税額基本情報!$D$21),税額基本情報!$F$20+ROUNDDOWN((' 給与計算 '!$N11-税額基本情報!$D$20)*税額基本情報!$E$20,0),0) -> 0 | U8: =IF(' 給与計算 '!N11>=税額基本情報!$D$21,税額基本情報!$F$21+ROUNDDOWN((' 給与計算 '!N11-税額基本情報!$D$21)*税額基本情報!$E$21,0),0) -> 0
C9: 5 | D9: =' 給与計算 '!C12 ->  | E9: =IF(AND(' 給与計算 '!N12>=税額基本情報!$D$6,' 給与計算 '!N12<税額基本情報!$D$7),VLOOKUP(' 給与計算 '!N12,税額基本情報!$D$6:$M$13,IF(' 基本情報 '!E12>=8,10,' 基本情報 '!E12+3),1)+ROUNDDOWN((' 給与計算 '!N12-税額基本情報!$D$6)*税額基本情報!$E$6,0),0) -> 0 | F9: =IF(AND(' 給与計算 '!N12>=税額基本情報!$D$7,' 給与計算 '!N12<税額基本情報!$D$8),VLOOKUP(' 給与計算 '!N12,税額基本情報!$D$6:$M$13,IF(' 基本情報 '!E12>=8,10,' 基本情報 '!E12+3),1)+ROUNDDOWN((' 給与計算 '!N12-税額基本情報!$D$7)*税額基本情報!$E$7,0),0) -> 0 | G9: =IF(AND(' 給与計算 '!N12>=税額基本情報!$D$8,' 給与計算 '!N12<税額基本情報!$D$9),VLOOKUP(' 給与計算 '!N12,税額基本情報!$D$6:$M$13,IF(' 基本情報 '!E12>=8,10,' 基本情報 '!E12+3),1)+ROUNDDOWN((' 給与計算 '!N12-税額基本情報!$D$8)*税額基本情報!$E$8,0),0) -> 0 | H9: =IF(AND(' 給与計算 '!$N12>=税額基本情報!$D$9,' 給与計算 '!$N12<税額基本情報!$D$10),VLOOKUP(' 給与計算 '!$N12,税額基本情報!$D$6:$M$13,IF(' 基本情報 '!$E12>=8,10,' 基本情報 '!$E12+3),1)+ROUNDDOWN((' 給与計算 '!$N12-税額基本情報!$D$9)*税額基本情報!$E$9,0),0) -> 0 | I9: =IF(AND(' 給与計算 '!$N12>=税額基本情報!$D$10,' 給与計算 '!$N12<税額基本情報!$D$11),VLOOKUP(' 給与計算 '!$N12,税額基本情報!$D$6:$M$13,IF(' 基本情報 '!$E12>=8,10,' 基本情報 '!$E12+3),1)+ROUNDDOWN((' 給与計算 '!$N12-税額基本情報!$D$10)*税額基本情報!$E$10,0),0) -> 0 | J9: =IF(AND(' 給与計算 '!$N12>=税額基本情報!$D$11,' 給与計算 '!$N12<税額基本情報!$D$12),VLOOKUP(' 給与計算 '!$N12,税額基本情報!$D$6:$M$13,IF(' 基本情報 '!$E12>=8,10,' 基本情報 '!$E12+3),1)+ROUNDDOWN((' 給与計算 '!$N12-税額基本情報!$D$11)*税額基本情報!$E$11,0),0) -> 0 | K9: =IF(AND(' 給与計算 '!$N12>=税額基本情報!$D$12,' 給与計算 '!$N12<税額基本情報!$D$13),VLOOKUP(' 給与計算 '!$N12,税額基本情報!$D$6:$M$13,IF(' 基本情報 '!$E12>=8,10,' 基本情報 '!$E12+3),1)+ROUNDDOWN((' 給与計算 '!$N12-税額基本情報!$D$12)*税額基本情報!$E$12,0),0) -> 0 | L9: =IF(' 給与計算 '!N12>=税額基本情報!$D$13,VLOOKUP(' 給与計算 '!N12,税額基本情報!$D$6:$M$13,IF(' 基本情報 '!E12>=8,10,' 基本情報 '!E12+3),1)+ROUNDDOWN((' 給与計算 '!N12-税額基本情報!$D$13)*税額基本情報!$E$13,0),0) -> 0 | S9: =IF(AND(' 給与計算 '!$N12>=税額基本情報!$D$19,' 給与計算 '!$N12<税額基本情報!$D$20),税額基本情報!$F$19+ROUNDDOWN((' 給与計算 '!$N12-税額基本情報!$D$19)*税額基本情報!$E$19,0),0) -> 0 | T9: =IF(AND(' 給与計算 '!$N12>=税額基本情報!$D$20,' 給与計算 '!$N12<税額基本情報!$D$21),税額基本情報!$F$20+ROUNDDOWN((' 給与計算 '!$N12-税額基本情報!$D$20)*税額基本情報!$E$20,0),0) -> 0 | U9: =IF(' 給与計算 '!N12>=税額基本情報!$D$21,税額基本情報!$F$21+ROUNDDOWN((' 給与計算 '!N12-税額基本情報!$D$21)*税額基本情報!$E$21,0),0) -> 0
C10: 6 | D10: =' 給与計算 '!C13 ->  | E10: =IF(AND(' 給与計算 '!N13>=税額基本情報!$D$6,' 給与計算 '!N13<税額基本情報!$D$7),VLOOKUP(' 給与計算 '!N13,税額基本情報!$D$6:$M$13,IF(' 基本情報 '!E13>=8,10,' 基本情報 '!E13+3),1)+ROUNDDOWN((' 給与計算 '!N13-税額基本情報!$D$6)*税額基本情報!$E$6,0),0) -> 0 | F10: =IF(AND(' 給与計算 '!N13>=税額基本情報!$D$7,' 給与計算 '!N13<税額基本情報!$D$8),VLOOKUP(' 給与計算 '!N13,税額基本情報!$D$6:$M$13,IF(' 基本情報 '!E13>=8,10,' 基本情報 '!E13+3),1)+ROUNDDOWN((' 給与計算 '!N13-税額基本情報!$D$7)*税額基本情報!$E$7,0),0) -> 0 | G10: =IF(AND(' 給与計算 '!N13>=税額基本情報!$D$8,' 給与計算 '!N13<税額基本情報!$D$9),VLOOKUP(' 給与計算 '!N13,税額基本情報!$D$6:$M$13,IF(' 基本情報 '!E13>=8,10,' 基本情報 '!E13+3),1)+ROUNDDOWN((' 給与計算 '!N13-税額基本情報!$D$8)*税額基本情報!$E$8,0),0) -> 0 | H10: =IF(AND(' 給与計算 '!$N13>=税額基本情報!$D$9,' 給与計算 '!$N13<税額基本情報!$D$10),VLOOKUP(' 給与計算 '!$N13,税額基本情報!$D$6:$M$13,IF(' 基本情報 '!$E13>=8,10,' 基本情報 '!$E13+3),1)+ROUNDDOWN((' 給与計算 '!$N13-税額基本情報!$D$9)*税額基本情報!$E$9,0),0) -> 0 | I10: =IF(AND(' 給与計算 '!$N13>=税額基本情報!$D$10,' 給与計算 '!$N13<税額基本情報!$D$11),VLOOKUP(' 給与計算 '!$N13,税額基本情報!$D$6:$M$13,IF(' 基本情報 '!$E13>=8,10,' 基本情報 '!$E13+3),1)+ROUNDDOWN((' 給与計算 '!$N13-税額基本情報!$D$10)*税額基本情報!$E$10,0),0) -> 0 | J10: =IF(AND(' 給与計算 '!$N13>=税額基本情報!$D$11,' 給与計算 '!$N13<税額基本情報!$D$12),VLOOKUP(' 給与計算 '!$N13,税額基本情報!$D$6:$M$13,IF(' 基本情報 '!$E13>=8,10,' 基本情報 '!$E13+3),1)+ROUNDDOWN((' 給与計算 '!$N13-税額基本情報!$D$11)*税額基本情報!$E$11,0),0) -> 0 | K10: =IF(AND(' 給与計算 '!$N13>=税額基本情報!$D$12,' 給与計算 '!$N13<税額基本情報!$D$13),VLOOKUP(' 給与計算 '!$N13,税額基本情報!$D$6:$M$13,IF(' 基本情報 '!$E13>=8,10,' 基本情報 '!$E13+3),1)+ROUNDDOWN((' 給与計算 '!$N13-税額基本情報!$D$12)*税額基本情報!$E$12,0),0) -> 0 | L10: =IF(' 給与計算 '!N13>=税額基本情報!$D$13,VLOOKUP(' 給与計算 '!N13,税額基本情報!$D$6:$M$13,IF(' 基本情報 '!E13>=8,10,' 基本情報 '!E13+3),1)+ROUNDDOWN((' 給与計算 '!N13-税額基本情報!$D$13)*税額基本情報!$E$13,0),0) -> 0 | S10: =IF(AND(' 給与計算 '!$N13>=税額基本情報!$D$19,' 給与計算 '!$N13<税額基本情報!$D$20),税額基本情報!$F$19+ROUNDDOWN((' 給与計算 '!$N13-税額基本情報!$D$19)*税額基本情報!$E$19,0),0) -> 0 | T10: =IF(AND(' 給与計算 '!$N13>=税額基本情報!$D$20,' 給与計算 '!$N13<税額基本情報!$D$21),税額基本情報!$F$20+ROUNDDOWN((' 給与計算 '!$N13-税額基本情報!$D$20)*税額基本情報!$E$20,0),0) -> 0 | U10: =IF(' 給与計算 '!N13>=税額基本情報!$D$21,税額基本情報!$F$21+ROUNDDOWN((' 給与計算 '!N13-税額基本情報!$D$21)*税額基本情報!$E$21,0),0) -> 0
C11: 7 | D11: =' 給与計算 '!C14 ->  | E11: =IF(AND(' 給与計算 '!N14>=税額基本情報!$D$6,' 給与計算 '!N14<税額基本情報!$D$7),VLOOKUP(' 給与計算 '!N14,税額基本情報!$D$6:$M$13,IF(' 基本情報 '!E14>=8,10,' 基本情報 '!E14+3),1)+ROUNDDOWN((' 給与計算 '!N14-税額基本情報!$D$6)*税額基本情報!$E$6,0),0) -> 0 | F11: =IF(AND(' 給与計算 '!N14>=税額基本情報!$D$7,' 給与計算 '!N14<税額基本情報!$D$8),VLOOKUP(' 給与計算 '!N14,税額基本情報!$D$6:$M$13,IF(' 基本情報 '!E14>=8,10,' 基本情報 '!E14+3),1)+ROUNDDOWN((' 給与計算 '!N14-税額基本情報!$D$7)*税額基本情報!$E$7,0),0) -> 0 | G11: =IF(AND(' 給与計算 '!N14>=税額基本情報!$D$8,' 給与計算 '!N14<税額基本情報!$D$9),VLOOKUP(' 給与計算 '!N14,税額基本情報!$D$6:$M$13,IF(' 基本情報 '!E14>=8,10,' 基本情報 '!E14+3),1)+ROUNDDOWN((' 給与計算 '!N14-税額基本情報!$D$8)*税額基本情報!$E$8,0),0) -> 0 | H11: =IF(AND(' 給与計算 '!$N14>=税額基本情報!$D$9,' 給与計算 '!$N14<税額基本情報!$D$10),VLOOKUP(' 給与計算 '!$N14,税額基本情報!$D$6:$M$13,IF(' 基本情報 '!$E14>=8,10,' 基本情報 '!$E14+3),1)+ROUNDDOWN((' 給与計算 '!$N14-税額基本情報!$D$9)*税額基本情報!$E$9,0),0) -> 0 | I11: =IF(AND(' 給与計算 '!$N14>=税額基本情報!$D$10,' 給与計算 '!$N14<税額基本情報!$D$11),VLOOKUP(' 給与計算 '!$N14,税額基本情報!$D$6:$M$13,IF(' 基本情報 '!$E14>=8,10,' 基本情報 '!$E14+3),1)+ROUNDDOWN((' 給与計算 '!$N14-税額基本情報!$D$10)*税額基本情報!$E$10,0),0) -> 0 | J11: =IF(AND(' 給与計算 '!$N14>=税額基本情報!$D$11,' 給与計算 '!$N14<税額基本情報!$D$12),VLOOKUP(' 給与計算 '!$N14,税額基本情報!$D$6:$M$13,IF(' 基本情報 '!$E14>=8,10,' 基本情報 '!$E14+3),1)+ROUNDDOWN((' 給与計算 '!$N14-税額基本情報!$D$11)*税額基本情報!$E$11,0),0) -> 0 | K11: =IF(AND(' 給与計算 '!$N14>=税額基本情報!$D$12,' 給与計算 '!$N14<税額基本情報!$D$13),VLOOKUP(' 給与計算 '!$N14,税額基本情報!$D$6:$M$13,IF(' 基本情報 '!$E14>=8,10,' 基本情報 '!$E14+3),1)+ROUNDDOWN((' 給与計算 '!$N14-税額基本情報!$D$12)*税額基本情報!$E$12,0),0) -> 0 | L11: =IF(' 給与計算 '!N14>=税額基本情報!$D$13,VLOOKUP(' 給与計算 '!N14,税額基本情報!$D$6:$M$13,IF(' 基本情報 '!E14>=8,10,' 基本情報 '!E14+3),1)+ROUNDDOWN((' 給与計算 '!N14-税額基本情報!$D$13)*税額基本情報!$E$13,0),0) -> 0 | S11: =IF(AND(' 給与計算 '!$N14>=税額基本情報!$D$19,' 給与計算 '!$N14<税額基本情報!$D$20),税額基本情報!$F$19+ROUNDDOWN((' 給与計算 '!$N14-税額基本情報!$D$19)*税額基本情報!$E$19,0),0) -> 0 | T11: =IF(AND(' 給与計算 '!$N14>=税額基本情報!$D$20,' 給与計算 '!$N14<税額基本情報!$D$21),税額基本情報!$F$20+ROUNDDOWN((' 給与計算 '!$N14-税額基本情報!$D$20)*税額基本情報!$E$20,0),0) -> 0 | U11: =IF(' 給与計算 '!N14>=税額基本情報!$D$21,税額基本情報!$F$21+ROUNDDOWN((' 給与計算 '!N14-税額基本情報!$D$21)*税額基本情報!$E$21,0),0) -> 0
C12: 8 | D12: =' 給与計算 '!C15 ->  | E12: =IF(AND(' 給与計算 '!N15>=税額基本情報!$D$6,' 給与計算 '!N15<税額基本情報!$D$7),VLOOKUP(' 給与計算 '!N15,税額基本情報!$D$6:$M$13,IF(' 基本情報 '!E15>=8,10,' 基本情報 '!E15+3),1)+ROUNDDOWN((' 給与計算 '!N15-税額基本情報!$D$6)*税額基本情報!$E$6,0),0) -> 0 | F12: =IF(AND(' 給与計算 '!N15>=税額基本情報!$D$7,' 給与計算 '!N15<税額基本情報!$D$8),VLOOKUP(' 給与計算 '!N15,税額基本情報!$D$6:$M$13,IF(' 基本情報 '!E15>=8,10,' 基本情報 '!E15+3),1)+ROUNDDOWN((' 給与計算 '!N15-税額基本情報!$D$7)*税額基本情報!$E$7,0),0) -> 0 | G12: =IF(AND(' 給与計算 '!N15>=税額基本情報!$D$8,' 給与計算 '!N15<税額基本情報!$D$9),VLOOKUP(' 給与計算 '!N15,税額基本情報!$D$6:$M$13,IF(' 基本情報 '!E15>=8,10,' 基本情報 '!E15+3),1)+ROUNDDOWN((' 給与計算 '!N15-税額基本情報!$D$8)*税額基本情報!$E$8,0),0) -> 0 | H12: =IF(AND(' 給与計算 '!$N15>=税額基本情報!$D$9,' 給与計算 '!$N15<税額基本情報!$D$10),VLOOKUP(' 給与計算 '!$N15,税額基本情報!$D$6:$M$13,IF(' 基本情報 '!$E15>=8,10,' 基本情報 '!$E15+3),1)+ROUNDDOWN((' 給与計算 '!$N15-税額基本情報!$D$9)*税額基本情報!$E$9,0),0) -> 0 | I12: =IF(AND(' 給与計算 '!$N15>=税額基本情報!$D$10,' 給与計算 '!$N15<税額基本情報!$D$11),VLOOKUP(' 給与計算 '!$N15,税額基本情報!$D$6:$M$13,IF(' 基本情報 '!$E15>=8,10,' 基本情報 '!$E15+3),1)+ROUNDDOWN((' 給与計算 '!$N15-税額基本情報!$D$10)*税額基本情報!$E$10,0),0) -> 0 | J12: =IF(AND(' 給与計算 '!$N15>=税額基本情報!$D$11,' 給与計算 '!$N15<税額基本情報!$D$12),VLOOKUP(' 給与計算 '!$N15,税額基本情報!$D$6:$M$13,IF(' 基本情報 '!$E15>=8,10,' 基本情報 '!$E15+3),1)+ROUNDDOWN((' 給与計算 '!$N15-税額基本情報!$D$11)*税額基本情報!$E$11,0),0) -> 0 | K12: =IF(AND(' 給与計算 '!$N15>=税額基本情報!$D$12,' 給与計算 '!$N15<税額基本情報!$D$13),VLOOKUP(' 給与計算 '!$N15,税額基本情報!$D$6:$M$13,IF(' 基本情報 '!$E15>=8,10,' 基本情報 '!$E15+3),1)+ROUNDDOWN((' 給与計算 '!$N15-税額基本情報!$D$12)*税額基本情報!$E$12,0),0) -> 0 | L12: =IF(' 給与計算 '!N15>=税額基本情報!$D$13,VLOOKUP(' 給与計算 '!N15,税額基本情報!$D$6:$M$13,IF(' 基本情報 '!E15>=8,10,' 基本情報 '!E15+3),1)+ROUNDDOWN((' 給与計算 '!N15-税額基本情報!$D$13)*税額基本情報!$E$13,0),0) -> 0 | S12: =IF(AND(' 給与計算 '!$N15>=税額基本情報!$D$19,' 給与計算 '!$N15<税額基本情報!$D$20),税額基本情報!$F$19+ROUNDDOWN((' 給与計算 '!$N15-税額基本情報!$D$19)*税額基本情報!$E$19,0),0) -> 0 | T12: =IF(AND(' 給与計算 '!$N15>=税額基本情報!$D$20,' 給与計算 '!$N15<税額基本情報!$D$21),税額基本情報!$F$20+ROUNDDOWN((' 給与計算 '!$N15-税額基本情報!$D$20)*税額基本情報!$E$20,0),0) -> 0 | U12: =IF(' 給与計算 '!N15>=税額基本情報!$D$21,税額基本情報!$F$21+ROUNDDOWN((' 給与計算 '!N15-税額基本情報!$D$21)*税額基本情報!$E$21,0),0) -> 0
C13: 9 | D13: =' 給与計算 '!C16 ->  | E13: =IF(AND(' 給与計算 '!N16>=税額基本情報!$D$6,' 給与計算 '!N16<税額基本情報!$D$7),VLOOKUP(' 給与計算 '!N16,税額基本情報!$D$6:$M$13,IF(' 基本情報 '!E16>=8,10,' 基本情報 '!E16+3),1)+ROUNDDOWN((' 給与計算 '!N16-税額基本情報!$D$6)*税額基本情報!$E$6,0),0) -> 0 | F13: =IF(AND(' 給与計算 '!N16>=税額基本情報!$D$7,' 給与計算 '!N16<税額基本情報!$D$8),VLOOKUP(' 給与計算 '!N16,税額基本情報!$D$6:$M$13,IF(' 基本情報 '!E16>=8,10,' 基本情報 '!E16+3),1)+ROUNDDOWN((' 給与計算 '!N16-税額基本情報!$D$7)*税額基本情報!$E$7,0),0) -> 0 | G13: =IF(AND(' 給与計算 '!N16>=税額基本情報!$D$8,' 給与計算 '!N16<税額基本情報!$D$9),VLOOKUP(' 給与計算 '!N16,税額基本情報!$D$6:$M$13,IF(' 基本情報 '!E16>=8,10,' 基本情報 '!E16+3),1)+ROUNDDOWN((' 給与計算 '!N16-税額基本情報!$D$8)*税額基本情報!$E$8,0),0) -> 0 | H13: =IF(AND(' 給与計算 '!$N16>=税額基本情報!$D$9,' 給与計算 '!$N16<税額基本情報!$D$10),VLOOKUP(' 給与計算 '!$N16,税額基本情報!$D$6:$M$13,IF(' 基本情報 '!$E16>=8,10,' 基本情報 '!$E16+3),1)+ROUNDDOWN((' 給与計算 '!$N16-税額基本情報!$D$9)*税額基本情報!$E$9,0),0) -> 0 | I13: =IF(AND(' 給与計算 '!$N16>=税額基本情報!$D$10,' 給与計算 '!$N16<税額基本情報!$D$11),VLOOKUP(' 給与計算 '!$N16,税額基本情報!$D$6:$M$13,IF(' 基本情報 '!$E16>=8,10,' 基本情報 '!$E16+3),1)+ROUNDDOWN((' 給与計算 '!$N16-税額基本情報!$D$10)*税額基本情報!$E$10,0),0) -> 0 | J13: =IF(AND(' 給与計算 '!$N16>=税額基本情報!$D$11,' 給与計算 '!$N16<税額基本情報!$D$12),VLOOKUP(' 給与計算 '!$N16,税額基本情報!$D$6:$M$13,IF(' 基本情報 '!$E16>=8,10,' 基本情報 '!$E16+3),1)+ROUNDDOWN((' 給与計算 '!$N16-税額基本情報!$D$11)*税額基本情報!$E$11,0),0) -> 0 | K13: =IF(AND(' 給与計算 '!$N16>=税額基本情報!$D$12,' 給与計算 '!$N16<税額基本情報!$D$13),VLOOKUP(' 給与計算 '!$N16,税額基本情報!$D$6:$M$13,IF(' 基本情報 '!$E16>=8,10,' 基本情報 '!$E16+3),1)+ROUNDDOWN((' 給与計算 '!$N16-税額基本情報!$D$12)*税額基本情報!$E$12,0),0) -> 0 | L13: =IF(' 給与計算 '!N16>=税額基本情報!$D$13,VLOOKUP(' 給与計算 '!N16,税額基本情報!$D$6:$M$13,IF(' 基本情報 '!E16>=8,10,' 基本情報 '!E16+3),1)+ROUNDDOWN((' 給与計算 '!N16-税額基本情報!$D$13)*税額基本情報!$E$13,0),0) -> 0 | S13: =IF(AND(' 給与計算 '!$N16>=税額基本情報!$D$19,' 給与計算 '!$N16<税額基本情報!$D$20),税額基本情報!$F$19+ROUNDDOWN((' 給与計算 '!$N16-税額基本情報!$D$19)*税額基本情報!$E$19,0),0) -> 0 | T13: =IF(AND(' 給与計算 '!$N16>=税額基本情報!$D$20,' 給与計算 '!$N16<税額基本情報!$D$21),税額基本情報!$F$20+ROUNDDOWN((' 給与計算 '!$N16-税額基本情報!$D$20)*税額基本情報!$E$20,0),0) -> 0 | U13: =IF(' 給与計算 '!N16>=税額基本情報!$D$21,税額基本情報!$F$21+ROUNDDOWN((' 給与計算 '!N16-税額基本情報!$D$21)*税額基本情報!$E$21,0),0) -> 0
C14: 10 | D14: =' 給与計算 '!C17 ->  | E14: =IF(AND(' 給与計算 '!N17>=税額基本情報!$D$6,' 給与計算 '!N17<税額基本情報!$D$7),VLOOKUP(' 給与計算 '!N17,税額基本情報!$D$6:$M$13,IF(' 基本情報 '!E17>=8,10,' 基本情報 '!E17+3),1)+ROUNDDOWN((' 給与計算 '!N17-税額基本情報!$D$6)*税額基本情報!$E$6,0),0) -> 0 | F14: =IF(AND(' 給与計算 '!N17>=税額基本情報!$D$7,' 給与計算 '!N17<税額基本情報!$D$8),VLOOKUP(' 給与計算 '!N17,税額基本情報!$D$6:$M$13,IF(' 基本情報 '!E17>=8,10,' 基本情報 '!E17+3),1)+ROUNDDOWN((' 給与計算 '!N17-税額基本情報!$D$7)*税額基本情報!$E$7,0),0) -> 0 | G14: =IF(AND(' 給与計算 '!N17>=税額基本情報!$D$8,' 給与計算 '!N17<税額基本情報!$D$9),VLOOKUP(' 給与計算 '!N17,税額基本情報!$D$6:$M$13,IF(' 基本情報 '!E17>=8,10,' 基本情報 '!E17+3),1)+ROUNDDOWN((' 給与計算 '!N17-税額基本情報!$D$8)*税額基本情報!$E$8,0),0) -> 0 | H14: =IF(AND(' 給与計算 '!$N17>=税額基本情報!$D$9,' 給与計算 '!$N17<税額基本情報!$D$10),VLOOKUP(' 給与計算 '!$N17,税額基本情報!$D$6:$M$13,IF(' 基本情報 '!$E17>=8,10,' 基本情報 '!$E17+3),1)+ROUNDDOWN((' 給与計算 '!$N17-税額基本情報!$D$9)*税額基本情報!$E$9,0),0) -> 0 | I14: =IF(AND(' 給与計算 '!$N17>=税額基本情報!$D$10,' 給与計算 '!$N17<税額基本情報!$D$11),VLOOKUP(' 給与計算 '!$N17,税額基本情報!$D$6:$M$13,IF(' 基本情報 '!$E17>=8,10,' 基本情報 '!$E17+3),1)+ROUNDDOWN((' 給与計算 '!$N17-税額基本情報!$D$10)*税額基本情報!$E$10,0),0) -> 0 | J14: =IF(AND(' 給与計算 '!$N17>=税額基本情報!$D$11,' 給与計算 '!$N17<税額基本情報!$D$12),VLOOKUP(' 給与計算 '!$N17,税額基本情報!$D$6:$M$13,IF(' 基本情報 '!$E17>=8,10,' 基本情報 '!$E17+3),1)+ROUNDDOWN((' 給与計算 '!$N17-税額基本情報!$D$11)*税額基本情報!$E$11,0),0) -> 0 | K14: =IF(AND(' 給与計算 '!$N17>=税額基本情報!$D$12,' 給与計算 '!$N17<税額基本情報!$D$13),VLOOKUP(' 給与計算 '!$N17,税額基本情報!$D$6:$M$13,IF(' 基本情報 '!$E17>=8,10,' 基本情報 '!$E17+3),1)+ROUNDDOWN((' 給与計算 '!$N17-税額基本情報!$D$12)*税額基本情報!$E$12,0),0) -> 0 | L14: =IF(' 給与計算 '!N17>=税額基本情報!$D$13,VLOOKUP(' 給与計算 '!N17,税額基本情報!$D$6:$M$13,IF(' 基本情報 '!E17>=8,10,' 基本情報 '!E17+3),1)+ROUNDDOWN((' 給与計算 '!N17-税額基本情報!$D$13)*税額基本情報!$E$13,0),0) -> 0 | S14: =IF(AND(' 給与計算 '!$N17>=税額基本情報!$D$19,' 給与計算 '!$N17<税額基本情報!$D$20),税額基本情報!$F$19+ROUNDDOWN((' 給与計算 '!$N17-税額基本情報!$D$19)*税額基本情報!$E$19,0),0) -> 0 | T14: =IF(AND(' 給与計算 '!$N17>=税額基本情報!$D$20,' 給与計算 '!$N17<税額基本情報!$D$21),税額基本情報!$F$20+ROUNDDOWN((' 給与計算 '!$N17-税額基本情報!$D$20)*税額基本情報!$E$20,0),0) -> 0 | U14: =IF(' 給与計算 '!N17>=税額基本情報!$D$21,税額基本情報!$F$21+ROUNDDOWN((' 給与計算 '!N17-税額基本情報!$D$21)*税額基本情報!$E$21,0),0) -> 0
C15: 11 | D15: =' 給与計算 '!C18 ->  | E15: =IF(AND(' 給与計算 '!N18>=税額基本情報!$D$6,' 給与計算 '!N18<税額基本情報!$D$7),VLOOKUP(' 給与計算 '!N18,税額基本情報!$D$6:$M$13,IF(' 基本情報 '!E18>=8,10,' 基本情報 '!E18+3),1)+ROUNDDOWN((' 給与計算 '!N18-税額基本情報!$D$6)*税額基本情報!$E$6,0),0) -> 0 | F15: =IF(AND(' 給与計算 '!N18>=税額基本情報!$D$7,' 給与計算 '!N18<税額基本情報!$D$8),VLOOKUP(' 給与計算 '!N18,税額基本情報!$D$6:$M$13,IF(' 基本情報 '!E18>=8,10,' 基本情報 '!E18+3),1)+ROUNDDOWN((' 給与計算 '!N18-税額基本情報!$D$7)*税額基本情報!$E$7,0),0) -> 0 | G15: =IF(AND(' 給与計算 '!N18>=税額基本情報!$D$8,' 給与計算 '!N18<税額基本情報!$D$9),VLOOKUP(' 給与計算 '!N18,税額基本情報!$D$6:$M$13,IF(' 基本情報 '!E18>=8,10,' 基本情報 '!E18+3),1)+ROUNDDOWN((' 給与計算 '!N18-税額基本情報!$D$8)*税額基本情報!$E$8,0),0) -> 0 | H15: =IF(AND(' 給与計算 '!$N18>=税額基本情報!$D$9,' 給与計算 '!$N18<税額基本情報!$D$10),VLOOKUP(' 給与計算 '!$N18,税額基本情報!$D$6:$M$13,IF(' 基本情報 '!$E18>=8,10,' 基本情報 '!$E18+3),1)+ROUNDDOWN((' 給与計算 '!$N18-税額基本情報!$D$9)*税額基本情報!$E$9,0),0) -> 0 | I15: =IF(AND(' 給与計算 '!$N18>=税額基本情報!$D$10,' 給与計算 '!$N18<税額基本情報!$D$11),VLOOKUP(' 給与計算 '!$N18,税額基本情報!$D$6:$M$13,IF(' 基本情報 '!$E18>=8,10,' 基本情報 '!$E18+3),1)+ROUNDDOWN((' 給与計算 '!$N18-税額基本情報!$D$10)*税額基本情報!$E$10,0),0) -> 0 | J15: =IF(AND(' 給与計算 '!$N18>=税額基本情報!$D$11,' 給与計算 '!$N18<税額基本情報!$D$12),VLOOKUP(' 給与計算 '!$N18,税額基本情報!$D$6:$M$13,IF(' 基本情報 '!$E18>=8,10,' 基本情報 '!$E18+3),1)+ROUNDDOWN((' 給与計算 '!$N18-税額基本情報!$D$11)*税額基本情報!$E$11,0),0) -> 0 | K15: =IF(AND(' 給与計算 '!$N18>=税額基本情報!$D$12,' 給与計算 '!$N18<税額基本情報!$D$13),VLOOKUP(' 給与計算 '!$N18,税額基本情報!$D$6:$M$13,IF(' 基本情報 '!$E18>=8,10,' 基本情報 '!$E18+3),1)+ROUNDDOWN((' 給与計算 '!$N18-税額基本情報!$D$12)*税額基本情報!$E$12,0),0) -> 0 | L15: =IF(' 給与計算 '!N18>=税額基本情報!$D$13,VLOOKUP(' 給与計算 '!N18,税額基本情報!$D$6:$M$13,IF(' 基本情報 '!E18>=8,10,' 基本情報 '!E18+3),1)+ROUNDDOWN((' 給与計算 '!N18-税額基本情報!$D$13)*税額基本情報!$E$13,0),0) -> 0 | S15: =IF(AND(' 給与計算 '!$N18>=税額基本情報!$D$19,' 給与計算 '!$N18<税額基本情報!$D$20),税額基本情報!$F$19+ROUNDDOWN((' 給与計算 '!$N18-税額基本情報!$D$19)*税額基本情報!$E$19,0),0) -> 0 | T15: =IF(AND(' 給与計算 '!$N18>=税額基本情報!$D$20,' 給与計算 '!$N18<税額基本情報!$D$21),税額基本情報!$F$20+ROUNDDOWN((' 給与計算 '!$N18-税額基本情報!$D$20)*税額基本情報!$E$20,0),0) -> 0 | U15: =IF(' 給与計算 '!N18>=税額基本情報!$D$21,税額基本情報!$F$21+ROUNDDOWN((' 給与計算 '!N18-税額基本情報!$D$21)*税額基本情報!$E$21,0),0) -> 0
C16: 12 | D16: =' 給与計算 '!C19 ->  | E16: =IF(AND(' 給与計算 '!N19>=税額基本情報!$D$6,' 給与計算 '!N19<税額基本情報!$D$7),VLOOKUP(' 給与計算 '!N19,税額基本情報!$D$6:$M$13,IF(' 基本情報 '!E19>=8,10,' 基本情報 '!E19+3),1)+ROUNDDOWN((' 給与計算 '!N19-税額基本情報!$D$6)*税額基本情報!$E$6,0),0) -> 0 | F16: =IF(AND(' 給与計算 '!N19>=税額基本情報!$D$7,' 給与計算 '!N19<税額基本情報!$D$8),VLOOKUP(' 給与計算 '!N19,税額基本情報!$D$6:$M$13,IF(' 基本情報 '!E19>=8,10,' 基本情報 '!E19+3),1)+ROUNDDOWN((' 給与計算 '!N19-税額基本情報!$D$7)*税額基本情報!$E$7,0),0) -> 0 | G16: =IF(AND(' 給与計算 '!N19>=税額基本情報!$D$8,' 給与計算 '!N19<税額基本情報!$D$9),VLOOKUP(' 給与計算 '!N19,税額基本情報!$D$6:$M$13,IF(' 基本情報 '!E19>=8,10,' 基本情報 '!E19+3),1)+ROUNDDOWN((' 給与計算 '!N19-税額基本情報!$D$8)*税額基本情報!$E$8,0),0) -> 0 | H16: =IF(AND(' 給与計算 '!$N19>=税額基本情報!$D$9,' 給与計算 '!$N19<税額基本情報!$D$10),VLOOKUP(' 給与計算 '!$N19,税額基本情報!$D$6:$M$13,IF(' 基本情報 '!$E19>=8,10,' 基本情報 '!$E19+3),1)+ROUNDDOWN((' 給与計算 '!$N19-税額基本情報!$D$9)*税額基本情報!$E$9,0),0) -> 0 | I16: =IF(AND(' 給与計算 '!$N19>=税額基本情報!$D$10,' 給与計算 '!$N19<税額基本情報!$D$11),VLOOKUP(' 給与計算 '!$N19,税額基本情報!$D$6:$M$13,IF(' 基本情報 '!$E19>=8,10,' 基本情報 '!$E19+3),1)+ROUNDDOWN((' 給与計算 '!$N19-税額基本情報!$D$10)*税額基本情報!$E$10,0),0) -> 0 | J16: =IF(AND(' 給与計算 '!$N19>=税額基本情報!$D$11,' 給与計算 '!$N19<税額基本情報!$D$12),VLOOKUP(' 給与計算 '!$N19,税額基本情報!$D$6:$M$13,IF(' 基本情報 '!$E19>=8,10,' 基本情報 '!$E19+3),1)+ROUNDDOWN((' 給与計算 '!$N19-税額基本情報!$D$11)*税額基本情報!$E$11,0),0) -> 0 | K16: =IF(AND(' 給与計算 '!$N19>=税額基本情報!$D$12,' 給与計算 '!$N19<税額基本情報!$D$13),VLOOKUP(' 給与計算 '!$N19,税額基本情報!$D$6:$M$13,IF(' 基本情報 '!$E19>=8,10,' 基本情報 '!$E19+3),1)+ROUNDDOWN((' 給与計算 '!$N19-税額基本情報!$D$12)*税額基本情報!$E$12,0),0) -> 0 | L16: =IF(' 給与計算 '!N19>=税額基本情報!$D$13,VLOOKUP(' 給与計算 '!N19,税額基本情報!$D$6:$M$13,IF(' 基本情報 '!E19>=8,10,' 基本情報 '!E19+3),1)+ROUNDDOWN((' 給与計算 '!N19-税額基本情報!$D$13)*税額基本情報!$E$13,0),0) -> 0 | S16: =IF(AND(' 給与計算 '!$N19>=税額基本情報!$D$19,' 給与計算 '!$N19<税額基本情報!$D$20),税額基本情報!$F$19+ROUNDDOWN((' 給与計算 '!$N19-税額基本情報!$D$19)*税額基本情報!$E$19,0),0) -> 0 | T16: =IF(AND(' 給与計算 '!$N19>=税額基本情報!$D$20,' 給与計算 '!$N19<税額基本情報!$D$21),税額基本情報!$F$20+ROUNDDOWN((' 給与計算 '!$N19-税額基本情報!$D$20)*税額基本情報!$E$20,0),0) -> 0 | U16: =IF(' 給与計算 '!N19>=税額基本情報!$D$21,税額基本情報!$F$21+ROUNDDOWN((' 給与計算 '!N19-税額基本情報!$D$21)*税額基本情報!$E$21,0),0) -> 0
C17: 13 | D17: =' 給与計算 '!C20 ->  | E17: =IF(AND(' 給与計算 '!N20>=税額基本情報!$D$6,' 給与計算 '!N20<税額基本情報!$D$7),VLOOKUP(' 給与計算 '!N20,税額基本情報!$D$6:$M$13,IF(' 基本情報 '!E20>=8,10,' 基本情報 '!E20+3),1)+ROUNDDOWN((' 給与計算 '!N20-税額基本情報!$D$6)*税額基本情報!$E$6,0),0) -> 0 | F17: =IF(AND(' 給与計算 '!N20>=税額基本情報!$D$7,' 給与計算 '!N20<税額基本情報!$D$8),VLOOKUP(' 給与計算 '!N20,税額基本情報!$D$6:$M$13,IF(' 基本情報 '!E20>=8,10,' 基本情報 '!E20+3),1)+ROUNDDOWN((' 給与計算 '!N20-税額基本情報!$D$7)*税額基本情報!$E$7,0),0) -> 0 | G17: =IF(AND(' 給与計算 '!N20>=税額基本情報!$D$8,' 給与計算 '!N20<税額基本情報!$D$9),VLOOKUP(' 給与計算 '!N20,税額基本情報!$D$6:$M$13,IF(' 基本情報 '!E20>=8,10,' 基本情報 '!E20+3),1)+ROUNDDOWN((' 給与計算 '!N20-税額基本情報!$D$8)*税額基本情報!$E$8,0),0) -> 0 | H17: =IF(AND(' 給与計算 '!$N20>=税額基本情報!$D$9,' 給与計算 '!$N20<税額基本情報!$D$10),VLOOKUP(' 給与計算 '!$N20,税額基本情報!$D$6:$M$13,IF(' 基本情報 '!$E20>=8,10,' 基本情報 '!$E20+3),1)+ROUNDDOWN((' 給与計算 '!$N20-税額基本情報!$D$9)*税額基本情報!$E$9,0),0) -> 0 | I17: =IF(AND(' 給与計算 '!$N20>=税額基本情報!$D$10,' 給与計算 '!$N20<税額基本情報!$D$11),VLOOKUP(' 給与計算 '!$N20,税額基本情報!$D$6:$M$13,IF(' 基本情報 '!$E20>=8,10,' 基本情報 '!$E20+3),1)+ROUNDDOWN((' 給与計算 '!$N20-税額基本情報!$D$10)*税額基本情報!$E$10,0),0) -> 0 | J17: =IF(AND(' 給与計算 '!$N20>=税額基本情報!$D$11,' 給与計算 '!$N20<税額基本情報!$D$12),VLOOKUP(' 給与計算 '!$N20,税額基本情報!$D$6:$M$13,IF(' 基本情報 '!$E20>=8,10,' 基本情報 '!$E20+3),1)+ROUNDDOWN((' 給与計算 '!$N20-税額基本情報!$D$11)*税額基本情報!$E$11,0),0) -> 0 | K17: =IF(AND(' 給与計算 '!$N20>=税額基本情報!$D$12,' 給与計算 '!$N20<税額基本情報!$D$13),VLOOKUP(' 給与計算 '!$N20,税額基本情報!$D$6:$M$13,IF(' 基本情報 '!$E20>=8,10,' 基本情報 '!$E20+3),1)+ROUNDDOWN((' 給与計算 '!$N20-税額基本情報!$D$12)*税額基本情報!$E$12,0),0) -> 0 | L17: =IF(' 給与計算 '!N20>=税額基本情報!$D$13,VLOOKUP(' 給与計算 '!N20,税額基本情報!$D$6:$M$13,IF(' 基本情報 '!E20>=8,10,' 基本情報 '!E20+3),1)+ROUNDDOWN((' 給与計算 '!N20-税額基本情報!$D$13)*税額基本情報!$E$13,0),0) -> 0 | S17: =IF(AND(' 給与計算 '!$N20>=税額基本情報!$D$19,' 給与計算 '!$N20<税額基本情報!$D$20),税額基本情報!$F$19+ROUNDDOWN((' 給与計算 '!$N20-税額基本情報!$D$19)*税額基本情報!$E$19,0),0) -> 0 | T17: =IF(AND(' 給与計算 '!$N20>=税額基本情報!$D$20,' 給与計算 '!$N20<税額基本情報!$D$21),税額基本情報!$F$20+ROUNDDOWN((' 給与計算 '!$N20-税額基本情報!$D$20)*税額基本情報!$E$20,0),0) -> 0 | U17: =IF(' 給与計算 '!N20>=税額基本情報!$D$21,税額基本情報!$F$21+ROUNDDOWN((' 給与計算 '!N20-税額基本情報!$D$21)*税額基本情報!$E$21,0),0) -> 0
C18: 14 | D18: =' 給与計算 '!C21 ->  | E18: =IF(AND(' 給与計算 '!N21>=税額基本情報!$D$6,' 給与計算 '!N21<税額基本情報!$D$7),VLOOKUP(' 給与計算 '!N21,税額基本情報!$D$6:$M$13,IF(' 基本情報 '!E21>=8,10,' 基本情報 '!E21+3),1)+ROUNDDOWN((' 給与計算 '!N21-税額基本情報!$D$6)*税額基本情報!$E$6,0),0) -> 0 | F18: =IF(AND(' 給与計算 '!N21>=税額基本情報!$D$7,' 給与計算 '!N21<税額基本情報!$D$8),VLOOKUP(' 給与計算 '!N21,税額基本情報!$D$6:$M$13,IF(' 基本情報 '!E21>=8,10,' 基本情報 '!E21+3),1)+ROUNDDOWN((' 給与計算 '!N21-税額基本情報!$D$7)*税額基本情報!$E$7,0),0) -> 0 | G18: =IF(AND(' 給与計算 '!N21>=税額基本情報!$D$8,' 給与計算 '!N21<税額基本情報!$D$9),VLOOKUP(' 給与計算 '!N21,税額基本情報!$D$6:$M$13,IF(' 基本情報 '!E21>=8,10,' 基本情報 '!E21+3),1)+ROUNDDOWN((' 給与計算 '!N21-税額基本情報!$D$8)*税額基本情報!$E$8,0),0) -> 0 | H18: =IF(AND(' 給与計算 '!$N21>=税額基本情報!$D$9,' 給与計算 '!$N21<税額基本情報!$D$10),VLOOKUP(' 給与計算 '!$N21,税額基本情報!$D$6:$M$13,IF(' 基本情報 '!$E21>=8,10,' 基本情報 '!$E21+3),1)+ROUNDDOWN((' 給与計算 '!$N21-税額基本情報!$D$9)*税額基本情報!$E$9,0),0) -> 0 | I18: =IF(AND(' 給与計算 '!$N21>=税額基本情報!$D$10,' 給与計算 '!$N21<税額基本情報!$D$11),VLOOKUP(' 給与計算 '!$N21,税額基本情報!$D$6:$M$13,IF(' 基本情報 '!$E21>=8,10,' 基本情報 '!$E21+3),1)+ROUNDDOWN((' 給与計算 '!$N21-税額基本情報!$D$10)*税額基本情報!$E$10,0),0) -> 0 | J18: =IF(AND(' 給与計算 '!$N21>=税額基本情報!$D$11,' 給与計算 '!$N21<税額基本情報!$D$12),VLOOKUP(' 給与計算 '!$N21,税額基本情報!$D$6:$M$13,IF(' 基本情報 '!$E21>=8,10,' 基本情報 '!$E21+3),1)+ROUNDDOWN((' 給与計算 '!$N21-税額基本情報!$D$11)*税額基本情報!$E$11,0),0) -> 0 | K18: =IF(AND(' 給与計算 '!$N21>=税額基本情報!$D$12,' 給与計算 '!$N21<税額基本情報!$D$13),VLOOKUP(' 給与計算 '!$N21,税額基本情報!$D$6:$M$13,IF(' 基本情報 '!$E21>=8,10,' 基本情報 '!$E21+3),1)+ROUNDDOWN((' 給与計算 '!$N21-税額基本情報!$D$12)*税額基本情報!$E$12,0),0) -> 0 | L18: =IF(' 給与計算 '!N21>=税額基本情報!$D$13,VLOOKUP(' 給与計算 '!N21,税額基本情報!$D$6:$M$13,IF(' 基本情報 '!E21>=8,10,' 基本情報 '!E21+3),1)+ROUNDDOWN((' 給与計算 '!N21-税額基本情報!$D$13)*税額基本情報!$E$13,0),0) -> 0 | S18: =IF(AND(' 給与計算 '!$N21>=税額基本情報!$D$19,' 給与計算 '!$N21<税額基本情報!$D$20),税額基本情報!$F$19+ROUNDDOWN((' 給与計算 '!$N21-税額基本情報!$D$19)*税額基本情報!$E$19,0),0) -> 0 | T18: =IF(AND(' 給与計算 '!$N21>=税額基本情報!$D$20,' 給与計算 '!$N21<税額基本情報!$D$21),税額基本情報!$F$20+ROUNDDOWN((' 給与計算 '!$N21-税額基本情報!$D$20)*税額基本情報!$E$20,0),0) -> 0 | U18: =IF(' 給与計算 '!N21>=税額基本情報!$D$21,税額基本情報!$F$21+ROUNDDOWN((' 給与計算 '!N21-税額基本情報!$D$21)*税額基本情報!$E$21,0),0) -> 0
C19: 15 | D19: =' 給与計算 '!C22 ->  | E19: =IF(AND(' 給与計算 '!N22>=税額基本情報!$D$6,' 給与計算 '!N22<税額基本情報!$D$7),VLOOKUP(' 給与計算 '!N22,税額基本情報!$D$6:$M$13,IF(' 基本情報 '!E22>=8,10,' 基本情報 '!E22+3),1)+ROUNDDOWN((' 給与計算 '!N22-税額基本情報!$D$6)*税額基本情報!$E$6,0),0) -> 0 | F19: =IF(AND(' 給与計算 '!N22>=税額基本情報!$D$7,' 給与計算 '!N22<税額基本情報!$D$8),VLOOKUP(' 給与計算 '!N22,税額基本情報!$D$6:$M$13,IF(' 基本情報 '!E22>=8,10,' 基本情報 '!E22+3),1)+ROUNDDOWN((' 給与計算 '!N22-税額基本情報!$D$7)*税額基本情報!$E$7,0),0) -> 0 | G19: =IF(AND(' 給与計算 '!N22>=税額基本情報!$D$8,' 給与計算 '!N22<税額基本情報!$D$9),VLOOKUP(' 給与計算 '!N22,税額基本情報!$D$6:$M$13,IF(' 基本情報 '!E22>=8,10,' 基本情報 '!E22+3),1)+ROUNDDOWN((' 給与計算 '!N22-税額基本情報!$D$8)*税額基本情報!$E$8,0),0) -> 0 | H19: =IF(AND(' 給与計算 '!$N22>=税額基本情報!$D$9,' 給与計算 '!$N22<税額基本情報!$D$10),VLOOKUP(' 給与計算 '!$N22,税額基本情報!$D$6:$M$13,IF(' 基本情報 '!$E22>=8,10,' 基本情報 '!$E22+3),1)+ROUNDDOWN((' 給与計算 '!$N22-税額基本情報!$D$9)*税額基本情報!$E$9,0),0) -> 0 | I19: =IF(AND(' 給与計算 '!$N22>=税額基本情報!$D$10,' 給与計算 '!$N22<税額基本情報!$D$11),VLOOKUP(' 給与計算 '!$N22,税額基本情報!$D$6:$M$13,IF(' 基本情報 '!$E22>=8,10,' 基本情報 '!$E22+3),1)+ROUNDDOWN((' 給与計算 '!$N22-税額基本情報!$D$10)*税額基本情報!$E$10,0),0) -> 0 | J19: =IF(AND(' 給与計算 '!$N22>=税額基本情報!$D$11,' 給与計算 '!$N22<税額基本情報!$D$12),VLOOKUP(' 給与計算 '!$N22,税額基本情報!$D$6:$M$13,IF(' 基本情報 '!$E22>=8,10,' 基本情報 '!$E22+3),1)+ROUNDDOWN((' 給与計算 '!$N22-税額基本情報!$D$11)*税額基本情報!$E$11,0),0) -> 0 | K19: =IF(AND(' 給与計算 '!$N22>=税額基本情報!$D$12,' 給与計算 '!$N22<税額基本情報!$D$13),VLOOKUP(' 給与計算 '!$N22,税額基本情報!$D$6:$M$13,IF(' 基本情報 '!$E22>=8,10,' 基本情報 '!$E22+3),1)+ROUNDDOWN((' 給与計算 '!$N22-税額基本情報!$D$12)*税額基本情報!$E$12,0),0) -> 0 | L19: =IF(' 給与計算 '!N22>=税額基本情報!$D$13,VLOOKUP(' 給与計算 '!N22,税額基本情報!$D$6:$M$13,IF(' 基本情報 '!E22>=8,10,' 基本情報 '!E22+3),1)+ROUNDDOWN((' 給与計算 '!N22-税額基本情報!$D$13)*税額基本情報!$E$13,0),0) -> 0 | S19: =IF(AND(' 給与計算 '!$N22>=税額基本情報!$D$19,' 給与計算 '!$N22<税額基本情報!$D$20),税額基本情報!$F$19+ROUNDDOWN((' 給与計算 '!$N22-税額基本情報!$D$19)*税額基本情報!$E$19,0),0) -> 0 | T19: =IF(AND(' 給与計算 '!$N22>=税額基本情報!$D$20,' 給与計算 '!$N22<税額基本情報!$D$21),税額基本情報!$F$20+ROUNDDOWN((' 給与計算 '!$N22-税額基本情報!$D$20)*税額基本情報!$E$20,0),0) -> 0 | U19: =IF(' 給与計算 '!N22>=税額基本情報!$D$21,税額基本情報!$F$21+ROUNDDOWN((' 給与計算 '!N22-税額基本情報!$D$21)*税額基本情報!$E$21,0),0) -> 0
C20: 16 | D20: =' 給与計算 '!C23 ->  | E20: =IF(AND(' 給与計算 '!N23>=税額基本情報!$D$6,' 給与計算 '!N23<税額基本情報!$D$7),VLOOKUP(' 給与計算 '!N23,税額基本情報!$D$6:$M$13,IF(' 基本情報 '!E23>=8,10,' 基本情報 '!E23+3),1)+ROUNDDOWN((' 給与計算 '!N23-税額基本情報!$D$6)*税額基本情報!$E$6,0),0) -> 0 | F20: =IF(AND(' 給与計算 '!N23>=税額基本情報!$D$7,' 給与計算 '!N23<税額基本情報!$D$8),VLOOKUP(' 給与計算 '!N23,税額基本情報!$D$6:$M$13,IF(' 基本情報 '!E23>=8,10,' 基本情報 '!E23+3),1)+ROUNDDOWN((' 給与計算 '!N23-税額基本情報!$D$7)*税額基本情報!$E$7,0),0) -> 0 | G20: =IF(AND(' 給与計算 '!N23>=税額基本情報!$D$8,' 給与計算 '!N23<税額基本情報!$D$9),VLOOKUP(' 給与計算 '!N23,税額基本情報!$D$6:$M$13,IF(' 基本情報 '!E23>=8,10,' 基本情報 '!E23+3),1)+ROUNDDOWN((' 給与計算 '!N23-税額基本情報!$D$8)*税額基本情報!$E$8,0),0) -> 0 | H20: =IF(AND(' 給与計算 '!$N23>=税額基本情報!$D$9,' 給与計算 '!$N23<税額基本情報!$D$10),VLOOKUP(' 給与計算 '!$N23,税額基本情報!$D$6:$M$13,IF(' 基本情報 '!$E23>=8,10,' 基本情報 '!$E23+3),1)+ROUNDDOWN((' 給与計算 '!$N23-税額基本情報!$D$9)*税額基本情報!$E$9,0),0) -> 0 | I20: =IF(AND(' 給与計算 '!$N23>=税額基本情報!$D$10,' 給与計算 '!$N23<税額基本情報!$D$11),VLOOKUP(' 給与計算 '!$N23,税額基本情報!$D$6:$M$13,IF(' 基本情報 '!$E23>=8,10,' 基本情報 '!$E23+3),1)+ROUNDDOWN((' 給与計算 '!$N23-税額基本情報!$D$10)*税額基本情報!$E$10,0),0) -> 0 | J20: =IF(AND(' 給与計算 '!$N23>=税額基本情報!$D$11,' 給与計算 '!$N23<税額基本情報!$D$12),VLOOKUP(' 給与計算 '!$N23,税額基本情報!$D$6:$M$13,IF(' 基本情報 '!$E23>=8,10,' 基本情報 '!$E23+3),1)+ROUNDDOWN((' 給与計算 '!$N23-税額基本情報!$D$11)*税額基本情報!$E$11,0),0) -> 0 | K20: =IF(AND(' 給与計算 '!$N23>=税額基本情報!$D$12,' 給与計算 '!$N23<税額基本情報!$D$13),VLOOKUP(' 給与計算 '!$N23,税額基本情報!$D$6:$M$13,IF(' 基本情報 '!$E23>=8,10,' 基本情報 '!$E23+3),1)+ROUNDDOWN((' 給与計算 '!$N23-税額基本情報!$D$12)*税額基本情報!$E$12,0),0) -> 0 | L20: =IF(' 給与計算 '!N23>=税額基本情報!$D$13,VLOOKUP(' 給与計算 '!N23,税額基本情報!$D$6:$M$13,IF(' 基本情報 '!E23>=8,10,' 基本情報 '!E23+3),1)+ROUNDDOWN((' 給与計算 '!N23-税額基本情報!$D$13)*税額基本情報!$E$13,0),0) -> 0 | S20: =IF(AND(' 給与計算 '!$N23>=税額基本情報!$D$19,' 給与計算 '!$N23<税額基本情報!$D$20),税額基本情報!$F$19+ROUNDDOWN((' 給与計算 '!$N23-税額基本情報!$D$19)*税額基本情報!$E$19,0),0) -> 0 | T20: =IF(AND(' 給与計算 '!$N23>=税額基本情報!$D$20,' 給与計算 '!$N23<税額基本情報!$D$21),税額基本情報!$F$20+ROUNDDOWN((' 給与計算 '!$N23-税額基本情報!$D$20)*税額基本情報!$E$20,0),0) -> 0 | U20: =IF(' 給与計算 '!N23>=税額基本情報!$D$21,税額基本情報!$F$21+ROUNDDOWN((' 給与計算 '!N23-税額基本情報!$D$21)*税額基本情報!$E$21,0),0) -> 0
C21: 17 | D21: =' 給与計算 '!C24 ->  | E21: =IF(AND(' 給与計算 '!N24>=税額基本情報!$D$6,' 給与計算 '!N24<税額基本情報!$D$7),VLOOKUP(' 給与計算 '!N24,税額基本情報!$D$6:$M$13,IF(' 基本情報 '!E24>=8,10,' 基本情報 '!E24+3),1)+ROUNDDOWN((' 給与計算 '!N24-税額基本情報!$D$6)*税額基本情報!$E$6,0),0) -> 0 | F21: =IF(AND(' 給与計算 '!N24>=税額基本情報!$D$7,' 給与計算 '!N24<税額基本情報!$D$8),VLOOKUP(' 給与計算 '!N24,税額基本情報!$D$6:$M$13,IF(' 基本情報 '!E24>=8,10,' 基本情報 '!E24+3),1)+ROUNDDOWN((' 給与計算 '!N24-税額基本情報!$D$7)*税額基本情報!$E$7,0),0) -> 0 | G21: =IF(AND(' 給与計算 '!N24>=税額基本情報!$D$8,' 給与計算 '!N24<税額基本情報!$D$9),VLOOKUP(' 給与計算 '!N24,税額基本情報!$D$6:$M$13,IF(' 基本情報 '!E24>=8,10,' 基本情報 '!E24+3),1)+ROUNDDOWN((' 給与計算 '!N24-税額基本情報!$D$8)*税額基本情報!$E$8,0),0) -> 0 | H21: =IF(AND(' 給与計算 '!$N24>=税額基本情報!$D$9,' 給与計算 '!$N24<税額基本情報!$D$10),VLOOKUP(' 給与計算 '!$N24,税額基本情報!$D$6:$M$13,IF(' 基本情報 '!$E24>=8,10,' 基本情報 '!$E24+3),1)+ROUNDDOWN((' 給与計算 '!$N24-税額基本情報!$D$9)*税額基本情報!$E$9,0),0) -> 0 | I21: =IF(AND(' 給与計算 '!$N24>=税額基本情報!$D$10,' 給与計算 '!$N24<税額基本情報!$D$11),VLOOKUP(' 給与計算 '!$N24,税額基本情報!$D$6:$M$13,IF(' 基本情報 '!$E24>=8,10,' 基本情報 '!$E24+3),1)+ROUNDDOWN((' 給与計算 '!$N24-税額基本情報!$D$10)*税額基本情報!$E$10,0),0) -> 0 | J21: =IF(AND(' 給与計算 '!$N24>=税額基本情報!$D$11,' 給与計算 '!$N24<税額基本情報!$D$12),VLOOKUP(' 給与計算 '!$N24,税額基本情報!$D$6:$M$13,IF(' 基本情報 '!$E24>=8,10,' 基本情報 '!$E24+3),1)+ROUNDDOWN((' 給与計算 '!$N24-税額基本情報!$D$11)*税額基本情報!$E$11,0),0) -> 0 | K21: =IF(AND(' 給与計算 '!$N24>=税額基本情報!$D$12,' 給与計算 '!$N24<税額基本情報!$D$13),VLOOKUP(' 給与計算 '!$N24,税額基本情報!$D$6:$M$13,IF(' 基本情報 '!$E24>=8,10,' 基本情報 '!$E24+3),1)+ROUNDDOWN((' 給与計算 '!$N24-税額基本情報!$D$12)*税額基本情報!$E$12,0),0) -> 0 | L21: =IF(' 給与計算 '!N24>=税額基本情報!$D$13,VLOOKUP(' 給与計算 '!N24,税額基本情報!$D$6:$M$13,IF(' 基本情報 '!E24>=8,10,' 基本情報 '!E24+3),1)+ROUNDDOWN((' 給与計算 '!N24-税額基本情報!$D$13)*税額基本情報!$E$13,0),0) -> 0 | S21: =IF(AND(' 給与計算 '!$N24>=税額基本情報!$D$19,' 給与計算 '!$N24<税額基本情報!$D$20),税額基本情報!$F$19+ROUNDDOWN((' 給与計算 '!$N24-税額基本情報!$D$19)*税額基本情報!$E$19,0),0) -> 0 | T21: =IF(AND(' 給与計算 '!$N24>=税額基本情報!$D$20,' 給与計算 '!$N24<税額基本情報!$D$21),税額基本情報!$F$20+ROUNDDOWN((' 給与計算 '!$N24-税額基本情報!$D$20)*税額基本情報!$E$20,0),0) -> 0 | U21: =IF(' 給与計算 '!N24>=税額基本情報!$D$21,税額基本情報!$F$21+ROUNDDOWN((' 給与計算 '!N24-税額基本情報!$D$21)*税額基本情報!$E$21,0),0) -> 0
C22: 18 | D22: =' 給与計算 '!C25 ->  | E22: =IF(AND(' 給与計算 '!N25>=税額基本情報!$D$6,' 給与計算 '!N25<税額基本情報!$D$7),VLOOKUP(' 給与計算 '!N25,税額基本情報!$D$6:$M$13,IF(' 基本情報 '!E25>=8,10,' 基本情報 '!E25+3),1)+ROUNDDOWN((' 給与計算 '!N25-税額基本情報!$D$6)*税額基本情報!$E$6,0),0) -> 0 | F22: =IF(AND(' 給与計算 '!N25>=税額基本情報!$D$7,' 給与計算 '!N25<税額基本情報!$D$8),VLOOKUP(' 給与計算 '!N25,税額基本情報!$D$6:$M$13,IF(' 基本情報 '!E25>=8,10,' 基本情報 '!E25+3),1)+ROUNDDOWN((' 給与計算 '!N25-税額基本情報!$D$7)*税額基本情報!$E$7,0),0) -> 0 | G22: =IF(AND(' 給与計算 '!N25>=税額基本情報!$D$8,' 給与計算 '!N25<税額基本情報!$D$9),VLOOKUP(' 給与計算 '!N25,税額基本情報!$D$6:$M$13,IF(' 基本情報 '!E25>=8,10,' 基本情報 '!E25+3),1)+ROUNDDOWN((' 給与計算 '!N25-税額基本情報!$D$8)*税額基本情報!$E$8,0),0) -> 0 | H22: =IF(AND(' 給与計算 '!$N25>=税額基本情報!$D$9,' 給与計算 '!$N25<税額基本情報!$D$10),VLOOKUP(' 給与計算 '!$N25,税額基本情報!$D$6:$M$13,IF(' 基本情報 '!$E25>=8,10,' 基本情報 '!$E25+3),1)+ROUNDDOWN((' 給与計算 '!$N25-税額基本情報!$D$9)*税額基本情報!$E$9,0),0) -> 0 | I22: =IF(AND(' 給与計算 '!$N25>=税額基本情報!$D$10,' 給与計算 '!$N25<税額基本情報!$D$11),VLOOKUP(' 給与計算 '!$N25,税額基本情報!$D$6:$M$13,IF(' 基本情報 '!$E25>=8,10,' 基本情報 '!$E25+3),1)+ROUNDDOWN((' 給与計算 '!$N25-税額基本情報!$D$10)*税額基本情報!$E$10,0),0) -> 0 | J22: =IF(AND(' 給与計算 '!$N25>=税額基本情報!$D$11,' 給与計算 '!$N25<税額基本情報!$D$12),VLOOKUP(' 給与計算 '!$N25,税額基本情報!$D$6:$M$13,IF(' 基本情報 '!$E25>=8,10,' 基本情報 '!$E25+3),1)+ROUNDDOWN((' 給与計算 '!$N25-税額基本情報!$D$11)*税額基本情報!$E$11,0),0) -> 0 | K22: =IF(AND(' 給与計算 '!$N25>=税額基本情報!$D$12,' 給与計算 '!$N25<税額基本情報!$D$13),VLOOKUP(' 給与計算 '!$N25,税額基本情報!$D$6:$M$13,IF(' 基本情報 '!$E25>=8,10,' 基本情報 '!$E25+3),1)+ROUNDDOWN((' 給与計算 '!$N25-税額基本情報!$D$12)*税額基本情報!$E$12,0),0) -> 0 | L22: =IF(' 給与計算 '!N25>=税額基本情報!$D$13,VLOOKUP(' 給与計算 '!N25,税額基本情報!$D$6:$M$13,IF(' 基本情報 '!E25>=8,10,' 基本情報 '!E25+3),1)+ROUNDDOWN((' 給与計算 '!N25-税額基本情報!$D$13)*税額基本情報!$E$13,0),0) -> 0 | S22: =IF(AND(' 給与計算 '!$N25>=税額基本情報!$D$19,' 給与計算 '!$N25<税額基本情報!$D$20),税額基本情報!$F$19+ROUNDDOWN((' 給与計算 '!$N25-税額基本情報!$D$19)*税額基本情報!$E$19,0),0) -> 0 | T22: =IF(AND(' 給与計算 '!$N25>=税額基本情報!$D$20,' 給与計算 '!$N25<税額基本情報!$D$21),税額基本情報!$F$20+ROUNDDOWN((' 給与計算 '!$N25-税額基本情報!$D$20)*税額基本情報!$E$20,0),0) -> 0 | U22: =IF(' 給与計算 '!N25>=税額基本情報!$D$21,税額基本情報!$F$21+ROUNDDOWN((' 給与計算 '!N25-税額基本情報!$D$21)*税額基本情報!$E$21,0),0) -> 0
C23: 19 | D23: =' 給与計算 '!C26 ->  | E23: =IF(AND(' 給与計算 '!N26>=税額基本情報!$D$6,' 給与計算 '!N26<税額基本情報!$D$7),VLOOKUP(' 給与計算 '!N26,税額基本情報!$D$6:$M$13,IF(' 基本情報 '!E26>=8,10,' 基本情報 '!E26+3),1)+ROUNDDOWN((' 給与計算 '!N26-税額基本情報!$D$6)*税額基本情報!$E$6,0),0) -> 0 | F23: =IF(AND(' 給与計算 '!N26>=税額基本情報!$D$7,' 給与計算 '!N26<税額基本情報!$D$8),VLOOKUP(' 給与計算 '!N26,税額基本情報!$D$6:$M$13,IF(' 基本情報 '!E26>=8,10,' 基本情報 '!E26+3),1)+ROUNDDOWN((' 給与計算 '!N26-税額基本情報!$D$7)*税額基本情報!$E$7,0),0) -> 0 | G23: =IF(AND(' 給与計算 '!N26>=税額基本情報!$D$8,' 給与計算 '!N26<税額基本情報!$D$9),VLOOKUP(' 給与計算 '!N26,税額基本情報!$D$6:$M$13,IF(' 基本情報 '!E26>=8,10,' 基本情報 '!E26+3),1)+ROUNDDOWN((' 給与計算 '!N26-税額基本情報!$D$8)*税額基本情報!$E$8,0),0) -> 0 | H23: =IF(AND(' 給与計算 '!$N26>=税額基本情報!$D$9,' 給与計算 '!$N26<税額基本情報!$D$10),VLOOKUP(' 給与計算 '!$N26,税額基本情報!$D$6:$M$13,IF(' 基本情報 '!$E26>=8,10,' 基本情報 '!$E26+3),1)+ROUNDDOWN((' 給与計算 '!$N26-税額基本情報!$D$9)*税額基本情報!$E$9,0),0) -> 0 | I23: =IF(AND(' 給与計算 '!$N26>=税額基本情報!$D$10,' 給与計算 '!$N26<税額基本情報!$D$11),VLOOKUP(' 給与計算 '!$N26,税額基本情報!$D$6:$M$13,IF(' 基本情報 '!$E26>=8,10,' 基本情報 '!$E26+3),1)+ROUNDDOWN((' 給与計算 '!$N26-税額基本情報!$D$10)*税額基本情報!$E$10,0),0) -> 0 | J23: =IF(AND(' 給与計算 '!$N26>=税額基本情報!$D$11,' 給与計算 '!$N26<税額基本情報!$D$12),VLOOKUP(' 給与計算 '!$N26,税額基本情報!$D$6:$M$13,IF(' 基本情報 '!$E26>=8,10,' 基本情報 '!$E26+3),1)+ROUNDDOWN((' 給与計算 '!$N26-税額基本情報!$D$11)*税額基本情報!$E$11,0),0) -> 0 | K23: =IF(AND(' 給与計算 '!$N26>=税額基本情報!$D$12,' 給与計算 '!$N26<税額基本情報!$D$13),VLOOKUP(' 給与計算 '!$N26,税額基本情報!$D$6:$M$13,IF(' 基本情報 '!$E26>=8,10,' 基本情報 '!$E26+3),1)+ROUNDDOWN((' 給与計算 '!$N26-税額基本情報!$D$12)*税額基本情報!$E$12,0),0) -> 0 | L23: =IF(' 給与計算 '!N26>=税額基本情報!$D$13,VLOOKUP(' 給与計算 '!N26,税額基本情報!$D$6:$M$13,IF(' 基本情報 '!E26>=8,10,' 基本情報 '!E26+3),1)+ROUNDDOWN((' 給与計算 '!N26-税額基本情報!$D$13)*税額基本情報!$E$13,0),0) -> 0 | S23: =IF(AND(' 給与計算 '!$N26>=税額基本情報!$D$19,' 給与計算 '!$N26<税額基本情報!$D$20),税額基本情報!$F$19+ROUNDDOWN((' 給与計算 '!$N26-税額基本情報!$D$19)*税額基本情報!$E$19,0),0) -> 0 | T23: =IF(AND(' 給与計算 '!$N26>=税額基本情報!$D$20,' 給与計算 '!$N26<税額基本情報!$D$21),税額基本情報!$F$20+ROUNDDOWN((' 給与計算 '!$N26-税額基本情報!$D$20)*税額基本情報!$E$20,0),0) -> 0 | U23: =IF(' 給与計算 '!N26>=税額基本情報!$D$21,税額基本情報!$F$21+ROUNDDOWN((' 給与計算 '!N26-税額基本情報!$D$21)*税額基本情報!$E$21,0),0) -> 0
C24: 20 | D24: =' 給与計算 '!C27 ->  | E24: =IF(AND(' 給与計算 '!N27>=税額基本情報!$D$6,' 給与計算 '!N27<税額基本情報!$D$7),VLOOKUP(' 給与計算 '!N27,税額基本情報!$D$6:$M$13,IF(' 基本情報 '!E27>=8,10,' 基本情報 '!E27+3),1)+ROUNDDOWN((' 給与計算 '!N27-税額基本情報!$D$6)*税額基本情報!$E$6,0),0) -> 0 | F24: =IF(AND(' 給与計算 '!N27>=税額基本情報!$D$7,' 給与計算 '!N27<税額基本情報!$D$8),VLOOKUP(' 給与計算 '!N27,税額基本情報!$D$6:$M$13,IF(' 基本情報 '!E27>=8,10,' 基本情報 '!E27+3),1)+ROUNDDOWN((' 給与計算 '!N27-税額基本情報!$D$7)*税額基本情報!$E$7,0),0) -> 0 | G24: =IF(AND(' 給与計算 '!N27>=税額基本情報!$D$8,' 給与計算 '!N27<税額基本情報!$D$9),VLOOKUP(' 給与計算 '!N27,税額基本情報!$D$6:$M$13,IF(' 基本情報 '!E27>=8,10,' 基本情報 '!E27+3),1)+ROUNDDOWN((' 給与計算 '!N27-税額基本情報!$D$8)*税額基本情報!$E$8,0),0) -> 0 | H24: =IF(AND(' 給与計算 '!$N27>=税額基本情報!$D$9,' 給与計算 '!$N27<税額基本情報!$D$10),VLOOKUP(' 給与計算 '!$N27,税額基本情報!$D$6:$M$13,IF(' 基本情報 '!$E27>=8,10,' 基本情報 '!$E27+3),1)+ROUNDDOWN((' 給与計算 '!$N27-税額基本情報!$D$9)*税額基本情報!$E$9,0),0) -> 0 | I24: =IF(AND(' 給与計算 '!$N27>=税額基本情報!$D$10,' 給与計算 '!$N27<税額基本情報!$D$11),VLOOKUP(' 給与計算 '!$N27,税額基本情報!$D$6:$M$13,IF(' 基本情報 '!$E27>=8,10,' 基本情報 '!$E27+3),1)+ROUNDDOWN((' 給与計算 '!$N27-税額基本情報!$D$10)*税額基本情報!$E$10,0),0) -> 0 | J24: =IF(AND(' 給与計算 '!$N27>=税額基本情報!$D$11,' 給与計算 '!$N27<税額基本情報!$D$12),VLOOKUP(' 給与計算 '!$N27,税額基本情報!$D$6:$M$13,IF(' 基本情報 '!$E27>=8,10,' 基本情報 '!$E27+3),1)+ROUNDDOWN((' 給与計算 '!$N27-税額基本情報!$D$11)*税額基本情報!$E$11,0),0) -> 0 | K24: =IF(AND(' 給与計算 '!$N27>=税額基本情報!$D$12,' 給与計算 '!$N27<税額基本情報!$D$13),VLOOKUP(' 給与計算 '!$N27,税額基本情報!$D$6:$M$13,IF(' 基本情報 '!$E27>=8,10,' 基本情報 '!$E27+3),1)+ROUNDDOWN((' 給与計算 '!$N27-税額基本情報!$D$12)*税額基本情報!$E$12,0),0) -> 0 | L24: =IF(' 給与計算 '!N27>=税額基本情報!$D$13,VLOOKUP(' 給与計算 '!N27,税額基本情報!$D$6:$M$13,IF(' 基本情報 '!E27>=8,10,' 基本情報 '!E27+3),1)+ROUNDDOWN((' 給与計算 '!N27-税額基本情報!$D$13)*税額基本情報!$E$13,0),0) -> 0 | S24: =IF(AND(' 給与計算 '!$N27>=税額基本情報!$D$19,' 給与計算 '!$N27<税額基本情報!$D$20),税額基本情報!$F$19+ROUNDDOWN((' 給与計算 '!$N27-税額基本情報!$D$19)*税額基本情報!$E$19,0),0) -> 0 | T24: =IF(AND(' 給与計算 '!$N27>=税額基本情報!$D$20,' 給与計算 '!$N27<税額基本情報!$D$21),税額基本情報!$F$20+ROUNDDOWN((' 給与計算 '!$N27-税額基本情報!$D$20)*税額基本情報!$E$20,0),0) -> 0 | U24: =IF(' 給与計算 '!N27>=税額基本情報!$D$21,税額基本情報!$F$21+ROUNDDOWN((' 給与計算 '!N27-税額基本情報!$D$21)*税額基本情報!$E$21,0),0) -> 0
C25: 21 | D25: =' 給与計算 '!C28 ->  | E25: =IF(AND(' 給与計算 '!N28>=税額基本情報!$D$6,' 給与計算 '!N28<税額基本情報!$D$7),VLOOKUP(' 給与計算 '!N28,税額基本情報!$D$6:$M$13,IF(' 基本情報 '!E28>=8,10,' 基本情報 '!E28+3),1)+ROUNDDOWN((' 給与計算 '!N28-税額基本情報!$D$6)*税額基本情報!$E$6,0),0) -> 0 | F25: =IF(AND(' 給与計算 '!N28>=税額基本情報!$D$7,' 給与計算 '!N28<税額基本情報!$D$8),VLOOKUP(' 給与計算 '!N28,税額基本情報!$D$6:$M$13,IF(' 基本情報 '!E28>=8,10,' 基本情報 '!E28+3),1)+ROUNDDOWN((' 給与計算 '!N28-税額基本情報!$D$7)*税額基本情報!$E$7,0),0) -> 0 | G25: =IF(AND(' 給与計算 '!N28>=税額基本情報!$D$8,' 給与計算 '!N28<税額基本情報!$D$9),VLOOKUP(' 給与計算 '!N28,税額基本情報!$D$6:$M$13,IF(' 基本情報 '!E28>=8,10,' 基本情報 '!E28+3),1)+ROUNDDOWN((' 給与計算 '!N28-税額基本情報!$D$8)*税額基本情報!$E$8,0),0) -> 0 | H25: =IF(AND(' 給与計算 '!$N28>=税額基本情報!$D$9,' 給与計算 '!$N28<税額基本情報!$D$10),VLOOKUP(' 給与計算 '!$N28,税額基本情報!$D$6:$M$13,IF(' 基本情報 '!$E28>=8,10,' 基本情報 '!$E28+3),1)+ROUNDDOWN((' 給与計算 '!$N28-税額基本情報!$D$9)*税額基本情報!$E$9,0),0) -> 0 | I25: =IF(AND(' 給与計算 '!$N28>=税額基本情報!$D$10,' 給与計算 '!$N28<税額基本情報!$D$11),VLOOKUP(' 給与計算 '!$N28,税額基本情報!$D$6:$M$13,IF(' 基本情報 '!$E28>=8,10,' 基本情報 '!$E28+3),1)+ROUNDDOWN((' 給与計算 '!$N28-税額基本情報!$D$10)*税額基本情報!$E$10,0),0) -> 0 | J25: =IF(AND(' 給与計算 '!$N28>=税額基本情報!$D$11,' 給与計算 '!$N28<税額基本情報!$D$12),VLOOKUP(' 給与計算 '!$N28,税額基本情報!$D$6:$M$13,IF(' 基本情報 '!$E28>=8,10,' 基本情報 '!$E28+3),1)+ROUNDDOWN((' 給与計算 '!$N28-税額基本情報!$D$11)*税額基本情報!$E$11,0),0) -> 0 | K25: =IF(AND(' 給与計算 '!$N28>=税額基本情報!$D$12,' 給与計算 '!$N28<税額基本情報!$D$13),VLOOKUP(' 給与計算 '!$N28,税額基本情報!$D$6:$M$13,IF(' 基本情報 '!$E28>=8,10,' 基本情報 '!$E28+3),1)+ROUNDDOWN((' 給与計算 '!$N28-税額基本情報!$D$12)*税額基本情報!$E$12,0),0) -> 0 | L25: =IF(' 給与計算 '!N28>=税額基本情報!$D$13,VLOOKUP(' 給与計算 '!N28,税額基本情報!$D$6:$M$13,IF(' 基本情報 '!E28>=8,10,' 基本情報 '!E28+3),1)+ROUNDDOWN((' 給与計算 '!N28-税額基本情報!$D$13)*税額基本情報!$E$13,0),0) -> 0 | S25: =IF(AND(' 給与計算 '!$N28>=税額基本情報!$D$19,' 給与計算 '!$N28<税額基本情報!$D$20),税額基本情報!$F$19+ROUNDDOWN((' 給与計算 '!$N28-税額基本情報!$D$19)*税額基本情報!$E$19,0),0) -> 0 | T25: =IF(AND(' 給与計算 '!$N28>=税額基本情報!$D$20,' 給与計算 '!$N28<税額基本情報!$D$21),税額基本情報!$F$20+ROUNDDOWN((' 給与計算 '!$N28-税額基本情報!$D$20)*税額基本情報!$E$20,0),0) -> 0 | U25: =IF(' 給与計算 '!N28>=税額基本情報!$D$21,税額基本情報!$F$21+ROUNDDOWN((' 給与計算 '!N28-税額基本情報!$D$21)*税額基本情報!$E$21,0),0) -> 0
C26: 22 | D26: =' 給与計算 '!C29 ->  | E26: =IF(AND(' 給与計算 '!N29>=税額基本情報!$D$6,' 給与計算 '!N29<税額基本情報!$D$7),VLOOKUP(' 給与計算 '!N29,税額基本情報!$D$6:$M$13,IF(' 基本情報 '!E29>=8,10,' 基本情報 '!E29+3),1)+ROUNDDOWN((' 給与計算 '!N29-税額基本情報!$D$6)*税額基本情報!$E$6,0),0) -> 0 | F26: =IF(AND(' 給与計算 '!N29>=税額基本情報!$D$7,' 給与計算 '!N29<税額基本情報!$D$8),VLOOKUP(' 給与計算 '!N29,税額基本情報!$D$6:$M$13,IF(' 基本情報 '!E29>=8,10,' 基本情報 '!E29+3),1)+ROUNDDOWN((' 給与計算 '!N29-税額基本情報!$D$7)*税額基本情報!$E$7,0),0) -> 0 | G26: =IF(AND(' 給与計算 '!N29>=税額基本情報!$D$8,' 給与計算 '!N29<税額基本情報!$D$9),VLOOKUP(' 給与計算 '!N29,税額基本情報!$D$6:$M$13,IF(' 基本情報 '!E29>=8,10,' 基本情報 '!E29+3),1)+ROUNDDOWN((' 給与計算 '!N29-税額基本情報!$D$8)*税額基本情報!$E$8,0),0) -> 0 | H26: =IF(AND(' 給与計算 '!$N29>=税額基本情報!$D$9,' 給与計算 '!$N29<税額基本情報!$D$10),VLOOKUP(' 給与計算 '!$N29,税額基本情報!$D$6:$M$13,IF(' 基本情報 '!$E29>=8,10,' 基本情報 '!$E29+3),1)+ROUNDDOWN((' 給与計算 '!$N29-税額基本情報!$D$9)*税額基本情報!$E$9,0),0) -> 0 | I26: =IF(AND(' 給与計算 '!$N29>=税額基本情報!$D$10,' 給与計算 '!$N29<税額基本情報!$D$11),VLOOKUP(' 給与計算 '!$N29,税額基本情報!$D$6:$M$13,IF(' 基本情報 '!$E29>=8,10,' 基本情報 '!$E29+3),1)+ROUNDDOWN((' 給与計算 '!$N29-税額基本情報!$D$10)*税額基本情報!$E$10,0),0) -> 0 | J26: =IF(AND(' 給与計算 '!$N29>=税額基本情報!$D$11,' 給与計算 '!$N29<税額基本情報!$D$12),VLOOKUP(' 給与計算 '!$N29,税額基本情報!$D$6:$M$13,IF(' 基本情報 '!$E29>=8,10,' 基本情報 '!$E29+3),1)+ROUNDDOWN((' 給与計算 '!$N29-税額基本情報!$D$11)*税額基本情報!$E$11,0),0) -> 0 | K26: =IF(AND(' 給与計算 '!$N29>=税額基本情報!$D$12,' 給与計算 '!$N29<税額基本情報!$D$13),VLOOKUP(' 給与計算 '!$N29,税額基本情報!$D$6:$M$13,IF(' 基本情報 '!$E29>=8,10,' 基本情報 '!$E29+3),1)+ROUNDDOWN((' 給与計算 '!$N29-税額基本情報!$D$12)*税額基本情報!$E$12,0),0) -> 0 | L26: =IF(' 給与計算 '!N29>=税額基本情報!$D$13,VLOOKUP(' 給与計算 '!N29,税額基本情報!$D$6:$M$13,IF(' 基本情報 '!E29>=8,10,' 基本情報 '!E29+3),1)+ROUNDDOWN((' 給与計算 '!N29-税額基本情報!$D$13)*税額基本情報!$E$13,0),0) -> 0 | S26: =IF(AND(' 給与計算 '!$N29>=税額基本情報!$D$19,' 給与計算 '!$N29<税額基本情報!$D$20),税額基本情報!$F$19+ROUNDDOWN((' 給与計算 '!$N29-税額基本情報!$D$19)*税額基本情報!$E$19,0),0) -> 0 | T26: =IF(AND(' 給与計算 '!$N29>=税額基本情報!$D$20,' 給与計算 '!$N29<税額基本情報!$D$21),税額基本情報!$F$20+ROUNDDOWN((' 給与計算 '!$N29-税額基本情報!$D$20)*税額基本情報!$E$20,0),0) -> 0 | U26: =IF(' 給与計算 '!N29>=税額基本情報!$D$21,税額基本情報!$F$21+ROUNDDOWN((' 給与計算 '!N29-税額基本情報!$D$21)*税額基本情報!$E$21,0),0) -> 0
C27: 23 | D27: =' 給与計算 '!C30 ->  | E27: =IF(AND(' 給与計算 '!N30>=税額基本情報!$D$6,' 給与計算 '!N30<税額基本情報!$D$7),VLOOKUP(' 給与計算 '!N30,税額基本情報!$D$6:$M$13,IF(' 基本情報 '!E30>=8,10,' 基本情報 '!E30+3),1)+ROUNDDOWN((' 給与計算 '!N30-税額基本情報!$D$6)*税額基本情報!$E$6,0),0) -> 0 | F27: =IF(AND(' 給与計算 '!N30>=税額基本情報!$D$7,' 給与計算 '!N30<税額基本情報!$D$8),VLOOKUP(' 給与計算 '!N30,税額基本情報!$D$6:$M$13,IF(' 基本情報 '!E30>=8,10,' 基本情報 '!E30+3),1)+ROUNDDOWN((' 給与計算 '!N30-税額基本情報!$D$7)*税額基本情報!$E$7,0),0) -> 0 | G27: =IF(AND(' 給与計算 '!N30>=税額基本情報!$D$8,' 給与計算 '!N30<税額基本情報!$D$9),VLOOKUP(' 給与計算 '!N30,税額基本情報!$D$6:$M$13,IF(' 基本情報 '!E30>=8,10,' 基本情報 '!E30+3),1)+ROUNDDOWN((' 給与計算 '!N30-税額基本情報!$D$8)*税額基本情報!$E$8,0),0) -> 0 | H27: =IF(AND(' 給与計算 '!$N30>=税額基本情報!$D$9,' 給与計算 '!$N30<税額基本情報!$D$10),VLOOKUP(' 給与計算 '!$N30,税額基本情報!$D$6:$M$13,IF(' 基本情報 '!$E30>=8,10,' 基本情報 '!$E30+3),1)+ROUNDDOWN((' 給与計算 '!$N30-税額基本情報!$D$9)*税額基本情報!$E$9,0),0) -> 0 | I27: =IF(AND(' 給与計算 '!$N30>=税額基本情報!$D$10,' 給与計算 '!$N30<税額基本情報!$D$11),VLOOKUP(' 給与計算 '!$N30,税額基本情報!$D$6:$M$13,IF(' 基本情報 '!$E30>=8,10,' 基本情報 '!$E30+3),1)+ROUNDDOWN((' 給与計算 '!$N30-税額基本情報!$D$10)*税額基本情報!$E$10,0),0) -> 0 | J27: =IF(AND(' 給与計算 '!$N30>=税額基本情報!$D$11,' 給与計算 '!$N30<税額基本情報!$D$12),VLOOKUP(' 給与計算 '!$N30,税額基本情報!$D$6:$M$13,IF(' 基本情報 '!$E30>=8,10,' 基本情報 '!$E30+3),1)+ROUNDDOWN((' 給与計算 '!$N30-税額基本情報!$D$11)*税額基本情報!$E$11,0),0) -> 0 | K27: =IF(AND(' 給与計算 '!$N30>=税額基本情報!$D$12,' 給与計算 '!$N30<税額基本情報!$D$13),VLOOKUP(' 給与計算 '!$N30,税額基本情報!$D$6:$M$13,IF(' 基本情報 '!$E30>=8,10,' 基本情報 '!$E30+3),1)+ROUNDDOWN((' 給与計算 '!$N30-税額基本情報!$D$12)*税額基本情報!$E$12,0),0) -> 0 | L27: =IF(' 給与計算 '!N30>=税額基本情報!$D$13,VLOOKUP(' 給与計算 '!N30,税額基本情報!$D$6:$M$13,IF(' 基本情報 '!E30>=8,10,' 基本情報 '!E30+3),1)+ROUNDDOWN((' 給与計算 '!N30-税額基本情報!$D$13)*税額基本情報!$E$13,0),0) -> 0 | S27: =IF(AND(' 給与計算 '!$N30>=税額基本情報!$D$19,' 給与計算 '!$N30<税額基本情報!$D$20),税額基本情報!$F$19+ROUNDDOWN((' 給与計算 '!$N30-税額基本情報!$D$19)*税額基本情報!$E$19,0),0) -> 0 | T27: =IF(AND(' 給与計算 '!$N30>=税額基本情報!$D$20,' 給与計算 '!$N30<税額基本情報!$D$21),税額基本情報!$F$20+ROUNDDOWN((' 給与計算 '!$N30-税額基本情報!$D$20)*税額基本情報!$E$20,0),0) -> 0 | U27: =IF(' 給与計算 '!N30>=税額基本情報!$D$21,税額基本情報!$F$21+ROUNDDOWN((' 給与計算 '!N30-税額基本情報!$D$21)*税額基本情報!$E$21,0),0) -> 0
C28: 24 | D28: =' 給与計算 '!C31 ->  | E28: =IF(AND(' 給与計算 '!N31>=税額基本情報!$D$6,' 給与計算 '!N31<税額基本情報!$D$7),VLOOKUP(' 給与計算 '!N31,税額基本情報!$D$6:$M$13,IF(' 基本情報 '!E31>=8,10,' 基本情報 '!E31+3),1)+ROUNDDOWN((' 給与計算 '!N31-税額基本情報!$D$6)*税額基本情報!$E$6,0),0) -> 0 | F28: =IF(AND(' 給与計算 '!N31>=税額基本情報!$D$7,' 給与計算 '!N31<税額基本情報!$D$8),VLOOKUP(' 給与計算 '!N31,税額基本情報!$D$6:$M$13,IF(' 基本情報 '!E31>=8,10,' 基本情報 '!E31+3),1)+ROUNDDOWN((' 給与計算 '!N31-税額基本情報!$D$7)*税額基本情報!$E$7,0),0) -> 0 | G28: =IF(AND(' 給与計算 '!N31>=税額基本情報!$D$8,' 給与計算 '!N31<税額基本情報!$D$9),VLOOKUP(' 給与計算 '!N31,税額基本情報!$D$6:$M$13,IF(' 基本情報 '!E31>=8,10,' 基本情報 '!E31+3),1)+ROUNDDOWN((' 給与計算 '!N31-税額基本情報!$D$8)*税額基本情報!$E$8,0),0) -> 0 | H28: =IF(AND(' 給与計算 '!$N31>=税額基本情報!$D$9,' 給与計算 '!$N31<税額基本情報!$D$10),VLOOKUP(' 給与計算 '!$N31,税額基本情報!$D$6:$M$13,IF(' 基本情報 '!$E31>=8,10,' 基本情報 '!$E31+3),1)+ROUNDDOWN((' 給与計算 '!$N31-税額基本情報!$D$9)*税額基本情報!$E$9,0),0) -> 0 | I28: =IF(AND(' 給与計算 '!$N31>=税額基本情報!$D$10,' 給与計算 '!$N31<税額基本情報!$D$11),VLOOKUP(' 給与計算 '!$N31,税額基本情報!$D$6:$M$13,IF(' 基本情報 '!$E31>=8,10,' 基本情報 '!$E31+3),1)+ROUNDDOWN((' 給与計算 '!$N31-税額基本情報!$D$10)*税額基本情報!$E$10,0),0) -> 0 | J28: =IF(AND(' 給与計算 '!$N31>=税額基本情報!$D$11,' 給与計算 '!$N31<税額基本情報!$D$12),VLOOKUP(' 給与計算 '!$N31,税額基本情報!$D$6:$M$13,IF(' 基本情報 '!$E31>=8,10,' 基本情報 '!$E31+3),1)+ROUNDDOWN((' 給与計算 '!$N31-税額基本情報!$D$11)*税額基本情報!$E$11,0),0) -> 0 | K28: =IF(AND(' 給与計算 '!$N31>=税額基本情報!$D$12,' 給与計算 '!$N31<税額基本情報!$D$13),VLOOKUP(' 給与計算 '!$N31,税額基本情報!$D$6:$M$13,IF(' 基本情報 '!$E31>=8,10,' 基本情報 '!$E31+3),1)+ROUNDDOWN((' 給与計算 '!$N31-税額基本情報!$D$12)*税額基本情報!$E$12,0),0) -> 0 | L28: =IF(' 給与計算 '!N31>=税額基本情報!$D$13,VLOOKUP(' 給与計算 '!N31,税額基本情報!$D$6:$M$13,IF(' 基本情報 '!E31>=8,10,' 基本情報 '!E31+3),1)+ROUNDDOWN((' 給与計算 '!N31-税額基本情報!$D$13)*税額基本情報!$E$13,0),0) -> 0 | S28: =IF(AND(' 給与計算 '!$N31>=税額基本情報!$D$19,' 給与計算 '!$N31<税額基本情報!$D$20),税額基本情報!$F$19+ROUNDDOWN((' 給与計算 '!$N31-税額基本情報!$D$19)*税額基本情報!$E$19,0),0) -> 0 | T28: =IF(AND(' 給与計算 '!$N31>=税額基本情報!$D$20,' 給与計算 '!$N31<税額基本情報!$D$21),税額基本情報!$F$20+ROUNDDOWN((' 給与計算 '!$N31-税額基本情報!$D$20)*税額基本情報!$E$20,0),0) -> 0 | U28: =IF(' 給与計算 '!N31>=税額基本情報!$D$21,税額基本情報!$F$21+ROUNDDOWN((' 給与計算 '!N31-税額基本情報!$D$21)*税額基本情報!$E$21,0),0) -> 0
C29: 25 | D29: =' 給与計算 '!C32 ->  | E29: =IF(AND(' 給与計算 '!N32>=税額基本情報!$D$6,' 給与計算 '!N32<税額基本情報!$D$7),VLOOKUP(' 給与計算 '!N32,税額基本情報!$D$6:$M$13,IF(' 基本情報 '!E32>=8,10,' 基本情報 '!E32+3),1)+ROUNDDOWN((' 給与計算 '!N32-税額基本情報!$D$6)*税額基本情報!$E$6,0),0) -> 0 | F29: =IF(AND(' 給与計算 '!N32>=税額基本情報!$D$7,' 給与計算 '!N32<税額基本情報!$D$8),VLOOKUP(' 給与計算 '!N32,税額基本情報!$D$6:$M$13,IF(' 基本情報 '!E32>=8,10,' 基本情報 '!E32+3),1)+ROUNDDOWN((' 給与計算 '!N32-税額基本情報!$D$7)*税額基本情報!$E$7,0),0) -> 0 | G29: =IF(AND(' 給与計算 '!N32>=税額基本情報!$D$8,' 給与計算 '!N32<税額基本情報!$D$9),VLOOKUP(' 給与計算 '!N32,税額基本情報!$D$6:$M$13,IF(' 基本情報 '!E32>=8,10,' 基本情報 '!E32+3),1)+ROUNDDOWN((' 給与計算 '!N32-税額基本情報!$D$8)*税額基本情報!$E$8,0),0) -> 0 | H29: =IF(AND(' 給与計算 '!$N32>=税額基本情報!$D$9,' 給与計算 '!$N32<税額基本情報!$D$10),VLOOKUP(' 給与計算 '!$N32,税額基本情報!$D$6:$M$13,IF(' 基本情報 '!$E32>=8,10,' 基本情報 '!$E32+3),1)+ROUNDDOWN((' 給与計算 '!$N32-税額基本情報!$D$9)*税額基本情報!$E$9,0),0) -> 0 | I29: =IF(AND(' 給与計算 '!$N32>=税額基本情報!$D$10,' 給与計算 '!$N32<税額基本情報!$D$11),VLOOKUP(' 給与計算 '!$N32,税額基本情報!$D$6:$M$13,IF(' 基本情報 '!$E32>=8,10,' 基本情報 '!$E32+3),1)+ROUNDDOWN((' 給与計算 '!$N32-税額基本情報!$D$10)*税額基本情報!$E$10,0),0) -> 0 | J29: =IF(AND(' 給与計算 '!$N32>=税額基本情報!$D$11,' 給与計算 '!$N32<税額基本情報!$D$12),VLOOKUP(' 給与計算 '!$N32,税額基本情報!$D$6:$M$13,IF(' 基本情報 '!$E32>=8,10,' 基本情報 '!$E32+3),1)+ROUNDDOWN((' 給与計算 '!$N32-税額基本情報!$D$11)*税額基本情報!$E$11,0),0) -> 0 | K29: =IF(AND(' 給与計算 '!$N32>=税額基本情報!$D$12,' 給与計算 '!$N32<税額基本情報!$D$13),VLOOKUP(' 給与計算 '!$N32,税額基本情報!$D$6:$M$13,IF(' 基本情報 '!$E32>=8,10,' 基本情報 '!$E32+3),1)+ROUNDDOWN((' 給与計算 '!$N32-税額基本情報!$D$12)*税額基本情報!$E$12,0),0) -> 0 | L29: =IF(' 給与計算 '!N32>=税額基本情報!$D$13,VLOOKUP(' 給与計算 '!N32,税額基本情報!$D$6:$M$13,IF(' 基本情報 '!E32>=8,10,' 基本情報 '!E32+3),1)+ROUNDDOWN((' 給与計算 '!N32-税額基本情報!$D$13)*税額基本情報!$E$13,0),0) -> 0 | S29: =IF(AND(' 給与計算 '!$N32>=税額基本情報!$D$19,' 給与計算 '!$N32<税額基本情報!$D$20),税額基本情報!$F$19+ROUNDDOWN((' 給与計算 '!$N32-税額基本情報!$D$19)*税額基本情報!$E$19,0),0) -> 0 | T29: =IF(AND(' 給与計算 '!$N32>=税額基本情報!$D$20,' 給与計算 '!$N32<税額基本情報!$D$21),税額基本情報!$F$20+ROUNDDOWN((' 給与計算 '!$N32-税額基本情報!$D$20)*税額基本情報!$E$20,0),0) -> 0 | U29: =IF(' 給与計算 '!N32>=税額基本情報!$D$21,税額基本情報!$F$21+ROUNDDOWN((' 給与計算 '!N32-税額基本情報!$D$21)*税額基本情報!$E$21,0),0) -> 0
C30: 26 | D30: =' 給与計算 '!C33 ->  | E30: =IF(AND(' 給与計算 '!N33>=税額基本情報!$D$6,' 給与計算 '!N33<税額基本情報!$D$7),VLOOKUP(' 給与計算 '!N33,税額基本情報!$D$6:$M$13,IF(' 基本情報 '!E33>=8,10,' 基本情報 '!E33+3),1)+ROUNDDOWN((' 給与計算 '!N33-税額基本情報!$D$6)*税額基本情報!$E$6,0),0) -> 0 | F30: =IF(AND(' 給与計算 '!N33>=税額基本情報!$D$7,' 給与計算 '!N33<税額基本情報!$D$8),VLOOKUP(' 給与計算 '!N33,税額基本情報!$D$6:$M$13,IF(' 基本情報 '!E33>=8,10,' 基本情報 '!E33+3),1)+ROUNDDOWN((' 給与計算 '!N33-税額基本情報!$D$7)*税額基本情報!$E$7,0),0) -> 0 | G30: =IF(AND(' 給与計算 '!N33>=税額基本情報!$D$8,' 給与計算 '!N33<税額基本情報!$D$9),VLOOKUP(' 給与計算 '!N33,税額基本情報!$D$6:$M$13,IF(' 基本情報 '!E33>=8,10,' 基本情報 '!E33+3),1)+ROUNDDOWN((' 給与計算 '!N33-税額基本情報!$D$8)*税額基本情報!$E$8,0),0) -> 0 | H30: =IF(AND(' 給与計算 '!$N33>=税額基本情報!$D$9,' 給与計算 '!$N33<税額基本情報!$D$10),VLOOKUP(' 給与計算 '!$N33,税額基本情報!$D$6:$M$13,IF(' 基本情報 '!$E33>=8,10,' 基本情報 '!$E33+3),1)+ROUNDDOWN((' 給与計算 '!$N33-税額基本情報!$D$9)*税額基本情報!$E$9,0),0) -> 0 | I30: =IF(AND(' 給与計算 '!$N33>=税額基本情報!$D$10,' 給与計算 '!$N33<税額基本情報!$D$11),VLOOKUP(' 給与計算 '!$N33,税額基本情報!$D$6:$M$13,IF(' 基本情報 '!$E33>=8,10,' 基本情報 '!$E33+3),1)+ROUNDDOWN((' 給与計算 '!$N33-税額基本情報!$D$10)*税額基本情報!$E$10,0),0) -> 0 | J30: =IF(AND(' 給与計算 '!$N33>=税額基本情報!$D$11,' 給与計算 '!$N33<税額基本情報!$D$12),VLOOKUP(' 給与計算 '!$N33,税額基本情報!$D$6:$M$13,IF(' 基本情報 '!$E33>=8,10,' 基本情報 '!$E33+3),1)+ROUNDDOWN((' 給与計算 '!$N33-税額基本情報!$D$11)*税額基本情報!$E$11,0),0) -> 0 | K30: =IF(AND(' 給与計算 '!$N33>=税額基本情報!$D$12,' 給与計算 '!$N33<税額基本情報!$D$13),VLOOKUP(' 給与計算 '!$N33,税額基本情報!$D$6:$M$13,IF(' 基本情報 '!$E33>=8,10,' 基本情報 '!$E33+3),1)+ROUNDDOWN((' 給与計算 '!$N33-税額基本情報!$D$12)*税額基本情報!$E$12,0),0) -> 0 | L30: =IF(' 給与計算 '!N33>=税額基本情報!$D$13,VLOOKUP(' 給与計算 '!N33,税額基本情報!$D$6:$M$13,IF(' 基本情報 '!E33>=8,10,' 基本情報 '!E33+3),1)+ROUNDDOWN((' 給与計算 '!N33-税額基本情報!$D$13)*税額基本情報!$E$13,0),0) -> 0 | S30: =IF(AND(' 給与計算 '!$N33>=税額基本情報!$D$19,' 給与計算 '!$N33<税額基本情報!$D$20),税額基本情報!$F$19+ROUNDDOWN((' 給与計算 '!$N33-税額基本情報!$D$19)*税額基本情報!$E$19,0),0) -> 0 | T30: =IF(AND(' 給与計算 '!$N33>=税額基本情報!$D$20,' 給与計算 '!$N33<税額基本情報!$D$21),税額基本情報!$F$20+ROUNDDOWN((' 給与計算 '!$N33-税額基本情報!$D$20)*税額基本情報!$E$20,0),0) -> 0 | U30: =IF(' 給与計算 '!N33>=税額基本情報!$D$21,税額基本情報!$F$21+ROUNDDOWN((' 給与計算 '!N33-税額基本情報!$D$21)*税額基本情報!$E$21,0),0) -> 0
C31: 27 | D31: =' 給与計算 '!C34 ->  | E31: =IF(AND(' 給与計算 '!N34>=税額基本情報!$D$6,' 給与計算 '!N34<税額基本情報!$D$7),VLOOKUP(' 給与計算 '!N34,税額基本情報!$D$6:$M$13,IF(' 基本情報 '!E34>=8,10,' 基本情報 '!E34+3),1)+ROUNDDOWN((' 給与計算 '!N34-税額基本情報!$D$6)*税額基本情報!$E$6,0),0) -> 0 | F31: =IF(AND(' 給与計算 '!N34>=税額基本情報!$D$7,' 給与計算 '!N34<税額基本情報!$D$8),VLOOKUP(' 給与計算 '!N34,税額基本情報!$D$6:$M$13,IF(' 基本情報 '!E34>=8,10,' 基本情報 '!E34+3),1)+ROUNDDOWN((' 給与計算 '!N34-税額基本情報!$D$7)*税額基本情報!$E$7,0),0) -> 0 | G31: =IF(AND(' 給与計算 '!N34>=税額基本情報!$D$8,' 給与計算 '!N34<税額基本情報!$D$9),VLOOKUP(' 給与計算 '!N34,税額基本情報!$D$6:$M$13,IF(' 基本情報 '!E34>=8,10,' 基本情報 '!E34+3),1)+ROUNDDOWN((' 給与計算 '!N34-税額基本情報!$D$8)*税額基本情報!$E$8,0),0) -> 0 | H31: =IF(AND(' 給与計算 '!$N34>=税額基本情報!$D$9,' 給与計算 '!$N34<税額基本情報!$D$10),VLOOKUP(' 給与計算 '!$N34,税額基本情報!$D$6:$M$13,IF(' 基本情報 '!$E34>=8,10,' 基本情報 '!$E34+3),1)+ROUNDDOWN((' 給与計算 '!$N34-税額基本情報!$D$9)*税額基本情報!$E$9,0),0) -> 0 | I31: =IF(AND(' 給与計算 '!$N34>=税額基本情報!$D$10,' 給与計算 '!$N34<税額基本情報!$D$11),VLOOKUP(' 給与計算 '!$N34,税額基本情報!$D$6:$M$13,IF(' 基本情報 '!$E34>=8,10,' 基本情報 '!$E34+3),1)+ROUNDDOWN((' 給与計算 '!$N34-税額基本情報!$D$10)*税額基本情報!$E$10,0),0) -> 0 | J31: =IF(AND(' 給与計算 '!$N34>=税額基本情報!$D$11,' 給与計算 '!$N34<税額基本情報!$D$12),VLOOKUP(' 給与計算 '!$N34,税額基本情報!$D$6:$M$13,IF(' 基本情報 '!$E34>=8,10,' 基本情報 '!$E34+3),1)+ROUNDDOWN((' 給与計算 '!$N34-税額基本情報!$D$11)*税額基本情報!$E$11,0),0) -> 0 | K31: =IF(AND(' 給与計算 '!$N34>=税額基本情報!$D$12,' 給与計算 '!$N34<税額基本情報!$D$13),VLOOKUP(' 給与計算 '!$N34,税額基本情報!$D$6:$M$13,IF(' 基本情報 '!$E34>=8,10,' 基本情報 '!$E34+3),1)+ROUNDDOWN((' 給与計算 '!$N34-税額基本情報!$D$12)*税額基本情報!$E$12,0),0) -> 0 | L31: =IF(' 給与計算 '!N34>=税額基本情報!$D$13,VLOOKUP(' 給与計算 '!N34,税額基本情報!$D$6:$M$13,IF(' 基本情報 '!E34>=8,10,' 基本情報 '!E34+3),1)+ROUNDDOWN((' 給与計算 '!N34-税額基本情報!$D$13)*税額基本情報!$E$13,0),0) -> 0 | S31: =IF(AND(' 給与計算 '!$N34>=税額基本情報!$D$19,' 給与計算 '!$N34<税額基本情報!$D$20),税額基本情報!$F$19+ROUNDDOWN((' 給与計算 '!$N34-税額基本情報!$D$19)*税額基本情報!$E$19,0),0) -> 0 | T31: =IF(AND(' 給与計算 '!$N34>=税額基本情報!$D$20,' 給与計算 '!$N34<税額基本情報!$D$21),税額基本情報!$F$20+ROUNDDOWN((' 給与計算 '!$N34-税額基本情報!$D$20)*税額基本情報!$E$20,0),0) -> 0 | U31: =IF(' 給与計算 '!N34>=税額基本情報!$D$21,税額基本情報!$F$21+ROUNDDOWN((' 給与計算 '!N34-税額基本情報!$D$21)*税額基本情報!$E$21,0),0) -> 0
C32: 28 | D32: =' 給与計算 '!C35 ->  | E32: =IF(AND(' 給与計算 '!N35>=税額基本情報!$D$6,' 給与計算 '!N35<税額基本情報!$D$7),VLOOKUP(' 給与計算 '!N35,税額基本情報!$D$6:$M$13,IF(' 基本情報 '!E35>=8,10,' 基本情報 '!E35+3),1)+ROUNDDOWN((' 給与計算 '!N35-税額基本情報!$D$6)*税額基本情報!$E$6,0),0) -> 0 | F32: =IF(AND(' 給与計算 '!N35>=税額基本情報!$D$7,' 給与計算 '!N35<税額基本情報!$D$8),VLOOKUP(' 給与計算 '!N35,税額基本情報!$D$6:$M$13,IF(' 基本情報 '!E35>=8,10,' 基本情報 '!E35+3),1)+ROUNDDOWN((' 給与計算 '!N35-税額基本情報!$D$7)*税額基本情報!$E$7,0),0) -> 0 | G32: =IF(AND(' 給与計算 '!N35>=税額基本情報!$D$8,' 給与計算 '!N35<税額基本情報!$D$9),VLOOKUP(' 給与計算 '!N35,税額基本情報!$D$6:$M$13,IF(' 基本情報 '!E35>=8,10,' 基本情報 '!E35+3),1)+ROUNDDOWN((' 給与計算 '!N35-税額基本情報!$D$8)*税額基本情報!$E$8,0),0) -> 0 | H32: =IF(AND(' 給与計算 '!$N35>=税額基本情報!$D$9,' 給与計算 '!$N35<税額基本情報!$D$10),VLOOKUP(' 給与計算 '!$N35,税額基本情報!$D$6:$M$13,IF(' 基本情報 '!$E35>=8,10,' 基本情報 '!$E35+3),1)+ROUNDDOWN((' 給与計算 '!$N35-税額基本情報!$D$9)*税額基本情報!$E$9,0),0) -> 0 | I32: =IF(AND(' 給与計算 '!$N35>=税額基本情報!$D$10,' 給与計算 '!$N35<税額基本情報!$D$11),VLOOKUP(' 給与計算 '!$N35,税額基本情報!$D$6:$M$13,IF(' 基本情報 '!$E35>=8,10,' 基本情報 '!$E35+3),1)+ROUNDDOWN((' 給与計算 '!$N35-税額基本情報!$D$10)*税額基本情報!$E$10,0),0) -> 0 | J32: =IF(AND(' 給与計算 '!$N35>=税額基本情報!$D$11,' 給与計算 '!$N35<税額基本情報!$D$12),VLOOKUP(' 給与計算 '!$N35,税額基本情報!$D$6:$M$13,IF(' 基本情報 '!$E35>=8,10,' 基本情報 '!$E35+3),1)+ROUNDDOWN((' 給与計算 '!$N35-税額基本情報!$D$11)*税額基本情報!$E$11,0),0) -> 0 | K32: =IF(AND(' 給与計算 '!$N35>=税額基本情報!$D$12,' 給与計算 '!$N35<税額基本情報!$D$13),VLOOKUP(' 給与計算 '!$N35,税額基本情報!$D$6:$M$13,IF(' 基本情報 '!$E35>=8,10,' 基本情報 '!$E35+3),1)+ROUNDDOWN((' 給与計算 '!$N35-税額基本情報!$D$12)*税額基本情報!$E$12,0),0) -> 0 | L32: =IF(' 給与計算 '!N35>=税額基本情報!$D$13,VLOOKUP(' 給与計算 '!N35,税額基本情報!$D$6:$M$13,IF(' 基本情報 '!E35>=8,10,' 基本情報 '!E35+3),1)+ROUNDDOWN((' 給与計算 '!N35-税額基本情報!$D$13)*税額基本情報!$E$13,0),0) -> 0 | S32: =IF(AND(' 給与計算 '!$N35>=税額基本情報!$D$19,' 給与計算 '!$N35<税額基本情報!$D$20),税額基本情報!$F$19+ROUNDDOWN((' 給与計算 '!$N35-税額基本情報!$D$19)*税額基本情報!$E$19,0),0) -> 0 | T32: =IF(AND(' 給与計算 '!$N35>=税額基本情報!$D$20,' 給与計算 '!$N35<税額基本情報!$D$21),税額基本情報!$F$20+ROUNDDOWN((' 給与計算 '!$N35-税額基本情報!$D$20)*税額基本情報!$E$20,0),0) -> 0 | U32: =IF(' 給与計算 '!N35>=税額基本情報!$D$21,税額基本情報!$F$21+ROUNDDOWN((' 給与計算 '!N35-税額基本情報!$D$21)*税額基本情報!$E$21,0),0) -> 0
C33: 29 | D33: =' 給与計算 '!C36 ->  | E33: =IF(AND(' 給与計算 '!N36>=税額基本情報!$D$6,' 給与計算 '!N36<税額基本情報!$D$7),VLOOKUP(' 給与計算 '!N36,税額基本情報!$D$6:$M$13,IF(' 基本情報 '!E36>=8,10,' 基本情報 '!E36+3),1)+ROUNDDOWN((' 給与計算 '!N36-税額基本情報!$D$6)*税額基本情報!$E$6,0),0) -> 0 | F33: =IF(AND(' 給与計算 '!N36>=税額基本情報!$D$7,' 給与計算 '!N36<税額基本情報!$D$8),VLOOKUP(' 給与計算 '!N36,税額基本情報!$D$6:$M$13,IF(' 基本情報 '!E36>=8,10,' 基本情報 '!E36+3),1)+ROUNDDOWN((' 給与計算 '!N36-税額基本情報!$D$7)*税額基本情報!$E$7,0),0) -> 0 | G33: =IF(AND(' 給与計算 '!N36>=税額基本情報!$D$8,' 給与計算 '!N36<税額基本情報!$D$9),VLOOKUP(' 給与計算 '!N36,税額基本情報!$D$6:$M$13,IF(' 基本情報 '!E36>=8,10,' 基本情報 '!E36+3),1)+ROUNDDOWN((' 給与計算 '!N36-税額基本情報!$D$8)*税額基本情報!$E$8,0),0) -> 0 | H33: =IF(AND(' 給与計算 '!$N36>=税額基本情報!$D$9,' 給与計算 '!$N36<税額基本情報!$D$10),VLOOKUP(' 給与計算 '!$N36,税額基本情報!$D$6:$M$13,IF(' 基本情報 '!$E36>=8,10,' 基本情報 '!$E36+3),1)+ROUNDDOWN((' 給与計算 '!$N36-税額基本情報!$D$9)*税額基本情報!$E$9,0),0) -> 0 | I33: =IF(AND(' 給与計算 '!$N36>=税額基本情報!$D$10,' 給与計算 '!$N36<税額基本情報!$D$11),VLOOKUP(' 給与計算 '!$N36,税額基本情報!$D$6:$M$13,IF(' 基本情報 '!$E36>=8,10,' 基本情報 '!$E36+3),1)+ROUNDDOWN((' 給与計算 '!$N36-税額基本情報!$D$10)*税額基本情報!$E$10,0),0) -> 0 | J33: =IF(AND(' 給与計算 '!$N36>=税額基本情報!$D$11,' 給与計算 '!$N36<税額基本情報!$D$12),VLOOKUP(' 給与計算 '!$N36,税額基本情報!$D$6:$M$13,IF(' 基本情報 '!$E36>=8,10,' 基本情報 '!$E36+3),1)+ROUNDDOWN((' 給与計算 '!$N36-税額基本情報!$D$11)*税額基本情報!$E$11,0),0) -> 0 | K33: =IF(AND(' 給与計算 '!$N36>=税額基本情報!$D$12,' 給与計算 '!$N36<税額基本情報!$D$13),VLOOKUP(' 給与計算 '!$N36,税額基本情報!$D$6:$M$13,IF(' 基本情報 '!$E36>=8,10,' 基本情報 '!$E36+3),1)+ROUNDDOWN((' 給与計算 '!$N36-税額基本情報!$D$12)*税額基本情報!$E$12,0),0) -> 0 | L33: =IF(' 給与計算 '!N36>=税額基本情報!$D$13,VLOOKUP(' 給与計算 '!N36,税額基本情報!$D$6:$M$13,IF(' 基本情報 '!E36>=8,10,' 基本情報 '!E36+3),1)+ROUNDDOWN((' 給与計算 '!N36-税額基本情報!$D$13)*税額基本情報!$E$13,0),0) -> 0 | S33: =IF(AND(' 給与計算 '!$N36>=税額基本情報!$D$19,' 給与計算 '!$N36<税額基本情報!$D$20),税額基本情報!$F$19+ROUNDDOWN((' 給与計算 '!$N36-税額基本情報!$D$19)*税額基本情報!$E$19,0),0) -> 0 | T33: =IF(AND(' 給与計算 '!$N36>=税額基本情報!$D$20,' 給与計算 '!$N36<税額基本情報!$D$21),税額基本情報!$F$20+ROUNDDOWN((' 給与計算 '!$N36-税額基本情報!$D$20)*税額基本情報!$E$20,0),0) -> 0 | U33: =IF(' 給与計算 '!N36>=税額基本情報!$D$21,税額基本情報!$F$21+ROUNDDOWN((' 給与計算 '!N36-税額基本情報!$D$21)*税額基本情報!$E$21,0),0) -> 0
C34: 30 | D34: =' 給与計算 '!C37 ->  | E34: =IF(AND(' 給与計算 '!N37>=税額基本情報!$D$6,' 給与計算 '!N37<税額基本情報!$D$7),VLOOKUP(' 給与計算 '!N37,税額基本情報!$D$6:$M$13,IF(' 基本情報 '!E37>=8,10,' 基本情報 '!E37+3),1)+ROUNDDOWN((' 給与計算 '!N37-税額基本情報!$D$6)*税額基本情報!$E$6,0),0) -> 0 | F34: =IF(AND(' 給与計算 '!N37>=税額基本情報!$D$7,' 給与計算 '!N37<税額基本情報!$D$8),VLOOKUP(' 給与計算 '!N37,税額基本情報!$D$6:$M$13,IF(' 基本情報 '!E37>=8,10,' 基本情報 '!E37+3),1)+ROUNDDOWN((' 給与計算 '!N37-税額基本情報!$D$7)*税額基本情報!$E$7,0),0) -> 0 | G34: =IF(AND(' 給与計算 '!N37>=税額基本情報!$D$8,' 給与計算 '!N37<税額基本情報!$D$9),VLOOKUP(' 給与計算 '!N37,税額基本情報!$D$6:$M$13,IF(' 基本情報 '!E37>=8,10,' 基本情報 '!E37+3),1)+ROUNDDOWN((' 給与計算 '!N37-税額基本情報!$D$8)*税額基本情報!$E$8,0),0) -> 0 | H34: =IF(AND(' 給与計算 '!$N37>=税額基本情報!$D$9,' 給与計算 '!$N37<税額基本情報!$D$10),VLOOKUP(' 給与計算 '!$N37,税額基本情報!$D$6:$M$13,IF(' 基本情報 '!$E37>=8,10,' 基本情報 '!$E37+3),1)+ROUNDDOWN((' 給与計算 '!$N37-税額基本情報!$D$9)*税額基本情報!$E$9,0),0) -> 0 | I34: =IF(AND(' 給与計算 '!$N37>=税額基本情報!$D$10,' 給与計算 '!$N37<税額基本情報!$D$11),VLOOKUP(' 給与計算 '!$N37,税額基本情報!$D$6:$M$13,IF(' 基本情報 '!$E37>=8,10,' 基本情報 '!$E37+3),1)+ROUNDDOWN((' 給与計算 '!$N37-税額基本情報!$D$10)*税額基本情報!$E$10,0),0) -> 0 | J34: =IF(AND(' 給与計算 '!$N37>=税額基本情報!$D$11,' 給与計算 '!$N37<税額基本情報!$D$12),VLOOKUP(' 給与計算 '!$N37,税額基本情報!$D$6:$M$13,IF(' 基本情報 '!$E37>=8,10,' 基本情報 '!$E37+3),1)+ROUNDDOWN((' 給与計算 '!$N37-税額基本情報!$D$11)*税額基本情報!$E$11,0),0) -> 0 | K34: =IF(AND(' 給与計算 '!$N37>=税額基本情報!$D$12,' 給与計算 '!$N37<税額基本情報!$D$13),VLOOKUP(' 給与計算 '!$N37,税額基本情報!$D$6:$M$13,IF(' 基本情報 '!$E37>=8,10,' 基本情報 '!$E37+3),1)+ROUNDDOWN((' 給与計算 '!$N37-税額基本情報!$D$12)*税額基本情報!$E$12,0),0) -> 0 | L34: =IF(' 給与計算 '!N37>=税額基本情報!$D$13,VLOOKUP(' 給与計算 '!N37,税額基本情報!$D$6:$M$13,IF(' 基本情報 '!E37>=8,10,' 基本情報 '!E37+3),1)+ROUNDDOWN((' 給与計算 '!N37-税額基本情報!$D$13)*税額基本情報!$E$13,0),0) -> 0 | S34: =IF(AND(' 給与計算 '!$N37>=税額基本情報!$D$19,' 給与計算 '!$N37<税額基本情報!$D$20),税額基本情報!$F$19+ROUNDDOWN((' 給与計算 '!$N37-税額基本情報!$D$19)*税額基本情報!$E$19,0),0) -> 0 | T34: =IF(AND(' 給与計算 '!$N37>=税額基本情報!$D$20,' 給与計算 '!$N37<税額基本情報!$D$21),税額基本情報!$F$20+ROUNDDOWN((' 給与計算 '!$N37-税額基本情報!$D$20)*税額基本情報!$E$20,0),0) -> 0 | U34: =IF(' 給与計算 '!N37>=税額基本情報!$D$21,税額基本情報!$F$21+ROUNDDOWN((' 給与計算 '!N37-税額基本情報!$D$21)*税額基本情報!$E$21,0),0) -> 0

Sheet リスト表 (hidden)
B2: 甲・乙区分 | C2: 雇用保険区分 | E2: 社会保険料 | G2: 場所
E3: 健康保険 | F3: 厚生年金
B4: 甲欄 | C4: 無し | D4: =INDIRECT(' 基本情報 '!$D$3&"!B12") -> 58000 | E4: 無し | F4: 無し | G4: 北海道
B5: 乙欄 | C5: 一般の事業 | D5: =INDIRECT(' 基本情報 '!$D$3&"!B13") -> 68000 | E5: 介護保険なし | F5: 一般、坑内員・船員 | G5: 青森
B6: 乙欄（従たる給与についての扶養控除等申告書提出あり） | C6: 農林水産・清酒製造事業 | D6: =INDIRECT(' 基本情報 '!$D$3&"!B14") -> 78000 | E6: 介護保険あり | F6: なし | G6: 岩手
C7: 建設の事業 | D7: =INDIRECT(' 基本情報 '!$D$3&"!B15") -> 88000 | G7: 宮城
D8: =INDIRECT(' 基本情報 '!$D$3&"!B16") -> 98000 | G8: 秋田
C9: ○ | D9: =INDIRECT(' 基本情報 '!$D$3&"!B17") -> 104000 | G9: 山形
C10: × | D10: =INDIRECT(' 基本情報 '!$D$3&"!B18") -> 110000 | G10: 福島
D11: =INDIRECT(' 基本情報 '!$D$3&"!B19") -> 118000 | G11: 茨城
D12: =INDIRECT(' 基本情報 '!$D$3&"!B20") -> 126000 | G12: 栃木
D13: =INDIRECT(' 基本情報 '!$D$3&"!B21") -> 134000 | G13: 群馬
D14: =INDIRECT(' 基本情報 '!$D$3&"!B22") -> 142000 | G14: 埼玉
D15: =INDIRECT(' 基本情報 '!$D$3&"!B23") -> 150000 | G15: 千葉
D16: =INDIRECT(' 基本情報 '!$D$3&"!B24") -> 160000 | G16: 東京
D17: =INDIRECT(' 基本情報 '!$D$3&"!B25") -> 170000 | G17: 神奈川
D18: =INDIRECT(' 基本情報 '!$D$3&"!B26") -> 180000 | G18: 新潟
D19: =INDIRECT(' 基本情報 '!$D$3&"!B27") -> 190000 | G19: 富山
D20: =INDIRECT(' 基本情報 '!$D$3&"!B28") -> 200000 | G20: 石川
D21: =INDIRECT(' 基本情報 '!$D$3&"!B29") -> 220000 | G21: 福井
D22: =INDIRECT(' 基本情報 '!$D$3&"!B30") -> 240000 | G22: 山梨
D23: =INDIRECT(' 基本情報 '!$D$3&"!B31") -> 260000 | G23: 長野
D24: =INDIRECT(' 基本情報 '!$D$3&"!B32") -> 280000 | G24: 岐阜
D25: =INDIRECT(' 基本情報 '!$D$3&"!B33") -> 300000 | G25: 静岡
D26: =INDIRECT(' 基本情報 '!$D$3&"!B34") -> 320000 | G26: 愛知
D27: =INDIRECT(' 基本情報 '!$D$3&"!B35") -> 340000 | G27: 三重
D28: =INDIRECT(' 基本情報 '!$D$3&"!B36") -> 360000 | G28: 滋賀
D29: =INDIRECT(' 基本情報 '!$D$3&"!B37") -> 380000 | G29: 京都
D30: =INDIRECT(' 基本情報 '!$D$3&"!B38") -> 410000 | G30: 大阪
D31: =INDIRECT(' 基本情報 '!$D$3&"!B39") -> 440000 | G31: 兵庫
D32: =INDIRECT(' 基本情報 '!$D$3&"!B40") -> 470000 | G32: 奈良
D33: =INDIRECT(' 基本情報 '!$D$3&"!B41") -> 500000 | G33: 和歌山
D34: =INDIRECT(' 基本情報 '!$D$3&"!B42") -> 530000 | G34: 鳥取
D35: =INDIRECT(' 基本情報 '!$D$3&"!B43") -> 560000 | G35: 島根
D36: =INDIRECT(' 基本情報 '!$D$3&"!B44") -> 590000 | G36: 岡山
D37: =INDIRECT(' 基本情報 '!$D$3&"!B45") -> 620000 | G37: 広島
D38: =INDIRECT(' 基本情報 '!$D$3&"!B46") -> 650000 | G38: 山口
D39: =INDIRECT(' 基本情報 '!$D$3&"!B47") -> 680000 | G39: 徳島
D40: =INDIRECT(' 基本情報 '!$D$3&"!B48") -> 710000 | G40: 香川
D41: =INDIRECT(' 基本情報 '!$D$3&"!B49") -> 750000 | G41: 愛媛
D42: =INDIRECT(' 基本情報 '!$D$3&"!B50") -> 790000 | G42: 高知
D43: =INDIRECT(' 基本情報 '!$D$3&"!B51") -> 830000 | G43: 福岡
D44: =INDIRECT(' 基本情報 '!$D$3&"!B52") -> 880000 | G44: 佐賀
D45: =INDIRECT(' 基本情報 '!$D$3&"!B53") -> 930000 | G45: 長崎
D46: =INDIRECT(' 基本情報 '!$D$3&"!B54") -> 980000 | G46: 熊本
D47: =INDIRECT(' 基本情報 '!$D$3&"!B55") -> 1030000 | G47: 大分
D48: =INDIRECT(' 基本情報 '!$D$3&"!B56") -> 1090000 | G48: 宮崎
D49: =INDIRECT(' 基本情報 '!$D$3&"!B57") -> 1150000 | G49: 鹿児島
D50: =INDIRECT(' 基本情報 '!$D$3&"!B58") -> 1210000 | G50: 沖縄
D51: =INDIRECT(' 基本情報 '!$D$3&"!B59") -> 1270000
D52: =INDIRECT(' 基本情報 '!$D$3&"!B60") -> 1330000
D53: =INDIRECT(' 基本情報 '!$D$3&"!B61") -> 1390000

Sheet 税額基本情報 (hidden)
C3: 甲欄（月額給与101万円超の場合の税額基本情報）
C4: 社会保険料控除後の支給額 | D4: 超えた部分に乗じる税率 | F4: 加算する源泉徴収税額
F5: 0 | G5: 1 | H5: 2 | I5: 3 | J5: 4 | K5: 5 | L5: 6 | M5: 7 | N5: ←扶養人数
C6: 740,000円以上 780,000円未満 | D6: 740000 | E6: 0.2042 | F6: =源泉月額表!D305 -> 73390 | G6: =源泉月額表!E305 -> 66920 | H6: =源泉月額表!F305 -> 60450 | I6: =源泉月額表!G305 -> 53980 | J6: =源泉月額表!H305 -> 47520 | K6: =源泉月額表!I305 -> 41050 | L6: =源泉月額表!J305 -> 34580 | M6: =源泉月額表!K305 -> 28120
C7: 780,000円以上 950,000円未満 | D7: 780000 | E7: 0.23483 | F7: =源泉月額表!D314 -> 81560 | G7: =源泉月額表!E314 -> 75090 | H7: =源泉月額表!F314 -> 68620 | I7: =源泉月額表!G314 -> 62150 | J7: =源泉月額表!H314 -> 55690 | K7: =源泉月額表!I314 -> 49220 | L7: =源泉月額表!J314 -> 42750 | M7: =源泉月額表!K314 -> 36290
C8: 950,000円以上 1,700,000円未満 | D8: 950000 | E8: 0.33693 | F8: =源泉月額表!D323 -> 121480 | G8: =源泉月額表!E323 -> 115010 | H8: =源泉月額表!F323 -> 108540 | I8: =源泉月額表!G323 -> 102070 | J8: =源泉月額表!H323 -> 95610 | K8: =源泉月額表!I323 -> 89140 | L8: =源泉月額表!J323 -> 82670 | M8: =源泉月額表!K323 -> 76210
C9: 1,700,000円以上 2,170,000円未満 | D9: 1700000 | E9: 0.4084 | F9: =源泉月額表!D332 -> 374180 | G9: =源泉月額表!E332 -> 367710 | H9: =源泉月額表!F332 -> 361240 | I9: =源泉月額表!G332 -> 354770 | J9: =源泉月額表!H332 -> 348310 | K9: =源泉月額表!I332 -> 341840 | L9: =源泉月額表!J332 -> 335370 | M9: =源泉月額表!K332 -> 328910
C10: 2,170,000円以上 2,210,000円未満 | D10: 2170000 | E10: 0.4084 | F10: =源泉月額表!D341 -> 571570 | G10: =源泉月額表!E341 -> 565090 | H10: =源泉月額表!F341 -> 558630 | I10: =源泉月額表!G341 -> 552160 | J10: =源泉月額表!H341 -> 545690 | K10: =源泉月額表!I341 -> 539230 | L10: =源泉月額表!J341 -> 532760 | M10: =源泉月額表!K341 -> 526290
C11: 2,210,000円以上 2,250,000円未満 | D11: 2210000 | E11: 0.4084 | F11: =源泉月額表!D350 -> 593340 | G11: =源泉月額表!E350 -> 586870 | H11: =源泉月額表!F350 -> 580410 | I11: =源泉月額表!G350 -> 573930 | J11: =源泉月額表!H350 -> 567470 | K11: =源泉月額表!I350 -> 561010 | L11: =源泉月額表!J350 -> 554540 | M11: =源泉月額表!K350 -> 548070
C12: 2,250,000円以上 3,500,000円未満 | D12: 2250000 | E12: 0.4084 | F12: =源泉月額表!D359 -> 615120 | G12: =源泉月額表!E359 -> 608650 | H12: =源泉月額表!F359 -> 602190 | I12: =源泉月額表!G359 -> 595710 | J12: =源泉月額表!H359 -> 589250 | K12: =源泉月額表!I359 -> 582790 | L12: =源泉月額表!J359 -> 576310 | M12: =源泉月額表!K359 -> 569850
C13: 3,500,000円以上 | D13: 3500000 | E13: 0.45945 | F13: =源泉月額表!D368 -> 1125620 | G13: =源泉月額表!E368 -> 1119150 | H13: =源泉月額表!F368 -> 1112690 | I13: =源泉月額表!G368 -> 1106210 | J13: =源泉月額表!H368 -> 1099750 | K13: =源泉月額表!I368 -> 1093290 | L13: =源泉月額表!J368 -> 1086810 | M13: =源泉月額表!K368 -> 1080350
C17: 乙欄（月額給与101万円超の場合の税額基本情報）
C18: 社会保険料控除後の支給額 | D18: 超えた部分に乗じる税率 | F18: 加算する源泉税額
C19: 740,000円以上 1,700,000円未満 | D19: 740000 | E19: 0.4084 | F19: 259800
C20: 1,700,000円以上 3,500,000円未満 | D20: 1700000 | E20: 0.45945 | F20: 651900
C21: 3,500,000円以上 | D21: 1700000 | E21: 0.45945 | F21: 651900
C22: 甲欄（扶養人数7人超の場合控除する税額）
C23: 扶養人数一人増えるごとに控除される源泉徴収税額 | D23: 1610
C25: 乙欄（従たる給与についての扶養控除等申告書提出ありの場合、控除する税額）
C26: 扶養人数一人増えるごとに控除される源泉徴収税額 | D26: 1610
C28: 乙欄（月額給与88,000円未満だった場合に乗じる税率）
C29: 月額給与88,000円未満の場合乗じる税率 | D29: 0.03063
C31: 厚生年金（最低額と最高額） | F31: 一般、坑内員・船員
C32: 標準報酬月額 | D32: 最低額 | E32: =INDIRECT(' 基本情報 '!$D$3&"!B15") -> 88000 | F32: =ROUND(INDIRECT(' 基本情報 '!$D$3&"!K15")-0.1,0) -> 8052
D33: 最高額 | E33: =INDIRECT(' 基本情報 '!$D$3&"!B46") -> 650000 | F33: =ROUND(INDIRECT(' 基本情報 '!$D$3&"!K46")-0.1,0) -> 59475
C35: 厚生年金の計算における賞与支給額の上限
C36: 厚生年金の計算における賞与支給額の上限 | D36: 1500000
C38: 健康保険の計算における賞与支給額の上限
C39: 健康保険の計算における賞与支給額の上限 | D39: 5730000
C41: 源泉月額表の範囲
C42: 源泉月額表始まりのセル | D42: 源泉月額表!$B$10:$L$500

Sheet 源泉月額表 (hidden)
B1: 給与所得の源泉徴収税額表（令和４年分）
B2: 月 額 表（平成24年３月31日財務省告示第115号別表第一（令和２年３月31日財務省告示第81号改正））
B3: その月の社会保 | D3: 甲
B4: 険料等控除後の | D4: 扶 養 親 族 等 の 数 | L4: 乙
B5: 給与等の金額 | D5: 0 人 | E5: 1 人 | F5: 2 人 | G5: 3 人 | H5: 4 人 | I5: 5 人 | J5: 6 人 | K5: 7 人
B6: 以 上 | C6: 未 満 | D6: 税 額 | L6: 税 額
B7: 円 | C7: 円 | D7: 円 | E7: 円 | F7: 円 | G7: 円 | H7: 円 | I7: 円 | J7: 円 | K7: 円 | L7: 円
B8: 88000 | C8: 円未満 | D8: 0 | E8: 0 | F8: 0 | G8: 0 | H8: 0 | I8: 0 | J8: 0 | K8: 0 | L8: その月の社会保険料等控除後の給与等の金額の3.063％に相当する金額
A10: 1 | B10: 88000 | C10: 89000 | D10: 130 | E10: 0 | F10: 0 | G10: 0 | H10: 0 | I10: 0 | J10: 0 | K10: 0 | L10: 3200
A11: 2 | B11: 89000 | C11: 90000 | D11: 180 | E11: 0 | F11: 0 | G11: 0 | H11: 0 | I11: 0 | J11: 0 | K11: 0 | L11: 3200
A12: 3 | B12: 90000 | C12: 91000 | D12: 230 | E12: 0 | F12: 0 | G12: 0 | H12: 0 | I12: 0 | J12: 0 | K12: 0 | L12: 3200
A13: 4 | B13: 91000 | C13: 92000 | D13: 290 | E13: 0 | F13: 0 | G13: 0 | H13: 0 | I13: 0 | J13: 0 | K13: 0 | L13: 3200
A14: 5 | B14: 92000 | C14: 93000 | D14: 340 | E14: 0 | F14: 0 | G14: 0 | H14: 0 | I14: 0 | J14: 0 | K14: 0 | L14: 3300
A16: 6 | B16: 93000 | C16: 94000 | D16: 390 | E16: 0 | F16: 0 | G16: 0 | H16: 0 | I16: 0 | J16: 0 | K16: 0 | L16: 3300
A17: 7 | B17: 94000 | C17: 95000 | D17: 440 | E17: 0 | F17: 0 | G17: 0 | H17: 0 | I17: 0 | J17: 0 | K17: 0 | L17: 3300
A18: 8 | B18: 95000 | C18: 96000 | D18: 490 | E18: 0 | F18: 0 | G18: 0 | H18: 0 | I18: 0 | J18: 0 | K18: 0 | L18: 3400
A19: 9 | B19: 96000 | C19: 97000 | D19: 540 | E19: 0 | F19: 0 | G19: 0 | H19: 0 | I19: 0 | J19: 0 | K19: 0 | L19: 3400
A20: 10 | B20: 97000 | C20: 98000 | D20: 590 | E20: 0 | F20: 0 | G20: 0 | H20: 0 | I20: 0 | J20: 0 | K20: 0 | L20: 3500
A22: 11 | B22: 98000 | C22: 99000 | D22: 640 | E22: 0 | F22: 0 | G22: 0 | H22: 0 | I22: 0 | J22: 0 | K22: 0 | L22: 3500
A23: 12 | B23: 99000 | C23: 101000 | D23: 720 | E23: 0 | F23: 0 | G23: 0 | H23: 0 | I23: 0 | J23: 0 | K23: 0 | L23: 3600
A24: 13 | B24: 101000 | C24: 103000 | D24: 830 | E24: 0 | F24: 0 | G24: 0 | H24: 0 | I24: 0 | J24: 0 | K24: 0 | L24: 3600
A25: 14 | B25: 103000 | C25: 105000 | D25: 930 | E25: 0 | F25: 0 | G25: 0 | H25: 0 | I25: 0 | J25: 0 | K25: 0 | L25: 3700
A26: 15 | B26: 105000 | C26: 107000 | D26: 1030 | E26: 0 | F26: 0 | G26: 0 | H26: 0 | I26: 0 | J26: 0 | K26: 0 | L26: 3800
A28: 16 | B28: 107000 | C28: 109000 | D28: 1130 | E28: 0 | F28: 0 | G28: 0 | H28: 0 | I28: 0 | J28: 0 | K28: 0 | L28: 3800
A29: 17 | B29: 109000 | C29: 111000 | D29: 1240 | E29: 0 | F29: 0 | G29: 0 | H29: 0 | I29: 0 | J29: 0 | K29: 0 | L29: 3900
A30: 18 | B30: 111000 | C30: 113000 | D30: 1340 | E30: 0 | F30: 0 | G30: 0 | H30: 0 | I30: 0 | J30: 0 | K30: 0 | L30: 4000
A31: 19 | B31: 113000 | C31: 115000 | D31: 1440 | E31: 0 | F31: 0 | G31: 0 | H31: 0 | I31: 0 | J31: 0 | K31: 0 | L31: 4100
A32: 20 | B32: 115000 | C32: 117000 | D32: 1540 | E32: 0 | F32: 0 | G32: 0 | H32: 0 | I32: 0 | J32: 0 | K32: 0 | L32: 4100
A34: 21 | B34: 117000 | C34: 119000 | D34: 1640 | E34: 0 | F34: 0 | G34: 0 | H34: 0 | I34: 0 | J34: 0 | K34: 0 | L34: 4200
A35: 22 | B35: 119000 | C35: 121000 | D35: 1750 | E35: 120 | F35: 0 | G35: 0 | H35: 0 | I35: 0 | J35: 0 | K35: 0 | L35: 4300
A36: 23 | B36: 121000 | C36: 123000 | D36: 1850 | E36: 220 | F36: 0 | G36: 0 | H36: 0 | I36: 0 | J36: 0 | K36: 0 | L36: 4500
A37: 24 | B37: 123000 | C37: 125000 | D37: 1950 | E37: 330 | F37: 0 | G37: 0 | H37: 0 | I37: 0 | J37: 0 | K37: 0 | L37: 4800
A38: 25 | B38: 125000 | C38: 127000 | D38: 2050 | E38: 430 | F38: 0 | G38: 0 | H38: 0 | I38: 0 | J38: 0 | K38: 0 | L38: 5100
A40: 26 | B40: 127000 | C40: 129000 | D40: 2150 | E40: 530 | F40: 0 | G40: 0 | H40: 0 | I40: 0 | J40: 0 | K40: 0 | L40: 5400
A41: 27 | B41: 129000 | C41: 131000 | D41: 2260 | E41: 630 | F41: 0 | G41: 0 | H41: 0 | I41: 0 | J41: 0 | K41: 0 | L41: 5700
A42: 28 | B42: 131000 | C42: 133000 | D42: 2360 | E42: 740 | F42: 0 | G42: 0 | H42: 0 | I42: 0 | J42: 0 | K42: 0 | L42: 6000
A43: 29 | B43: 133000 | C43: 135000 | D43: 2460 | E43: 840 | F43: 0 | G43: 0 | H43: 0 | I43: 0 | J43: 0 | K43: 0 | L43: 6300
A44: 30 | B44: 135000 | C44: 137000 | D44: 2550 | E44: 930 | F44: 0 | G44: 0 | H44: 0 | I44: 0 | J44: 0 | K44: 0 | L44: 6600
A46: 31 | B46: 137000 | C46: 139000 | D46: 2610 | E46: 990 | F46: 0 | G46: 0 | H46: 0 | I46: 0 | J46: 0 | K46: 0 | L46: 6800
A47: 32 | B47: 139000 | C47: 141000 | D47: 2680 | E47: 1050 | F47: 0 | G47: 0 | H47: 0 | I47: 0 | J47: 0 | K47: 0 | L47: 7100
A48: 33 | B48: 141000 | C48: 143000 | D48: 2740 | E48: 1110 | F48: 0 | G48: 0 | H48: 0 | I48: 0 | J48: 0 | K48: 0 | L48: 7500
A49: 34 | B49: 143000 | C49: 145000 | D49: 2800 | E49: 1170 | F49: 0 | G49: 0 | H49: 0 | I49: 0 | J49: 0 | K49: 0 | L49: 7800
A50: 35 | B50: 145000 | C50: 147000 | D50: 2860 | E50: 1240 | F50: 0 | G50: 0 | H50: 0 | I50: 0 | J50: 0 | K50: 0 | L50: 8100
A52: 36 | B52: 147000 | C52: 149000 | D52: 2920 | E52: 1300 | F52: 0 | G52: 0 | H52: 0 | I52: 0 | J52: 0 | K52: 0 | L52: 8400
A53: 37 | B53: 149000 | C53: 151000 | D53: 2980 | E53: 1360 | F53: 0 | G53: 0 | H53: 0 | I53: 0 | J53: 0 | K53: 0 | L53: 8700
A54: 38 | B54: 151000 | C54: 153000 | D54: 3050 | E54: 1430 | F54: 0 | G54: 0 | H54: 0 | I54: 0 | J54: 0 | K54: 0 | L54: 9000
A55: 39 | B55: 153000 | C55: 155000 | D55: 3120 | E55: 1500 | F55: 0 | G55: 0 | H55: 0 | I55: 0 | J55: 0 | K55: 0 | L55: 9300
A56: 40 | B56: 155000 | C56: 157000 | D56: 3200 | E56: 1570 | F56: 0 | G56: 0 | H56: 0 | I56: 0 | J56: 0 | K56: 0 | L56: 9600
A58: 41 | B58: 157000 | C58: 159000 | D58: 3270 | E58: 1640 | F58: 0 | G58: 0 | H58: 0 | I58: 0 | J58: 0 | K58: 0 | L58: 9900
A59: 42 | B59: 159000 | C59: 161000 | D59: 3340 | E59: 1720 | F59: 100 | G59: 0 | H59: 0 | I59: 0 | J59: 0 | K59: 0 | L59: 10200
A60: 43 | B60: 161000 | C60: 163000 | D60: 3410 | E60: 1790 | F60: 170 | G60: 0 | H60: 0 | I60: 0 | J60: 0 | K60: 0 | L60: 10500
A61: 44 | B61: 163000 | C61: 165000 | D61: 3480 | E61: 1860 | F61: 250 | G61: 0 | H61: 0 | I61: 0 | J61: 0 | K61: 0 | L61: 10800
A62: 45 | B62: 165000 | C62: 167000 | D62: 3550 | E62: 1930 | F62: 320 | G62: 0 | H62: 0 | I62: 0 | J62: 0 | K62: 0 | L62: 11100
A64: 46 | B64: 167000 | C64: 169000 | D64: 3620 | E64: 2000 | F64: 390 | G64: 0 | H64: 0 | I64: 0 | J64: 0 | K64: 0 | L64: 11400
A65: 47 | B65: 169000 | C65: 171000 | D65: 3700 | E65: 2070 | F65: 460 | G65: 0 | H65: 0 | I65: 0 | J65: 0 | K65: 0 | L65: 11700
A66: 48 | B66: 171000 | C66: 173000 | D66: 3770 | E66: 2140 | F66: 530 | G66: 0 | H66: 0 | I66: 0 | J66: 0 | K66: 0 | L66: 12000
A67: 49 | B67: 173000 | C67: 175000 | D67: 3840 | E67: 2220 | F67: 600 | G67: 0 | H67: 0 | I67: 0 | J67: 0 | K67: 0 | L67: 12400
A68: 50 | B68: 175000 | C68: 177000 | D68: 3910 | E68: 2290 | F68: 670 | G68: 0 | H68: 0 | I68: 0 | J68: 0 | K68: 0 | L68: 12700
A70: 51 | B70: 177000 | C70: 179000 | D70: 3980 | E70: 2360 | F70: 750 | G70: 0 | H70: 0 | I70: 0 | J70: 0 | K70: 0 | L70: 13200
A71: 52 | B71: 179000 | C71: 181000 | D71: 4050 | E71: 2430 | F71: 820 | G71: 0 | H71: 0 | I71: 0 | J71: 0 | K71: 0 | L71: 13900
A72: 53 | B72: 181000 | C72: 183000 | D72: 4120 | E72: 2500 | F72: 890 | G72: 0 | H72: 0 | I72: 0 | J72: 0 | K72: 0 | L72: 14600
A73: 54 | B73: 183000 | C73: 185000 | D73: 4200 | E73: 2570 | F73: 960 | G73: 0 | H73: 0 | I73: 0 | J73: 0 | K73: 0 | L73: 15300
A74: 55 | B74: 185000 | C74: 187000 | D74: 4270 | E74: 2640 | F74: 1030 | G74: 0 | H74: 0 | I74: 0 | J74: 0 | K74: 0 | L74: 16000
A76: 56 | B76: 187000 | C76: 189000 | D76: 4340 | E76: 2720 | F76: 1100 | G76: 0 | H76: 0 | I76: 0 | J76: 0 | K76: 0 | L76: 16700
A77: 57 | B77: 189000 | C77: 191000 | D77: 4410 | E77: 2790 | F77: 1170 | G77: 0 | H77: 0 | I77: 0 | J77: 0 | K77: 0 | L77: 17500
A78: 58 | B78: 191000 | C78: 193000 | D78: 4480 | E78: 2860 | F78: 1250 | G78: 0 | H78: 0 | I78: 0 | J78: 0 | K78: 0 | L78: 18100
A79: 59 | B79: 193000 | C79: 195000 | D79: 4550 | E79: 2930 | F79: 1320 | G79: 0 | H79: 0 | I79: 0 | J79: 0 | K79: 0 | L79: 18800
A80: 60 | B80: 195000 | C80: 197000 | D80: 4630 | E80: 3000 | F80: 1390 | G80: 0 | H80: 0 | I80: 0 | J80: 0 | K80: 0 | L80: 19500
A82: 61 | B82: 197000 | C82: 199000 | D82: 4700 | E82: 3070 | F82: 1460 | G82: 0 | H82: 0 | I82: 0 | J82: 0 | K82: 0 | L82: 20200
A83: 62 | B83: 199000 | C83: 201000 | D83: 4770 | E83: 3140 | F83: 1530 | G83: 0 | H83: 0 | I83: 0 | J83: 0 | K83: 0 | L83: 20900
A84: 63 | B84: 201000 | C84: 203000 | D84: 4840 | E84: 3220 | F84: 1600 | G84: 0 | H84: 0 | I84: 0 | J84: 0 | K84: 0 | L84: 21500
A85: 64 | B85: 203000 | C85: 205000 | D85: 4910 | E85: 3290 | F85: 1670 | G85: 0 | H85: 0 | I85: 0 | J85: 0 | K85: 0 | L85: 22200
A86: 65 | B86: 205000 | C86: 207000 | D86: 4980 | E86: 3360 | F86: 1750 | G86: 130 | H86: 0 | I86: 0 | J86: 0 | K86: 0 | L86: 22700
A88: 66 | B88: 207000 | C88: 209000 | D88: 5050 | E88: 3430 | F88: 1820 | G88: 200 | H88: 0 | I88: 0 | J88: 0 | K88: 0 | L88: 23300
A89: 67 | B89: 209000 | C89: 211000 | D89: 5130 | E89: 3500 | F89: 1890 | G89: 280 | H89: 0 | I89: 0 | J89: 0 | K89: 0 | L89: 23900
A90: 68 | B90: 211000 | C90: 213000 | D90: 5200 | E90: 3570 | F90: 1960 | G90: 350 | H90: 0 | I90: 0 | J90: 0 | K90: 0 | L90: 24400
A91: 69 | B91: 213000 | C91: 215000 | D91: 5270 | E91: 3640 | F91: 2030 | G91: 420 | H91: 0 | I91: 0 | J91: 0 | K91: 0 | L91: 25000
A92: 70 | B92: 215000 | C92: 217000 | D92: 5340 | E92: 3720 | F92: 2100 | G92: 490 | H92: 0 | I92: 0 | J92: 0 | K92: 0 | L92: 25500
A94: 71 | B94: 217000 | C94: 219000 | D94: 5410 | E94: 3790 | F94: 2170 | G94: 560 | H94: 0 | I94: 0 | J94: 0 | K94: 0 | L94: 26100
A95: 72 | B95: 219000 | C95: 221000 | D95: 5480 | E95: 3860 | F95: 2250 | G95: 630 | H95: 0 | I95: 0 | J95: 0 | K95: 0 | L95: 26800
A96: 73 | B96: 221000 | C96: 224000 | D96: 5560 | E96: 3950 | F96: 2340 | G96: 710 | H96: 0 | I96: 0 | J96: 0 | K96: 0 | L96: 27400
A97: 74 | B97: 224000 | C97: 227000 | D97: 5680 | E97: 4060 | F97: 2440 | G97: 830 | H97: 0 | I97: 0 | J97: 0 | K97: 0 | L97: 28400
A98: 75 | B98: 227000 | C98: 230000 | D98: 5780 | E98: 4170 | F98: 2550 | G98: 930 | H98: 0 | I98: 0 | J98: 0 | K98: 0 | L98: 29300
A100: 76 | B100: 230000 | C100: 233000 | D100: 5890 | E100: 4280 | F100: 2650 | G100: 1040 | H100: 0 | I100: 0 | J100: 0 | K100: 0 | L100: 30300
A101: 77 | B101: 233000 | C101: 236000 | D101: 5990 | E101: 4380 | F101: 2770 | G101: 1140 | H101: 0 | I101: 0 | J101: 0 | K101: 0 | L101: 31300
A102: 78 | B102: 236000 | C102: 239000 | D102: 6110 | E102: 4490 | F102: 2870 | G102: 1260 | H102: 0 | I102: 0 | J102: 0 | K102: 0 | L102: 32400
A103: 79 | B103: 239000 | C103: 242000 | D103: 6210 | E103: 4590 | F103: 2980 | G103: 1360 | H103: 0 | I103: 0 | J103: 0 | K103: 0 | L103: 33400
A104: 80 | B104: 242000 | C104: 245000 | D104: 6320 | E104: 4710 | F104: 3080 | G104: 1470 | H104: 0 | I104: 0 | J104: 0 | K104: 0 | L104: 34400
A106: 81 | B106: 245000 | C106: 248000 | D106: 6420 | E106: 4810 | F106: 3200 | G106: 1570 | H106: 0 | I106: 0 | J106: 0 | K106: 0 | L106: 35400
A107: 82 | B107: 248000 | C107: 251000 | D107: 6530 | E107: 4920 | F107: 3300 | G107: 1680 | H107: 0 | I107: 0 | J107: 0 | K107: 0 | L107: 36400
A108: 83 | B108: 251000 | C108: 254000 | D108: 6640 | E108: 5020 | F108: 3410 | G108: 1790 | H108: 170 | I108: 0 | J108: 0 | K108: 0 | L108: 37500
A109: 84 | B109: 254000 | C109: 257000 | D109: 6750 | E109: 5140 | F109: 3510 | G109: 1900 | H109: 290 | I109: 0 | J109: 0 | K109: 0 | L109: 38500
A110: 85 | B110: 257000 | C110: 260000 | D110: 6850 | E110: 5240 | F110: 3620 | G110: 2000 | H110: 390 | I110: 0 | J110: 0 | K110: 0 | L110: 39400
A112: 86 | B112: 260000 | C112: 263000 | D112: 6960 | E112: 5350 | F112: 3730 | G112: 2110 | H112: 500 | I112: 0 | J112: 0 | K112: 0 | L112: 40400
A113: 87 | B113: 263000 | C113: 266000 | D113: 7070 | E113: 5450 | F113: 3840 | G113: 2220 | H113: 600 | I113: 0 | J113: 0 | K113: 0 | L113: 41500
A114: 88 | B114: 266000 | C114: 269000 | D114: 7180 | E114: 5560 | F114: 3940 | G114: 2330 | H114: 710 | I114: 0 | J114: 0 | K114: 0 | L114: 42500
A115: 89 | B115: 269000 | C115: 272000 | D115: 7280 | E115: 5670 | F115: 4050 | G115: 2430 | H115: 820 | I115: 0 | J115: 0 | K115: 0 | L115: 43500
A116: 90 | B116: 272000 | C116: 275000 | D116: 7390 | E116: 5780 | F116: 4160 | G116: 2540 | H116: 930 | I116: 0 | J116: 0 | K116: 0 | L116: 44500
A118: 91 | B118: 275000 | C118: 278000 | D118: 7490 | E118: 5880 | F118: 4270 | G118: 2640 | H118: 1030 | I118: 0 | J118: 0 | K118: 0 | L118: 45500
A119: 92 | B119: 278000 | C119: 281000 | D119: 7610 | E119: 5990 | F119: 4370 | G119: 2760 | H119: 1140 | I119: 0 | J119: 0 | K119: 0 | L119: 46600
A120: 93 | B120: 281000 | C120: 284000 | D120: 7710 | E120: 6100 | F120: 4480 | G120: 2860 | H120: 1250 | I120: 0 | J120: 0 | K120: 0 | L120: 47600
A121: 94 | B121: 284000 | C121: 287000 | D121: 7820 | E121: 6210 | F121: 4580 | G121: 2970 | H121: 1360 | I121: 0 | J121: 0 | K121: 0 | L121: 48600
A122: 95 | B122: 287000 | C122: 290000 | D122: 7920 | E122: 6310 | F122: 4700 | G122: 3070 | H122: 1460 | I122: 0 | J122: 0 | K122: 0 | L122: 49700
A124: 96 | B124: 290000 | C124: 293000 | D124: 8040 | E124: 6420 | F124: 4800 | G124: 3190 | H124: 1570 | I124: 0 | J124: 0 | K124: 0 | L124: 50900
A125: 97 | B125: 293000 | C125: 296000 | D125: 8140 | E125: 6520 | F125: 4910 | G125: 3290 | H125: 1670 | I125: 0 | J125: 0 | K125: 0 | L125: 52100
A126: 98 | B126: 296000 | C126: 299000 | D126: 8250 | E126: 6640 | F126: 5010 | G126: 3400 | H126: 1790 | I126: 160 | J126: 0 | K126: 0 | L126: 52900
A127: 99 | B127: 299000 | C127: 302000 | D127: 8420 | E127: 6740 | F127: 5130 | G127: 3510 | H127: 1890 | I127: 280 | J127: 0 | K127: 0 | L127: 53700
A128: 100 | B128: 302000 | C128: 305000 | D128: 8670 | E128: 6860 | F128: 5250 | G128: 3630 | H128: 2010 | I128: 400 | J128: 0 | K128: 0 | L128: 54500
A130: 101 | B130: 305000 | C130: 308000 | D130: 8910 | E130: 6980 | F130: 5370 | G130: 3760 | H130: 2130 | I130: 520 | J130: 0 | K130: 0 | L130: 55200
A131: 102 | B131: 308000 | C131: 311000 | D131: 9160 | E131: 7110 | F131: 5490 | G131: 3880 | H131: 2260 | I131: 640 | J131: 0 | K131: 0 | L131: 56100
A132: 103 | B132: 311000 | C132: 314000 | D132: 9400 | E132: 7230 | F132: 5620 | G132: 4000 | H132: 2380 | I132: 770 | J132: 0 | K132: 0 | L132: 56900
A133: 104 | B133: 314000 | C133: 317000 | D133: 9650 | E133: 7350 | F133: 5740 | G133: 4120 | H133: 2500 | I133: 890 | J133: 0 | K133: 0 | L133: 57800
A134: 105 | B134: 317000 | C134: 320000 | D134: 9890 | E134: 7470 | F134: 5860 | G134: 4250 | H134: 2620 | I134: 1010 | J134: 0 | K134: 0 | L134: 58800
A136: 106 | B136: 320000 | C136: 323000 | D136: 10140 | E136: 7600 | F136: 5980 | G136: 4370 | H136: 2750 | I136: 1130 | J136: 0 | K136: 0 | L136: 59800
A137: 107 | B137: 323000 | C137: 326000 | D137: 10380 | E137: 7720 | F137: 6110 | G137: 4490 | H137: 2870 | I137: 1260 | J137: 0 | K137: 0 | L137: 60900
A138: 108 | B138: 326000 | C138: 329000 | D138: 10630 | E138: 7840 | F138: 6230 | G138: 4610 | H138: 2990 | I138: 1380 | J138: 0 | K138: 0 | L138: 61900
A139: 109 | B139: 329000 | C139: 332000 | D139: 10870 | E139: 7960 | F139: 6350 | G139: 4740 | H139: 3110 | I139: 1500 | J139: 0 | K139: 0 | L139: 62900
A140: 110 | B140: 332000 | C140: 335000 | D140: 11120 | E140: 8090 | F140: 6470 | G140: 4860 | H140: 3240 | I140: 1620 | J140: 0 | K140: 0 | L140: 63900
A142: 111 | B142: 335000 | C142: 338000 | D142: 11360 | E142: 8210 | F142: 6600 | G142: 4980 | H142: 3360 | I142: 1750 | J142: 130 | K142: 0 | L142: 64900
A143: 112 | B143: 338000 | C143: 341000 | D143: 11610 | E143: 8370 | F143: 6720 | G143: 5110 | H143: 3480 | I143: 1870 | J143: 260 | K143: 0 | L143: 66000
A144: 113 | B144: 341000 | C144: 344000 | D144: 11850 | E144: 8620 | F144: 6840 | G144: 5230 | H144: 3600 | I144: 1990 | J144: 380 | K144: 0 | L144: 67000
A145: 114 | B145: 344000 | C145: 347000 | D145: 12100 | E145: 8860 | F145: 6960 | G145: 5350 | H145: 3730 | I145: 2110 | J145: 500 | K145: 0 | L145: 68000
A146: 115 | B146: 347000 | C146: 350000 | D146: 12340 | E146: 9110 | F146: 7090 | G146: 5470 | H146: 3850 | I146: 2240 | J146: 620 | K146: 0 | L146: 69000
A148: 116 | B148: 350000 | C148: 353000 | D148: 12590 | E148: 9350 | F148: 7210 | G148: 5600 | H148: 3970 | I148: 2360 | J148: 750 | K148: 0 | L148: 70000
A149: 117 | B149: 353000 | C149: 356000 | D149: 12830 | E149: 9600 | F149: 7330 | G149: 5720 | H149: 4090 | I149: 2480 | J149: 870 | K149: 0 | L149: 71100
A150: 118 | B150: 356000 | C150: 359000 | D150: 13080 | E150: 9840 | F150: 7450 | G150: 5840 | H150: 4220 | I150: 2600 | J150: 990 | K150: 0 | L150: 72100
A151: 119 | B151: 359000 | C151: 362000 | D151: 13320 | E151: 10090 | F151: 7580 | G151: 5960 | H151: 4340 | I151: 2730 | J151: 1110 | K151: 0 | L151: 73100
A152: 120 | B152: 362000 | C152: 365000 | D152: 13570 | E152: 10330 | F152: 7700 | G152: 6090 | H152: 4460 | I152: 2850 | J152: 1240 | K152: 0 | L152: 74200
A154: 121 | B154: 365000 | C154: 368000 | D154: 13810 | E154: 10580 | F154: 7820 | G154: 6210 | H154: 4580 | I154: 2970 | J154: 1360 | K154: 0 | L154: 75200
A155: 122 | B155: 368000 | C155: 371000 | D155: 14060 | E155: 10820 | F155: 7940 | G155: 6330 | H155: 4710 | I155: 3090 | J155: 1480 | K155: 0 | L155: 76200
A156: 123 | B156: 371000 | C156: 374000 | D156: 14300 | E156: 11070 | F156: 8070 | G156: 6450 | H156: 4830 | I156: 3220 | J156: 1600 | K156: 0 | L156: 77100
A157: 124 | B157: 374000 | C157: 377000 | D157: 14550 | E157: 11310 | F157: 8190 | G157: 6580 | H157: 4950 | I157: 3340 | J157: 1730 | K157: 100 | L157: 78100
A158: 125 | B158: 377000 | C158: 380000 | D158: 14790 | E158: 11560 | F158: 8320 | G158: 6700 | H158: 5070 | I158: 3460 | J158: 1850 | K158: 220 | L158: 79000
A160: 126 | B160: 380000 | C160: 383000 | D160: 15040 | E160: 11800 | F160: 8570 | G160: 6820 | H160: 5200 | I160: 3580 | J160: 1970 | K160: 350 | L160: 79900
A161: 127 | B161: 383000 | C161: 386000 | D161: 15280 | E161: 12050 | F161: 8810 | G161: 6940 | H161: 5320 | I161: 3710 | J161: 2090 | K161: 470 | L161: 81400
A162: 128 | B162: 386000 | C162: 389000 | D162: 15530 | E162: 12290 | F162: 9060 | G162: 7070 | H162: 5440 | I162: 3830 | J162: 2220 | K162: 590 | L162: 83100
A163: 129 | B163: 389000 | C163: 392000 | D163: 15770 | E163: 12540 | F163: 9300 | G163: 7190 | H163: 5560 | I163: 3950 | J163: 2340 | K163: 710 | L163: 84700
A164: 130 | B164: 392000 | C164: 395000 | D164: 16020 | E164: 12780 | F164: 9550 | G164: 7310 | H164: 5690 | I164: 4070 | J164: 2460 | K164: 840 | L164: 86500
A166: 131 | B166: 395000 | C166: 398000 | D166: 16260 | E166: 13030 | F166: 9790 | G166: 7430 | H166: 5810 | I166: 4200 | J166: 2580 | K166: 960 | L166: 88200
A167: 132 | B167: 398000 | C167: 401000 | D167: 16510 | E167: 13270 | F167: 10040 | G167: 7560 | H167: 5930 | I167: 4320 | J167: 2710 | K167: 1080 | L167: 89800
A168: 133 | B168: 401000 | C168: 404000 | D168: 16750 | E168: 13520 | F168: 10280 | G168: 7680 | H168: 6050 | I168: 4440 | J168: 2830 | K168: 1200 | L168: 91600
A169: 134 | B169: 404000 | C169: 407000 | D169: 17000 | E169: 13760 | F169: 10530 | G169: 7800 | H169: 6180 | I169: 4560 | J169: 2950 | K169: 1330 | L169: 93300
A170: 135 | B170: 407000 | C170: 410000 | D170: 17240 | E170: 14010 | F170: 10770 | G170: 7920 | H170: 6300 | I170: 4690 | J170: 3070 | K170: 1450 | L170: 95000
A172: 136 | B172: 410000 | C172: 413000 | D172: 17490 | E172: 14250 | F172: 11020 | G172: 8050 | H172: 6420 | I172: 4810 | J172: 3200 | K172: 1570 | L172: 96700
A173: 137 | B173: 413000 | C173: 416000 | D173: 17730 | E173: 14500 | F173: 11260 | G173: 8170 | H173: 6540 | I173: 4930 | J173: 3320 | K173: 1690 | L173: 98300
A174: 138 | B174: 416000 | C174: 419000 | D174: 17980 | E174: 14740 | F174: 11510 | G174: 8290 | H174: 6670 | I174: 5050 | J174: 3440 | K174: 1820 | L174: 100100
A175: 139 | B175: 419000 | C175: 422000 | D175: 18220 | E175: 14990 | F175: 11750 | G175: 8530 | H175: 6790 | I175: 5180 | J175: 3560 | K175: 1940 | L175: 101800
A176: 140 | B176: 422000 | C176: 425000 | D176: 18470 | E176: 15230 | F176: 12000 | G176: 8770 | H176: 6910 | I176: 5300 | J176: 3690 | K176: 2060 | L176: 103400
A178: 141 | B178: 425000 | C178: 428000 | D178: 18710 | E178: 15480 | F178: 12240 | G178: 9020 | H178: 7030 | I178: 5420 | J178: 3810 | K178: 2180 | L178: 105200
A179: 142 | B179: 428000 | C179: 431000 | D179: 18960 | E179: 15720 | F179: 12490 | G179: 9260 | H179: 7160 | I179: 5540 | J179: 3930 | K179: 2310 | L179: 106900
A180: 143 | B180: 431000 | C180: 434000 | D180: 19210 | E180: 15970 | F180: 12730 | G180: 9510 | H180: 7280 | I180: 5670 | J180: 4050 | K180: 2430 | L180: 108500
A181: 144 | B181: 434000 | C181: 437000 | D181: 19450 | E181: 16210 | F181: 12980 | G181: 9750 | H181: 7400 | I181: 5790 | J181: 4180 | K181: 2550 | L181: 110300
A182: 145 | B182: 437000 | C182: 440000 | D182: 19700 | E182: 16460 | F182: 13220 | G182: 10000 | H182: 7520 | I182: 5910 | J182: 4300 | K182: 2680 | L182: 112000
A184: 146 | B184: 440000 | C184: 443000 | D184: 20090 | E184: 16700 | F184: 13470 | G184: 10240 | H184: 7650 | I184: 6030 | J184: 4420 | K184: 2800 | L184: 113600
A185: 147 | B185: 443000 | C185: 446000 | D185: 20580 | E185: 16950 | F185: 13710 | G185: 10490 | H185: 7770 | I185: 6160 | J185: 4540 | K185: 2920 | L185: 115400
A186: 148 | B186: 446000 | C186: 449000 | D186: 21070 | E186: 17190 | F186: 13960 | G186: 10730 | H186: 7890 | I186: 6280 | J186: 4670 | K186: 3040 | L186: 117100
A187: 149 | B187: 449000 | C187: 452000 | D187: 21560 | E187: 17440 | F187: 14200 | G187: 10980 | H187: 8010 | I187: 6400 | J187: 4790 | K187: 3170 | L187: 118700
A188: 150 | B188: 452000 | C188: 455000 | D188: 22050 | E188: 17680 | F188: 14450 | G188: 11220 | H188: 8140 | I188: 6520 | J188: 4910 | K188: 3290 | L188: 120500
A190: 151 | B190: 455000 | C190: 458000 | D190: 22540 | E190: 17930 | F190: 14690 | G190: 11470 | H190: 8260 | I190: 6650 | J190: 5030 | K190: 3410 | L190: 122200
A191: 152 | B191: 458000 | C191: 461000 | D191: 23030 | E191: 18170 | F191: 14940 | G191: 11710 | H191: 8470 | I191: 6770 | J191: 5160 | K191: 3530 | L191: 123800
A192: 153 | B192: 461000 | C192: 464000 | D192: 23520 | E192: 18420 | F192: 15180 | G192: 11960 | H192: 8720 | I192: 6890 | J192: 5280 | K192: 3660 | L192: 125600
A193: 154 | B193: 464000 | C193: 467000 | D193: 24010 | E193: 18660 | F193: 15430 | G193: 12200 | H193: 8960 | I193: 7010 | J193: 5400 | K193: 3780 | L193: 127300
A194: 155 | B194: 467000 | C194: 470000 | D194: 24500 | E194: 18910 | F194: 15670 | G194: 12450 | H194: 9210 | I194: 7140 | J194: 5520 | K194: 3900 | L194: 129000
A196: 156 | B196: 470000 | C196: 473000 | D196: 24990 | E196: 19150 | F196: 15920 | G196: 12690 | H196: 9450 | I196: 7260 | J196: 5650 | K196: 4020 | L196: 130700
A197: 157 | B197: 473000 | C197: 476000 | D197: 25480 | E197: 19400 | F197: 16160 | G197: 12940 | H197: 9700 | I197: 7380 | J197: 5770 | K197: 4150 | L197: 132300
A198: 158 | B198: 476000 | C198: 479000 | D198: 25970 | E198: 19640 | F198: 16410 | G198: 13180 | H198: 9940 | I198: 7500 | J198: 5890 | K198: 4270 | L198: 134000
A199: 159 | B199: 479000 | C199: 482000 | D199: 26460 | E199: 20000 | F199: 16650 | G199: 13430 | H199: 10190 | I199: 7630 | J199: 6010 | K199: 4390 | L199: 135600
A200: 160 | B200: 482000 | C200: 485000 | D200: 26950 | E200: 20490 | F200: 16900 | G200: 13670 | H200: 10430 | I200: 7750 | J200: 6140 | K200: 4510 | L200: 137200
A202: 161 | B202: 485000 | C202: 488000 | D202: 27440 | E202: 20980 | F202: 17140 | G202: 13920 | H202: 10680 | I202: 7870 | J202: 6260 | K202: 4640 | L202: 138800
A203: 162 | B203: 488000 | C203: 491000 | D203: 27930 | E203: 21470 | F203: 17390 | G203: 14160 | H203: 10920 | I203: 7990 | J203: 6380 | K203: 4760 | L203: 140400
A204: 163 | B204: 491000 | C204: 494000 | D204: 28420 | E204: 21960 | F204: 17630 | G204: 14410 | H204: 11170 | I204: 8120 | J204: 6500 | K204: 4880 | L204: 142000
A205: 164 | B205: 494000 | C205: 497000 | D205: 28910 | E205: 22450 | F205: 17880 | G205: 14650 | H205: 11410 | I205: 8240 | J205: 6630 | K205: 5000 | L205: 143700
A206: 165 | B206: 497000 | C206: 500000 | D206: 29400 | E206: 22940 | F206: 18120 | G206: 14900 | H206: 11660 | I206: 8420 | J206: 6750 | K206: 5130 | L206: 145200
A208: 166 | B208: 500000 | C208: 503000 | D208: 29890 | E208: 23430 | F208: 18370 | G208: 15140 | H208: 11900 | I208: 8670 | J208: 6870 | K208: 5250 | L208: 146800
A209: 167 | B209: 503000 | C209: 506000 | D209: 30380 | E209: 23920 | F209: 18610 | G209: 15390 | H209: 12150 | I209: 8910 | J209: 6990 | K209: 5370 | L209: 148500
A210: 168 | B210: 506000 | C210: 509000 | D210: 30880 | E210: 24410 | F210: 18860 | G210: 15630 | H210: 12390 | I210: 9160 | J210: 7120 | K210: 5490 | L210: 150100
A211: 169 | B211: 509000 | C211: 512000 | D211: 31370 | E211: 24900 | F211: 19100 | G211: 15880 | H211: 12640 | I211: 9400 | J211: 7240 | K211: 5620 | L211: 151600
A212: 170 | B212: 512000 | C212: 515000 | D212: 31860 | E212: 25390 | F212: 19350 | G212: 16120 | H212: 12890 | I212: 9650 | J212: 7360 | K212: 5740 | L212: 153300
A214: 171 | B214: 515000 | C214: 518000 | D214: 32350 | E214: 25880 | F214: 19590 | G214: 16370 | H214: 13130 | I214: 9890 | J214: 7480 | K214: 5860 | L214: 154900
A215: 172 | B215: 518000 | C215: 521000 | D215: 32840 | E215: 26370 | F215: 19900 | G215: 16610 | H215: 13380 | I215: 10140 | J215: 7610 | K215: 5980 | L215: 156500
A216: 173 | B216: 521000 | C216: 524000 | D216: 33330 | E216: 26860 | F216: 20390 | G216: 16860 | H216: 13620 | I216: 10380 | J216: 7730 | K216: 6110 | L216: 158100
A217: 174 | B217: 524000 | C217: 527000 | D217: 33820 | E217: 27350 | F217: 20880 | G217: 17100 | H217: 13870 | I217: 10630 | J217: 7850 | K217: 6230 | L217: 159600
A218: 175 | B218: 527000 | C218: 530000 | D218: 34310 | E218: 27840 | F218: 21370 | G218: 17350 | H218: 14110 | I218: 10870 | J218: 7970 | K218: 6350 | L218: 161000
A220: 176 | B220: 530000 | C220: 533000 | D220: 34800 | E220: 28330 | F220: 21860 | G220: 17590 | H220: 14360 | I220: 11120 | J220: 8100 | K220: 6470 | L220: 162500
A221: 177 | B221: 533000 | C221: 536000 | D221: 35290 | E221: 28820 | F221: 22350 | G221: 17840 | H221: 14600 | I221: 11360 | J221: 8220 | K221: 6600 | L221: 164000
A222: 178 | B222: 536000 | C222: 539000 | D222: 35780 | E222: 29310 | F222: 22840 | G222: 18080 | H222: 14850 | I222: 11610 | J222: 8380 | K222: 6720 | L222: 165400
A223: 179 | B223: 539000 | C223: 542000 | D223: 36270 | E223: 29800 | F223: 23330 | G223: 18330 | H223: 15090 | I223: 11850 | J223: 8630 | K223: 6840 | L223: 166900
A224: 180 | B224: 542000 | C224: 545000 | D224: 36760 | E224: 30290 | F224: 23820 | G224: 18570 | H224: 15340 | I224: 12100 | J224: 8870 | K224: 6960 | L224: 168400
A226: 181 | B226: 545000 | C226: 548000 | D226: 37250 | E226: 30780 | F226: 24310 | G226: 18820 | H226: 15580 | I226: 12340 | J226: 9120 | K226: 7090 | L226: 169900
A227: 182 | B227: 548000 | C227: 551000 | D227: 37740 | E227: 31270 | F227: 24800 | G227: 19060 | H227: 15830 | I227: 12590 | J227: 9360 | K227: 7210 | L227: 171300
A228: 183 | B228: 551000 | C228: 554000 | D228: 38280 | E228: 31810 | F228: 25340 | G228: 19330 | H228: 16100 | I228: 12860 | J228: 9630 | K228: 7350 | L228: 172800
A229: 184 | B229: 554000 | C229: 557000 | D229: 38830 | E229: 32370 | F229: 25890 | G229: 19600 | H229: 16380 | I229: 13140 | J229: 9900 | K229: 7480 | L229: 174300
A230: 185 | B230: 557000 | C230: 560000 | D230: 39380 | E230: 32920 | F230: 26440 | G230: 19980 | H230: 16650 | I230: 13420 | J230: 10180 | K230: 7630 | L230: 175700
A232: 186 | B232: 560000 | C232: 563000 | D232: 39930 | E232: 33470 | F232: 27000 | G232: 20530 | H232: 16930 | I232: 13690 | J232: 10460 | K232: 7760 | L232: 177200
A233: 187 | B233: 563000 | C233: 566000 | D233: 40480 | E233: 34020 | F233: 27550 | G233: 21080 | H233: 17200 | I233: 13970 | J233: 10730 | K233: 7900 | L233: 178700
A234: 188 | B234: 566000 | C234: 569000 | D234: 41030 | E234: 34570 | F234: 28100 | G234: 21630 | H234: 17480 | I234: 14240 | J234: 11010 | K234: 8040 | L234: 180100
A235: 189 | B235: 569000 | C235: 572000 | D235: 41590 | E235: 35120 | F235: 28650 | G235: 22190 | H235: 17760 | I235: 14520 | J235: 11280 | K235: 8180 | L235: 181600
A236: 190 | B236: 572000 | C236: 575000 | D236: 42140 | E236: 35670 | F236: 29200 | G236: 22740 | H236: 18030 | I236: 14790 | J236: 11560 | K236: 8330 | L236: 183100
A238: 191 | B238: 575000 | C238: 578000 | D238: 42690 | E238: 36230 | F238: 29750 | G238: 23290 | H238: 18310 | I238: 15070 | J238: 11830 | K238: 8610 | L238: 184600
A239: 192 | B239: 578000 | C239: 581000 | D239: 43240 | E239: 36780 | F239: 30300 | G239: 23840 | H239: 18580 | I239: 15350 | J239: 12110 | K239: 8880 | L239: 186000
... 135 more rows

Sheet 源泉賞与表 (hidden)
B1: 賞与に対する源泉徴収税額の算出率の表（令和４年分）
B2: （平成24年３月31日財務省告示第115号別表第三（令和２年３月31日財務省告示第81号改正））
B3: 賞与の金額に乗ずべき率 | D3: 甲 | T3: 乙
D4: 扶 養 親 族 等 の 数
D5: 0 人 | F5: 1 人 | H5: 2 人 | J5: 3 人 | L5: 4 人 | N5: 5 人 | P5: 6 人 | R5: 7 人 以 上
D6: 前 月 の 社 会 保 険 料 等 控 除 後 の 給 与 等 の 金 額 | T6: 前月の社会保険料等控除後の給与等の金額
D7: 以上 | E7: 未満 | F7: 以上 | G7: 未満 | H7: 以上 | I7: 未満 | J7: 以上 | K7: 未満 | L7: 以上 | M7: 未満 | N7: 以上 | O7: 未満 | P7: 以上 | Q7: 未満 | R7: 以上 | S7: 未満 | T7: 以上 | U7: 未満
B8: % | D8: 千円 | E8: 千円 | F8: 千円 | G8: 千円 | H8: 千円 | I8: 千円 | J8: 千円 | K8: 千円 | L8: 千円 | M8: 千円 | N8: 千円 | O8: 千円 | P8: 千円 | Q8: 千円 | R8: 千円 | S8: 千円 | T8: 千円 | U8: 千円
B9: 0 | D9: 68千円未満 | F9: 94千円未満 | H9: 133千円未満 | J9: 171千円未満 | L9: 210千円未満 | N9: 243千円未満 | P9: 275千円未満 | R9: 308千円未満
B10: 2.042 | D10: 68 | E10: 79 | F10: 94 | G10: 243 | H10: 133 | I10: 269 | J10: 171 | K10: 295 | L10: 210 | M10: 300 | N10: 243 | O10: 300 | P10: 275 | Q10: 333 | R10: 308 | S10: 372
B11: 4.084 | D11: 79 | E11: 252 | F11: 243 | G11: 282 | H11: 269 | I11: 312 | J11: 295 | K11: 345 | L11: 300 | M11: 378 | N11: 300 | O11: 406 | P11: 333 | Q11: 431 | R11: 372 | S11: 456
B12: 6.126 | D12: 252 | E12: 300 | F12: 282 | G12: 338 | H12: 312 | I12: 369 | J12: 345 | K12: 398 | L12: 378 | M12: 424 | N12: 406 | O12: 450 | P12: 431 | Q12: 476 | R12: 456 | S12: 502
B14: 8.168 | D14: 300 | E14: 334 | F14: 338 | G14: 365 | H14: 369 | I14: 393 | J14: 398 | K14: 417 | L14: 424 | M14: 444 | N14: 450 | O14: 472 | P14: 476 | Q14: 499 | R14: 502 | S14: 523
B15: 10.21 | D15: 334 | E15: 363 | F15: 365 | G15: 394 | H15: 393 | I15: 420 | J15: 417 | K15: 445 | L15: 444 | M15: 470 | N15: 472 | O15: 496 | P15: 499 | Q15: 521 | R15: 523 | S15: 545 | U15: 222
B16: 12.252 | D16: 363 | E16: 395 | F16: 394 | G16: 422 | H16: 420 | I16: 450 | J16: 445 | K16: 477 | L16: 470 | M16: 503 | N16: 496 | O16: 525 | P16: 521 | Q16: 547 | R16: 545 | S16: 571
B18: 14.294 | D18: 395 | E18: 426 | F18: 422 | G18: 455 | H18: 450 | I18: 484 | J18: 477 | K18: 510 | L18: 503 | M18: 534 | N18: 525 | O18: 557 | P18: 547 | Q18: 582 | R18: 571 | S18: 607
B19: 16.336 | D19: 426 | E19: 520 | F19: 455 | G19: 520 | H19: 484 | I19: 520 | J19: 510 | K19: 544 | L19: 534 | M19: 570 | N19: 557 | O19: 597 | P19: 582 | Q19: 623 | R19: 607 | S19: 650
B20: 18.378 | D20: 520 | E20: 601 | F20: 520 | G20: 617 | H20: 520 | I20: 632 | J20: 544 | K20: 647 | L20: 570 | M20: 662 | N20: 597 | O20: 677 | P20: 623 | Q20: 693 | R20: 650 | S20: 708
B22: 20.42 | D22: 601 | E22: 678 | F22: 617 | G22: 699 | H22: 632 | I22: 721 | J22: 647 | K22: 745 | L22: 662 | M22: 768 | N22: 677 | O22: 792 | P22: 693 | Q22: 815 | R22: 708 | S22: 838 | T22: 222 | U22: 293
B23: 22.462 | D23: 678 | E23: 708 | F23: 699 | G23: 733 | H23: 721 | I23: 757 | J23: 745 | K23: 782 | L23: 768 | M23: 806 | N23: 792 | O23: 831 | P23: 815 | Q23: 856 | R23: 838 | S23: 880
B24: 24.504 | D24: 708 | E24: 745 | F24: 733 | G24: 771 | H24: 757 | I24: 797 | J24: 782 | K24: 823 | L24: 806 | M24: 849 | N24: 831 | O24: 875 | P24: 856 | Q24: 900 | R24: 880 | S24: 926
B26: 26.546 | D26: 745 | E26: 788 | F26: 771 | G26: 814 | H26: 797 | I26: 841 | J26: 823 | K26: 868 | L26: 849 | M26: 896 | N26: 875 | O26: 923 | P26: 900 | Q26: 950 | R26: 926 | S26: 978
B27: 28.588 | D27: 788 | E27: 846 | F27: 814 | G27: 874 | H27: 841 | I27: 902 | J27: 868 | K27: 931 | L27: 896 | M27: 959 | N27: 923 | O27: 987 | P27: 950 | Q27: 1015 | R27: 978 | S27: 1043
B28: 30.63 | D28: 846 | E28: 914 | F28: 874 | G28: 944 | H28: 902 | I28: 975 | J28: 931 | K28: 1005 | L28: 959 | M28: 1036 | N28: 987 | O28: 1066 | P28: 1015 | Q28: 1096 | R28: 1043 | S28: 1127 | T28: 293 | U28: 524
B30: 32.672 | D30: 914 | E30: 1312 | F30: 944 | G30: 1336 | H30: 975 | I30: 1360 | J30: 1005 | K30: 1385 | L30: 1036 | M30: 1409 | N30: 1066 | O30: 1434 | P30: 1096 | Q30: 1458 | R30: 1127 | S30: 1482
B31: 35.735 | D31: 1312 | E31: 1521 | F31: 1336 | G31: 1526 | H31: 1360 | I31: 1526 | J31: 1385 | K31: 1538 | L31: 1409 | M31: 1555 | N31: 1434 | O31: 1555 | P31: 1458 | Q31: 1555 | R31: 1482 | S31: 1583
B32: 38.798 | D32: 1521 | E32: 2621 | F32: 1526 | G32: 2645 | H32: 1526 | I32: 2669 | J32: 1538 | K32: 2693 | L32: 1555 | M32: 2716 | N32: 1555 | O32: 2740 | P32: 1555 | Q32: 2764 | R32: 1583 | S32: 2788 | T32: 524 | U32: 1118
B34: 41.861 | D34: 2621 | E34: 3495 | F34: 2645 | G34: 3527 | H34: 2669 | I34: 3559 | J34: 2693 | K34: 3590 | L34: 2716 | M34: 3622 | N34: 2740 | O34: 3654 | P34: 2764 | Q34: 3685 | R34: 2788 | S34: 3717
B36: 45.945 | D36: 3495 | E36: 千円以上 | F36: 3527 | G36: 千円以上 | H36: 3559 | I36: 千円以上 | J36: 3590 | K36: 千円以上 | L36: 3622 | M36: 千円以上 | N36: 3654 | O36: 千円以上 | P36: 3685 | Q36: 千円以上 | R36: 3717 | S36: 千円以上 | T36: 1118 | U36: 千円以上
B37: (注) この表における用語の意味は、次のとおりです。
B38: １ 「扶養親族」とは、源泉控除対象配偶者及び控除対象扶養親族をいいます。
B39: ２ 「社会保険料等」とは、所得税法第74条第２項（社会保険料控除）に規定する社会保険料及び同法第75条第２項（小規模企業共済等掛金控除）に規定する小規模企業共済等掛金をいいます。
B40: また、「賞与の金額に乗ずべき率」の賞与の金額とは、賞与の金額から控除される社会保険料等の金額がある場合には、その社会保険料等控除後の金額をいいます。
B41: (備考） 賞与の金額に乗ずべき率の求め方は、次のとおりです。
B42: 1 「給与所得者の扶養控除等申告書」(以下この表において「扶養控除等申告書」といいます。)の提出があった人(４に該当する場合を除きます。）
B43: (1) まず、その人の前月中の給与等（賞与を除きます。以下この表において同じです。)の金額から、その給与等の金額から控除される社会保険料等の金額（以下この表において「前月中の社会保険料等の金額」といいます。)を控除した金額を求めます。
B44: (2) 次に、扶養控除等申告書により申告された扶養親族等（その申告書に記載がされていないものとされる源泉控除対象配偶者を除きます。また、扶養親族等が国外居住親族である場合には、親族に該当する旨を証する書類が扶養控除等申告書等に添付
B45: され、又は当該書類が扶養控除等申告書の提出の際に提示された扶養親族等に限ります。）の数と(1)により求めた金額とに応じて甲欄の「前月の社会保険料等控除後の給与等の金額」欄の該当する行を求めます。
B46: (3) (2)により求めた行と「賞与の金額に乗ずべき率」欄との交わるところに記載されている率を求めます。これが求める率です。
B47: 2 １の場合において、扶養控除等申告書にその人が障害者(特別障害者を含みます。)、寡婦、ひとり親又は勤労学生に該当する旨の記載があるときは、扶養親族等の数にこれらの一に該当するごとに１人を加算した数を、扶養控除等申告書にその人の同一
B48: 生計配偶者又は扶養親族のうちに障害者(特別障害者を含みます。)又は同居特別障害者（障害者(特別障害者を含みます。)又は同居特別障害者が国外居住親族である場合には、親族に該当する旨を証する書類が扶養控除等申告書に添付され、又は当該書類
B49: が扶養控除等申告書の提出の際に提示された障害者（特別障害者を含みます。）又は同居特別障害者に限ります。）に該当する人がいる旨の記載があるときは、扶養親族等の数にこれらの一に該当するごとに１人を加算した数を、それぞれ扶養親族等の数
B50: とします。
B51: 3 扶養控除等申告書の提出がない人(「従たる給与についての扶養控除等申告書」の提出があった人を含み、４に該当する場合を除きます。）
B52: (1) その人の前月中の給与等の金額から前月中の社会保険料等の金額を控除した金額を求めます。
B53: (2) (1)により求めた金額に応じて乙欄の「前月の社会保険料等控除後の給与等の金額」欄の該当する行を求めます。
B54: (3) (2)により求めた行と「賞与の金額に乗ずべき率」欄との交わるところに記載されている率を求めます。これが求める率です。
B55: 4 前月中の給与等の金額がない場合や前月中の給与等の金額が前月中の社会保険料等の金額以下である場合又はその賞与の金額（その金額から控除される社会保険料等の金額がある場合には、その控除後の金額)が前月中の給与等の金額から前月中の社会
B56: 保険料等の金額を控除した金額の10倍に相当する金額を超える場合には、この表によらず、平成24年３月31日財務省告示第115号（平成31年３月29日財務省告示第97号改正）第３項第１号イ(2)若しくはロ(2)又は第２号の規定により、月額表を使って税額
B57: を計算します。
B58: 5 １から４までの場合において、その人の受ける給与等の支給期が月の整数倍の期間ごとと定められているときは、その賞与の支払の直前に支払を受けた若しくは支払を受けるべき給与等の金額又はその給与等の金額から控除される社会保険料等の金額を
B59: その倍数で除して計算した金額を、それぞれ前月中の給与等の金額又はその金額から控除される社会保険料等の金額とみなします。

Sheet 雇用保険料率 (hidden)
C3: 雇用保険料率 | D3: 労働者負担分
D4: 0
C5: =リスト表!C5 -> 一般の事業 | D5: 0.006
C6: =リスト表!C6 -> 農林水産・清酒製造事業 | D6: 0.007
C7: =リスト表!C7 -> 建設の事業 | D7: 0.007
C9: 雇用保険料の対象となる賃金は、総支給額に交通費を加算した額です。

Sheet 北海道 (hidden)
A1: 令和６年３月分（４月納付分）からの健康保険・厚生年金保険の保険料額表
B3: ・健康保険料率：令和6年3月分～ 適用 ・厚生年金保険料率：平成29年9月分～ 適用
B4: ・介護保険料率：令和6年3月分～ 適用 ・子ども・子育て拠出金率：令和2年4月分～ 適用
A6: （北海道） | K6: （単位：円）
A7: 標 準 報 酬 | C7: 報 酬 月 額 | F7: 全国健康保険協会管掌健康保険料 | J7: 厚生年金保険料（厚生年金基金加入員を除く）
F8: 介護保険第２号被保険者 に該当しない場合 | H8: 介護保険第２号被保険者 に該当する場合 | J8: 一般、坑内員・船員
A9: 等級 | B9: 月 額 | F9: 0.1021 | H9: 0.1181 | J9: 0.183
F10: 全 額 | G10: 折半額 | H10: 全 額 | I10: 折半額 | J10: 全 額 | K10: 折半額
C11: 円以上 | E11: 円未満
A12: 1 | B12: 58000 | D12: ～ | E12: 63000 | F12: 5921.8 | G12: 2960.9 | H12: 6849.8 | I12: 3424.9
A13: 2 | B13: 68000 | C13: 63000 | D13: ～ | E13: 73000 | F13: 6942.8 | G13: 3471.4 | H13: 8030.8 | I13: 4015.4
A14: 3 | B14: 78000 | C14: 73000 | D14: ～ | E14: 83000 | F14: 7963.8 | G14: 3981.9 | H14: 9211.8 | I14: 4605.9
A15: 4（1） | B15: 88000 | C15: 83000 | D15: ～ | E15: 93000 | F15: 8984.8 | G15: 4492.4 | H15: 10392.8 | I15: 5196.4 | J15: 16104 | K15: 8052
A16: 5（2） | B16: 98000 | C16: 93000 | D16: ～ | E16: 101000 | F16: 10005.8 | G16: 5002.9 | H16: 11573.8 | I16: 5786.9 | J16: 17934 | K16: 8967
A17: 6（3） | B17: 104000 | C17: 101000 | D17: ～ | E17: 107000 | F17: 10618.4 | G17: 5309.2 | H17: 12282.4 | I17: 6141.2 | J17: 19032 | K17: 9516
A18: 7（4） | B18: 110000 | C18: 107000 | D18: ～ | E18: 114000 | F18: 11231 | G18: 5615.5 | H18: 12991 | I18: 6495.5 | J18: 20130 | K18: 10065
A19: 8（5） | B19: 118000 | C19: 114000 | D19: ～ | E19: 122000 | F19: 12047.8 | G19: 6023.9 | H19: 13935.8 | I19: 6967.9 | J19: 21594 | K19: 10797
A20: 9（6） | B20: 126000 | C20: 122000 | D20: ～ | E20: 130000 | F20: 12864.6 | G20: 6432.3 | H20: 14880.6 | I20: 7440.3 | J20: 23058 | K20: 11529
A21: 10（7） | B21: 134000 | C21: 130000 | D21: ～ | E21: 138000 | F21: 13681.4 | G21: 6840.7 | H21: 15825.4 | I21: 7912.7 | J21: 24522 | K21: 12261
A22: 11（8） | B22: 142000 | C22: 138000 | D22: ～ | E22: 146000 | F22: 14498.2 | G22: 7249.1 | H22: 16770.2 | I22: 8385.1 | J22: 25986 | K22: 12993
A23: 12（9） | B23: 150000 | C23: 146000 | D23: ～ | E23: 155000 | F23: 15315 | G23: 7657.5 | H23: 17715 | I23: 8857.5 | J23: 27450 | K23: 13725
A24: 13（10） | B24: 160000 | C24: 155000 | D24: ～ | E24: 165000 | F24: 16336 | G24: 8168 | H24: 18896 | I24: 9448 | J24: 29280 | K24: 14640
A25: 14（11） | B25: 170000 | C25: 165000 | D25: ～ | E25: 175000 | F25: 17357 | G25: 8678.5 | H25: 20077 | I25: 10038.5 | J25: 31110 | K25: 15555
A26: 15（12） | B26: 180000 | C26: 175000 | D26: ～ | E26: 185000 | F26: 18378 | G26: 9189 | H26: 21258 | I26: 10629 | J26: 32940 | K26: 16470
A27: 16（13） | B27: 190000 | C27: 185000 | D27: ～ | E27: 195000 | F27: 19399 | G27: 9699.5 | H27: 22439 | I27: 11219.5 | J27: 34770 | K27: 17385
A28: 17（14） | B28: 200000 | C28: 195000 | D28: ～ | E28: 210000 | F28: 20420 | G28: 10210 | H28: 23620 | I28: 11810 | J28: 36600 | K28: 18300
A29: 18（15） | B29: 220000 | C29: 210000 | D29: ～ | E29: 230000 | F29: 22462 | G29: 11231 | H29: 25982 | I29: 12991 | J29: 40260 | K29: 20130
A30: 19（16） | B30: 240000 | C30: 230000 | D30: ～ | E30: 250000 | F30: 24504 | G30: 12252 | H30: 28344 | I30: 14172 | J30: 43920 | K30: 21960
A31: 20（17） | B31: 260000 | C31: 250000 | D31: ～ | E31: 270000 | F31: 26546 | G31: 13273 | H31: 30706 | I31: 15353 | J31: 47580 | K31: 23790
A32: 21（18） | B32: 280000 | C32: 270000 | D32: ～ | E32: 290000 | F32: 28588 | G32: 14294 | H32: 33068 | I32: 16534 | J32: 51240 | K32: 25620
A33: 22（19） | B33: 300000 | C33: 290000 | D33: ～ | E33: 310000 | F33: 30630 | G33: 15315 | H33: 35430 | I33: 17715 | J33: 54900 | K33: 27450
A34: 23（20） | B34: 320000 | C34: 310000 | D34: ～ | E34: 330000 | F34: 32672 | G34: 16336 | H34: 37792 | I34: 18896 | J34: 58560 | K34: 29280
A35: 24（21） | B35: 340000 | C35: 330000 | D35: ～ | E35: 350000 | F35: 34714 | G35: 17357 | H35: 40154 | I35: 20077 | J35: 62220 | K35: 31110
A36: 25（22） | B36: 360000 | C36: 350000 | D36: ～ | E36: 370000 | F36: 36756 | G36: 18378 | H36: 42516 | I36: 21258 | J36: 65880 | K36: 32940
A37: 26（23） | B37: 380000 | C37: 370000 | D37: ～ | E37: 395000 | F37: 38798 | G37: 19399 | H37: 44878 | I37: 22439 | J37: 69540 | K37: 34770
A38: 27（24） | B38: 410000 | C38: 395000 | D38: ～ | E38: 425000 | F38: 41861 | G38: 20930.5 | H38: 48421 | I38: 24210.5 | J38: 75030 | K38: 37515
A39: 28（25） | B39: 440000 | C39: 425000 | D39: ～ | E39: 455000 | F39: 44924 | G39: 22462 | H39: 51964 | I39: 25982 | J39: 80520 | K39: 40260
A40: 29（26） | B40: 470000 | C40: 455000 | D40: ～ | E40: 485000 | F40: 47987 | G40: 23993.5 | H40: 55507 | I40: 27753.5 | J40: 86010 | K40: 43005
A41: 30（27） | B41: 500000 | C41: 485000 | D41: ～ | E41: 515000 | F41: 51050 | G41: 25525 | H41: 59050 | I41: 29525 | J41: 91500 | K41: 45750
A42: 31（28） | B42: 530000 | C42: 515000 | D42: ～ | E42: 545000 | F42: 54113 | G42: 27056.5 | H42: 62593 | I42: 31296.5 | J42: 96990 | K42: 48495
A43: 32（29） | B43: 560000 | C43: 545000 | D43: ～ | E43: 575000 | F43: 57176 | G43: 28588 | H43: 66136 | I43: 33068 | J43: 102480 | K43: 51240
A44: 33（30） | B44: 590000 | C44: 575000 | D44: ～ | E44: 605000 | F44: 60239 | G44: 30119.5 | H44: 69679 | I44: 34839.5 | J44: 107970 | K44: 53985
A45: 34（31） | B45: 620000 | C45: 605000 | D45: ～ | E45: 635000 | F45: 63302 | G45: 31651 | H45: 73222 | I45: 36611 | J45: 113460 | K45: 56730
A46: 35（32） | B46: 650000 | C46: 635000 | D46: ～ | E46: 665000 | F46: 66365 | G46: 33182.5 | H46: 76765 | I46: 38382.5 | J46: 118950 | K46: 59475
A47: 36 | B47: 680000 | C47: 665000 | D47: ～ | E47: 695000 | F47: 69428 | G47: 34714 | H47: 80308 | I47: 40154
A48: 37 | B48: 710000 | C48: 695000 | D48: ～ | E48: 730000 | F48: 72491 | G48: 36245.5 | H48: 83851 | I48: 41925.5 | J48: ※厚生年金基金に加入している方の
A49: 38 | B49: 750000 | C49: 730000 | D49: ～ | E49: 770000 | F49: 76575 | G49: 38287.5 | H49: 88575 | I49: 44287.5 | J49: 厚生年金保険料率は、基金ごとに
A50: 39 | B50: 790000 | C50: 770000 | D50: ～ | E50: 810000 | F50: 80659 | G50: 40329.5 | H50: 93299 | I50: 46649.5 | J50: 定められている免除保険料率
A51: 40 | B51: 830000 | C51: 810000 | D51: ～ | E51: 855000 | F51: 84743 | G51: 42371.5 | H51: 98023 | I51: 49011.5 | J51: （2.4％～5.0％）を控除した率となり
A52: 41 | B52: 880000 | C52: 855000 | D52: ～ | E52: 905000 | F52: 89848 | G52: 44924 | H52: 103928 | I52: 51964 | J52: ます。
A53: 42 | B53: 930000 | C53: 905000 | D53: ～ | E53: 955000 | F53: 94953 | G53: 47476.5 | H53: 109833 | I53: 54916.5
A54: 43 | B54: 980000 | C54: 955000 | D54: ～ | E54: 1005000 | F54: 100058 | G54: 50029 | H54: 115738 | I54: 57869 | J54: 加入する基金ごとに異なりますの
A55: 44 | B55: 1030000 | C55: 1005000 | D55: ～ | E55: 1055000 | F55: 105163 | G55: 52581.5 | H55: 121643 | I55: 60821.5 | J55: で、免除保険料率および厚生年金
A56: 45 | B56: 1090000 | C56: 1055000 | D56: ～ | E56: 1115000 | F56: 111289 | G56: 55644.5 | H56: 128729 | I56: 64364.5 | J56: 基金の掛金については、加入する
A57: 46 | B57: 1150000 | C57: 1115000 | D57: ～ | E57: 1175000 | F57: 117415 | G57: 58707.5 | H57: 135815 | I57: 67907.5 | J57: 厚生年金基金にお問い合わせ
A58: 47 | B58: 1210000 | C58: 1175000 | D58: ～ | E58: 1235000 | F58: 123541 | G58: 61770.5 | H58: 142901 | I58: 71450.5 | J58: ください。
A59: 48 | B59: 1270000 | C59: 1235000 | D59: ～ | E59: 1295000 | F59: 129667 | G59: 64833.5 | H59: 149987 | I59: 74993.5
A60: 49 | B60: 1330000 | C60: 1295000 | D60: ～ | E60: 1355000 | F60: 135793 | G60: 67896.5 | H60: 157073 | I60: 78536.5
A61: 50 | B61: 1390000 | C61: 1355000 | D61: ～ | F61: 141919 | G61: 70959.5 | H61: 164159 | I61: 82079.5
A63: ◆介護保険第２号被保険者は、40歳から64歳までの方であり、健康保険料率（10.21%）に介護保険料率（1.60%）が加わります。
A64: ◆等級欄の（ ）内の数字は、厚生年金保険の標準報酬月額等級です。
A65: 4（1）等級の「報酬月額」欄は、厚生年金保険の場合「93,000円未満」と読み替えてください。
A66: 35（32）等級の「報酬月額」欄は、厚生年金保険の場合「635,000円以上」と読み替えてください。
A67: ◆令和6年度における全国健康保険協会の任意継続被保険者について、標準報酬月額の上限は、300,000円です。
A70: ○被保険者負担分（表の折半額の欄）に円未満の端数がある場合
A71: ①事業主が、給与から被保険者負担分を控除する場合、被保険者負担分の端数が50銭以下の場合は切り捨て、50銭を超える場合は切り上げて1円となります。
A72: ②被保険者が、被保険者負担分を事業主へ現金で支払う場合、被保険者負担分の端数が50銭未満の場合は切り捨て、50銭以上の場合は切り上げて1円となります。
A73: （注）①、②にかかわらず、事業主と被保険者間で特約がある場合には、特約に基づき端数処理をすることができます。
A75: ○納入告知書の保険料額
A76: 納入告知書の保険料額は、被保険者個々の保険料額を合算した金額になります。ただし、合算した金額に円未満の端数がある場合は、その端数を切り捨てた額となります。
A78: ○賞与にかかる保険料額
A79: 賞与に係る保険料額は、賞与額から1,000円未満の端数を切り捨てた額（標準賞与額)に、保険料率を乗じた額となります。
A80: また、標準賞与額の上限は、健康保険は年間573万円（毎年4月1日から翌年3月31日までの累計額。）となり、厚生年金保険と子ども・子育て拠出金の場合は
A81: 月間150万円となります。
A83: ○子ども・子育て拠出金
A84: 事業主の方は、児童手当の支給に要する費用等の一部として、子ども・子育て拠出金を負担いただくことになります。（被保険者の負担はありません。）
A85: この子ども・子育て拠出金の額は、被保険者個々の厚生年金保険の標準報酬月額および標準賞与額に、拠出金率（0.36％）を乗じて得た額の総額となります。

Sheet 青森 (hidden)
A1: 令和６年３月分（４月納付分）からの健康保険・厚生年金保険の保険料額表
B3: ・健康保険料率：令和6年3月分～ 適用 ・厚生年金保険料率：平成29年9月分～ 適用
B4: ・介護保険料率：令和6年3月分～ 適用 ・子ども・子育て拠出金率：令和2年4月分～ 適用
A6: （青森県） | K6: （単位：円）
A7: 標 準 報 酬 | C7: 報 酬 月 額 | F7: 全国健康保険協会管掌健康保険料 | J7: 厚生年金保険料（厚生年金基金加入員を除く）
F8: 介護保険第２号被保険者 に該当しない場合 | H8: 介護保険第２号被保険者 に該当する場合 | J8: 一般、坑内員・船員
A9: 等級 | B9: 月 額 | F9: 0.0949 | H9: 0.1109 | J9: 0.183
F10: 全 額 | G10: 折半額 | H10: 全 額 | I10: 折半額 | J10: 全 額 | K10: 折半額
C11: 円以上 | E11: 円未満
A12: 1 | B12: 58000 | D12: ～ | E12: 63000 | F12: 5504.2 | G12: 2752.1 | H12: 6432.2 | I12: 3216.1
A13: 2 | B13: 68000 | C13: 63000 | D13: ～ | E13: 73000 | F13: 6453.2 | G13: 3226.6 | H13: 7541.2 | I13: 3770.6
A14: 3 | B14: 78000 | C14: 73000 | D14: ～ | E14: 83000 | F14: 7402.2 | G14: 3701.1 | H14: 8650.2 | I14: 4325.1
A15: 4（1） | B15: 88000 | C15: 83000 | D15: ～ | E15: 93000 | F15: 8351.2 | G15: 4175.6 | H15: 9759.2 | I15: 4879.6 | J15: 16104 | K15: 8052
A16: 5（2） | B16: 98000 | C16: 93000 | D16: ～ | E16: 101000 | F16: 9300.2 | G16: 4650.1 | H16: 10868.2 | I16: 5434.1 | J16: 17934 | K16: 8967
A17: 6（3） | B17: 104000 | C17: 101000 | D17: ～ | E17: 107000 | F17: 9869.6 | G17: 4934.8 | H17: 11533.6 | I17: 5766.8 | J17: 19032 | K17: 9516
A18: 7（4） | B18: 110000 | C18: 107000 | D18: ～ | E18: 114000 | F18: 10439 | G18: 5219.5 | H18: 12199 | I18: 6099.5 | J18: 20130 | K18: 10065
A19: 8（5） | B19: 118000 | C19: 114000 | D19: ～ | E19: 122000 | F19: 11198.2 | G19: 5599.1 | H19: 13086.2 | I19: 6543.1 | J19: 21594 | K19: 10797
A20: 9（6） | B20: 126000 | C20: 122000 | D20: ～ | E20: 130000 | F20: 11957.4 | G20: 5978.7 | H20: 13973.4 | I20: 6986.7 | J20: 23058 | K20: 11529
A21: 10（7） | B21: 134000 | C21: 130000 | D21: ～ | E21: 138000 | F21: 12716.6 | G21: 6358.3 | H21: 14860.6 | I21: 7430.3 | J21: 24522 | K21: 12261
A22: 11（8） | B22: 142000 | C22: 138000 | D22: ～ | E22: 146000 | F22: 13475.8 | G22: 6737.9 | H22: 15747.8 | I22: 7873.9 | J22: 25986 | K22: 12993
A23: 12（9） | B23: 150000 | C23: 146000 | D23: ～ | E23: 155000 | F23: 14235 | G23: 7117.5 | H23: 16635 | I23: 8317.5 | J23: 27450 | K23: 13725
A24: 13（10） | B24: 160000 | C24: 155000 | D24: ～ | E24: 165000 | F24: 15184 | G24: 7592 | H24: 17744 | I24: 8872 | J24: 29280 | K24: 14640
A25: 14（11） | B25: 170000 | C25: 165000 | D25: ～ | E25: 175000 | F25: 16133 | G25: 8066.5 | H25: 18853 | I25: 9426.5 | J25: 31110 | K25: 15555
A26: 15（12） | B26: 180000 | C26: 175000 | D26: ～ | E26: 185000 | F26: 17082 | G26: 8541 | H26: 19962 | I26: 9981 | J26: 32940 | K26: 16470
A27: 16（13） | B27: 190000 | C27: 185000 | D27: ～ | E27: 195000 | F27: 18031 | G27: 9015.5 | H27: 21071 | I27: 10535.5 | J27: 34770 | K27: 17385
A28: 17（14） | B28: 200000 | C28: 195000 | D28: ～ | E28: 210000 | F28: 18980 | G28: 9490 | H28: 22180 | I28: 11090 | J28: 36600 | K28: 18300
A29: 18（15） | B29: 220000 | C29: 210000 | D29: ～ | E29: 230000 | F29: 20878 | G29: 10439 | H29: 24398 | I29: 12199 | J29: 40260 | K29: 20130
A30: 19（16） | B30: 240000 | C30: 230000 | D30: ～ | E30: 250000 | F30: 22776 | G30: 11388 | H30: 26616 | I30: 13308 | J30: 43920 | K30: 21960
A31: 20（17） | B31: 260000 | C31: 250000 | D31: ～ | E31: 270000 | F31: 24674 | G31: 12337 | H31: 28834 | I31: 14417 | J31: 47580 | K31: 23790
A32: 21（18） | B32: 280000 | C32: 270000 | D32: ～ | E32: 290000 | F32: 26572 | G32: 13286 | H32: 31052 | I32: 15526 | J32: 51240 | K32: 25620
A33: 22（19） | B33: 300000 | C33: 290000 | D33: ～ | E33: 310000 | F33: 28470 | G33: 14235 | H33: 33270 | I33: 16635 | J33: 54900 | K33: 27450
A34: 23（20） | B34: 320000 | C34: 310000 | D34: ～ | E34: 330000 | F34: 30368 | G34: 15184 | H34: 35488 | I34: 17744 | J34: 58560 | K34: 29280
A35: 24（21） | B35: 340000 | C35: 330000 | D35: ～ | E35: 350000 | F35: 32266 | G35: 16133 | H35: 37706 | I35: 18853 | J35: 62220 | K35: 31110
A36: 25（22） | B36: 360000 | C36: 350000 | D36: ～ | E36: 370000 | F36: 34164 | G36: 17082 | H36: 39924 | I36: 19962 | J36: 65880 | K36: 32940
A37: 26（23） | B37: 380000 | C37: 370000 | D37: ～ | E37: 395000 | F37: 36062 | G37: 18031 | H37: 42142 | I37: 21071 | J37: 69540 | K37: 34770
A38: 27（24） | B38: 410000 | C38: 395000 | D38: ～ | E38: 425000 | F38: 38909 | G38: 19454.5 | H38: 45469 | I38: 22734.5 | J38: 75030 | K38: 37515
A39: 28（25） | B39: 440000 | C39: 425000 | D39: ～ | E39: 455000 | F39: 41756 | G39: 20878 | H39: 48796 | I39: 24398 | J39: 80520 | K39: 40260
A40: 29（26） | B40: 470000 | C40: 455000 | D40: ～ | E40: 485000 | F40: 44603 | G40: 22301.5 | H40: 52123 | I40: 26061.5 | J40: 86010 | K40: 43005
A41: 30（27） | B41: 500000 | C41: 485000 | D41: ～ | E41: 515000 | F41: 47450 | G41: 23725 | H41: 55450 | I41: 27725 | J41: 91500 | K41: 45750
A42: 31（28） | B42: 530000 | C42: 515000 | D42: ～ | E42: 545000 | F42: 50297 | G42: 25148.5 | H42: 58777 | I42: 29388.5 | J42: 96990 | K42: 48495
A43: 32（29） | B43: 560000 | C43: 545000 | D43: ～ | E43: 575000 | F43: 53144 | G43: 26572 | H43: 62104 | I43: 31052 | J43: 102480 | K43: 51240
A44: 33（30） | B44: 590000 | C44: 575000 | D44: ～ | E44: 605000 | F44: 55991 | G44: 27995.5 | H44: 65431 | I44: 32715.5 | J44: 107970 | K44: 53985
A45: 34（31） | B45: 620000 | C45: 605000 | D45: ～ | E45: 635000 | F45: 58838 | G45: 29419 | H45: 68758 | I45: 34379 | J45: 113460 | K45: 56730
A46: 35（32） | B46: 650000 | C46: 635000 | D46: ～ | E46: 665000 | F46: 61685 | G46: 30842.5 | H46: 72085 | I46: 36042.5 | J46: 118950 | K46: 59475
A47: 36 | B47: 680000 | C47: 665000 | D47: ～ | E47: 695000 | F47: 64532 | G47: 32266 | H47: 75412 | I47: 37706
A48: 37 | B48: 710000 | C48: 695000 | D48: ～ | E48: 730000 | F48: 67379 | G48: 33689.5 | H48: 78739 | I48: 39369.5 | J48: ※厚生年金基金に加入している方の
A49: 38 | B49: 750000 | C49: 730000 | D49: ～ | E49: 770000 | F49: 71175 | G49: 35587.5 | H49: 83175 | I49: 41587.5 | J49: 厚生年金保険料率は、基金ごとに
A50: 39 | B50: 790000 | C50: 770000 | D50: ～ | E50: 810000 | F50: 74971 | G50: 37485.5 | H50: 87611 | I50: 43805.5 | J50: 定められている免除保険料率
A51: 40 | B51: 830000 | C51: 810000 | D51: ～ | E51: 855000 | F51: 78767 | G51: 39383.5 | H51: 92047 | I51: 46023.5 | J51: （2.4％～5.0％）を控除した率となり
A52: 41 | B52: 880000 | C52: 855000 | D52: ～ | E52: 905000 | F52: 83512 | G52: 41756 | H52: 97592 | I52: 48796 | J52: ます。
A53: 42 | B53: 930000 | C53: 905000 | D53: ～ | E53: 955000 | F53: 88257 | G53: 44128.5 | H53: 103137 | I53: 51568.5
A54: 43 | B54: 980000 | C54: 955000 | D54: ～ | E54: 1005000 | F54: 93002 | G54: 46501 | H54: 108682 | I54: 54341 | J54: 加入する基金ごとに異なりますの
A55: 44 | B55: 1030000 | C55: 1005000 | D55: ～ | E55: 1055000 | F55: 97747 | G55: 48873.5 | H55: 114227 | I55: 57113.5 | J55: で、免除保険料率および厚生年金
A56: 45 | B56: 1090000 | C56: 1055000 | D56: ～ | E56: 1115000 | F56: 103441 | G56: 51720.5 | H56: 120881 | I56: 60440.5 | J56: 基金の掛金については、加入する
A57: 46 | B57: 1150000 | C57: 1115000 | D57: ～ | E57: 1175000 | F57: 109135 | G57: 54567.5 | H57: 127535 | I57: 63767.5 | J57: 厚生年金基金にお問い合わせ
A58: 47 | B58: 1210000 | C58: 1175000 | D58: ～ | E58: 1235000 | F58: 114829 | G58: 57414.5 | H58: 134189 | I58: 67094.5 | J58: ください。
A59: 48 | B59: 1270000 | C59: 1235000 | D59: ～ | E59: 1295000 | F59: 120523 | G59: 60261.5 | H59: 140843 | I59: 70421.5
A60: 49 | B60: 1330000 | C60: 1295000 | D60: ～ | E60: 1355000 | F60: 126217 | G60: 63108.5 | H60: 147497 | I60: 73748.5
A61: 50 | B61: 1390000 | C61: 1355000 | D61: ～ | F61: 131911 | G61: 65955.5 | H61: 154151 | I61: 77075.5
A63: ◆介護保険第２号被保険者は、40歳から64歳までの方であり、健康保険料率（9.49%）に介護保険料率（1.60%）が加わります。
A64: ◆等級欄の（ ）内の数字は、厚生年金保険の標準報酬月額等級です。
A65: 4（1）等級の「報酬月額」欄は、厚生年金保険の場合「93,000円未満」と読み替えてください。
A66: 35（32）等級の「報酬月額」欄は、厚生年金保険の場合「635,000円以上」と読み替えてください。
A67: ◆令和6年度における全国健康保険協会の任意継続被保険者について、標準報酬月額の上限は、300,000円です。
A70: ○被保険者負担分（表の折半額の欄）に円未満の端数がある場合
A71: ①事業主が、給与から被保険者負担分を控除する場合、被保険者負担分の端数が50銭以下の場合は切り捨て、50銭を超える場合は切り上げて1円となります。
A72: ②被保険者が、被保険者負担分を事業主へ現金で支払う場合、被保険者負担分の端数が50銭未満の場合は切り捨て、50銭以上の場合は切り上げて1円となります。
A73: （注）①、②にかかわらず、事業主と被保険者間で特約がある場合には、特約に基づき端数処理をすることができます。
A75: ○納入告知書の保険料額
A76: 納入告知書の保険料額は、被保険者個々の保険料額を合算した金額になります。ただし、合算した金額に円未満の端数がある場合は、その端数を切り捨てた額となります。
A78: ○賞与にかかる保険料額
A79: 賞与に係る保険料額は、賞与額から1,000円未満の端数を切り捨てた額（標準賞与額)に、保険料率を乗じた額となります。
A80: また、標準賞与額の上限は、健康保険は年間573万円（毎年4月1日から翌年3月31日までの累計額。）となり、厚生年金保険と子ども・子育て拠出金の場合は
A81: 月間150万円となります。
A83: ○子ども・子育て拠出金
A84: 事業主の方は、児童手当の支給に要する費用等の一部として、子ども・子育て拠出金を負担いただくことになります。（被保険者の負担はありません。）
A85: この子ども・子育て拠出金の額は、被保険者個々の厚生年金保険の標準報酬月額および標準賞与額に、拠出金率（0.36％）を乗じて得た額の総額となります。

Sheet 岩手 (hidden)
A1: 令和６年３月分（４月納付分）からの健康保険・厚生年金保険の保険料額表
B3: ・健康保険料率：令和6年3月分～ 適用 ・厚生年金保険料率：平成29年9月分～ 適用
B4: ・介護保険料率：令和6年3月分～ 適用 ・子ども・子育て拠出金率：令和2年4月分～ 適用
A6: （岩手県） | K6: （単位：円）
A7: 標 準 報 酬 | C7: 報 酬 月 額 | F7: 全国健康保険協会管掌健康保険料 | J7: 厚生年金保険料（厚生年金基金加入員を除く）
F8: 介護保険第２号被保険者 に該当しない場合 | H8: 介護保険第２号被保険者 に該当する場合 | J8: 一般、坑内員・船員
A9: 等級 | B9: 月 額 | F9: 0.0963 | H9: 0.1123 | J9: 0.183
F10: 全 額 | G10: 折半額 | H10: 全 額 | I10: 折半額 | J10: 全 額 | K10: 折半額
C11: 円以上 | E11: 円未満
A12: 1 | B12: 58000 | D12: ～ | E12: 63000 | F12: 5585.4 | G12: 2792.7 | H12: 6513.4 | I12: 3256.7
A13: 2 | B13: 68000 | C13: 63000 | D13: ～ | E13: 73000 | F13: 6548.4 | G13: 3274.2 | H13: 7636.4 | I13: 3818.2
A14: 3 | B14: 78000 | C14: 73000 | D14: ～ | E14: 83000 | F14: 7511.4 | G14: 3755.7 | H14: 8759.4 | I14: 4379.7
A15: 4（1） | B15: 88000 | C15: 83000 | D15: ～ | E15: 93000 | F15: 8474.4 | G15: 4237.2 | H15: 9882.4 | I15: 4941.2 | J15: 16104 | K15: 8052
A16: 5（2） | B16: 98000 | C16: 93000 | D16: ～ | E16: 101000 | F16: 9437.4 | G16: 4718.7 | H16: 11005.4 | I16: 5502.7 | J16: 17934 | K16: 8967
A17: 6（3） | B17: 104000 | C17: 101000 | D17: ～ | E17: 107000 | F17: 10015.2 | G17: 5007.6 | H17: 11679.2 | I17: 5839.6 | J17: 19032 | K17: 9516
A18: 7（4） | B18: 110000 | C18: 107000 | D18: ～ | E18: 114000 | F18: 10593 | G18: 5296.5 | H18: 12353 | I18: 6176.5 | J18: 20130 | K18: 10065
A19: 8（5） | B19: 118000 | C19: 114000 | D19: ～ | E19: 122000 | F19: 11363.4 | G19: 5681.7 | H19: 13251.4 | I19: 6625.7 | J19: 21594 | K19: 10797
A20: 9（6） | B20: 126000 | C20: 122000 | D20: ～ | E20: 130000 | F20: 12133.8 | G20: 6066.9 | H20: 14149.8 | I20: 7074.9 | J20: 23058 | K20: 11529
A21: 10（7） | B21: 134000 | C21: 130000 | D21: ～ | E21: 138000 | F21: 12904.2 | G21: 6452.1 | H21: 15048.2 | I21: 7524.1 | J21: 24522 | K21: 12261
A22: 11（8） | B22: 142000 | C22: 138000 | D22: ～ | E22: 146000 | F22: 13674.6 | G22: 6837.3 | H22: 15946.6 | I22: 7973.3 | J22: 25986 | K22: 12993
A23: 12（9） | B23: 150000 | C23: 146000 | D23: ～ | E23: 155000 | F23: 14445 | G23: 7222.5 | H23: 16845 | I23: 8422.5 | J23: 27450 | K23: 13725
A24: 13（10） | B24: 160000 | C24: 155000 | D24: ～ | E24: 165000 | F24: 15408 | G24: 7704 | H24: 17968 | I24: 8984 | J24: 29280 | K24: 14640
A25: 14（11） | B25: 170000 | C25: 165000 | D25: ～ | E25: 175000 | F25: 16371 | G25: 8185.5 | H25: 19091 | I25: 9545.5 | J25: 31110 | K25: 15555
A26: 15（12） | B26: 180000 | C26: 175000 | D26: ～ | E26: 185000 | F26: 17334 | G26: 8667 | H26: 20214 | I26: 10107 | J26: 32940 | K26: 16470
A27: 16（13） | B27: 190000 | C27: 185000 | D27: ～ | E27: 195000 | F27: 18297 | G27: 9148.5 | H27: 21337 | I27: 10668.5 | J27: 34770 | K27: 17385
A28: 17（14） | B28: 200000 | C28: 195000 | D28: ～ | E28: 210000 | F28: 19260 | G28: 9630 | H28: 22460 | I28: 11230 | J28: 36600 | K28: 18300
A29: 18（15） | B29: 220000 | C29: 210000 | D29: ～ | E29: 230000 | F29: 21186 | G29: 10593 | H29: 24706 | I29: 12353 | J29: 40260 | K29: 20130
A30: 19（16） | B30: 240000 | C30: 230000 | D30: ～ | E30: 250000 | F30: 23112 | G30: 11556 | H30: 26952 | I30: 13476 | J30: 43920 | K30: 21960
A31: 20（17） | B31: 260000 | C31: 250000 | D31: ～ | E31: 270000 | F31: 25038 | G31: 12519 | H31: 29198 | I31: 14599 | J31: 47580 | K31: 23790
A32: 21（18） | B32: 280000 | C32: 270000 | D32: ～ | E32: 290000 | F32: 26964 | G32: 13482 | H32: 31444 | I32: 15722 | J32: 51240 | K32: 25620
A33: 22（19） | B33: 300000 | C33: 290000 | D33: ～ | E33: 310000 | F33: 28890 | G33: 14445 | H33: 33690 | I33: 16845 | J33: 54900 | K33: 27450
A34: 23（20） | B34: 320000 | C34: 310000 | D34: ～ | E34: 330000 | F34: 30816 | G34: 15408 | H34: 35936 | I34: 17968 | J34: 58560 | K34: 29280
A35: 24（21） | B35: 340000 | C35: 330000 | D35: ～ | E35: 350000 | F35: 32742 | G35: 16371 | H35: 38182 | I35: 19091 | J35: 62220 | K35: 31110
A36: 25（22） | B36: 360000 | C36: 350000 | D36: ～ | E36: 370000 | F36: 34668 | G36: 17334 | H36: 40428 | I36: 20214 | J36: 65880 | K36: 32940
A37: 26（23） | B37: 380000 | C37: 370000 | D37: ～ | E37: 395000 | F37: 36594 | G37: 18297 | H37: 42674 | I37: 21337 | J37: 69540 | K37: 34770
A38: 27（24） | B38: 410000 | C38: 395000 | D38: ～ | E38: 425000 | F38: 39483 | G38: 19741.5 | H38: 46043 | I38: 23021.5 | J38: 75030 | K38: 37515
A39: 28（25） | B39: 440000 | C39: 425000 | D39: ～ | E39: 455000 | F39: 42372 | G39: 21186 | H39: 49412 | I39: 24706 | J39: 80520 | K39: 40260
A40: 29（26） | B40: 470000 | C40: 455000 | D40: ～ | E40: 485000 | F40: 45261 | G40: 22630.5 | H40: 52781 | I40: 26390.5 | J40: 86010 | K40: 43005
A41: 30（27） | B41: 500000 | C41: 485000 | D41: ～ | E41: 515000 | F41: 48150 | G41: 24075 | H41: 56150 | I41: 28075 | J41: 91500 | K41: 45750
A42: 31（28） | B42: 530000 | C42: 515000 | D42: ～ | E42: 545000 | F42: 51039 | G42: 25519.5 | H42: 59519 | I42: 29759.5 | J42: 96990 | K42: 48495
A43: 32（29） | B43: 560000 | C43: 545000 | D43: ～ | E43: 575000 | F43: 53928 | G43: 26964 | H43: 62888 | I43: 31444 | J43: 102480 | K43: 51240
A44: 33（30） | B44: 590000 | C44: 575000 | D44: ～ | E44: 605000 | F44: 56817 | G44: 28408.5 | H44: 66257 | I44: 33128.5 | J44: 107970 | K44: 53985
A45: 34（31） | B45: 620000 | C45: 605000 | D45: ～ | E45: 635000 | F45: 59706 | G45: 29853 | H45: 69626 | I45: 34813 | J45: 113460 | K45: 56730
A46: 35（32） | B46: 650000 | C46: 635000 | D46: ～ | E46: 665000 | F46: 62595 | G46: 31297.5 | H46: 72995 | I46: 36497.5 | J46: 118950 | K46: 59475
A47: 36 | B47: 680000 | C47: 665000 | D47: ～ | E47: 695000 | F47: 65484 | G47: 32742 | H47: 76364 | I47: 38182
A48: 37 | B48: 710000 | C48: 695000 | D48: ～ | E48: 730000 | F48: 68373 | G48: 34186.5 | H48: 79733 | I48: 39866.5 | J48: ※厚生年金基金に加入している方の
A49: 38 | B49: 750000 | C49: 730000 | D49: ～ | E49: 770000 | F49: 72225 | G49: 36112.5 | H49: 84225 | I49: 42112.5 | J49: 厚生年金保険料率は、基金ごとに
A50: 39 | B50: 790000 | C50: 770000 | D50: ～ | E50: 810000 | F50: 76077 | G50: 38038.5 | H50: 88717 | I50: 44358.5 | J50: 定められている免除保険料率
A51: 40 | B51: 830000 | C51: 810000 | D51: ～ | E51: 855000 | F51: 79929 | G51: 39964.5 | H51: 93209 | I51: 46604.5 | J51: （2.4％～5.0％）を控除した率となり
A52: 41 | B52: 880000 | C52: 855000 | D52: ～ | E52: 905000 | F52: 84744 | G52: 42372 | H52: 98824 | I52: 49412 | J52: ます。
A53: 42 | B53: 930000 | C53: 905000 | D53: ～ | E53: 955000 | F53: 89559 | G53: 44779.5 | H53: 104439 | I53: 52219.5
A54: 43 | B54: 980000 | C54: 955000 | D54: ～ | E54: 1005000 | F54: 94374 | G54: 47187 | H54: 110054 | I54: 55027 | J54: 加入する基金ごとに異なりますの
A55: 44 | B55: 1030000 | C55: 1005000 | D55: ～ | E55: 1055000 | F55: 99189 | G55: 49594.5 | H55: 115669 | I55: 57834.5 | J55: で、免除保険料率および厚生年金
A56: 45 | B56: 1090000 | C56: 1055000 | D56: ～ | E56: 1115000 | F56: 104967 | G56: 52483.5 | H56: 122407 | I56: 61203.5 | J56: 基金の掛金については、加入する
A57: 46 | B57: 1150000 | C57: 1115000 | D57: ～ | E57: 1175000 | F57: 110745 | G57: 55372.5 | H57: 129145 | I57: 64572.5 | J57: 厚生年金基金にお問い合わせ
A58: 47 | B58: 1210000 | C58: 1175000 | D58: ～ | E58: 1235000 | F58: 116523 | G58: 58261.5 | H58: 135883 | I58: 67941.5 | J58: ください。
A59: 48 | B59: 1270000 | C59: 1235000 | D59: ～ | E59: 1295000 | F59: 122301 | G59: 61150.5 | H59: 142621 | I59: 71310.5
A60: 49 | B60: 1330000 | C60: 1295000 | D60: ～ | E60: 1355000 | F60: 128079 | G60: 64039.5 | H60: 149359 | I60: 74679.5
A61: 50 | B61: 1390000 | C61: 1355000 | D61: ～ | F61: 133857 | G61: 66928.5 | H61: 156097 | I61: 78048.5
A63: ◆介護保険第２号被保険者は、40歳から64歳までの方であり、健康保険料率（9.63%）に介護保険料率（1.60%）が加わります。
A64: ◆等級欄の（ ）内の数字は、厚生年金保険の標準報酬月額等級です。
A65: 4（1）等級の「報酬月額」欄は、厚生年金保険の場合「93,000円未満」と読み替えてください。
A66: 35（32）等級の「報酬月額」欄は、厚生年金保険の場合「635,000円以上」と読み替えてください。
A67: ◆令和6年度における全国健康保険協会の任意継続被保険者について、標準報酬月額の上限は、300,000円です。
A70: ○被保険者負担分（表の折半額の欄）に円未満の端数がある場合
A71: ①事業主が、給与から被保険者負担分を控除する場合、被保険者負担分の端数が50銭以下の場合は切り捨て、50銭を超える場合は切り上げて1円となります。
A72: ②被保険者が、被保険者負担分を事業主へ現金で支払う場合、被保険者負担分の端数が50銭未満の場合は切り捨て、50銭以上の場合は切り上げて1円となります。
A73: （注）①、②にかかわらず、事業主と被保険者間で特約がある場合には、特約に基づき端数処理をすることができます。
A75: ○納入告知書の保険料額
A76: 納入告知書の保険料額は、被保険者個々の保険料額を合算した金額になります。ただし、合算した金額に円未満の端数がある場合は、その端数を切り捨てた額となります。
A78: ○賞与にかかる保険料額
A79: 賞与に係る保険料額は、賞与額から1,000円未満の端数を切り捨てた額（標準賞与額)に、保険料率を乗じた額となります。
A80: また、標準賞与額の上限は、健康保険は年間573万円（毎年4月1日から翌年3月31日までの累計額。）となり、厚生年金保険と子ども・子育て拠出金の場合は
A81: 月間150万円となります。
A83: ○子ども・子育て拠出金
A84: 事業主の方は、児童手当の支給に要する費用等の一部として、子ども・子育て拠出金を負担いただくことになります。（被保険者の負担はありません。）
A85: この子ども・子育て拠出金の額は、被保険者個々の厚生年金保険の標準報酬月額および標準賞与額に、拠出金率（0.36％）を乗じて得た額の総額となります。

Sheet 宮城 (hidden)
A1: 令和６年３月分（４月納付分）からの健康保険・厚生年金保険の保険料額表
B3: ・健康保険料率：令和6年3月分～ 適用 ・厚生年金保険料率：平成29年9月分～ 適用
B4: ・介護保険料率：令和6年3月分～ 適用 ・子ども・子育て拠出金率：令和2年4月分～ 適用
A6: （宮城県） | K6: （単位：円）
A7: 標 準 報 酬 | C7: 報 酬 月 額 | F7: 全国健康保険協会管掌健康保険料 | J7: 厚生年金保険料（厚生年金基金加入員を除く）
F8: 介護保険第２号被保険者 に該当しない場合 | H8: 介護保険第２号被保険者 に該当する場合 | J8: 一般、坑内員・船員
A9: 等級 | B9: 月 額 | F9: 0.1001 | H9: 0.1161 | J9: 0.183
F10: 全 額 | G10: 折半額 | H10: 全 額 | I10: 折半額 | J10: 全 額 | K10: 折半額
C11: 円以上 | E11: 円未満
A12: 1 | B12: 58000 | D12: ～ | E12: 63000 | F12: 5805.8 | G12: 2902.9 | H12: 6733.8 | I12: 3366.9
A13: 2 | B13: 68000 | C13: 63000 | D13: ～ | E13: 73000 | F13: 6806.8 | G13: 3403.4 | H13: 7894.8 | I13: 3947.4
A14: 3 | B14: 78000 | C14: 73000 | D14: ～ | E14: 83000 | F14: 7807.8 | G14: 3903.9 | H14: 9055.8 | I14: 4527.9
A15: 4（1） | B15: 88000 | C15: 83000 | D15: ～ | E15: 93000 | F15: 8808.8 | G15: 4404.4 | H15: 10216.8 | I15: 5108.4 | J15: 16104 | K15: 8052
A16: 5（2） | B16: 98000 | C16: 93000 | D16: ～ | E16: 101000 | F16: 9809.8 | G16: 4904.9 | H16: 11377.8 | I16: 5688.9 | J16: 17934 | K16: 8967
A17: 6（3） | B17: 104000 | C17: 101000 | D17: ～ | E17: 107000 | F17: 10410.4 | G17: 5205.2 | H17: 12074.4 | I17: 6037.2 | J17: 19032 | K17: 9516
A18: 7（4） | B18: 110000 | C18: 107000 | D18: ～ | E18: 114000 | F18: 11011 | G18: 5505.5 | H18: 12771 | I18: 6385.5 | J18: 20130 | K18: 10065
A19: 8（5） | B19: 118000 | C19: 114000 | D19: ～ | E19: 122000 | F19: 11811.8 | G19: 5905.9 | H19: 13699.8 | I19: 6849.9 | J19: 21594 | K19: 10797
A20: 9（6） | B20: 126000 | C20: 122000 | D20: ～ | E20: 130000 | F20: 12612.6 | G20: 6306.3 | H20: 14628.6 | I20: 7314.3 | J20: 23058 | K20: 11529
A21: 10（7） | B21: 134000 | C21: 130000 | D21: ～ | E21: 138000 | F21: 13413.4 | G21: 6706.7 | H21: 15557.4 | I21: 7778.7 | J21: 24522 | K21: 12261
A22: 11（8） | B22: 142000 | C22: 138000 | D22: ～ | E22: 146000 | F22: 14214.2 | G22: 7107.1 | H22: 16486.2 | I22: 8243.1 | J22: 25986 | K22: 12993
A23: 12（9） | B23: 150000 | C23: 146000 | D23: ～ | E23: 155000 | F23: 15015 | G23: 7507.5 | H23: 17415 | I23: 8707.5 | J23: 27450 | K23: 13725
A24: 13（10） | B24: 160000 | C24: 155000 | D24: ～ | E24: 165000 | F24: 16016 | G24: 8008 | H24: 18576 | I24: 9288 | J24: 29280 | K24: 14640
A25: 14（11） | B25: 170000 | C25: 165000 | D25: ～ | E25: 175000 | F25: 17017 | G25: 8508.5 | H25: 19737 | I25: 9868.5 | J25: 31110 | K25: 15555
A26: 15（12） | B26: 180000 | C26: 175000 | D26: ～ | E26: 185000 | F26: 18018 | G26: 9009 | H26: 20898 | I26: 10449 | J26: 32940 | K26: 16470
A27: 16（13） | B27: 190000 | C27: 185000 | D27: ～ | E27: 195000 | F27: 19019 | G27: 9509.5 | H27: 22059 | I27: 11029.5 | J27: 34770 | K27: 17385
A28: 17（14） | B28: 200000 | C28: 195000 | D28: ～ | E28: 210000 | F28: 20020 | G28: 10010 | H28: 23220 | I28: 11610 | J28: 36600 | K28: 18300
A29: 18（15） | B29: 220000 | C29: 210000 | D29: ～ | E29: 230000 | F29: 22022 | G29: 11011 | H29: 25542 | I29: 12771 | J29: 40260 | K29: 20130
A30: 19（16） | B30: 240000 | C30: 230000 | D30: ～ | E30: 250000 | F30: 24024 | G30: 12012 | H30: 27864 | I30: 13932 | J30: 43920 | K30: 21960
A31: 20（17） | B31: 260000 | C31: 250000 | D31: ～ | E31: 270000 | F31: 26026 | G31: 13013 | H31: 30186 | I31: 15093 | J31: 47580 | K31: 23790
A32: 21（18） | B32: 280000 | C32: 270000 | D32: ～ | E32: 290000 | F32: 28028 | G32: 14014 | H32: 32508 | I32: 16254 | J32: 51240 | K32: 25620
A33: 22（19） | B33: 300000 | C33: 290000 | D33: ～ | E33: 310000 | F33: 30030 | G33: 15015 | H33: 34830 | I33: 17415 | J33: 54900 | K33: 27450
A34: 23（20） | B34: 320000 | C34: 310000 | D34: ～ | E34: 330000 | F34: 32032 | G34: 16016 | H34: 37152 | I34: 18576 | J34: 58560 | K34: 29280
A35: 24（21） | B35: 340000 | C35: 330000 | D35: ～ | E35: 350000 | F35: 34034 | G35: 17017 | H35: 39474 | I35: 19737 | J35: 62220 | K35: 31110
A36: 25（22） | B36: 360000 | C36: 350000 | D36: ～ | E36: 370000 | F36: 36036 | G36: 18018 | H36: 41796 | I36: 20898 | J36: 65880 | K36: 32940
A37: 26（23） | B37: 380000 | C37: 370000 | D37: ～ | E37: 395000 | F37: 38038 | G37: 19019 | H37: 44118 | I37: 22059 | J37: 69540 | K37: 34770
A38: 27（24） | B38: 410000 | C38: 395000 | D38: ～ | E38: 425000 | F38: 41041 | G38: 20520.5 | H38: 47601 | I38: 23800.5 | J38: 75030 | K38: 37515
A39: 28（25） | B39: 440000 | C39: 425000 | D39: ～ | E39: 455000 | F39: 44044 | G39: 22022 | H39: 51084 | I39: 25542 | J39: 80520 | K39: 40260
A40: 29（26） | B40: 470000 | C40: 455000 | D40: ～ | E40: 485000 | F40: 47047 | G40: 23523.5 | H40: 54567 | I40: 27283.5 | J40: 86010 | K40: 43005
A41: 30（27） | B41: 500000 | C41: 485000 | D41: ～ | E41: 515000 | F41: 50050 | G41: 25025 | H41: 58050 | I41: 29025 | J41: 91500 | K41: 45750
A42: 31（28） | B42: 530000 | C42: 515000 | D42: ～ | E42: 545000 | F42: 53053 | G42: 26526.5 | H42: 61533 | I42: 30766.5 | J42: 96990 | K42: 48495
A43: 32（29） | B43: 560000 | C43: 545000 | D43: ～ | E43: 575000 | F43: 56056 | G43: 28028 | H43: 65016 | I43: 32508 | J43: 102480 | K43: 51240
A44: 33（30） | B44: 590000 | C44: 575000 | D44: ～ | E44: 605000 | F44: 59059 | G44: 29529.5 | H44: 68499 | I44: 34249.5 | J44: 107970 | K44: 53985
A45: 34（31） | B45: 620000 | C45: 605000 | D45: ～ | E45: 635000 | F45: 62062 | G45: 31031 | H45: 71982 | I45: 35991 | J45: 113460 | K45: 56730
A46: 35（32） | B46: 650000 | C46: 635000 | D46: ～ | E46: 665000 | F46: 65065 | G46: 32532.5 | H46: 75465 | I46: 37732.5 | J46: 118950 | K46: 59475
A47: 36 | B47: 680000 | C47: 665000 | D47: ～ | E47: 695000 | F47: 68068 | G47: 34034 | H47: 78948 | I47: 39474
A48: 37 | B48: 710000 | C48: 695000 | D48: ～ | E48: 730000 | F48: 71071 | G48: 35535.5 | H48: 82431 | I48: 41215.5 | J48: ※厚生年金基金に加入している方の
A49: 38 | B49: 750000 | C49: 730000 | D49: ～ | E49: 770000 | F49: 75075 | G49: 37537.5 | H49: 87075 | I49: 43537.5 | J49: 厚生年金保険料率は、基金ごとに
A50: 39 | B50: 790000 | C50: 770000 | D50: ～ | E50: 810000 | F50: 79079 | G50: 39539.5 | H50: 91719 | I50: 45859.5 | J50: 定められている免除保険料率
A51: 40 | B51: 830000 | C51: 810000 | D51: ～ | E51: 855000 | F51: 83083 | G51: 41541.5 | H51: 96363 | I51: 48181.5 | J51: （2.4％～5.0％）を控除した率となり
A52: 41 | B52: 880000 | C52: 855000 | D52: ～ | E52: 905000 | F52: 88088 | G52: 44044 | H52: 102168 | I52: 51084 | J52: ます。
A53: 42 | B53: 930000 | C53: 905000 | D53: ～ | E53: 955000 | F53: 93093 | G53: 46546.5 | H53: 107973 | I53: 53986.5
A54: 43 | B54: 980000 | C54: 955000 | D54: ～ | E54: 1005000 | F54: 98098 | G54: 49049 | H54: 113778 | I54: 56889 | J54: 加入する基金ごとに異なりますの
A55: 44 | B55: 1030000 | C55: 1005000 | D55: ～ | E55: 1055000 | F55: 103103 | G55: 51551.5 | H55: 119583 | I55: 59791.5 | J55: で、免除保険料率および厚生年金
A56: 45 | B56: 1090000 | C56: 1055000 | D56: ～ | E56: 1115000 | F56: 109109 | G56: 54554.5 | H56: 126549 | I56: 63274.5 | J56: 基金の掛金については、加入する
A57: 46 | B57: 1150000 | C57: 1115000 | D57: ～ | E57: 1175000 | F57: 115115 | G57: 57557.5 | H57: 133515 | I57: 66757.5 | J57: 厚生年金基金にお問い合わせ
A58: 47 | B58: 1210000 | C58: 1175000 | D58: ～ | E58: 1235000 | F58: 121121 | G58: 60560.5 | H58: 140481 | I58: 70240.5 | J58: ください。
A59: 48 | B59: 1270000 | C59: 1235000 | D59: ～ | E59: 1295000 | F59: 127127 | G59: 63563.5 | H59: 147447 | I59: 73723.5
A60: 49 | B60: 1330000 | C60: 1295000 | D60: ～ | E60: 1355000 | F60: 133133 | G60: 66566.5 | H60: 154413 | I60: 77206.5
A61: 50 | B61: 1390000 | C61: 1355000 | D61: ～ | F61: 139139 | G61: 69569.5 | H61: 161379 | I61: 80689.5
A63: ◆介護保険第２号被保険者は、40歳から64歳までの方であり、健康保険料率（10.01%）に介護保険料率（1.60%）が加わります。
A64: ◆等級欄の（ ）内の数字は、厚生年金保険の標準報酬月額等級です。
A65: 4（1）等級の「報酬月額」欄は、厚生年金保険の場合「93,000円未満」と読み替えてください。
A66: 35（32）等級の「報酬月額」欄は、厚生年金保険の場合「635,000円以上」と読み替えてください。
A67: ◆令和6年度における全国健康保険協会の任意継続被保険者について、標準報酬月額の上限は、300,000円です。
A70: ○被保険者負担分（表の折半額の欄）に円未満の端数がある場合
A71: ①事業主が、給与から被保険者負担分を控除する場合、被保険者負担分の端数が50銭以下の場合は切り捨て、50銭を超える場合は切り上げて1円となります。
A72: ②被保険者が、被保険者負担分を事業主へ現金で支払う場合、被保険者負担分の端数が50銭未満の場合は切り捨て、50銭以上の場合は切り上げて1円となります。
A73: （注）①、②にかかわらず、事業主と被保険者間で特約がある場合には、特約に基づき端数処理をすることができます。
A75: ○納入告知書の保険料額
A76: 納入告知書の保険料額は、被保険者個々の保険料額を合算した金額になります。ただし、合算した金額に円未満の端数がある場合は、その端数を切り捨てた額となります。
A78: ○賞与にかかる保険料額
A79: 賞与に係る保険料額は、賞与額から1,000円未満の端数を切り捨てた額（標準賞与額)に、保険料率を乗じた額となります。
A80: また、標準賞与額の上限は、健康保険は年間573万円（毎年4月1日から翌年3月31日までの累計額。）となり、厚生年金保険と子ども・子育て拠出金の場合は
A81: 月間150万円となります。
A83: ○子ども・子育て拠出金
A84: 事業主の方は、児童手当の支給に要する費用等の一部として、子ども・子育て拠出金を負担いただくことになります。（被保険者の負担はありません。）
A85: この子ども・子育て拠出金の額は、被保険者個々の厚生年金保険の標準報酬月額および標準賞与額に、拠出金率（0.36％）を乗じて得た額の総額となります。

Sheet 秋田 (hidden)
A1: 令和６年３月分（４月納付分）からの健康保険・厚生年金保険の保険料額表
B3: ・健康保険料率：令和6年3月分～ 適用 ・厚生年金保険料率：平成29年9月分～ 適用
B4: ・介護保険料率：令和6年3月分～ 適用 ・子ども・子育て拠出金率：令和2年4月分～ 適用
A6: （秋田県） | K6: （単位：円）
A7: 標 準 報 酬 | C7: 報 酬 月 額 | F7: 全国健康保険協会管掌健康保険料 | J7: 厚生年金保険料（厚生年金基金加入員を除く）
F8: 介護保険第２号被保険者 に該当しない場合 | H8: 介護保険第２号被保険者 に該当する場合 | J8: 一般、坑内員・船員
A9: 等級 | B9: 月 額 | F9: 0.0985 | H9: 0.1145 | J9: 0.183
F10: 全 額 | G10: 折半額 | H10: 全 額 | I10: 折半額 | J10: 全 額 | K10: 折半額
C11: 円以上 | E11: 円未満
A12: 1 | B12: 58000 | D12: ～ | E12: 63000 | F12: 5713 | G12: 2856.5 | H12: 6641 | I12: 3320.5
A13: 2 | B13: 68000 | C13: 63000 | D13: ～ | E13: 73000 | F13: 6698 | G13: 3349 | H13: 7786 | I13: 3893
A14: 3 | B14: 78000 | C14: 73000 | D14: ～ | E14: 83000 | F14: 7683 | G14: 3841.5 | H14: 8931 | I14: 4465.5
A15: 4（1） | B15: 88000 | C15: 83000 | D15: ～ | E15: 93000 | F15: 8668 | G15: 4334 | H15: 10076 | I15: 5038 | J15: 16104 | K15: 8052
A16: 5（2） | B16: 98000 | C16: 93000 | D16: ～ | E16: 101000 | F16: 9653 | G16: 4826.5 | H16: 11221 | I16: 5610.5 | J16: 17934 | K16: 8967
A17: 6（3） | B17: 104000 | C17: 101000 | D17: ～ | E17: 107000 | F17: 10244 | G17: 5122 | H17: 11908 | I17: 5954 | J17: 19032 | K17: 9516
A18: 7（4） | B18: 110000 | C18: 107000 | D18: ～ | E18: 114000 | F18: 10835 | G18: 5417.5 | H18: 12595 | I18: 6297.5 | J18: 20130 | K18: 10065
A19: 8（5） | B19: 118000 | C19: 114000 | D19: ～ | E19: 122000 | F19: 11623 | G19: 5811.5 | H19: 13511 | I19: 6755.5 | J19: 21594 | K19: 10797
A20: 9（6） | B20: 126000 | C20: 122000 | D20: ～ | E20: 130000 | F20: 12411 | G20: 6205.5 | H20: 14427 | I20: 7213.5 | J20: 23058 | K20: 11529
A21: 10（7） | B21: 134000 | C21: 130000 | D21: ～ | E21: 138000 | F21: 13199 | G21: 6599.5 | H21: 15343 | I21: 7671.5 | J21: 24522 | K21: 12261
A22: 11（8） | B22: 142000 | C22: 138000 | D22: ～ | E22: 146000 | F22: 13987 | G22: 6993.5 | H22: 16259 | I22: 8129.5 | J22: 25986 | K22: 12993
A23: 12（9） | B23: 150000 | C23: 146000 | D23: ～ | E23: 155000 | F23: 14775 | G23: 7387.5 | H23: 17175 | I23: 8587.5 | J23: 27450 | K23: 13725
A24: 13（10） | B24: 160000 | C24: 155000 | D24: ～ | E24: 165000 | F24: 15760 | G24: 7880 | H24: 18320 | I24: 9160 | J24: 29280 | K24: 14640
A25: 14（11） | B25: 170000 | C25: 165000 | D25: ～ | E25: 175000 | F25: 16745 | G25: 8372.5 | H25: 19465 | I25: 9732.5 | J25: 31110 | K25: 15555
A26: 15（12） | B26: 180000 | C26: 175000 | D26: ～ | E26: 185000 | F26: 17730 | G26: 8865 | H26: 20610 | I26: 10305 | J26: 32940 | K26: 16470
A27: 16（13） | B27: 190000 | C27: 185000 | D27: ～ | E27: 195000 | F27: 18715 | G27: 9357.5 | H27: 21755 | I27: 10877.5 | J27: 34770 | K27: 17385
A28: 17（14） | B28: 200000 | C28: 195000 | D28: ～ | E28: 210000 | F28: 19700 | G28: 9850 | H28: 22900 | I28: 11450 | J28: 36600 | K28: 18300
A29: 18（15） | B29: 220000 | C29: 210000 | D29: ～ | E29: 230000 | F29: 21670 | G29: 10835 | H29: 25190 | I29: 12595 | J29: 40260 | K29: 20130
A30: 19（16） | B30: 240000 | C30: 230000 | D30: ～ | E30: 250000 | F30: 23640 | G30: 11820 | H30: 27480 | I30: 13740 | J30: 43920 | K30: 21960
A31: 20（17） | B31: 260000 | C31: 250000 | D31: ～ | E31: 270000 | F31: 25610 | G31: 12805 | H31: 29770 | I31: 14885 | J31: 47580 | K31: 23790
A32: 21（18） | B32: 280000 | C32: 270000 | D32: ～ | E32: 290000 | F32: 27580 | G32: 13790 | H32: 32060 | I32: 16030 | J32: 51240 | K32: 25620
A33: 22（19） | B33: 300000 | C33: 290000 | D33: ～ | E33: 310000 | F33: 29550 | G33: 14775 | H33: 34350 | I33: 17175 | J33: 54900 | K33: 27450
A34: 23（20） | B34: 320000 | C34: 310000 | D34: ～ | E34: 330000 | F34: 31520 | G34: 15760 | H34: 36640 | I34: 18320 | J34: 58560 | K34: 29280
A35: 24（21） | B35: 340000 | C35: 330000 | D35: ～ | E35: 350000 | F35: 33490 | G35: 16745 | H35: 38930 | I35: 19465 | J35: 62220 | K35: 31110
A36: 25（22） | B36: 360000 | C36: 350000 | D36: ～ | E36: 370000 | F36: 35460 | G36: 17730 | H36: 41220 | I36: 20610 | J36: 65880 | K36: 32940
A37: 26（23） | B37: 380000 | C37: 370000 | D37: ～ | E37: 395000 | F37: 37430 | G37: 18715 | H37: 43510 | I37: 21755 | J37: 69540 | K37: 34770
A38: 27（24） | B38: 410000 | C38: 395000 | D38: ～ | E38: 425000 | F38: 40385 | G38: 20192.5 | H38: 46945 | I38: 23472.5 | J38: 75030 | K38: 37515
A39: 28（25） | B39: 440000 | C39: 425000 | D39: ～ | E39: 455000 | F39: 43340 | G39: 21670 | H39: 50380 | I39: 25190 | J39: 80520 | K39: 40260
A40: 29（26） | B40: 470000 | C40: 455000 | D40: ～ | E40: 485000 | F40: 46295 | G40: 23147.5 | H40: 53815 | I40: 26907.5 | J40: 86010 | K40: 43005
A41: 30（27） | B41: 500000 | C41: 485000 | D41: ～ | E41: 515000 | F41: 49250 | G41: 24625 | H41: 57250 | I41: 28625 | J41: 91500 | K41: 45750
A42: 31（28） | B42: 530000 | C42: 515000 | D42: ～ | E42: 545000 | F42: 52205 | G42: 26102.5 | H42: 60685 | I42: 30342.5 | J42: 96990 | K42: 48495
A43: 32（29） | B43: 560000 | C43: 545000 | D43: ～ | E43: 575000 | F43: 55160 | G43: 27580 | H43: 64120 | I43: 32060 | J43: 102480 | K43: 51240
A44: 33（30） | B44: 590000 | C44: 575000 | D44: ～ | E44: 605000 | F44: 58115 | G44: 29057.5 | H44: 67555 | I44: 33777.5 | J44: 107970 | K44: 53985
A45: 34（31） | B45: 620000 | C45: 605000 | D45: ～ | E45: 635000 | F45: 61070 | G45: 30535 | H45: 70990 | I45: 35495 | J45: 113460 | K45: 56730
A46: 35（32） | B46: 650000 | C46: 635000 | D46: ～ | E46: 665000 | F46: 64025 | G46: 32012.5 | H46: 74425 | I46: 37212.5 | J46: 118950 | K46: 59475
A47: 36 | B47: 680000 | C47: 665000 | D47: ～ | E47: 695000 | F47: 66980 | G47: 33490 | H47: 77860 | I47: 38930
A48: 37 | B48: 710000 | C48: 695000 | D48: ～ | E48: 730000 | F48: 69935 | G48: 34967.5 | H48: 81295 | I48: 40647.5 | J48: ※厚生年金基金に加入している方の
A49: 38 | B49: 750000 | C49: 730000 | D49: ～ | E49: 770000 | F49: 73875 | G49: 36937.5 | H49: 85875 | I49: 42937.5 | J49: 厚生年金保険料率は、基金ごとに
A50: 39 | B50: 790000 | C50: 770000 | D50: ～ | E50: 810000 | F50: 77815 | G50: 38907.5 | H50: 90455 | I50: 45227.5 | J50: 定められている免除保険料率
A51: 40 | B51: 830000 | C51: 810000 | D51: ～ | E51: 855000 | F51: 81755 | G51: 40877.5 | H51: 95035 | I51: 47517.5 | J51: （2.4％～5.0％）を控除した率となり
A52: 41 | B52: 880000 | C52: 855000 | D52: ～ | E52: 905000 | F52: 86680 | G52: 43340 | H52: 100760 | I52: 50380 | J52: ます。
A53: 42 | B53: 930000 | C53: 905000 | D53: ～ | E53: 955000 | F53: 91605 | G53: 45802.5 | H53: 106485 | I53: 53242.5
A54: 43 | B54: 980000 | C54: 955000 | D54: ～ | E54: 1005000 | F54: 96530 | G54: 48265 | H54: 112210 | I54: 56105 | J54: 加入する基金ごとに異なりますの
A55: 44 | B55: 1030000 | C55: 1005000 | D55: ～ | E55: 1055000 | F55: 101455 | G55: 50727.5 | H55: 117935 | I55: 58967.5 | J55: で、免除保険料率および厚生年金
A56: 45 | B56: 1090000 | C56: 1055000 | D56: ～ | E56: 1115000 | F56: 107365 | G56: 53682.5 | H56: 124805 | I56: 62402.5 | J56: 基金の掛金については、加入する
A57: 46 | B57: 1150000 | C57: 1115000 | D57: ～ | E57: 1175000 | F57: 113275 | G57: 56637.5 | H57: 131675 | I57: 65837.5 | J57: 厚生年金基金にお問い合わせ
A58: 47 | B58: 1210000 | C58: 1175000 | D58: ～ | E58: 1235000 | F58: 119185 | G58: 59592.5 | H58: 138545 | I58: 69272.5 | J58: ください。
A59: 48 | B59: 1270000 | C59: 1235000 | D59: ～ | E59: 1295000 | F59: 125095 | G59: 62547.5 | H59: 145415 | I59: 72707.5
A60: 49 | B60: 1330000 | C60: 1295000 | D60: ～ | E60: 1355000 | F60: 131005 | G60: 65502.5 | H60: 152285 | I60: 76142.5
A61: 50 | B61: 1390000 | C61: 1355000 | D61: ～ | F61: 136915 | G61: 68457.5 | H61: 159155 | I61: 79577.5
A63: ◆介護保険第２号被保険者は、40歳から64歳までの方であり、健康保険料率（9.85%）に介護保険料率（1.60%）が加わります。
A64: ◆等級欄の（ ）内の数字は、厚生年金保険の標準報酬月額等級です。
A65: 4（1）等級の「報酬月額」欄は、厚生年金保険の場合「93,000円未満」と読み替えてください。
A66: 35（32）等級の「報酬月額」欄は、厚生年金保険の場合「635,000円以上」と読み替えてください。
A67: ◆令和6年度における全国健康保険協会の任意継続被保険者について、標準報酬月額の上限は、300,000円です。
A70: ○被保険者負担分（表の折半額の欄）に円未満の端数がある場合
A71: ①事業主が、給与から被保険者負担分を控除する場合、被保険者負担分の端数が50銭以下の場合は切り捨て、50銭を超える場合は切り上げて1円となります。
A72: ②被保険者が、被保険者負担分を事業主へ現金で支払う場合、被保険者負担分の端数が50銭未満の場合は切り捨て、50銭以上の場合は切り上げて1円となります。
A73: （注）①、②にかかわらず、事業主と被保険者間で特約がある場合には、特約に基づき端数処理をすることができます。
A75: ○納入告知書の保険料額
A76: 納入告知書の保険料額は、被保険者個々の保険料額を合算した金額になります。ただし、合算した金額に円未満の端数がある場合は、その端数を切り捨てた額となります。
A78: ○賞与にかかる保険料額
A79: 賞与に係る保険料額は、賞与額から1,000円未満の端数を切り捨てた額（標準賞与額)に、保険料率を乗じた額となります。
A80: また、標準賞与額の上限は、健康保険は年間573万円（毎年4月1日から翌年3月31日までの累計額。）となり、厚生年金保険と子ども・子育て拠出金の場合は
A81: 月間150万円となります。
A83: ○子ども・子育て拠出金
A84: 事業主の方は、児童手当の支給に要する費用等の一部として、子ども・子育て拠出金を負担いただくことになります。（被保険者の負担はありません。）
A85: この子ども・子育て拠出金の額は、被保険者個々の厚生年金保険の標準報酬月額および標準賞与額に、拠出金率（0.36％）を乗じて得た額の総額となります。

Sheet 山形 (hidden)
A1: 令和６年３月分（４月納付分）からの健康保険・厚生年金保険の保険料額表
B3: ・健康保険料率：令和6年3月分～ 適用 ・厚生年金保険料率：平成29年9月分～ 適用
B4: ・介護保険料率：令和6年3月分～ 適用 ・子ども・子育て拠出金率：令和2年4月分～ 適用
A6: （山形県） | K6: （単位：円）
A7: 標 準 報 酬 | C7: 報 酬 月 額 | F7: 全国健康保険協会管掌健康保険料 | J7: 厚生年金保険料（厚生年金基金加入員を除く）
F8: 介護保険第２号被保険者 に該当しない場合 | H8: 介護保険第２号被保険者 に該当する場合 | J8: 一般、坑内員・船員
A9: 等級 | B9: 月 額 | F9: 0.0984 | H9: 0.1144 | J9: 0.183
F10: 全 額 | G10: 折半額 | H10: 全 額 | I10: 折半額 | J10: 全 額 | K10: 折半額
C11: 円以上 | E11: 円未満
A12: 1 | B12: 58000 | D12: ～ | E12: 63000 | F12: 5707.2 | G12: 2853.6 | H12: 6635.2 | I12: 3317.6
A13: 2 | B13: 68000 | C13: 63000 | D13: ～ | E13: 73000 | F13: 6691.2 | G13: 3345.6 | H13: 7779.2 | I13: 3889.6
A14: 3 | B14: 78000 | C14: 73000 | D14: ～ | E14: 83000 | F14: 7675.2 | G14: 3837.6 | H14: 8923.2 | I14: 4461.6
A15: 4（1） | B15: 88000 | C15: 83000 | D15: ～ | E15: 93000 | F15: 8659.2 | G15: 4329.6 | H15: 10067.2 | I15: 5033.6 | J15: 16104 | K15: 8052
A16: 5（2） | B16: 98000 | C16: 93000 | D16: ～ | E16: 101000 | F16: 9643.2 | G16: 4821.6 | H16: 11211.2 | I16: 5605.6 | J16: 17934 | K16: 8967
A17: 6（3） | B17: 104000 | C17: 101000 | D17: ～ | E17: 107000 | F17: 10233.6 | G17: 5116.8 | H17: 11897.6 | I17: 5948.8 | J17: 19032 | K17: 9516
A18: 7（4） | B18: 110000 | C18: 107000 | D18: ～ | E18: 114000 | F18: 10824 | G18: 5412 | H18: 12584 | I18: 6292 | J18: 20130 | K18: 10065
A19: 8（5） | B19: 118000 | C19: 114000 | D19: ～ | E19: 122000 | F19: 11611.2 | G19: 5805.6 | H19: 13499.2 | I19: 6749.6 | J19: 21594 | K19: 10797
A20: 9（6） | B20: 126000 | C20: 122000 | D20: ～ | E20: 130000 | F20: 12398.4 | G20: 6199.2 | H20: 14414.4 | I20: 7207.2 | J20: 23058 | K20: 11529
A21: 10（7） | B21: 134000 | C21: 130000 | D21: ～ | E21: 138000 | F21: 13185.6 | G21: 6592.8 | H21: 15329.6 | I21: 7664.8 | J21: 24522 | K21: 12261
A22: 11（8） | B22: 142000 | C22: 138000 | D22: ～ | E22: 146000 | F22: 13972.8 | G22: 6986.4 | H22: 16244.8 | I22: 8122.4 | J22: 25986 | K22: 12993
A23: 12（9） | B23: 150000 | C23: 146000 | D23: ～ | E23: 155000 | F23: 14760 | G23: 7380 | H23: 17160 | I23: 8580 | J23: 27450 | K23: 13725
A24: 13（10） | B24: 160000 | C24: 155000 | D24: ～ | E24: 165000 | F24: 15744 | G24: 7872 | H24: 18304 | I24: 9152 | J24: 29280 | K24: 14640
A25: 14（11） | B25: 170000 | C25: 165000 | D25: ～ | E25: 175000 | F25: 16728 | G25: 8364 | H25: 19448 | I25: 9724 | J25: 31110 | K25: 15555
A26: 15（12） | B26: 180000 | C26: 175000 | D26: ～ | E26: 185000 | F26: 17712 | G26: 8856 | H26: 20592 | I26: 10296 | J26: 32940 | K26: 16470
A27: 16（13） | B27: 190000 | C27: 185000 | D27: ～ | E27: 195000 | F27: 18696 | G27: 9348 | H27: 21736 | I27: 10868 | J27: 34770 | K27: 17385
A28: 17（14） | B28: 200000 | C28: 195000 | D28: ～ | E28: 210000 | F28: 19680 | G28: 9840 | H28: 22880 | I28: 11440 | J28: 36600 | K28: 18300
A29: 18（15） | B29: 220000 | C29: 210000 | D29: ～ | E29: 230000 | F29: 21648 | G29: 10824 | H29: 25168 | I29: 12584 | J29: 40260 | K29: 20130
A30: 19（16） | B30: 240000 | C30: 230000 | D30: ～ | E30: 250000 | F30: 23616 | G30: 11808 | H30: 27456 | I30: 13728 | J30: 43920 | K30: 21960
A31: 20（17） | B31: 260000 | C31: 250000 | D31: ～ | E31: 270000 | F31: 25584 | G31: 12792 | H31: 29744 | I31: 14872 | J31: 47580 | K31: 23790
A32: 21（18） | B32: 280000 | C32: 270000 | D32: ～ | E32: 290000 | F32: 27552 | G32: 13776 | H32: 32032 | I32: 16016 | J32: 51240 | K32: 25620
A33: 22（19） | B33: 300000 | C33: 290000 | D33: ～ | E33: 310000 | F33: 29520 | G33: 14760 | H33: 34320 | I33: 17160 | J33: 54900 | K33: 27450
A34: 23（20） | B34: 320000 | C34: 310000 | D34: ～ | E34: 330000 | F34: 31488 | G34: 15744 | H34: 36608 | I34: 18304 | J34: 58560 | K34: 29280
A35: 24（21） | B35: 340000 | C35: 330000 | D35: ～ | E35: 350000 | F35: 33456 | G35: 16728 | H35: 38896 | I35: 19448 | J35: 62220 | K35: 31110
A36: 25（22） | B36: 360000 | C36: 350000 | D36: ～ | E36: 370000 | F36: 35424 | G36: 17712 | H36: 41184 | I36: 20592 | J36: 65880 | K36: 32940
A37: 26（23） | B37: 380000 | C37: 370000 | D37: ～ | E37: 395000 | F37: 37392 | G37: 18696 | H37: 43472 | I37: 21736 | J37: 69540 | K37: 34770
A38: 27（24） | B38: 410000 | C38: 395000 | D38: ～ | E38: 425000 | F38: 40344 | G38: 20172 | H38: 46904 | I38: 23452 | J38: 75030 | K38: 37515
A39: 28（25） | B39: 440000 | C39: 425000 | D39: ～ | E39: 455000 | F39: 43296 | G39: 21648 | H39: 50336 | I39: 25168 | J39: 80520 | K39: 40260
A40: 29（26） | B40: 470000 | C40: 455000 | D40: ～ | E40: 485000 | F40: 46248 | G40: 23124 | H40: 53768 | I40: 26884 | J40: 86010 | K40: 43005
A41: 30（27） | B41: 500000 | C41: 485000 | D41: ～ | E41: 515000 | F41: 49200 | G41: 24600 | H41: 57200 | I41: 28600 | J41: 91500 | K41: 45750
A42: 31（28） | B42: 530000 | C42: 515000 | D42: ～ | E42: 545000 | F42: 52152 | G42: 26076 | H42: 60632 | I42: 30316 | J42: 96990 | K42: 48495
A43: 32（29） | B43: 560000 | C43: 545000 | D43: ～ | E43: 575000 | F43: 55104 | G43: 27552 | H43: 64064 | I43: 32032 | J43: 102480 | K43: 51240
A44: 33（30） | B44: 590000 | C44: 575000 | D44: ～ | E44: 605000 | F44: 58056 | G44: 29028 | H44: 67496 | I44: 33748 | J44: 107970 | K44: 53985
A45: 34（31） | B45: 620000 | C45: 605000 | D45: ～ | E45: 635000 | F45: 61008 | G45: 30504 | H45: 70928 | I45: 35464 | J45: 113460 | K45: 56730
A46: 35（32） | B46: 650000 | C46: 635000 | D46: ～ | E46: 665000 | F46: 63960 | G46: 31980 | H46: 74360 | I46: 37180 | J46: 118950 | K46: 59475
A47: 36 | B47: 680000 | C47: 665000 | D47: ～ | E47: 695000 | F47: 66912 | G47: 33456 | H47: 77792 | I47: 38896
A48: 37 | B48: 710000 | C48: 695000 | D48: ～ | E48: 730000 | F48: 69864 | G48: 34932 | H48: 81224 | I48: 40612 | J48: ※厚生年金基金に加入している方の
A49: 38 | B49: 750000 | C49: 730000 | D49: ～ | E49: 770000 | F49: 73800 | G49: 36900 | H49: 85800 | I49: 42900 | J49: 厚生年金保険料率は、基金ごとに
A50: 39 | B50: 790000 | C50: 770000 | D50: ～ | E50: 810000 | F50: 77736 | G50: 38868 | H50: 90376 | I50: 45188 | J50: 定められている免除保険料率
A51: 40 | B51: 830000 | C51: 810000 | D51: ～ | E51: 855000 | F51: 81672 | G51: 40836 | H51: 94952 | I51: 47476 | J51: （2.4％～5.0％）を控除した率となり
A52: 41 | B52: 880000 | C52: 855000 | D52: ～ | E52: 905000 | F52: 86592 | G52: 43296 | H52: 100672 | I52: 50336 | J52: ます。
A53: 42 | B53: 930000 | C53: 905000 | D53: ～ | E53: 955000 | F53: 91512 | G53: 45756 | H53: 106392 | I53: 53196
A54: 43 | B54: 980000 | C54: 955000 | D54: ～ | E54: 1005000 | F54: 96432 | G54: 48216 | H54: 112112 | I54: 56056 | J54: 加入する基金ごとに異なりますの
A55: 44 | B55: 1030000 | C55: 1005000 | D55: ～ | E55: 1055000 | F55: 101352 | G55: 50676 | H55: 117832 | I55: 58916 | J55: で、免除保険料率および厚生年金
A56: 45 | B56: 1090000 | C56: 1055000 | D56: ～ | E56: 1115000 | F56: 107256 | G56: 53628 | H56: 124696 | I56: 62348 | J56: 基金の掛金については、加入する
A57: 46 | B57: 1150000 | C57: 1115000 | D57: ～ | E57: 1175000 | F57: 113160 | G57: 56580 | H57: 131560 | I57: 65780 | J57: 厚生年金基金にお問い合わせ
A58: 47 | B58: 1210000 | C58: 1175000 | D58: ～ | E58: 1235000 | F58: 119064 | G58: 59532 | H58: 138424 | I58: 69212 | J58: ください。
A59: 48 | B59: 1270000 | C59: 1235000 | D59: ～ | E59: 1295000 | F59: 124968 | G59: 62484 | H59: 145288 | I59: 72644
A60: 49 | B60: 1330000 | C60: 1295000 | D60: ～ | E60: 1355000 | F60: 130872 | G60: 65436 | H60: 152152 | I60: 76076
A61: 50 | B61: 1390000 | C61: 1355000 | D61: ～ | F61: 136776 | G61: 68388 | H61: 159016 | I61: 79508
A63: ◆介護保険第２号被保険者は、40歳から64歳までの方であり、健康保険料率（9.84%）に介護保険料率（1.60%）が加わります。
A64: ◆等級欄の（ ）内の数字は、厚生年金保険の標準報酬月額等級です。
A65: 4（1）等級の「報酬月額」欄は、厚生年金保険の場合「93,000円未満」と読み替えてください。
A66: 35（32）等級の「報酬月額」欄は、厚生年金保険の場合「635,000円以上」と読み替えてください。
A67: ◆令和6年度における全国健康保険協会の任意継続被保険者について、標準報酬月額の上限は、300,000円です。
A70: ○被保険者負担分（表の折半額の欄）に円未満の端数がある場合
A71: ①事業主が、給与から被保険者負担分を控除する場合、被保険者負担分の端数が50銭以下の場合は切り捨て、50銭を超える場合は切り上げて1円となります。
A72: ②被保険者が、被保険者負担分を事業主へ現金で支払う場合、被保険者負担分の端数が50銭未満の場合は切り捨て、50銭以上の場合は切り上げて1円となります。
A73: （注）①、②にかかわらず、事業主と被保険者間で特約がある場合には、特約に基づき端数処理をすることができます。
A75: ○納入告知書の保険料額
A76: 納入告知書の保険料額は、被保険者個々の保険料額を合算した金額になります。ただし、合算した金額に円未満の端数がある場合は、その端数を切り捨てた額となります。
A78: ○賞与にかかる保険料額
A79: 賞与に係る保険料額は、賞与額から1,000円未満の端数を切り捨てた額（標準賞与額)に、保険料率を乗じた額となります。
A80: また、標準賞与額の上限は、健康保険は年間573万円（毎年4月1日から翌年3月31日までの累計額。）となり、厚生年金保険と子ども・子育て拠出金の場合は
A81: 月間150万円となります。
A83: ○子ども・子育て拠出金
A84: 事業主の方は、児童手当の支給に要する費用等の一部として、子ども・子育て拠出金を負担いただくことになります。（被保険者の負担はありません。）
A85: この子ども・子育て拠出金の額は、被保険者個々の厚生年金保険の標準報酬月額および標準賞与額に、拠出金率（0.36％）を乗じて得た額の総額となります。

Sheet 福島 (hidden)
A1: 令和６年３月分（４月納付分）からの健康保険・厚生年金保険の保険料額表
B3: ・健康保険料率：令和6年3月分～ 適用 ・厚生年金保険料率：平成29年9月分～ 適用
B4: ・介護保険料率：令和6年3月分～ 適用 ・子ども・子育て拠出金率：令和2年4月分～ 適用
A6: （福島県） | K6: （単位：円）
A7: 標 準 報 酬 | C7: 報 酬 月 額 | F7: 全国健康保険協会管掌健康保険料 | J7: 厚生年金保険料（厚生年金基金加入員を除く）
F8: 介護保険第２号被保険者 に該当しない場合 | H8: 介護保険第２号被保険者 に該当する場合 | J8: 一般、坑内員・船員
A9: 等級 | B9: 月 額 | F9: 0.0959 | H9: 0.1119 | J9: 0.183
F10: 全 額 | G10: 折半額 | H10: 全 額 | I10: 折半額 | J10: 全 額 | K10: 折半額
C11: 円以上 | E11: 円未満
A12: 1 | B12: 58000 | D12: ～ | E12: 63000 | F12: 5562.2 | G12: 2781.1 | H12: 6490.2 | I12: 3245.1
A13: 2 | B13: 68000 | C13: 63000 | D13: ～ | E13: 73000 | F13: 6521.2 | G13: 3260.6 | H13: 7609.2 | I13: 3804.6
A14: 3 | B14: 78000 | C14: 73000 | D14: ～ | E14: 83000 | F14: 7480.2 | G14: 3740.1 | H14: 8728.2 | I14: 4364.1
A15: 4（1） | B15: 88000 | C15: 83000 | D15: ～ | E15: 93000 | F15: 8439.2 | G15: 4219.6 | H15: 9847.2 | I15: 4923.6 | J15: 16104 | K15: 8052
A16: 5（2） | B16: 98000 | C16: 93000 | D16: ～ | E16: 101000 | F16: 9398.2 | G16: 4699.1 | H16: 10966.2 | I16: 5483.1 | J16: 17934 | K16: 8967
A17: 6（3） | B17: 104000 | C17: 101000 | D17: ～ | E17: 107000 | F17: 9973.6 | G17: 4986.8 | H17: 11637.6 | I17: 5818.8 | J17: 19032 | K17: 9516
A18: 7（4） | B18: 110000 | C18: 107000 | D18: ～ | E18: 114000 | F18: 10549 | G18: 5274.5 | H18: 12309 | I18: 6154.5 | J18: 20130 | K18: 10065
A19: 8（5） | B19: 118000 | C19: 114000 | D19: ～ | E19: 122000 | F19: 11316.2 | G19: 5658.1 | H19: 13204.2 | I19: 6602.1 | J19: 21594 | K19: 10797
A20: 9（6） | B20: 126000 | C20: 122000 | D20: ～ | E20: 130000 | F20: 12083.4 | G20: 6041.7 | H20: 14099.4 | I20: 7049.7 | J20: 23058 | K20: 11529
A21: 10（7） | B21: 134000 | C21: 130000 | D21: ～ | E21: 138000 | F21: 12850.6 | G21: 6425.3 | H21: 14994.6 | I21: 7497.3 | J21: 24522 | K21: 12261
A22: 11（8） | B22: 142000 | C22: 138000 | D22: ～ | E22: 146000 | F22: 13617.8 | G22: 6808.9 | H22: 15889.8 | I22: 7944.9 | J22: 25986 | K22: 12993
A23: 12（9） | B23: 150000 | C23: 146000 | D23: ～ | E23: 155000 | F23: 14385 | G23: 7192.5 | H23: 16785 | I23: 8392.5 | J23: 27450 | K23: 13725
A24: 13（10） | B24: 160000 | C24: 155000 | D24: ～ | E24: 165000 | F24: 15344 | G24: 7672 | H24: 17904 | I24: 8952 | J24: 29280 | K24: 14640
A25: 14（11） | B25: 170000 | C25: 165000 | D25: ～ | E25: 175000 | F25: 16303 | G25: 8151.5 | H25: 19023 | I25: 9511.5 | J25: 31110 | K25: 15555
A26: 15（12） | B26: 180000 | C26: 175000 | D26: ～ | E26: 185000 | F26: 17262 | G26: 8631 | H26: 20142 | I26: 10071 | J26: 32940 | K26: 16470
A27: 16（13） | B27: 190000 | C27: 185000 | D27: ～ | E27: 195000 | F27: 18221 | G27: 9110.5 | H27: 21261 | I27: 10630.5 | J27: 34770 | K27: 17385
A28: 17（14） | B28: 200000 | C28: 195000 | D28: ～ | E28: 210000 | F28: 19180 | G28: 9590 | H28: 22380 | I28: 11190 | J28: 36600 | K28: 18300
A29: 18（15） | B29: 220000 | C29: 210000 | D29: ～ | E29: 230000 | F29: 21098 | G29: 10549 | H29: 24618 | I29: 12309 | J29: 40260 | K29: 20130
A30: 19（16） | B30: 240000 | C30: 230000 | D30: ～ | E30: 250000 | F30: 23016 | G30: 11508 | H30: 26856 | I30: 13428 | J30: 43920 | K30: 21960
A31: 20（17） | B31: 260000 | C31: 250000 | D31: ～ | E31: 270000 | F31: 24934 | G31: 12467 | H31: 29094 | I31: 14547 | J31: 47580 | K31: 23790
A32: 21（18） | B32: 280000 | C32: 270000 | D32: ～ | E32: 290000 | F32: 26852 | G32: 13426 | H32: 31332 | I32: 15666 | J32: 51240 | K32: 25620
A33: 22（19） | B33: 300000 | C33: 290000 | D33: ～ | E33: 310000 | F33: 28770 | G33: 14385 | H33: 33570 | I33: 16785 | J33: 54900 | K33: 27450
A34: 23（20） | B34: 320000 | C34: 310000 | D34: ～ | E34: 330000 | F34: 30688 | G34: 15344 | H34: 35808 | I34: 17904 | J34: 58560 | K34: 29280
A35: 24（21） | B35: 340000 | C35: 330000 | D35: ～ | E35: 350000 | F35: 32606 | G35: 16303 | H35: 38046 | I35: 19023 | J35: 62220 | K35: 31110
A36: 25（22） | B36: 360000 | C36: 350000 | D36: ～ | E36: 370000 | F36: 34524 | G36: 17262 | H36: 40284 | I36: 20142 | J36: 65880 | K36: 32940
A37: 26（23） | B37: 380000 | C37: 370000 | D37: ～ | E37: 395000 | F37: 36442 | G37: 18221 | H37: 42522 | I37: 21261 | J37: 69540 | K37: 34770
A38: 27（24） | B38: 410000 | C38: 395000 | D38: ～ | E38: 425000 | F38: 39319 | G38: 19659.5 | H38: 45879 | I38: 22939.5 | J38: 75030 | K38: 37515
A39: 28（25） | B39: 440000 | C39: 425000 | D39: ～ | E39: 455000 | F39: 42196 | G39: 21098 | H39: 49236 | I39: 24618 | J39: 80520 | K39: 40260
A40: 29（26） | B40: 470000 | C40: 455000 | D40: ～ | E40: 485000 | F40: 45073 | G40: 22536.5 | H40: 52593 | I40: 26296.5 | J40: 86010 | K40: 43005
A41: 30（27） | B41: 500000 | C41: 485000 | D41: ～ | E41: 515000 | F41: 47950 | G41: 23975 | H41: 55950 | I41: 27975 | J41: 91500 | K41: 45750
A42: 31（28） | B42: 530000 | C42: 515000 | D42: ～ | E42: 545000 | F42: 50827 | G42: 25413.5 | H42: 59307 | I42: 29653.5 | J42: 96990 | K42: 48495
A43: 32（29） | B43: 560000 | C43: 545000 | D43: ～ | E43: 575000 | F43: 53704 | G43: 26852 | H43: 62664 | I43: 31332 | J43: 102480 | K43: 51240
A44: 33（30） | B44: 590000 | C44: 575000 | D44: ～ | E44: 605000 | F44: 56581 | G44: 28290.5 | H44: 66021 | I44: 33010.5 | J44: 107970 | K44: 53985
A45: 34（31） | B45: 620000 | C45: 605000 | D45: ～ | E45: 635000 | F45: 59458 | G45: 29729 | H45: 69378 | I45: 34689 | J45: 113460 | K45: 56730
A46: 35（32） | B46: 650000 | C46: 635000 | D46: ～ | E46: 665000 | F46: 62335 | G46: 31167.5 | H46: 72735 | I46: 36367.5 | J46: 118950 | K46: 59475
A47: 36 | B47: 680000 | C47: 665000 | D47: ～ | E47: 695000 | F47: 65212 | G47: 32606 | H47: 76092 | I47: 38046
A48: 37 | B48: 710000 | C48: 695000 | D48: ～ | E48: 730000 | F48: 68089 | G48: 34044.5 | H48: 79449 | I48: 39724.5 | J48: ※厚生年金基金に加入している方の
